Workbook

Sheet ANA SAYFA
A1: AİLE VE SOSYAL HİZMETLER İL MÜDÜRLÜĞÜ | P1: SENDİKA İBAN | Q1: TR47 0020 5000 0941 6809 0000 05 | V1: ZİRAAT BANKASI CEZA İBAN | W1: TR83 0001 0025 3338 7753 6950 52
A2: EK DERS KARŞILIĞI ÇALIŞAN PERSONELLERİN MAAŞ ÖDEMESİ | P2: DAYANIŞMA İBAN | Q2: TR20 0020 5000 0941 6809 0000 06
P3: SENDİKA | Q3: -------
A4: M A A Ş | F4: K U R U M B İ L G İ L E R İ | L4: GÜNÜN TARİHİ | M4: YEMEK İSTİSNASI | N4: =ROUND(J15/30*0.06,2) -> 40.01
A5: ÖDEME EMRİ BELGESİ | C5: ÖDEME EMRİ BELGESİ 2 | G5: KURUM BİLGİLERİ | H5: 1 | I5: 2024 | J5: A | L5: =TODAY() -> 2024-02-05 | M5: GELİR VERGİSİNE GÖRE BÜRÜT YOL ÜCRETLERİ | R5: 2.YIL 1.ZAM | S5: 2.YIL 2.ZAM | T5: ENFLASYON (31.10.2021)
A6: TESLİM EVRAKI | C6: TESLİM EVRAKI 2 | G6: İBAN NO | M6: 0.71491 | N6: =ROUND('PERSONEL BİLGİ GİRİŞİ'!AD5/M6,2) -> 119242.65
A7: TEK KİŞİLİK BORDRO | C7: İKRAMİYE BORDRO | G7: VERGİ NO | M7: 0.67241 | N7: =ROUND('PERSONEL BİLGİ GİRİŞİ'!AD5/'ANA SAYFA'!M7,2) -> 126779.44
A8: BORDO HAZIRLIK | C8: BANKA LİSTESİ | G8: SAYMANLIK NO | M8: 0.61291 | N8: =ROUND('PERSONEL BİLGİ GİRİŞİ'!AD5/'ANA SAYFA'!M8,2) -> 139086.91 | P8: YEMEK | R8: - | S8: =ROUND(Q8*S6+Q8,2) -> 0 | T8: =ROUND(S8*$T$6+S8,2) -> 0
A9: PERSONEL BİLGİ GİRİŞİ | C9: SGK AYRIŞTIRMASI | G9: SGK SİCİL NO | M9: A | N9: Asıl Mahiyette | P9: ÇOCUK | R9: =ROUND(Q9*R6+Q9,2) -> 0 | S9: =ROUND(R9*S6+R9,2) -> 0 | T9: =S9 -> 0
A10: BİLDİRGE | C10: İKRAMİYE BES | G10: ADRES | M10: E | N10: Ek Mahiyette | P10: BAYRAM | R10: =ROUND(Q10*R6+Q10,2) -> 0 | S10: =ROUND(R10*S6+R10,2) -> 0 | T10: =S10 -> 0
A11: PERSONEL BİLDİRİMİ | G11: HARCAMA YETKİLİSİ | I11: =VLOOKUP(H11,G25:I26,2,FALSE) ->  | J11: =VLOOKUP(H11,G25:I26,3,FALSE) ->  | M11: T | N11: Toplu İş Sözleşmesi İçin | P11: DOĞUM | R11: - | S11: =ROUND(Q11*S6+Q11,2) -> 0 | T11: =ROUND(S11*$T$6+S11,2) -> 0
A12: PUANTAJ | B12: PUANTAJ | G12: GERÇEKLEŞTİRME GÖREVLİSİ | I12: =VLOOKUP(H12,G27:I30,2,FALSE) ->  | J12: =VLOOKUP(H12,G27:I30,3,FALSE) ->  | P12: YAKACAK | R12: - | S12: =ROUND(Q12*S6+Q12,2) -> 0 | T12: 0
A13: BANKA LİSTESİ | B13: BANKA LİSTESİ | G13: MAAŞ MUTEMEDİ | I13: =VLOOKUP(H13,G31:I33,2,FALSE) ->  | J13: =VLOOKUP(H13,G31:I33,3,FALSE) ->  | M13: 1.DERECE %80 ÜZERİ | N13: =B23 -> 6900 | P13: EVLENME | R13: - | S13: =ROUND(Q13*S6+Q13,2) -> 0 | T13: 0
B14: AGİ | M14: 2.DERECE %60-%80 | N14: =B24 -> 4000 | P14: (KENDİSİ)ÖLÜM | R14: - | S14: =ROUND(Q14*S6+Q14,2) -> 0 | T14: 0
A15: BES | B15: BES | G15: MEMUR KATSAYI | H15: 0.760871 | I15: ASGARİ ÜCRET BRÜT | J15: 20002.5 | M15: 3.DERECE %40-60 | N15: =B25 -> 1700 | P15: (ÖLÜM) İŞ KAZASI | R15: - | S15: =ROUND(Q15*S6+Q15,2) -> 0 | T15: 0
A16: İCRA | B16: İCRA | I16: ASGARİ ÜCRET NET | J16: 17002.12 | P16: (ÖLÜM )YAKINI | R16: - | S16: =ROUND(Q16*S6+Q16,2) -> 0 | T16: 0
A17: NAFAKA | G17: VERGİ DİLİMLERİ | H17: 0.15 | I17: 0.2 | J17: 0.27 | P17: ASKERLİK | R17: - | S17: =ROUND(Q17*S7+Q17,2) -> 0 | T17: =ROUND(S17*$T$6+S17,2) -> 0
A18: VERGİ MATRAHLARI | H18: 110000 | I18: 230000 | J18: 870000 | R18: - | S18: =ROUND(Q18*S8+Q18,2) -> 0 | T18: =ROUND(S18*$T$6+S18,2) -> 0
M19: =L5 -> 2024-02-05 | N19: 1. vergi Dilimi %15 | O19: 4800 | P19: =H18 -> 110000 | Q19: =P19+O19 -> 114800
H20: SADECE OCAK AYINDA SIFIRLAYINIZ | M20: VERGİ MATRAHLARI | N20: 2.Vergi Dilimi %20 | O20: =P19 -> 110000 | P20: =I18 -> 230000 | Q20: =P20+' BORDRO HAZIRLIK'!AK5 -> 248779
C21: VERGİ MATRAHLARI | N21: 3.Vergi Dilimi %27 | O21: =P20 -> 230000 | P21: =J18 -> 870000
A23: 1.DERECE %80 ÜZERİ | B23: 6900 | G23: M Ü D Ü R L Ü Ğ Ü N Ü Z E G Ö R E G Ü N C E L L E Y İ N İ Z
A24: 2.DERECE %60-%80 | B24: 4000 | G24: AD-SOYAD TC. ÜNVAN | M24: AYLIK MAAŞ KATSAYISI | N24: =H15 -> 0.760871
A25: 3.DERECE %40-60 | B25: 1700 | M25: EK DERS GÖSTERGESİ GÜNDÜZ | N25: 140 | O25: 150
M26: 1 SAATLİK EKDERS BRÜT ÜCRETİ | N26: =N24*N25 -> 106.52
M27: 1 SAATLİK EKDERS ÜCRETİ%15 | N27: =N24*N25-N24*N25*14%-(N24*N25-N24*N25*14%)*15%-N24*N25*0.6% -> 77.23
M28: 1 SAATLİK EKDERS ÜCRETİ%20 | N28: =N24*N25-N24*N25*14%-(N24*N25-N24*N25*14%)*20%-N24*N25*0.6% -> 72.65

Sheet TESLİM EVRAKI
A1: ='ANA SAYFA'!A1 -> AİLE VE SOSYAL HİZMETLER İL MÜDÜRLÜĞÜ
A2: ÖDEME BELGESİ VE EKİ BELGELER TESLİM/TESELLÜM TUTANAĞI
A3: Harcama Birimin Kurumsal Kodu : | C3: 24 | D3: 1 | E3: 0 | F3: 62 | G3: 323 | H3: Muhasebe Birimi | J3: Zonguldak Defterdarlık Muhasebe Müdürlüğü
A4: Dairesi : | C4: =A1 -> AİLE VE SOSYAL HİZMETLER İL MÜDÜRLÜĞÜ | H4: Düzenleme Tarihi | J4: =TODAY() -> 2024-02-05 | N4: ANA SAYFA
A5: From Sıra No : | C5: HYS-2022-34371049
A7: SIRA NO | B7: Ödeme Belgesi | F7: Eki Belge | M7: Alacaklı
B8: Tahakkuk İşlem No | C8: Yevmiye Tarihi | F8: Yevmiye No | H8: Türü | L8: Adet | M8: Adı - Soyadı | N8: TCK/VKN | O8: Brüt Tutar
A10: 1 | B10: =C5 -> HYS-2022-34371049 | C10: =TODAY() -> 2024-02-05 | H10: ÖDEME EMRİ BELGESİ | L10: 1 | M10: =A1 -> AİLE VE SOSYAL HİZMETLER İL MÜDÜRLÜĞÜ | N10: ='ANA SAYFA'!H7 -> 0 | O10: =' BORDRO HAZIRLIK'!BG40 -> 18498.96
A11: 2 | H11: BODRO DÖKÜMÜ | L11: 1
A12: 3 | H12: BANKA LİSTESİ | L12: 1 | M12: GEÇİCİ PERSONEL STATÜSÜNDE ÇALIŞAN PERSONEL
A13: 4 | H13: AGİ | L13: 1 | M13: =PUANTAJ!AI2 -> 2024-01-01
A14: 5 | H14: PUANTAJ | L14: 1
A15: 6 | H15: PERSONEL BİLDİRİMİ | L15: 1
A16: 7 | H16: SGK TAHAKKUK FİŞİ, SGK HİZMET LİSTESİ | L16: 2
A17: 8 | H17: HARCAMA TALİMATI | L17: 1
A18: 9
A19: Yukarıda alacaklıları ile alacak tutarları gösterilen toplam (1) adet tahakkuk evrakı ve ekleri teslim alınmıştır | N19: =TODAY() -> 2024-02-05 | O19: Saat ……/……
B21: =TODAY() -> 2024-02-05 | N21: =TODAY() -> 2024-02-05
B22: TESLİM EDEN | N22: TESLİM ALAN
B23: İmza | N23: İmza
B24: ='PERSONEL BİLGİ GİRİŞİ'!A82 -> 0
B25: ='PERSONEL BİLGİ GİRİŞİ'!A83 -> 
A30: *Merkezi Yönetim Harcama Belgeleri Yönetmeliğindeki belgenin adı yazılacktır.
A31: **Bu bölümler muhasebe birimi tarafından muhasebeleştirme işlemi tamamladıktan sonra doldurulacaktır.
A32: ***Bu Bölüme muhasebeleştirme işlemi tamamlandıktan sonra evrakın konulduğu torba numarası yazılcaktır.

Sheet Vergi Matrahları
B1: SIRA NO | C1: ANA SAYFA | D1: TOPLAM VERGİ MATRAHI | E1: TOPLAM İSTİSNA VERGİ MATRAHI | F1: =IF((MONTH(PUANTAJ!$B$2))=1,PUANTAJ!$B$2,"") -> 2024-01-01 | G1: =IF((MONTH(PUANTAJ!$B$2))=1,PUANTAJ!$B$2,"") -> 2024-01-01 | J1: =IF((MONTH(PUANTAJ!$B$2))=2,PUANTAJ!$B$2,"") ->  | K1: =IF((MONTH(PUANTAJ!$B$2))=2,PUANTAJ!$B$2,"") ->  | N1: =IF((MONTH(PUANTAJ!$B$2))=3,PUANTAJ!$B$2,"") ->  | O1: =IF((MONTH(PUANTAJ!$B$2))=3,PUANTAJ!$B$2,"") ->  | R1: =IF((MONTH(PUANTAJ!$B$2))=4,PUANTAJ!$B$2,"") ->  | S1: =IF((MONTH(PUANTAJ!$B$2))=4,PUANTAJ!$B$2,"") ->  | V1: =IF((MONTH(PUANTAJ!$B$2))=5,PUANTAJ!$B$2,"") ->  | W1: =IF((MONTH(PUANTAJ!$B$2))=5,PUANTAJ!$B$2,"") ->  | Z1: =IF((MONTH(PUANTAJ!$B$2))=6,PUANTAJ!$B$2,"") ->  | AA1: =IF((MONTH(PUANTAJ!$B$2))=6,PUANTAJ!$B$2,"") ->  | AD1: =IF((MONTH(PUANTAJ!$B$2))=7,PUANTAJ!$B$2,"") ->  | AE1: =IF((MONTH(PUANTAJ!$B$2))=7,PUANTAJ!$B$2,"") ->  | AH1: =IF((MONTH(PUANTAJ!$B$2))=8,PUANTAJ!$B$2,"") ->  | AI1: =IF((MONTH(PUANTAJ!$B$2))=8,PUANTAJ!$B$2,"") ->  | AL1: =IF((MONTH(PUANTAJ!$B$2))=9,PUANTAJ!$B$2,"") ->  | AM1: =IF((MONTH(PUANTAJ!$B$2))=9,PUANTAJ!$B$2,"") ->  | AP1: =IF((MONTH(PUANTAJ!$B$2))=10,PUANTAJ!$B$2,"") ->  | AQ1: =IF((MONTH(PUANTAJ!$B$2))=10,PUANTAJ!$B$2,"") ->  | AT1: =IF((MONTH(PUANTAJ!$B$2))=11,PUANTAJ!$B$2,"") ->  | AU1: =IF((MONTH(PUANTAJ!$B$2))=11,PUANTAJ!$B$2,"") ->  | AX1: =IF((MONTH(PUANTAJ!$B$2))=12,PUANTAJ!$B$2,"") ->  | AY1: =IF((MONTH(PUANTAJ!$B$2))=12,PUANTAJ!$B$2,"") ->  | BB1: ANASAYFA | BE1: İSTİSNA
C2: AD - SOYAD | F2: O C A K | G2: O C A K | H2: O C A K İSTİSNA | I2: O C A K İSTİSNA | J2: Ş U B A T | K2: Ş U B A T | L2: Ş U B A T İSTİSNA | M2: Ş U B A T İSTİSNA | N2: M A R T | O2: M A R T | P2: M A R T İSTİSNA | Q2: M A R T İSTİSNA | R2: N İ S A N | S2: N İ S A N | T2: N İ S A N İSTİSNA | U2: N İ S A N İSTİSNA | V2: M A Y I S | W2: M A Y I S | X2: M A Y I S İSTİSNA | Y2: M A Y I S İSTİSNA | Z2: H A Z İ R A N | AA2: H A Z İ R A N | AB2: H A Z İ R A N İSTİSNA | AC2: H A Z İ R A N İSTİSNA | AD2: T E M M U Z | AE2: T E M M U Z | AF2: T E M M U Z İSTİSNA | AG2: T E M M U Z İSTİSNA | AH2: A Ğ U S T O S | AI2: A Ğ U S T O S | AJ2: A Ğ U S T O S İSTİSNA | AK2: A Ğ U S T O S İSTİSNA | AL2: E Y L Ü L | AM2: E Y L Ü L | AN2: E Y L Ü L İSTİSNA | AO2: E Y L Ü L İSTİSNA | AP2: E K İ M | AQ2: E K İ M | AR2: E K İ M İSTİSNA | AS2: E K İ M İSTİSNA | AT2: K A S I M | AU2: K A S I M | AV2: K A S I M İSTİSNA | AW2: K A S I M İSTİSNA | AX2: A R A L I K | AY2: A R A L I K | AZ2: A R A L I K İSTİSNA | BA2: A R A L I K İSTİSNA | BB2: GEÇEN AYLAR VERGİ MATRAH | BC2: MEVCUT AY | BD2: TOPLAM MATRAH | BE2: GEÇEN AYLAR VERGİ MATRAH | BF2: MEVCUT AY | BG2: TOPLAM MATRAH
F3: 1 | J3: 2 | N3: 3 | R3: 4 | V3: 5 | Z3: 6 | AD3: 7 | AH3: 8 | AL3: 9 | AP3: 10 | AT3: 11 | AX3: 12
B4: =PUANTAJ!A7 -> 1 | C4: =PUANTAJ!B7 -> ALİ BZC | D4: =BD4+'PERSONEL BİLGİ GİRİŞİ'!AC5 -> 18779.48 | E4: =BG4+'PERSONEL BİLGİ GİRİŞİ'!AL5 -> 17002.12 | F4: =IF((MONTH(PUANTAJ!$B$2))=1,' BORDRO HAZIRLIK'!AK5,IF(G4>1,G4,(0))) -> 18779.48 | G4: 0 | H4: =IF((MONTH(PUANTAJ!$B$2))=1,' BORDRO HAZIRLIK'!AE5,IF(I4>1,I4,(0))) -> 17002.12 | I4: 0 | J4: =IF((MONTH(PUANTAJ!$B$2))=2,' BORDRO HAZIRLIK'!AK5,IF(K4>1,K4,(0))) -> 0 | K4: 0 | L4: =IF((MONTH(PUANTAJ!$B$2))=2,' BORDRO HAZIRLIK'!AE5,IF(M4>1,M4,(0))) -> 0 | M4: 0 | N4: =IF((MONTH(PUANTAJ!$B$2))=3,' BORDRO HAZIRLIK'!AK5,IF(O4>1,O4,(0))) -> 0 | O4: 0 | P4: =IF((MONTH(PUANTAJ!$B$2))=3,' BORDRO HAZIRLIK'!AE5,IF(Q4>1,Q4,(0))) -> 0 | Q4: 0 | R4: =IF((MONTH(PUANTAJ!$B$2))=4,' BORDRO HAZIRLIK'!AK5,IF(S4>1,S4,(0))) -> 0 | S4: 0 | T4: =IF((MONTH(PUANTAJ!$B$2))=4,' BORDRO HAZIRLIK'!AE5,IF(U4>1,U4,(0))) -> 0 | U4: 0 | V4: =IF((MONTH(PUANTAJ!$B$2))=5,' BORDRO HAZIRLIK'!AK5,IF(W4>1,W4,(0))) -> 0 | W4: 0 | X4: =IF((MONTH(PUANTAJ!$B$2))=5,' BORDRO HAZIRLIK'!AE5,IF(Y4>1,Y4,(0))) -> 0 | Y4: 0 | Z4: =IF((MONTH(PUANTAJ!$B$2))=6,' BORDRO HAZIRLIK'!AK5,IF(AA4>1,AA4,(0))) -> 0 | AA4: 0 | AB4: =IF((MONTH(PUANTAJ!$B$2))=6,' BORDRO HAZIRLIK'!AE5,IF(AC4>1,AC4,(0))) -> 0 | AC4: 0 | AD4: =IF((MONTH(PUANTAJ!$B$2))=7,' BORDRO HAZIRLIK'!AK5,IF(AE4>1,AE4,(0))) -> 0 | AE4: 0 | AF4: =IF((MONTH(PUANTAJ!$B$2))=7,' BORDRO HAZIRLIK'!AE5,IF(AG4>1,AG4,(0))) -> 0 | AG4: 0 | AH4: =IF((MONTH(PUANTAJ!$B$2))=8,' BORDRO HAZIRLIK'!AK5,IF(AI4>1,AI4,(0))) -> 0 | AI4: 0 | AJ4: =IF((MONTH(PUANTAJ!$B$2))=8,' BORDRO HAZIRLIK'!AE5,IF(AK4>1,AK4,(0))) -> 0 | AK4: 0 | AL4: =IF((MONTH(PUANTAJ!$B$2))=9,' BORDRO HAZIRLIK'!AK5,IF(AM4>1,AM4,(0))) -> 0 | AM4: 0 | AN4: =IF((MONTH(PUANTAJ!$B$2))=9,' BORDRO HAZIRLIK'!AE5,IF(AO4>1,AO4,(0))) -> 0 | AO4: 0 | AP4: =IF((MONTH(PUANTAJ!$B$2))=10,' BORDRO HAZIRLIK'!AK5,IF(AQ4>1,AQ4,(0))) -> 0 | AQ4: 0 | AR4: =IF((MONTH(PUANTAJ!$B$2))=10,' BORDRO HAZIRLIK'!AE5,IF(AS4>1,AS4,(0))) -> 0 | AS4: 0 | AT4: =IF((MONTH(PUANTAJ!$B$2))=11,' BORDRO HAZIRLIK'!AK5,IF(AU4>1,AU4,(0))) -> 0 | AU4: 0 | AV4: =IF((MONTH(PUANTAJ!$B$2))=11,' BORDRO HAZIRLIK'!AE5,IF(AW4>1,AW4,(0))) -> 0 | AW4: 0 | AX4: =IF((MONTH(PUANTAJ!$B$2))=12,' BORDRO HAZIRLIK'!AK5,IF(AY4>1,AY4,(0))) -> 0 | AY4: 0 | AZ4: =IF((MONTH(PUANTAJ!$B$2))=12,' BORDRO HAZIRLIK'!AE5,IF(BA4>1,BA4,(0))) -> 0 | BA4: 0 | BB4: =G4+K4+O4+S4+W4+AA4+AE4+AI4+AM4+AQ4+AU4+AY4 -> 0 | BC4: =' BORDRO HAZIRLIK'!AK5 -> 18779.48 | BD4: =BB4+BC4 -> 18779.48 | BE4: =I4+M4+Q4+U4+Y4+AC4+AG4+AK4+AO4+AS4+AW4+BA4 -> 0 | BF4: =' BORDRO HAZIRLIK'!AE5 -> 17002.12 | BG4: =BE4+BF4 -> 17002.12
B5: =PUANTAJ!A9 ->  | C5: =PUANTAJ!B9 ->  | D5: =BD5+'PERSONEL BİLGİ GİRİŞİ'!AC6 -> 0 | E5: =BG5+'PERSONEL BİLGİ GİRİŞİ'!AL6 -> 0 | F5: =IF((MONTH(PUANTAJ!$B$2))=1,' BORDRO HAZIRLIK'!AK6,IF(G5>1,G5,(0))) -> 0 | G5: 0 | H5: =IF((MONTH(PUANTAJ!$B$2))=1,' BORDRO HAZIRLIK'!AE6,IF(I5>1,I5,(0))) -> 0 | I5: 0 | J5: =IF((MONTH(PUANTAJ!$B$2))=2,' BORDRO HAZIRLIK'!AK6,IF(K5>1,K5,(0))) -> 0 | K5: 0 | L5: =IF((MONTH(PUANTAJ!$B$2))=2,' BORDRO HAZIRLIK'!AE6,IF(M5>1,M5,(0))) -> 0 | M5: 0 | N5: =IF((MONTH(PUANTAJ!$B$2))=3,' BORDRO HAZIRLIK'!AK6,IF(O5>1,O5,(0))) -> 0 | O5: 0 | P5: =IF((MONTH(PUANTAJ!$B$2))=3,' BORDRO HAZIRLIK'!AE6,IF(Q5>1,Q5,(0))) -> 0 | Q5: 0 | R5: =IF((MONTH(PUANTAJ!$B$2))=4,' BORDRO HAZIRLIK'!AK6,IF(S5>1,S5,(0))) -> 0 | S5: 0 | T5: =IF((MONTH(PUANTAJ!$B$2))=4,' BORDRO HAZIRLIK'!AE6,IF(U5>1,U5,(0))) -> 0 | U5: 0 | V5: =IF((MONTH(PUANTAJ!$B$2))=5,' BORDRO HAZIRLIK'!AK6,IF(W5>1,W5,(0))) -> 0 | W5: 0 | X5: =IF((MONTH(PUANTAJ!$B$2))=5,' BORDRO HAZIRLIK'!AE6,IF(Y5>1,Y5,(0))) -> 0 | Y5: 0 | Z5: =IF((MONTH(PUANTAJ!$B$2))=6,' BORDRO HAZIRLIK'!AK6,IF(AA5>1,AA5,(0))) -> 0 | AA5: 0 | AB5: =IF((MONTH(PUANTAJ!$B$2))=6,' BORDRO HAZIRLIK'!AE6,IF(AC5>1,AC5,(0))) -> 0 | AC5: 0 | AD5: =IF((MONTH(PUANTAJ!$B$2))=7,' BORDRO HAZIRLIK'!AK6,IF(AE5>1,AE5,(0))) -> 0 | AE5: 0 | AF5: =IF((MONTH(PUANTAJ!$B$2))=7,' BORDRO HAZIRLIK'!AE6,IF(AG5>1,AG5,(0))) -> 0 | AG5: 0 | AH5: =IF((MONTH(PUANTAJ!$B$2))=8,' BORDRO HAZIRLIK'!AK6,IF(AI5>1,AI5,(0))) -> 0 | AI5: 0 | AJ5: =IF((MONTH(PUANTAJ!$B$2))=8,' BORDRO HAZIRLIK'!AE6,IF(AK5>1,AK5,(0))) -> 0 | AK5: 0 | AL5: =IF((MONTH(PUANTAJ!$B$2))=9,' BORDRO HAZIRLIK'!AK6,IF(AM5>1,AM5,(0))) -> 0 | AM5: 0 | AN5: =IF((MONTH(PUANTAJ!$B$2))=9,' BORDRO HAZIRLIK'!AE6,IF(AO5>1,AO5,(0))) -> 0 | AO5: 0 | AP5: =IF((MONTH(PUANTAJ!$B$2))=10,' BORDRO HAZIRLIK'!AK6,IF(AQ5>1,AQ5,(0))) -> 0 | AQ5: 0 | AR5: =IF((MONTH(PUANTAJ!$B$2))=10,' BORDRO HAZIRLIK'!AE6,IF(AS5>1,AS5,(0))) -> 0 | AS5: 0 | AT5: =IF((MONTH(PUANTAJ!$B$2))=11,' BORDRO HAZIRLIK'!AK6,IF(AU5>1,AU5,(0))) -> 0 | AU5: 0 | AV5: =IF((MONTH(PUANTAJ!$B$2))=11,' BORDRO HAZIRLIK'!AE6,IF(AW5>1,AW5,(0))) -> 0 | AW5: 0 | AX5: =IF((MONTH(PUANTAJ!$B$2))=12,' BORDRO HAZIRLIK'!AK6,IF(AY5>1,AY5,(0))) -> 0 | AY5: 0 | AZ5: =IF((MONTH(PUANTAJ!$B$2))=12,' BORDRO HAZIRLIK'!AE6,IF(BA5>1,BA5,(0))) -> 0 | BA5: 0 | BB5: =G5+K5+O5+S5+W5+AA5+AE5+AI5+AM5+AQ5+AU5+AY5 -> 0 | BC5: =' BORDRO HAZIRLIK'!AK6 -> 0 | BD5: =BB5+BC5 -> 0 | BE5: =I5+M5+Q5+U5+Y5+AC5+AG5+AK5+AO5+AS5+AW5+BA5 -> 0 | BF5: =' BORDRO HAZIRLIK'!AE6 -> 0 | BG5: =BE5+BF5 -> 0
B6: =PUANTAJ!A11 ->  | C6: =PUANTAJ!B11 ->  | D6: =BD6+'PERSONEL BİLGİ GİRİŞİ'!AC7 -> 0 | E6: =BG6+'PERSONEL BİLGİ GİRİŞİ'!AL7 -> 0 | F6: =IF((MONTH(PUANTAJ!$B$2))=1,' BORDRO HAZIRLIK'!AK7,IF(G6>1,G6,(0))) -> 0 | G6: 0 | H6: =IF((MONTH(PUANTAJ!$B$2))=1,' BORDRO HAZIRLIK'!AE7,IF(I6>1,I6,(0))) -> 0 | I6: 0 | J6: =IF((MONTH(PUANTAJ!$B$2))=2,' BORDRO HAZIRLIK'!AK7,IF(K6>1,K6,(0))) -> 0 | K6: 0 | L6: =IF((MONTH(PUANTAJ!$B$2))=2,' BORDRO HAZIRLIK'!AE7,IF(M6>1,M6,(0))) -> 0 | M6: 0 | N6: =IF((MONTH(PUANTAJ!$B$2))=3,' BORDRO HAZIRLIK'!AK7,IF(O6>1,O6,(0))) -> 0 | O6: 0 | P6: =IF((MONTH(PUANTAJ!$B$2))=3,' BORDRO HAZIRLIK'!AE7,IF(Q6>1,Q6,(0))) -> 0 | Q6: 0 | R6: =IF((MONTH(PUANTAJ!$B$2))=4,' BORDRO HAZIRLIK'!AK7,IF(S6>1,S6,(0))) -> 0 | S6: 0 | T6: =IF((MONTH(PUANTAJ!$B$2))=4,' BORDRO HAZIRLIK'!AE7,IF(U6>1,U6,(0))) -> 0 | U6: 0 | V6: =IF((MONTH(PUANTAJ!$B$2))=5,' BORDRO HAZIRLIK'!AK7,IF(W6>1,W6,(0))) -> 0 | W6: 0 | X6: =IF((MONTH(PUANTAJ!$B$2))=5,' BORDRO HAZIRLIK'!AE7,IF(Y6>1,Y6,(0))) -> 0 | Y6: 0 | Z6: =IF((MONTH(PUANTAJ!$B$2))=6,' BORDRO HAZIRLIK'!AK7,IF(AA6>1,AA6,(0))) -> 0 | AA6: 0 | AB6: =IF((MONTH(PUANTAJ!$B$2))=6,' BORDRO HAZIRLIK'!AE7,IF(AC6>1,AC6,(0))) -> 0 | AC6: 0 | AD6: =IF((MONTH(PUANTAJ!$B$2))=7,' BORDRO HAZIRLIK'!AK7,IF(AE6>1,AE6,(0))) -> 0 | AE6: 0 | AF6: =IF((MONTH(PUANTAJ!$B$2))=7,' BORDRO HAZIRLIK'!AE7,IF(AG6>1,AG6,(0))) -> 0 | AG6: 0 | AH6: =IF((MONTH(PUANTAJ!$B$2))=8,' BORDRO HAZIRLIK'!AK7,IF(AI6>1,AI6,(0))) -> 0 | AI6: 0 | AJ6: =IF((MONTH(PUANTAJ!$B$2))=8,' BORDRO HAZIRLIK'!AE7,IF(AK6>1,AK6,(0))) -> 0 | AK6: 0 | AL6: =IF((MONTH(PUANTAJ!$B$2))=9,' BORDRO HAZIRLIK'!AK7,IF(AM6>1,AM6,(0))) -> 0 | AM6: 0 | AN6: =IF((MONTH(PUANTAJ!$B$2))=9,' BORDRO HAZIRLIK'!AE7,IF(AO6>1,AO6,(0))) -> 0 | AO6: 0 | AP6: =IF((MONTH(PUANTAJ!$B$2))=10,' BORDRO HAZIRLIK'!AK7,IF(AQ6>1,AQ6,(0))) -> 0 | AQ6: 0 | AR6: =IF((MONTH(PUANTAJ!$B$2))=10,' BORDRO HAZIRLIK'!AE7,IF(AS6>1,AS6,(0))) -> 0 | AS6: 0 | AT6: =IF((MONTH(PUANTAJ!$B$2))=11,' BORDRO HAZIRLIK'!AK7,IF(AU6>1,AU6,(0))) -> 0 | AU6: 0 | AV6: =IF((MONTH(PUANTAJ!$B$2))=11,' BORDRO HAZIRLIK'!AE7,IF(AW6>1,AW6,(0))) -> 0 | AW6: 0 | AX6: =IF((MONTH(PUANTAJ!$B$2))=12,' BORDRO HAZIRLIK'!AK7,IF(AY6>1,AY6,(0))) -> 0 | AY6: 0 | AZ6: =IF((MONTH(PUANTAJ!$B$2))=12,' BORDRO HAZIRLIK'!AE7,IF(BA6>1,BA6,(0))) -> 0 | BA6: 0 | BB6: 0 | BC6: =' BORDRO HAZIRLIK'!AK7 -> 0 | BD6: 0 | BE6: 0 | BF6: =' BORDRO HAZIRLIK'!AE7 -> 0 | BG6: 0
B7: =PUANTAJ!A13 ->  | C7: =PUANTAJ!B13 ->  | D7: =BD7+'PERSONEL BİLGİ GİRİŞİ'!AC8 -> 0 | E7: =BG7+'PERSONEL BİLGİ GİRİŞİ'!AL8 -> 0 | F7: =IF((MONTH(PUANTAJ!$B$2))=1,' BORDRO HAZIRLIK'!AK8,IF(G7>1,G7,(0))) -> 0 | G7: 0 | H7: =IF((MONTH(PUANTAJ!$B$2))=1,' BORDRO HAZIRLIK'!AE8,IF(I7>1,I7,(0))) -> 0 | I7: 0 | J7: =IF((MONTH(PUANTAJ!$B$2))=2,' BORDRO HAZIRLIK'!AK8,IF(K7>1,K7,(0))) -> 0 | K7: 0 | L7: =IF((MONTH(PUANTAJ!$B$2))=2,' BORDRO HAZIRLIK'!AE8,IF(M7>1,M7,(0))) -> 0 | M7: 0 | N7: =IF((MONTH(PUANTAJ!$B$2))=3,' BORDRO HAZIRLIK'!AK8,IF(O7>1,O7,(0))) -> 0 | O7: 0 | P7: =IF((MONTH(PUANTAJ!$B$2))=3,' BORDRO HAZIRLIK'!AE8,IF(Q7>1,Q7,(0))) -> 0 | Q7: 0 | R7: =IF((MONTH(PUANTAJ!$B$2))=4,' BORDRO HAZIRLIK'!AK8,IF(S7>1,S7,(0))) -> 0 | S7: 0 | T7: =IF((MONTH(PUANTAJ!$B$2))=4,' BORDRO HAZIRLIK'!AE8,IF(U7>1,U7,(0))) -> 0 | U7: 0 | V7: =IF((MONTH(PUANTAJ!$B$2))=5,' BORDRO HAZIRLIK'!AK8,IF(W7>1,W7,(0))) -> 0 | W7: 0 | X7: =IF((MONTH(PUANTAJ!$B$2))=5,' BORDRO HAZIRLIK'!AE8,IF(Y7>1,Y7,(0))) -> 0 | Y7: 0 | Z7: =IF((MONTH(PUANTAJ!$B$2))=6,' BORDRO HAZIRLIK'!AK8,IF(AA7>1,AA7,(0))) -> 0 | AA7: 0 | AB7: =IF((MONTH(PUANTAJ!$B$2))=6,' BORDRO HAZIRLIK'!AE8,IF(AC7>1,AC7,(0))) -> 0 | AC7: 0 | AD7: =IF((MONTH(PUANTAJ!$B$2))=7,' BORDRO HAZIRLIK'!AK8,IF(AE7>1,AE7,(0))) -> 0 | AE7: 0 | AF7: =IF((MONTH(PUANTAJ!$B$2))=7,' BORDRO HAZIRLIK'!AE8,IF(AG7>1,AG7,(0))) -> 0 | AG7: 0 | AH7: =IF((MONTH(PUANTAJ!$B$2))=8,' BORDRO HAZIRLIK'!AK8,IF(AI7>1,AI7,(0))) -> 0 | AI7: 0 | AJ7: =IF((MONTH(PUANTAJ!$B$2))=8,' BORDRO HAZIRLIK'!AE8,IF(AK7>1,AK7,(0))) -> 0 | AK7: 0 | AL7: =IF((MONTH(PUANTAJ!$B$2))=9,' BORDRO HAZIRLIK'!AK8,IF(AM7>1,AM7,(0))) -> 0 | AM7: 0 | AN7: =IF((MONTH(PUANTAJ!$B$2))=9,' BORDRO HAZIRLIK'!AE8,IF(AO7>1,AO7,(0))) -> 0 | AO7: 0 | AP7: =IF((MONTH(PUANTAJ!$B$2))=10,' BORDRO HAZIRLIK'!AK8,IF(AQ7>1,AQ7,(0))) -> 0 | AQ7: 0 | AR7: =IF((MONTH(PUANTAJ!$B$2))=10,' BORDRO HAZIRLIK'!AE8,IF(AS7>1,AS7,(0))) -> 0 | AS7: 0 | AT7: =IF((MONTH(PUANTAJ!$B$2))=11,' BORDRO HAZIRLIK'!AK8,IF(AU7>1,AU7,(0))) -> 0 | AU7: 0 | AV7: =IF((MONTH(PUANTAJ!$B$2))=11,' BORDRO HAZIRLIK'!AE8,IF(AW7>1,AW7,(0))) -> 0 | AW7: 0 | AX7: =IF((MONTH(PUANTAJ!$B$2))=12,' BORDRO HAZIRLIK'!AK8,IF(AY7>1,AY7,(0))) -> 0 | AY7: 0 | AZ7: =IF((MONTH(PUANTAJ!$B$2))=12,' BORDRO HAZIRLIK'!AE8,IF(BA7>1,BA7,(0))) -> 0 | BA7: 0 | BB7: 0 | BC7: =' BORDRO HAZIRLIK'!AK8 -> 0 | BD7: 0 | BE7: 0 | BF7: =' BORDRO HAZIRLIK'!AE8 -> 0 | BG7: 0
B8: =PUANTAJ!A15 ->  | C8: =PUANTAJ!B15 ->  | D8: =BD8+'PERSONEL BİLGİ GİRİŞİ'!AC9 -> 0 | E8: =BG8+'PERSONEL BİLGİ GİRİŞİ'!AL9 -> 0 | F8: =IF((MONTH(PUANTAJ!$B$2))=1,' BORDRO HAZIRLIK'!AK9,IF(G8>1,G8,(0))) -> 0 | G8: 0 | H8: =IF((MONTH(PUANTAJ!$B$2))=1,' BORDRO HAZIRLIK'!AE9,IF(I8>1,I8,(0))) -> 0 | I8: 0 | J8: =IF((MONTH(PUANTAJ!$B$2))=2,' BORDRO HAZIRLIK'!AK9,IF(K8>1,K8,(0))) -> 0 | K8: 0 | L8: =IF((MONTH(PUANTAJ!$B$2))=2,' BORDRO HAZIRLIK'!AE9,IF(M8>1,M8,(0))) -> 0 | M8: 0 | N8: =IF((MONTH(PUANTAJ!$B$2))=3,' BORDRO HAZIRLIK'!AK9,IF(O8>1,O8,(0))) -> 0 | O8: 0 | P8: =IF((MONTH(PUANTAJ!$B$2))=3,' BORDRO HAZIRLIK'!AE9,IF(Q8>1,Q8,(0))) -> 0 | Q8: 0 | R8: =IF((MONTH(PUANTAJ!$B$2))=4,' BORDRO HAZIRLIK'!AK9,IF(S8>1,S8,(0))) -> 0 | S8: 0 | T8: =IF((MONTH(PUANTAJ!$B$2))=4,' BORDRO HAZIRLIK'!AE9,IF(U8>1,U8,(0))) -> 0 | U8: 0 | V8: =IF((MONTH(PUANTAJ!$B$2))=5,' BORDRO HAZIRLIK'!AK9,IF(W8>1,W8,(0))) -> 0 | W8: 0 | X8: =IF((MONTH(PUANTAJ!$B$2))=5,' BORDRO HAZIRLIK'!AE9,IF(Y8>1,Y8,(0))) -> 0 | Y8: 0 | Z8: =IF((MONTH(PUANTAJ!$B$2))=6,' BORDRO HAZIRLIK'!AK9,IF(AA8>1,AA8,(0))) -> 0 | AA8: 0 | AB8: =IF((MONTH(PUANTAJ!$B$2))=6,' BORDRO HAZIRLIK'!AE9,IF(AC8>1,AC8,(0))) -> 0 | AC8: 0 | AD8: =IF((MONTH(PUANTAJ!$B$2))=7,' BORDRO HAZIRLIK'!AK9,IF(AE8>1,AE8,(0))) -> 0 | AE8: 0 | AF8: =IF((MONTH(PUANTAJ!$B$2))=7,' BORDRO HAZIRLIK'!AE9,IF(AG8>1,AG8,(0))) -> 0 | AG8: 0 | AH8: =IF((MONTH(PUANTAJ!$B$2))=8,' BORDRO HAZIRLIK'!AK9,IF(AI8>1,AI8,(0))) -> 0 | AI8: 0 | AJ8: =IF((MONTH(PUANTAJ!$B$2))=8,' BORDRO HAZIRLIK'!AE9,IF(AK8>1,AK8,(0))) -> 0 | AK8: 0 | AL8: =IF((MONTH(PUANTAJ!$B$2))=9,' BORDRO HAZIRLIK'!AK9,IF(AM8>1,AM8,(0))) -> 0 | AM8: 0 | AN8: =IF((MONTH(PUANTAJ!$B$2))=9,' BORDRO HAZIRLIK'!AE9,IF(AO8>1,AO8,(0))) -> 0 | AO8: 0 | AP8: =IF((MONTH(PUANTAJ!$B$2))=10,' BORDRO HAZIRLIK'!AK9,IF(AQ8>1,AQ8,(0))) -> 0 | AQ8: 0 | AR8: =IF((MONTH(PUANTAJ!$B$2))=10,' BORDRO HAZIRLIK'!AE9,IF(AS8>1,AS8,(0))) -> 0 | AS8: 0 | AT8: =IF((MONTH(PUANTAJ!$B$2))=11,' BORDRO HAZIRLIK'!AK9,IF(AU8>1,AU8,(0))) -> 0 | AU8: 0 | AV8: =IF((MONTH(PUANTAJ!$B$2))=11,' BORDRO HAZIRLIK'!AE9,IF(AW8>1,AW8,(0))) -> 0 | AW8: 0 | AX8: =IF((MONTH(PUANTAJ!$B$2))=12,' BORDRO HAZIRLIK'!AK9,IF(AY8>1,AY8,(0))) -> 0 | AY8: 0 | AZ8: =IF((MONTH(PUANTAJ!$B$2))=12,' BORDRO HAZIRLIK'!AE9,IF(BA8>1,BA8,(0))) -> 0 | BA8: 0 | BB8: 0 | BC8: =' BORDRO HAZIRLIK'!AK9 -> 0 | BD8: 0 | BE8: 0 | BF8: =' BORDRO HAZIRLIK'!AE9 -> 0 | BG8: 0
B9: =PUANTAJ!A17 ->  | C9: =PUANTAJ!B17 ->  | D9: =BD9+'PERSONEL BİLGİ GİRİŞİ'!AC10 -> 0 | E9: =BG9+'PERSONEL BİLGİ GİRİŞİ'!AL10 -> 0 | F9: =IF((MONTH(PUANTAJ!$B$2))=1,' BORDRO HAZIRLIK'!AK10,IF(G9>1,G9,(0))) -> 0 | G9: 0 | H9: =IF((MONTH(PUANTAJ!$B$2))=1,' BORDRO HAZIRLIK'!AE10,IF(I9>1,I9,(0))) -> 0 | I9: 0 | J9: =IF((MONTH(PUANTAJ!$B$2))=2,' BORDRO HAZIRLIK'!AK10,IF(K9>1,K9,(0))) -> 0 | K9: 0 | L9: =IF((MONTH(PUANTAJ!$B$2))=2,' BORDRO HAZIRLIK'!AE10,IF(M9>1,M9,(0))) -> 0 | M9: 0 | N9: =IF((MONTH(PUANTAJ!$B$2))=3,' BORDRO HAZIRLIK'!AK10,IF(O9>1,O9,(0))) -> 0 | O9: 0 | P9: =IF((MONTH(PUANTAJ!$B$2))=3,' BORDRO HAZIRLIK'!AE10,IF(Q9>1,Q9,(0))) -> 0 | Q9: 0 | R9: =IF((MONTH(PUANTAJ!$B$2))=4,' BORDRO HAZIRLIK'!AK10,IF(S9>1,S9,(0))) -> 0 | S9: 0 | T9: =IF((MONTH(PUANTAJ!$B$2))=4,' BORDRO HAZIRLIK'!AE10,IF(U9>1,U9,(0))) -> 0 | U9: 0 | V9: =IF((MONTH(PUANTAJ!$B$2))=5,' BORDRO HAZIRLIK'!AK10,IF(W9>1,W9,(0))) -> 0 | W9: 0 | X9: =IF((MONTH(PUANTAJ!$B$2))=5,' BORDRO HAZIRLIK'!AE10,IF(Y9>1,Y9,(0))) -> 0 | Y9: 0 | Z9: =IF((MONTH(PUANTAJ!$B$2))=6,' BORDRO HAZIRLIK'!AK10,IF(AA9>1,AA9,(0))) -> 0 | AA9: 0 | AB9: =IF((MONTH(PUANTAJ!$B$2))=6,' BORDRO HAZIRLIK'!AE10,IF(AC9>1,AC9,(0))) -> 0 | AC9: 0 | AD9: =IF((MONTH(PUANTAJ!$B$2))=7,' BORDRO HAZIRLIK'!AK10,IF(AE9>1,AE9,(0))) -> 0 | AE9: 0 | AF9: =IF((MONTH(PUANTAJ!$B$2))=7,' BORDRO HAZIRLIK'!AE10,IF(AG9>1,AG9,(0))) -> 0 | AG9: 0 | AH9: =IF((MONTH(PUANTAJ!$B$2))=8,' BORDRO HAZIRLIK'!AK10,IF(AI9>1,AI9,(0))) -> 0 | AI9: 0 | AJ9: =IF((MONTH(PUANTAJ!$B$2))=8,' BORDRO HAZIRLIK'!AE10,IF(AK9>1,AK9,(0))) -> 0 | AK9: 0 | AL9: =IF((MONTH(PUANTAJ!$B$2))=9,' BORDRO HAZIRLIK'!AK10,IF(AM9>1,AM9,(0))) -> 0 | AM9: 0 | AN9: =IF((MONTH(PUANTAJ!$B$2))=9,' BORDRO HAZIRLIK'!AE10,IF(AO9>1,AO9,(0))) -> 0 | AO9: 0 | AP9: =IF((MONTH(PUANTAJ!$B$2))=10,' BORDRO HAZIRLIK'!AK10,IF(AQ9>1,AQ9,(0))) -> 0 | AQ9: 0 | AR9: =IF((MONTH(PUANTAJ!$B$2))=10,' BORDRO HAZIRLIK'!AE10,IF(AS9>1,AS9,(0))) -> 0 | AS9: 0 | AT9: =IF((MONTH(PUANTAJ!$B$2))=11,' BORDRO HAZIRLIK'!AK10,IF(AU9>1,AU9,(0))) -> 0 | AU9: 0 | AV9: =IF((MONTH(PUANTAJ!$B$2))=11,' BORDRO HAZIRLIK'!AE10,IF(AW9>1,AW9,(0))) -> 0 | AW9: 0 | AX9: =IF((MONTH(PUANTAJ!$B$2))=12,' BORDRO HAZIRLIK'!AK10,IF(AY9>1,AY9,(0))) -> 0 | AY9: 0 | AZ9: =IF((MONTH(PUANTAJ!$B$2))=12,' BORDRO HAZIRLIK'!AE10,IF(BA9>1,BA9,(0))) -> 0 | BA9: 0 | BB9: 0 | BC9: =' BORDRO HAZIRLIK'!AK10 -> 0 | BD9: 0 | BE9: 0 | BF9: =' BORDRO HAZIRLIK'!AE10 -> 0 | BG9: 0
B10: =PUANTAJ!A19 ->  | C10: =PUANTAJ!B19 ->  | D10: =BD10+'PERSONEL BİLGİ GİRİŞİ'!AC11 -> 0 | E10: =BG10+'PERSONEL BİLGİ GİRİŞİ'!AL11 -> 0 | F10: =IF((MONTH(PUANTAJ!$B$2))=1,' BORDRO HAZIRLIK'!AK11,IF(G10>1,G10,(0))) -> 0 | G10: 0 | H10: =IF((MONTH(PUANTAJ!$B$2))=1,' BORDRO HAZIRLIK'!AE11,IF(I10>1,I10,(0))) -> 0 | I10: 0 | J10: =IF((MONTH(PUANTAJ!$B$2))=2,' BORDRO HAZIRLIK'!AK11,IF(K10>1,K10,(0))) -> 0 | K10: 0 | L10: =IF((MONTH(PUANTAJ!$B$2))=2,' BORDRO HAZIRLIK'!AE11,IF(M10>1,M10,(0))) -> 0 | M10: 0 | N10: =IF((MONTH(PUANTAJ!$B$2))=3,' BORDRO HAZIRLIK'!AK11,IF(O10>1,O10,(0))) -> 0 | O10: 0 | P10: =IF((MONTH(PUANTAJ!$B$2))=3,' BORDRO HAZIRLIK'!AE11,IF(Q10>1,Q10,(0))) -> 0 | Q10: 0 | R10: =IF((MONTH(PUANTAJ!$B$2))=4,' BORDRO HAZIRLIK'!AK11,IF(S10>1,S10,(0))) -> 0 | S10: 0 | T10: =IF((MONTH(PUANTAJ!$B$2))=4,' BORDRO HAZIRLIK'!AE11,IF(U10>1,U10,(0))) -> 0 | U10: 0 | V10: =IF((MONTH(PUANTAJ!$B$2))=5,' BORDRO HAZIRLIK'!AK11,IF(W10>1,W10,(0))) -> 0 | W10: 0 | X10: =IF((MONTH(PUANTAJ!$B$2))=5,' BORDRO HAZIRLIK'!AE11,IF(Y10>1,Y10,(0))) -> 0 | Y10: 0 | Z10: =IF((MONTH(PUANTAJ!$B$2))=6,' BORDRO HAZIRLIK'!AK11,IF(AA10>1,AA10,(0))) -> 0 | AA10: 0 | AB10: =IF((MONTH(PUANTAJ!$B$2))=6,' BORDRO HAZIRLIK'!AE11,IF(AC10>1,AC10,(0))) -> 0 | AC10: 0 | AD10: =IF((MONTH(PUANTAJ!$B$2))=7,' BORDRO HAZIRLIK'!AK11,IF(AE10>1,AE10,(0))) -> 0 | AE10: 0 | AF10: =IF((MONTH(PUANTAJ!$B$2))=7,' BORDRO HAZIRLIK'!AE11,IF(AG10>1,AG10,(0))) -> 0 | AG10: 0 | AH10: =IF((MONTH(PUANTAJ!$B$2))=8,' BORDRO HAZIRLIK'!AK11,IF(AI10>1,AI10,(0))) -> 0 | AI10: 0 | AJ10: =IF((MONTH(PUANTAJ!$B$2))=8,' BORDRO HAZIRLIK'!AE11,IF(AK10>1,AK10,(0))) -> 0 | AK10: 0 | AL10: =IF((MONTH(PUANTAJ!$B$2))=9,' BORDRO HAZIRLIK'!AK11,IF(AM10>1,AM10,(0))) -> 0 | AM10: 0 | AN10: =IF((MONTH(PUANTAJ!$B$2))=9,' BORDRO HAZIRLIK'!AE11,IF(AO10>1,AO10,(0))) -> 0 | AO10: 0 | AP10: =IF((MONTH(PUANTAJ!$B$2))=10,' BORDRO HAZIRLIK'!AK11,IF(AQ10>1,AQ10,(0))) -> 0 | AQ10: 0 | AR10: =IF((MONTH(PUANTAJ!$B$2))=10,' BORDRO HAZIRLIK'!AE11,IF(AS10>1,AS10,(0))) -> 0 | AS10: 0 | AT10: =IF((MONTH(PUANTAJ!$B$2))=11,' BORDRO HAZIRLIK'!AK11,IF(AU10>1,AU10,(0))) -> 0 | AU10: 0 | AV10: =IF((MONTH(PUANTAJ!$B$2))=11,' BORDRO HAZIRLIK'!AE11,IF(AW10>1,AW10,(0))) -> 0 | AW10: 0 | AX10: =IF((MONTH(PUANTAJ!$B$2))=12,' BORDRO HAZIRLIK'!AK11,IF(AY10>1,AY10,(0))) -> 0 | AY10: 0 | AZ10: =IF((MONTH(PUANTAJ!$B$2))=12,' BORDRO HAZIRLIK'!AE11,IF(BA10>1,BA10,(0))) -> 0 | BA10: 0 | BB10: 0 | BC10: =' BORDRO HAZIRLIK'!AK11 -> 0 | BD10: 0 | BE10: 0 | BF10: =' BORDRO HAZIRLIK'!AE11 -> 0 | BG10: 0
B11: =PUANTAJ!A21 ->  | C11: =PUANTAJ!B21 ->  | D11: =BD11+'PERSONEL BİLGİ GİRİŞİ'!AC12 -> 0 | E11: =BG11+'PERSONEL BİLGİ GİRİŞİ'!AL12 -> 0 | F11: =IF((MONTH(PUANTAJ!$B$2))=1,' BORDRO HAZIRLIK'!AK12,IF(G11>1,G11,(0))) -> 0 | G11: 0 | H11: =IF((MONTH(PUANTAJ!$B$2))=1,' BORDRO HAZIRLIK'!AE12,IF(I11>1,I11,(0))) -> 0 | I11: 0 | J11: =IF((MONTH(PUANTAJ!$B$2))=2,' BORDRO HAZIRLIK'!AK12,IF(K11>1,K11,(0))) -> 0 | K11: 0 | L11: =IF((MONTH(PUANTAJ!$B$2))=2,' BORDRO HAZIRLIK'!AE12,IF(M11>1,M11,(0))) -> 0 | M11: 0 | N11: =IF((MONTH(PUANTAJ!$B$2))=3,' BORDRO HAZIRLIK'!AK12,IF(O11>1,O11,(0))) -> 0 | O11: 0 | P11: =IF((MONTH(PUANTAJ!$B$2))=3,' BORDRO HAZIRLIK'!AE12,IF(Q11>1,Q11,(0))) -> 0 | Q11: 0 | R11: =IF((MONTH(PUANTAJ!$B$2))=4,' BORDRO HAZIRLIK'!AK12,IF(S11>1,S11,(0))) -> 0 | S11: 0 | T11: =IF((MONTH(PUANTAJ!$B$2))=4,' BORDRO HAZIRLIK'!AE12,IF(U11>1,U11,(0))) -> 0 | U11: 0 | V11: =IF((MONTH(PUANTAJ!$B$2))=5,' BORDRO HAZIRLIK'!AK12,IF(W11>1,W11,(0))) -> 0 | W11: 0 | X11: =IF((MONTH(PUANTAJ!$B$2))=5,' BORDRO HAZIRLIK'!AE12,IF(Y11>1,Y11,(0))) -> 0 | Y11: 0 | Z11: =IF((MONTH(PUANTAJ!$B$2))=6,' BORDRO HAZIRLIK'!AK12,IF(AA11>1,AA11,(0))) -> 0 | AA11: 0 | AB11: =IF((MONTH(PUANTAJ!$B$2))=6,' BORDRO HAZIRLIK'!AE12,IF(AC11>1,AC11,(0))) -> 0 | AC11: 0 | AD11: =IF((MONTH(PUANTAJ!$B$2))=7,' BORDRO HAZIRLIK'!AK12,IF(AE11>1,AE11,(0))) -> 0 | AE11: 0 | AF11: =IF((MONTH(PUANTAJ!$B$2))=7,' BORDRO HAZIRLIK'!AE12,IF(AG11>1,AG11,(0))) -> 0 | AG11: 0 | AH11: =IF((MONTH(PUANTAJ!$B$2))=8,' BORDRO HAZIRLIK'!AK12,IF(AI11>1,AI11,(0))) -> 0 | AI11: 0 | AJ11: =IF((MONTH(PUANTAJ!$B$2))=8,' BORDRO HAZIRLIK'!AE12,IF(AK11>1,AK11,(0))) -> 0 | AK11: 0 | AL11: =IF((MONTH(PUANTAJ!$B$2))=9,' BORDRO HAZIRLIK'!AK12,IF(AM11>1,AM11,(0))) -> 0 | AM11: 0 | AN11: =IF((MONTH(PUANTAJ!$B$2))=9,' BORDRO HAZIRLIK'!AE12,IF(AO11>1,AO11,(0))) -> 0 | AO11: 0 | AP11: =IF((MONTH(PUANTAJ!$B$2))=10,' BORDRO HAZIRLIK'!AK12,IF(AQ11>1,AQ11,(0))) -> 0 | AQ11: 0 | AR11: =IF((MONTH(PUANTAJ!$B$2))=10,' BORDRO HAZIRLIK'!AE12,IF(AS11>1,AS11,(0))) -> 0 | AS11: 0 | AT11: =IF((MONTH(PUANTAJ!$B$2))=11,' BORDRO HAZIRLIK'!AK12,IF(AU11>1,AU11,(0))) -> 0 | AU11: 0 | AV11: =IF((MONTH(PUANTAJ!$B$2))=11,' BORDRO HAZIRLIK'!AE12,IF(AW11>1,AW11,(0))) -> 0 | AW11: 0 | AX11: =IF((MONTH(PUANTAJ!$B$2))=12,' BORDRO HAZIRLIK'!AK12,IF(AY11>1,AY11,(0))) -> 0 | AY11: 0 | AZ11: =IF((MONTH(PUANTAJ!$B$2))=12,' BORDRO HAZIRLIK'!AE12,IF(BA11>1,BA11,(0))) -> 0 | BA11: 0 | BB11: 0 | BC11: =' BORDRO HAZIRLIK'!AK12 -> 0 | BD11: 0 | BE11: 0 | BF11: =' BORDRO HAZIRLIK'!AE12 -> 0 | BG11: 0
B12: =PUANTAJ!A23 ->  | C12: =PUANTAJ!B23 ->  | D12: =BD12+'PERSONEL BİLGİ GİRİŞİ'!AC13 -> 0 | E12: =BG12+'PERSONEL BİLGİ GİRİŞİ'!AL13 -> 0 | F12: =IF((MONTH(PUANTAJ!$B$2))=1,' BORDRO HAZIRLIK'!AK13,IF(G12>1,G12,(0))) -> 0 | G12: 0 | H12: =IF((MONTH(PUANTAJ!$B$2))=1,' BORDRO HAZIRLIK'!AE13,IF(I12>1,I12,(0))) -> 0 | I12: 0 | J12: =IF((MONTH(PUANTAJ!$B$2))=2,' BORDRO HAZIRLIK'!AK13,IF(K12>1,K12,(0))) -> 0 | K12: 0 | L12: =IF((MONTH(PUANTAJ!$B$2))=2,' BORDRO HAZIRLIK'!AE13,IF(M12>1,M12,(0))) -> 0 | M12: 0 | N12: =IF((MONTH(PUANTAJ!$B$2))=3,' BORDRO HAZIRLIK'!AK13,IF(O12>1,O12,(0))) -> 0 | O12: 0 | P12: =IF((MONTH(PUANTAJ!$B$2))=3,' BORDRO HAZIRLIK'!AE13,IF(Q12>1,Q12,(0))) -> 0 | Q12: 0 | R12: =IF((MONTH(PUANTAJ!$B$2))=4,' BORDRO HAZIRLIK'!AK13,IF(S12>1,S12,(0))) -> 0 | S12: 0 | T12: =IF((MONTH(PUANTAJ!$B$2))=4,' BORDRO HAZIRLIK'!AE13,IF(U12>1,U12,(0))) -> 0 | U12: 0 | V12: =IF((MONTH(PUANTAJ!$B$2))=5,' BORDRO HAZIRLIK'!AK13,IF(W12>1,W12,(0))) -> 0 | W12: 0 | X12: =IF((MONTH(PUANTAJ!$B$2))=5,' BORDRO HAZIRLIK'!AE13,IF(Y12>1,Y12,(0))) -> 0 | Y12: 0 | Z12: =IF((MONTH(PUANTAJ!$B$2))=6,' BORDRO HAZIRLIK'!AK13,IF(AA12>1,AA12,(0))) -> 0 | AA12: 0 | AB12: =IF((MONTH(PUANTAJ!$B$2))=6,' BORDRO HAZIRLIK'!AE13,IF(AC12>1,AC12,(0))) -> 0 | AC12: 0 | AD12: =IF((MONTH(PUANTAJ!$B$2))=7,' BORDRO HAZIRLIK'!AK13,IF(AE12>1,AE12,(0))) -> 0 | AE12: 0 | AF12: =IF((MONTH(PUANTAJ!$B$2))=7,' BORDRO HAZIRLIK'!AE13,IF(AG12>1,AG12,(0))) -> 0 | AG12: 0 | AH12: =IF((MONTH(PUANTAJ!$B$2))=8,' BORDRO HAZIRLIK'!AK13,IF(AI12>1,AI12,(0))) -> 0 | AI12: 0 | AJ12: =IF((MONTH(PUANTAJ!$B$2))=8,' BORDRO HAZIRLIK'!AE13,IF(AK12>1,AK12,(0))) -> 0 | AK12: 0 | AL12: =IF((MONTH(PUANTAJ!$B$2))=9,' BORDRO HAZIRLIK'!AK13,IF(AM12>1,AM12,(0))) -> 0 | AM12: 0 | AN12: =IF((MONTH(PUANTAJ!$B$2))=9,' BORDRO HAZIRLIK'!AE13,IF(AO12>1,AO12,(0))) -> 0 | AO12: 0 | AP12: =IF((MONTH(PUANTAJ!$B$2))=10,' BORDRO HAZIRLIK'!AK13,IF(AQ12>1,AQ12,(0))) -> 0 | AQ12: 0 | AR12: =IF((MONTH(PUANTAJ!$B$2))=10,' BORDRO HAZIRLIK'!AE13,IF(AS12>1,AS12,(0))) -> 0 | AS12: 0 | AT12: =IF((MONTH(PUANTAJ!$B$2))=11,' BORDRO HAZIRLIK'!AK13,IF(AU12>1,AU12,(0))) -> 0 | AU12: 0 | AV12: =IF((MONTH(PUANTAJ!$B$2))=11,' BORDRO HAZIRLIK'!AE13,IF(AW12>1,AW12,(0))) -> 0 | AW12: 0 | AX12: =IF((MONTH(PUANTAJ!$B$2))=12,' BORDRO HAZIRLIK'!AK13,IF(AY12>1,AY12,(0))) -> 0 | AY12: 0 | AZ12: =IF((MONTH(PUANTAJ!$B$2))=12,' BORDRO HAZIRLIK'!AE13,IF(BA12>1,BA12,(0))) -> 0 | BA12: 0 | BB12: 0 | BC12: =' BORDRO HAZIRLIK'!AK13 -> 0 | BD12: 0 | BE12: 0 | BF12: =' BORDRO HAZIRLIK'!AE13 -> 0 | BG12: 0
B13: =PUANTAJ!A25 ->  | C13: =PUANTAJ!B25 ->  | D13: =BD13+'PERSONEL BİLGİ GİRİŞİ'!AC14 -> 0 | E13: =BG13+'PERSONEL BİLGİ GİRİŞİ'!AL14 -> 0 | F13: =IF((MONTH(PUANTAJ!$B$2))=1,' BORDRO HAZIRLIK'!AK14,IF(G13>1,G13,(0))) -> 0 | G13: 0 | H13: =IF((MONTH(PUANTAJ!$B$2))=1,' BORDRO HAZIRLIK'!AE14,IF(I13>1,I13,(0))) -> 0 | I13: 0 | J13: =IF((MONTH(PUANTAJ!$B$2))=2,' BORDRO HAZIRLIK'!AK14,IF(K13>1,K13,(0))) -> 0 | K13: 0 | L13: =IF((MONTH(PUANTAJ!$B$2))=2,' BORDRO HAZIRLIK'!AE14,IF(M13>1,M13,(0))) -> 0 | M13: 0 | N13: =IF((MONTH(PUANTAJ!$B$2))=3,' BORDRO HAZIRLIK'!AK14,IF(O13>1,O13,(0))) -> 0 | O13: 0 | P13: =IF((MONTH(PUANTAJ!$B$2))=3,' BORDRO HAZIRLIK'!AE14,IF(Q13>1,Q13,(0))) -> 0 | Q13: 0 | R13: =IF((MONTH(PUANTAJ!$B$2))=4,' BORDRO HAZIRLIK'!AK14,IF(S13>1,S13,(0))) -> 0 | S13: 0 | T13: =IF((MONTH(PUANTAJ!$B$2))=4,' BORDRO HAZIRLIK'!AE14,IF(U13>1,U13,(0))) -> 0 | U13: 0 | V13: =IF((MONTH(PUANTAJ!$B$2))=5,' BORDRO HAZIRLIK'!AK14,IF(W13>1,W13,(0))) -> 0 | W13: 0 | X13: =IF((MONTH(PUANTAJ!$B$2))=5,' BORDRO HAZIRLIK'!AE14,IF(Y13>1,Y13,(0))) -> 0 | Y13: 0 | Z13: =IF((MONTH(PUANTAJ!$B$2))=6,' BORDRO HAZIRLIK'!AK14,IF(AA13>1,AA13,(0))) -> 0 | AA13: 0 | AB13: =IF((MONTH(PUANTAJ!$B$2))=6,' BORDRO HAZIRLIK'!AE14,IF(AC13>1,AC13,(0))) -> 0 | AC13: 0 | AD13: =IF((MONTH(PUANTAJ!$B$2))=7,' BORDRO HAZIRLIK'!AK14,IF(AE13>1,AE13,(0))) -> 0 | AE13: 0 | AF13: =IF((MONTH(PUANTAJ!$B$2))=7,' BORDRO HAZIRLIK'!AE14,IF(AG13>1,AG13,(0))) -> 0 | AG13: 0 | AH13: =IF((MONTH(PUANTAJ!$B$2))=8,' BORDRO HAZIRLIK'!AK14,IF(AI13>1,AI13,(0))) -> 0 | AI13: 0 | AJ13: =IF((MONTH(PUANTAJ!$B$2))=8,' BORDRO HAZIRLIK'!AE14,IF(AK13>1,AK13,(0))) -> 0 | AK13: 0 | AL13: =IF((MONTH(PUANTAJ!$B$2))=9,' BORDRO HAZIRLIK'!AK14,IF(AM13>1,AM13,(0))) -> 0 | AM13: 0 | AN13: =IF((MONTH(PUANTAJ!$B$2))=9,' BORDRO HAZIRLIK'!AE14,IF(AO13>1,AO13,(0))) -> 0 | AO13: 0 | AP13: =IF((MONTH(PUANTAJ!$B$2))=10,' BORDRO HAZIRLIK'!AK14,IF(AQ13>1,AQ13,(0))) -> 0 | AQ13: 0 | AR13: =IF((MONTH(PUANTAJ!$B$2))=10,' BORDRO HAZIRLIK'!AE14,IF(AS13>1,AS13,(0))) -> 0 | AS13: 0 | AT13: =IF((MONTH(PUANTAJ!$B$2))=11,' BORDRO HAZIRLIK'!AK14,IF(AU13>1,AU13,(0))) -> 0 | AU13: 0 | AV13: =IF((MONTH(PUANTAJ!$B$2))=11,' BORDRO HAZIRLIK'!AE14,IF(AW13>1,AW13,(0))) -> 0 | AW13: 0 | AX13: =IF((MONTH(PUANTAJ!$B$2))=12,' BORDRO HAZIRLIK'!AK14,IF(AY13>1,AY13,(0))) -> 0 | AY13: 0 | AZ13: =IF((MONTH(PUANTAJ!$B$2))=12,' BORDRO HAZIRLIK'!AE14,IF(BA13>1,BA13,(0))) -> 0 | BA13: 0 | BB13: 0 | BC13: =' BORDRO HAZIRLIK'!AK14 -> 0 | BD13: 0 | BE13: 0 | BF13: =' BORDRO HAZIRLIK'!AE14 -> 0 | BG13: 0
B14: =PUANTAJ!A27 ->  | C14: =PUANTAJ!B27 ->  | D14: =BD14+'PERSONEL BİLGİ GİRİŞİ'!AC15 -> 0 | E14: =BG14+'PERSONEL BİLGİ GİRİŞİ'!AL15 -> 0 | F14: =IF((MONTH(PUANTAJ!$B$2))=1,' BORDRO HAZIRLIK'!AK15,IF(G14>1,G14,(0))) -> 0 | G14: 0 | H14: =IF((MONTH(PUANTAJ!$B$2))=1,' BORDRO HAZIRLIK'!AE15,IF(I14>1,I14,(0))) -> 0 | I14: 0 | J14: =IF((MONTH(PUANTAJ!$B$2))=2,' BORDRO HAZIRLIK'!AK15,IF(K14>1,K14,(0))) -> 0 | K14: 0 | L14: =IF((MONTH(PUANTAJ!$B$2))=2,' BORDRO HAZIRLIK'!AE15,IF(M14>1,M14,(0))) -> 0 | M14: 0 | N14: =IF((MONTH(PUANTAJ!$B$2))=3,' BORDRO HAZIRLIK'!AK15,IF(O14>1,O14,(0))) -> 0 | O14: 0 | P14: =IF((MONTH(PUANTAJ!$B$2))=3,' BORDRO HAZIRLIK'!AE15,IF(Q14>1,Q14,(0))) -> 0 | Q14: 0 | R14: =IF((MONTH(PUANTAJ!$B$2))=4,' BORDRO HAZIRLIK'!AK15,IF(S14>1,S14,(0))) -> 0 | S14: 0 | T14: =IF((MONTH(PUANTAJ!$B$2))=4,' BORDRO HAZIRLIK'!AE15,IF(U14>1,U14,(0))) -> 0 | U14: 0 | V14: =IF((MONTH(PUANTAJ!$B$2))=5,' BORDRO HAZIRLIK'!AK15,IF(W14>1,W14,(0))) -> 0 | W14: 0 | X14: =IF((MONTH(PUANTAJ!$B$2))=5,' BORDRO HAZIRLIK'!AE15,IF(Y14>1,Y14,(0))) -> 0 | Y14: 0 | Z14: =IF((MONTH(PUANTAJ!$B$2))=6,' BORDRO HAZIRLIK'!AK15,IF(AA14>1,AA14,(0))) -> 0 | AA14: 0 | AB14: =IF((MONTH(PUANTAJ!$B$2))=6,' BORDRO HAZIRLIK'!AE15,IF(AC14>1,AC14,(0))) -> 0 | AC14: 0 | AD14: =IF((MONTH(PUANTAJ!$B$2))=7,' BORDRO HAZIRLIK'!AK15,IF(AE14>1,AE14,(0))) -> 0 | AE14: 0 | AF14: =IF((MONTH(PUANTAJ!$B$2))=7,' BORDRO HAZIRLIK'!AE15,IF(AG14>1,AG14,(0))) -> 0 | AG14: 0 | AH14: =IF((MONTH(PUANTAJ!$B$2))=8,' BORDRO HAZIRLIK'!AK15,IF(AI14>1,AI14,(0))) -> 0 | AI14: 0 | AJ14: =IF((MONTH(PUANTAJ!$B$2))=8,' BORDRO HAZIRLIK'!AE15,IF(AK14>1,AK14,(0))) -> 0 | AK14: 0 | AL14: =IF((MONTH(PUANTAJ!$B$2))=9,' BORDRO HAZIRLIK'!AK15,IF(AM14>1,AM14,(0))) -> 0 | AM14: 0 | AN14: =IF((MONTH(PUANTAJ!$B$2))=9,' BORDRO HAZIRLIK'!AE15,IF(AO14>1,AO14,(0))) -> 0 | AO14: 0 | AP14: =IF((MONTH(PUANTAJ!$B$2))=10,' BORDRO HAZIRLIK'!AK15,IF(AQ14>1,AQ14,(0))) -> 0 | AQ14: 0 | AR14: =IF((MONTH(PUANTAJ!$B$2))=10,' BORDRO HAZIRLIK'!AE15,IF(AS14>1,AS14,(0))) -> 0 | AS14: 0 | AT14: =IF((MONTH(PUANTAJ!$B$2))=11,' BORDRO HAZIRLIK'!AK15,IF(AU14>1,AU14,(0))) -> 0 | AU14: 0 | AV14: =IF((MONTH(PUANTAJ!$B$2))=11,' BORDRO HAZIRLIK'!AE15,IF(AW14>1,AW14,(0))) -> 0 | AW14: 0 | AX14: =IF((MONTH(PUANTAJ!$B$2))=12,' BORDRO HAZIRLIK'!AK15,IF(AY14>1,AY14,(0))) -> 0 | AY14: 0 | AZ14: =IF((MONTH(PUANTAJ!$B$2))=12,' BORDRO HAZIRLIK'!AE15,IF(BA14>1,BA14,(0))) -> 0 | BA14: 0 | BB14: 0 | BC14: =' BORDRO HAZIRLIK'!AK15 -> 0 | BD14: 0 | BE14: 0 | BF14: =' BORDRO HAZIRLIK'!AE15 -> 0 | BG14: 0
B15: =PUANTAJ!A29 ->  | C15: =PUANTAJ!B29 ->  | D15: =BD15+'PERSONEL BİLGİ GİRİŞİ'!AC16 -> 0 | E15: =BG15+'PERSONEL BİLGİ GİRİŞİ'!AL16 -> 0 | F15: =IF((MONTH(PUANTAJ!$B$2))=1,' BORDRO HAZIRLIK'!AK16,IF(G15>1,G15,(0))) -> 0 | G15: 0 | H15: =IF((MONTH(PUANTAJ!$B$2))=1,' BORDRO HAZIRLIK'!AE16,IF(I15>1,I15,(0))) -> 0 | I15: 0 | J15: =IF((MONTH(PUANTAJ!$B$2))=2,' BORDRO HAZIRLIK'!AK16,IF(K15>1,K15,(0))) -> 0 | K15: 0 | L15: =IF((MONTH(PUANTAJ!$B$2))=2,' BORDRO HAZIRLIK'!AE16,IF(M15>1,M15,(0))) -> 0 | M15: 0 | N15: =IF((MONTH(PUANTAJ!$B$2))=3,' BORDRO HAZIRLIK'!AK16,IF(O15>1,O15,(0))) -> 0 | O15: 0 | P15: =IF((MONTH(PUANTAJ!$B$2))=3,' BORDRO HAZIRLIK'!AE16,IF(Q15>1,Q15,(0))) -> 0 | Q15: 0 | R15: =IF((MONTH(PUANTAJ!$B$2))=4,' BORDRO HAZIRLIK'!AK16,IF(S15>1,S15,(0))) -> 0 | S15: 0 | T15: =IF((MONTH(PUANTAJ!$B$2))=4,' BORDRO HAZIRLIK'!AE16,IF(U15>1,U15,(0))) -> 0 | U15: 0 | V15: =IF((MONTH(PUANTAJ!$B$2))=5,' BORDRO HAZIRLIK'!AK16,IF(W15>1,W15,(0))) -> 0 | W15: 0 | X15: =IF((MONTH(PUANTAJ!$B$2))=5,' BORDRO HAZIRLIK'!AE16,IF(Y15>1,Y15,(0))) -> 0 | Y15: 0 | Z15: =IF((MONTH(PUANTAJ!$B$2))=6,' BORDRO HAZIRLIK'!AK16,IF(AA15>1,AA15,(0))) -> 0 | AA15: 0 | AB15: =IF((MONTH(PUANTAJ!$B$2))=6,' BORDRO HAZIRLIK'!AE16,IF(AC15>1,AC15,(0))) -> 0 | AC15: 0 | AD15: =IF((MONTH(PUANTAJ!$B$2))=7,' BORDRO HAZIRLIK'!AK16,IF(AE15>1,AE15,(0))) -> 0 | AE15: 0 | AF15: =IF((MONTH(PUANTAJ!$B$2))=7,' BORDRO HAZIRLIK'!AE16,IF(AG15>1,AG15,(0))) -> 0 | AG15: 0 | AH15: =IF((MONTH(PUANTAJ!$B$2))=8,' BORDRO HAZIRLIK'!AK16,IF(AI15>1,AI15,(0))) -> 0 | AI15: 0 | AJ15: =IF((MONTH(PUANTAJ!$B$2))=8,' BORDRO HAZIRLIK'!AE16,IF(AK15>1,AK15,(0))) -> 0 | AK15: 0 | AL15: =IF((MONTH(PUANTAJ!$B$2))=9,' BORDRO HAZIRLIK'!AK16,IF(AM15>1,AM15,(0))) -> 0 | AM15: 0 | AN15: =IF((MONTH(PUANTAJ!$B$2))=9,' BORDRO HAZIRLIK'!AE16,IF(AO15>1,AO15,(0))) -> 0 | AO15: 0 | AP15: =IF((MONTH(PUANTAJ!$B$2))=10,' BORDRO HAZIRLIK'!AK16,IF(AQ15>1,AQ15,(0))) -> 0 | AQ15: 0 | AR15: =IF((MONTH(PUANTAJ!$B$2))=10,' BORDRO HAZIRLIK'!AE16,IF(AS15>1,AS15,(0))) -> 0 | AS15: 0 | AT15: =IF((MONTH(PUANTAJ!$B$2))=11,' BORDRO HAZIRLIK'!AK16,IF(AU15>1,AU15,(0))) -> 0 | AU15: 0 | AV15: =IF((MONTH(PUANTAJ!$B$2))=11,' BORDRO HAZIRLIK'!AE16,IF(AW15>1,AW15,(0))) -> 0 | AW15: 0 | AX15: =IF((MONTH(PUANTAJ!$B$2))=12,' BORDRO HAZIRLIK'!AK16,IF(AY15>1,AY15,(0))) -> 0 | AY15: 0 | AZ15: =IF((MONTH(PUANTAJ!$B$2))=12,' BORDRO HAZIRLIK'!AE16,IF(BA15>1,BA15,(0))) -> 0 | BA15: 0 | BB15: 0 | BC15: =' BORDRO HAZIRLIK'!AK16 -> 0 | BD15: 0 | BE15: 0 | BF15: =' BORDRO HAZIRLIK'!AE16 -> 0 | BG15: 0
B16: =PUANTAJ!A31 ->  | C16: =PUANTAJ!B31 ->  | D16: =BD16+'PERSONEL BİLGİ GİRİŞİ'!AC17 -> 0 | E16: =BG16+'PERSONEL BİLGİ GİRİŞİ'!AL17 -> 0 | F16: =IF((MONTH(PUANTAJ!$B$2))=1,' BORDRO HAZIRLIK'!AK17,IF(G16>1,G16,(0))) -> 0 | G16: 0 | H16: =IF((MONTH(PUANTAJ!$B$2))=1,' BORDRO HAZIRLIK'!AE17,IF(I16>1,I16,(0))) -> 0 | I16: 0 | J16: =IF((MONTH(PUANTAJ!$B$2))=2,' BORDRO HAZIRLIK'!AK17,IF(K16>1,K16,(0))) -> 0 | K16: 0 | L16: =IF((MONTH(PUANTAJ!$B$2))=2,' BORDRO HAZIRLIK'!AE17,IF(M16>1,M16,(0))) -> 0 | M16: 0 | N16: =IF((MONTH(PUANTAJ!$B$2))=3,' BORDRO HAZIRLIK'!AK17,IF(O16>1,O16,(0))) -> 0 | O16: 0 | P16: =IF((MONTH(PUANTAJ!$B$2))=3,' BORDRO HAZIRLIK'!AE17,IF(Q16>1,Q16,(0))) -> 0 | Q16: 0 | R16: =IF((MONTH(PUANTAJ!$B$2))=4,' BORDRO HAZIRLIK'!AK17,IF(S16>1,S16,(0))) -> 0 | S16: 0 | T16: =IF((MONTH(PUANTAJ!$B$2))=4,' BORDRO HAZIRLIK'!AE17,IF(U16>1,U16,(0))) -> 0 | U16: 0 | V16: =IF((MONTH(PUANTAJ!$B$2))=5,' BORDRO HAZIRLIK'!AK17,IF(W16>1,W16,(0))) -> 0 | W16: 0 | X16: =IF((MONTH(PUANTAJ!$B$2))=5,' BORDRO HAZIRLIK'!AE17,IF(Y16>1,Y16,(0))) -> 0 | Y16: 0 | Z16: =IF((MONTH(PUANTAJ!$B$2))=6,' BORDRO HAZIRLIK'!AK17,IF(AA16>1,AA16,(0))) -> 0 | AA16: 0 | AB16: =IF((MONTH(PUANTAJ!$B$2))=6,' BORDRO HAZIRLIK'!AE17,IF(AC16>1,AC16,(0))) -> 0 | AC16: 0 | AD16: =IF((MONTH(PUANTAJ!$B$2))=7,' BORDRO HAZIRLIK'!AK17,IF(AE16>1,AE16,(0))) -> 0 | AE16: 0 | AF16: =IF((MONTH(PUANTAJ!$B$2))=7,' BORDRO HAZIRLIK'!AE17,IF(AG16>1,AG16,(0))) -> 0 | AG16: 0 | AH16: =IF((MONTH(PUANTAJ!$B$2))=8,' BORDRO HAZIRLIK'!AK17,IF(AI16>1,AI16,(0))) -> 0 | AI16: 0 | AJ16: =IF((MONTH(PUANTAJ!$B$2))=8,' BORDRO HAZIRLIK'!AE17,IF(AK16>1,AK16,(0))) -> 0 | AK16: 0 | AL16: =IF((MONTH(PUANTAJ!$B$2))=9,' BORDRO HAZIRLIK'!AK17,IF(AM16>1,AM16,(0))) -> 0 | AM16: 0 | AN16: =IF((MONTH(PUANTAJ!$B$2))=9,' BORDRO HAZIRLIK'!AE17,IF(AO16>1,AO16,(0))) -> 0 | AO16: 0 | AP16: =IF((MONTH(PUANTAJ!$B$2))=10,' BORDRO HAZIRLIK'!AK17,IF(AQ16>1,AQ16,(0))) -> 0 | AQ16: 0 | AR16: =IF((MONTH(PUANTAJ!$B$2))=10,' BORDRO HAZIRLIK'!AE17,IF(AS16>1,AS16,(0))) -> 0 | AS16: 0 | AT16: =IF((MONTH(PUANTAJ!$B$2))=11,' BORDRO HAZIRLIK'!AK17,IF(AU16>1,AU16,(0))) -> 0 | AU16: 0 | AV16: =IF((MONTH(PUANTAJ!$B$2))=11,' BORDRO HAZIRLIK'!AE17,IF(AW16>1,AW16,(0))) -> 0 | AW16: 0 | AX16: =IF((MONTH(PUANTAJ!$B$2))=12,' BORDRO HAZIRLIK'!AK17,IF(AY16>1,AY16,(0))) -> 0 | AY16: 0 | AZ16: =IF((MONTH(PUANTAJ!$B$2))=12,' BORDRO HAZIRLIK'!AE17,IF(BA16>1,BA16,(0))) -> 0 | BA16: 0 | BB16: 0 | BC16: =' BORDRO HAZIRLIK'!AK17 -> 0 | BD16: 0 | BE16: 0 | BF16: =' BORDRO HAZIRLIK'!AE17 -> 0 | BG16: 0
B17: =PUANTAJ!A33 ->  | C17: =PUANTAJ!B33 ->  | D17: =BD17+'PERSONEL BİLGİ GİRİŞİ'!AC18 -> 0 | E17: =BG17+'PERSONEL BİLGİ GİRİŞİ'!AL18 -> 0 | F17: =IF((MONTH(PUANTAJ!$B$2))=1,' BORDRO HAZIRLIK'!AK18,IF(G17>1,G17,(0))) -> 0 | G17: 0 | H17: =IF((MONTH(PUANTAJ!$B$2))=1,' BORDRO HAZIRLIK'!AE18,IF(I17>1,I17,(0))) -> 0 | I17: 0 | J17: =IF((MONTH(PUANTAJ!$B$2))=2,' BORDRO HAZIRLIK'!AK18,IF(K17>1,K17,(0))) -> 0 | K17: 0 | L17: =IF((MONTH(PUANTAJ!$B$2))=2,' BORDRO HAZIRLIK'!AE18,IF(M17>1,M17,(0))) -> 0 | M17: 0 | N17: =IF((MONTH(PUANTAJ!$B$2))=3,' BORDRO HAZIRLIK'!AK18,IF(O17>1,O17,(0))) -> 0 | O17: 0 | P17: =IF((MONTH(PUANTAJ!$B$2))=3,' BORDRO HAZIRLIK'!AE18,IF(Q17>1,Q17,(0))) -> 0 | Q17: 0 | R17: =IF((MONTH(PUANTAJ!$B$2))=4,' BORDRO HAZIRLIK'!AK18,IF(S17>1,S17,(0))) -> 0 | S17: 0 | T17: =IF((MONTH(PUANTAJ!$B$2))=4,' BORDRO HAZIRLIK'!AE18,IF(U17>1,U17,(0))) -> 0 | U17: 0 | V17: =IF((MONTH(PUANTAJ!$B$2))=5,' BORDRO HAZIRLIK'!AK18,IF(W17>1,W17,(0))) -> 0 | W17: 0 | X17: =IF((MONTH(PUANTAJ!$B$2))=5,' BORDRO HAZIRLIK'!AE18,IF(Y17>1,Y17,(0))) -> 0 | Y17: 0 | Z17: =IF((MONTH(PUANTAJ!$B$2))=6,' BORDRO HAZIRLIK'!AK18,IF(AA17>1,AA17,(0))) -> 0 | AA17: 0 | AB17: =IF((MONTH(PUANTAJ!$B$2))=6,' BORDRO HAZIRLIK'!AE18,IF(AC17>1,AC17,(0))) -> 0 | AC17: 0 | AD17: =IF((MONTH(PUANTAJ!$B$2))=7,' BORDRO HAZIRLIK'!AK18,IF(AE17>1,AE17,(0))) -> 0 | AE17: 0 | AF17: =IF((MONTH(PUANTAJ!$B$2))=7,' BORDRO HAZIRLIK'!AE18,IF(AG17>1,AG17,(0))) -> 0 | AG17: 0 | AH17: =IF((MONTH(PUANTAJ!$B$2))=8,' BORDRO HAZIRLIK'!AK18,IF(AI17>1,AI17,(0))) -> 0 | AI17: 0 | AJ17: =IF((MONTH(PUANTAJ!$B$2))=8,' BORDRO HAZIRLIK'!AE18,IF(AK17>1,AK17,(0))) -> 0 | AK17: 0 | AL17: =IF((MONTH(PUANTAJ!$B$2))=9,' BORDRO HAZIRLIK'!AK18,IF(AM17>1,AM17,(0))) -> 0 | AM17: 0 | AN17: =IF((MONTH(PUANTAJ!$B$2))=9,' BORDRO HAZIRLIK'!AE18,IF(AO17>1,AO17,(0))) -> 0 | AO17: 0 | AP17: =IF((MONTH(PUANTAJ!$B$2))=10,' BORDRO HAZIRLIK'!AK18,IF(AQ17>1,AQ17,(0))) -> 0 | AQ17: 0 | AR17: =IF((MONTH(PUANTAJ!$B$2))=10,' BORDRO HAZIRLIK'!AE18,IF(AS17>1,AS17,(0))) -> 0 | AS17: 0 | AT17: =IF((MONTH(PUANTAJ!$B$2))=11,' BORDRO HAZIRLIK'!AK18,IF(AU17>1,AU17,(0))) -> 0 | AU17: 0 | AV17: =IF((MONTH(PUANTAJ!$B$2))=11,' BORDRO HAZIRLIK'!AE18,IF(AW17>1,AW17,(0))) -> 0 | AW17: 0 | AX17: =IF((MONTH(PUANTAJ!$B$2))=12,' BORDRO HAZIRLIK'!AK18,IF(AY17>1,AY17,(0))) -> 0 | AY17: 0 | AZ17: =IF((MONTH(PUANTAJ!$B$2))=12,' BORDRO HAZIRLIK'!AE18,IF(BA17>1,BA17,(0))) -> 0 | BA17: 0 | BB17: 0 | BC17: =' BORDRO HAZIRLIK'!AK18 -> 0 | BD17: 0 | BE17: 0 | BF17: =' BORDRO HAZIRLIK'!AE18 -> 0 | BG17: 0
B18: =PUANTAJ!A35 ->  | C18: =PUANTAJ!B35 ->  | D18: =BD18+'PERSONEL BİLGİ GİRİŞİ'!AC19 -> 0 | E18: =BG18+'PERSONEL BİLGİ GİRİŞİ'!AL19 -> 0 | F18: =IF((MONTH(PUANTAJ!$B$2))=1,' BORDRO HAZIRLIK'!AK19,IF(G18>1,G18,(0))) -> 0 | G18: 0 | H18: =IF((MONTH(PUANTAJ!$B$2))=1,' BORDRO HAZIRLIK'!AE19,IF(I18>1,I18,(0))) -> 0 | I18: 0 | J18: =IF((MONTH(PUANTAJ!$B$2))=2,' BORDRO HAZIRLIK'!AK19,IF(K18>1,K18,(0))) -> 0 | K18: 0 | L18: =IF((MONTH(PUANTAJ!$B$2))=2,' BORDRO HAZIRLIK'!AE19,IF(M18>1,M18,(0))) -> 0 | M18: 0 | N18: =IF((MONTH(PUANTAJ!$B$2))=3,' BORDRO HAZIRLIK'!AK19,IF(O18>1,O18,(0))) -> 0 | O18: 0 | P18: =IF((MONTH(PUANTAJ!$B$2))=3,' BORDRO HAZIRLIK'!AE19,IF(Q18>1,Q18,(0))) -> 0 | Q18: 0 | R18: =IF((MONTH(PUANTAJ!$B$2))=4,' BORDRO HAZIRLIK'!AK19,IF(S18>1,S18,(0))) -> 0 | S18: 0 | T18: =IF((MONTH(PUANTAJ!$B$2))=4,' BORDRO HAZIRLIK'!AE19,IF(U18>1,U18,(0))) -> 0 | U18: 0 | V18: =IF((MONTH(PUANTAJ!$B$2))=5,' BORDRO HAZIRLIK'!AK19,IF(W18>1,W18,(0))) -> 0 | W18: 0 | X18: =IF((MONTH(PUANTAJ!$B$2))=5,' BORDRO HAZIRLIK'!AE19,IF(Y18>1,Y18,(0))) -> 0 | Y18: 0 | Z18: =IF((MONTH(PUANTAJ!$B$2))=6,' BORDRO HAZIRLIK'!AK19,IF(AA18>1,AA18,(0))) -> 0 | AA18: 0 | AB18: =IF((MONTH(PUANTAJ!$B$2))=6,' BORDRO HAZIRLIK'!AE19,IF(AC18>1,AC18,(0))) -> 0 | AC18: 0 | AD18: =IF((MONTH(PUANTAJ!$B$2))=7,' BORDRO HAZIRLIK'!AK19,IF(AE18>1,AE18,(0))) -> 0 | AE18: 0 | AF18: =IF((MONTH(PUANTAJ!$B$2))=7,' BORDRO HAZIRLIK'!AE19,IF(AG18>1,AG18,(0))) -> 0 | AG18: 0 | AH18: =IF((MONTH(PUANTAJ!$B$2))=8,' BORDRO HAZIRLIK'!AK19,IF(AI18>1,AI18,(0))) -> 0 | AI18: 0 | AJ18: =IF((MONTH(PUANTAJ!$B$2))=8,' BORDRO HAZIRLIK'!AE19,IF(AK18>1,AK18,(0))) -> 0 | AK18: 0 | AL18: =IF((MONTH(PUANTAJ!$B$2))=9,' BORDRO HAZIRLIK'!AK19,IF(AM18>1,AM18,(0))) -> 0 | AM18: 0 | AN18: =IF((MONTH(PUANTAJ!$B$2))=9,' BORDRO HAZIRLIK'!AE19,IF(AO18>1,AO18,(0))) -> 0 | AO18: 0 | AP18: =IF((MONTH(PUANTAJ!$B$2))=10,' BORDRO HAZIRLIK'!AK19,IF(AQ18>1,AQ18,(0))) -> 0 | AQ18: 0 | AR18: =IF((MONTH(PUANTAJ!$B$2))=10,' BORDRO HAZIRLIK'!AE19,IF(AS18>1,AS18,(0))) -> 0 | AS18: 0 | AT18: =IF((MONTH(PUANTAJ!$B$2))=11,' BORDRO HAZIRLIK'!AK19,IF(AU18>1,AU18,(0))) -> 0 | AU18: 0 | AV18: =IF((MONTH(PUANTAJ!$B$2))=11,' BORDRO HAZIRLIK'!AE19,IF(AW18>1,AW18,(0))) -> 0 | AW18: 0 | AX18: =IF((MONTH(PUANTAJ!$B$2))=12,' BORDRO HAZIRLIK'!AK19,IF(AY18>1,AY18,(0))) -> 0 | AY18: 0 | AZ18: =IF((MONTH(PUANTAJ!$B$2))=12,' BORDRO HAZIRLIK'!AE19,IF(BA18>1,BA18,(0))) -> 0 | BA18: 0 | BB18: 0 | BC18: =' BORDRO HAZIRLIK'!AK19 -> 0 | BD18: 0 | BE18: 0 | BF18: =' BORDRO HAZIRLIK'!AE19 -> 0 | BG18: 0
B19: =PUANTAJ!A37 ->  | C19: =PUANTAJ!B37 ->  | D19: =BD19+'PERSONEL BİLGİ GİRİŞİ'!AC20 -> 0 | E19: =BG19+'PERSONEL BİLGİ GİRİŞİ'!AL20 -> 0 | F19: =IF((MONTH(PUANTAJ!$B$2))=1,' BORDRO HAZIRLIK'!#REF!,IF(G19>1,G19,(0))) ->  | G19: 0 | H19: =IF((MONTH(PUANTAJ!$B$2))=1,' BORDRO HAZIRLIK'!#REF!,IF(I19>1,I19,(0))) ->  | I19: 0 | J19: =IF((MONTH(PUANTAJ!$B$2))=2,' BORDRO HAZIRLIK'!#REF!,IF(K19>1,K19,(0))) -> 0 | K19: 0 | L19: =IF((MONTH(PUANTAJ!$B$2))=2,' BORDRO HAZIRLIK'!#REF!,IF(M19>1,M19,(0))) -> 0 | M19: 0 | N19: =IF((MONTH(PUANTAJ!$B$2))=3,' BORDRO HAZIRLIK'!#REF!,IF(O19>1,O19,(0))) -> 0 | O19: 0 | P19: =IF((MONTH(PUANTAJ!$B$2))=3,' BORDRO HAZIRLIK'!#REF!,IF(Q19>1,Q19,(0))) -> 0 | Q19: 0 | R19: =IF((MONTH(PUANTAJ!$B$2))=4,' BORDRO HAZIRLIK'!#REF!,IF(S19>1,S19,(0))) -> 0 | S19: 0 | T19: =IF((MONTH(PUANTAJ!$B$2))=4,' BORDRO HAZIRLIK'!#REF!,IF(U19>1,U19,(0))) -> 0 | U19: 0 | V19: =IF((MONTH(PUANTAJ!$B$2))=5,' BORDRO HAZIRLIK'!#REF!,IF(W19>1,W19,(0))) -> 0 | W19: 0 | X19: =IF((MONTH(PUANTAJ!$B$2))=5,' BORDRO HAZIRLIK'!#REF!,IF(Y19>1,Y19,(0))) -> 0 | Y19: 0 | Z19: =IF((MONTH(PUANTAJ!$B$2))=6,' BORDRO HAZIRLIK'!#REF!,IF(AA19>1,AA19,(0))) -> 0 | AA19: 0 | AB19: =IF((MONTH(PUANTAJ!$B$2))=6,' BORDRO HAZIRLIK'!#REF!,IF(AC19>1,AC19,(0))) -> 0 | AC19: 0 | AD19: =IF((MONTH(PUANTAJ!$B$2))=7,' BORDRO HAZIRLIK'!#REF!,IF(AE19>1,AE19,(0))) -> 0 | AE19: 0 | AF19: =IF((MONTH(PUANTAJ!$B$2))=7,' BORDRO HAZIRLIK'!#REF!,IF(AG19>1,AG19,(0))) -> 0 | AG19: 0 | AH19: =IF((MONTH(PUANTAJ!$B$2))=8,' BORDRO HAZIRLIK'!#REF!,IF(AI19>1,AI19,(0))) -> 0 | AI19: 0 | AJ19: =IF((MONTH(PUANTAJ!$B$2))=8,' BORDRO HAZIRLIK'!#REF!,IF(AK19>1,AK19,(0))) -> 0 | AK19: 0 | AL19: =IF((MONTH(PUANTAJ!$B$2))=9,' BORDRO HAZIRLIK'!#REF!,IF(AM19>1,AM19,(0))) -> 0 | AM19: 0 | AN19: =IF((MONTH(PUANTAJ!$B$2))=9,' BORDRO HAZIRLIK'!#REF!,IF(AO19>1,AO19,(0))) -> 0 | AO19: 0 | AP19: =IF((MONTH(PUANTAJ!$B$2))=10,' BORDRO HAZIRLIK'!AK20,IF(AQ19>1,AQ19,(0))) -> 0 | AQ19: 0 | AR19: =IF((MONTH(PUANTAJ!$B$2))=10,' BORDRO HAZIRLIK'!AE20,IF(AS19>1,AS19,(0))) -> 0 | AS19: 0 | AT19: =IF((MONTH(PUANTAJ!$B$2))=11,' BORDRO HAZIRLIK'!AK20,IF(AU19>1,AU19,(0))) -> 0 | AU19: 0 | AV19: =IF((MONTH(PUANTAJ!$B$2))=11,' BORDRO HAZIRLIK'!AE20,IF(AW19>1,AW19,(0))) -> 0 | AW19: 0 | AX19: =IF((MONTH(PUANTAJ!$B$2))=12,' BORDRO HAZIRLIK'!#REF!,IF(AY19>1,AY19,(0))) -> 0 | AY19: 0 | AZ19: =IF((MONTH(PUANTAJ!$B$2))=12,' BORDRO HAZIRLIK'!#REF!,IF(BA19>1,BA19,(0))) -> 0 | BA19: 0 | BB19: 0 | BC19: =' BORDRO HAZIRLIK'!AK20 -> 0 | BD19: 0 | BE19: 0 | BF19: =' BORDRO HAZIRLIK'!AE20 -> 0 | BG19: 0
B20: =PUANTAJ!A39 ->  | C20: =PUANTAJ!B39 ->  | D20: =BD20+'PERSONEL BİLGİ GİRİŞİ'!AC21 -> 0 | E20: =BG20+'PERSONEL BİLGİ GİRİŞİ'!AL21 -> 0 | F20: =IF((MONTH(PUANTAJ!$B$2))=1,' BORDRO HAZIRLIK'!AK20,IF(G20>1,G20,(0))) -> 0 | G20: 0 | H20: =IF((MONTH(PUANTAJ!$B$2))=1,' BORDRO HAZIRLIK'!AE20,IF(I20>1,I20,(0))) -> 0 | I20: 0 | J20: =IF((MONTH(PUANTAJ!$B$2))=2,' BORDRO HAZIRLIK'!AK20,IF(K20>1,K20,(0))) -> 0 | K20: 0 | L20: =IF((MONTH(PUANTAJ!$B$2))=2,' BORDRO HAZIRLIK'!AE20,IF(M20>1,M20,(0))) -> 0 | M20: 0 | N20: =IF((MONTH(PUANTAJ!$B$2))=3,' BORDRO HAZIRLIK'!AK20,IF(O20>1,O20,(0))) -> 0 | O20: 0 | P20: =IF((MONTH(PUANTAJ!$B$2))=3,' BORDRO HAZIRLIK'!AE20,IF(Q20>1,Q20,(0))) -> 0 | Q20: 0 | R20: =IF((MONTH(PUANTAJ!$B$2))=4,' BORDRO HAZIRLIK'!AK20,IF(S20>1,S20,(0))) -> 0 | S20: 0 | T20: =IF((MONTH(PUANTAJ!$B$2))=4,' BORDRO HAZIRLIK'!AE20,IF(U20>1,U20,(0))) -> 0 | U20: 0 | V20: =IF((MONTH(PUANTAJ!$B$2))=5,' BORDRO HAZIRLIK'!AK20,IF(W20>1,W20,(0))) -> 0 | W20: 0 | X20: =IF((MONTH(PUANTAJ!$B$2))=5,' BORDRO HAZIRLIK'!AE20,IF(Y20>1,Y20,(0))) -> 0 | Y20: 0 | Z20: =IF((MONTH(PUANTAJ!$B$2))=6,' BORDRO HAZIRLIK'!AK20,IF(AA20>1,AA20,(0))) -> 0 | AA20: 0 | AB20: =IF((MONTH(PUANTAJ!$B$2))=6,' BORDRO HAZIRLIK'!AE20,IF(AC20>1,AC20,(0))) -> 0 | AC20: 0 | AD20: =IF((MONTH(PUANTAJ!$B$2))=7,' BORDRO HAZIRLIK'!AK20,IF(AE20>1,AE20,(0))) -> 0 | AE20: 0 | AF20: =IF((MONTH(PUANTAJ!$B$2))=7,' BORDRO HAZIRLIK'!AE20,IF(AG20>1,AG20,(0))) -> 0 | AG20: 0 | AH20: =IF((MONTH(PUANTAJ!$B$2))=8,' BORDRO HAZIRLIK'!AK20,IF(AI20>1,AI20,(0))) -> 0 | AI20: 0 | AJ20: =IF((MONTH(PUANTAJ!$B$2))=8,' BORDRO HAZIRLIK'!AE20,IF(AK20>1,AK20,(0))) -> 0 | AK20: 0 | AL20: =IF((MONTH(PUANTAJ!$B$2))=9,' BORDRO HAZIRLIK'!AK20,IF(AM20>1,AM20,(0))) -> 0 | AM20: 0 | AN20: =IF((MONTH(PUANTAJ!$B$2))=9,' BORDRO HAZIRLIK'!AE20,IF(AO20>1,AO20,(0))) -> 0 | AO20: 0 | AP20: =IF((MONTH(PUANTAJ!$B$2))=10,' BORDRO HAZIRLIK'!AK21,IF(AQ20>1,AQ20,(0))) -> 0 | AQ20: 0 | AR20: =IF((MONTH(PUANTAJ!$B$2))=10,' BORDRO HAZIRLIK'!AE21,IF(AS20>1,AS20,(0))) -> 0 | AS20: 0 | AT20: =IF((MONTH(PUANTAJ!$B$2))=11,' BORDRO HAZIRLIK'!AK21,IF(AU20>1,AU20,(0))) -> 0 | AU20: 0 | AV20: =IF((MONTH(PUANTAJ!$B$2))=11,' BORDRO HAZIRLIK'!AE21,IF(AW20>1,AW20,(0))) -> 0 | AW20: 0 | AX20: =IF((MONTH(PUANTAJ!$B$2))=12,' BORDRO HAZIRLIK'!AK20,IF(AY20>1,AY20,(0))) -> 0 | AY20: 0 | AZ20: =IF((MONTH(PUANTAJ!$B$2))=12,' BORDRO HAZIRLIK'!AE20,IF(BA20>1,BA20,(0))) -> 0 | BA20: 0 | BB20: 0 | BC20: =' BORDRO HAZIRLIK'!AK21 -> 0 | BD20: 0 | BE20: 0 | BF20: =' BORDRO HAZIRLIK'!AE21 -> 0 | BG20: 0
B21: =PUANTAJ!A41 ->  | C21: =PUANTAJ!B41 ->  | D21: =BD21+'PERSONEL BİLGİ GİRİŞİ'!AC22 -> 0 | E21: =BG21+'PERSONEL BİLGİ GİRİŞİ'!AL22 -> 0 | F21: =IF((MONTH(PUANTAJ!$B$2))=1,' BORDRO HAZIRLIK'!AK21,IF(G21>1,G21,(0))) -> 0 | G21: 0 | H21: =IF((MONTH(PUANTAJ!$B$2))=1,' BORDRO HAZIRLIK'!AE21,IF(I21>1,I21,(0))) -> 0 | I21: 0 | J21: =IF((MONTH(PUANTAJ!$B$2))=2,' BORDRO HAZIRLIK'!AK21,IF(K21>1,K21,(0))) -> 0 | K21: 0 | L21: =IF((MONTH(PUANTAJ!$B$2))=2,' BORDRO HAZIRLIK'!AE21,IF(M21>1,M21,(0))) -> 0 | M21: 0 | N21: =IF((MONTH(PUANTAJ!$B$2))=3,' BORDRO HAZIRLIK'!AK21,IF(O21>1,O21,(0))) -> 0 | O21: 0 | P21: =IF((MONTH(PUANTAJ!$B$2))=3,' BORDRO HAZIRLIK'!AE21,IF(Q21>1,Q21,(0))) -> 0 | Q21: 0 | R21: =IF((MONTH(PUANTAJ!$B$2))=4,' BORDRO HAZIRLIK'!AK21,IF(S21>1,S21,(0))) -> 0 | S21: 0 | T21: =IF((MONTH(PUANTAJ!$B$2))=4,' BORDRO HAZIRLIK'!AE21,IF(U21>1,U21,(0))) -> 0 | U21: 0 | V21: =IF((MONTH(PUANTAJ!$B$2))=5,' BORDRO HAZIRLIK'!AK21,IF(W21>1,W21,(0))) -> 0 | W21: 0 | X21: =IF((MONTH(PUANTAJ!$B$2))=5,' BORDRO HAZIRLIK'!AE21,IF(Y21>1,Y21,(0))) -> 0 | Y21: 0 | Z21: =IF((MONTH(PUANTAJ!$B$2))=6,' BORDRO HAZIRLIK'!AK21,IF(AA21>1,AA21,(0))) -> 0 | AA21: 0 | AB21: =IF((MONTH(PUANTAJ!$B$2))=6,' BORDRO HAZIRLIK'!AE21,IF(AC21>1,AC21,(0))) -> 0 | AC21: 0 | AD21: =IF((MONTH(PUANTAJ!$B$2))=7,' BORDRO HAZIRLIK'!AK21,IF(AE21>1,AE21,(0))) -> 0 | AE21: 0 | AF21: =IF((MONTH(PUANTAJ!$B$2))=7,' BORDRO HAZIRLIK'!AE21,IF(AG21>1,AG21,(0))) -> 0 | AG21: 0 | AH21: =IF((MONTH(PUANTAJ!$B$2))=8,' BORDRO HAZIRLIK'!AK21,IF(AI21>1,AI21,(0))) -> 0 | AI21: 0 | AJ21: =IF((MONTH(PUANTAJ!$B$2))=8,' BORDRO HAZIRLIK'!AE21,IF(AK21>1,AK21,(0))) -> 0 | AK21: 0 | AL21: =IF((MONTH(PUANTAJ!$B$2))=9,' BORDRO HAZIRLIK'!AK21,IF(AM21>1,AM21,(0))) -> 0 | AM21: 0 | AN21: =IF((MONTH(PUANTAJ!$B$2))=9,' BORDRO HAZIRLIK'!AE21,IF(AO21>1,AO21,(0))) -> 0 | AO21: 0 | AP21: =IF((MONTH(PUANTAJ!$B$2))=10,' BORDRO HAZIRLIK'!AK21,IF(AQ21>1,AQ21,(0))) -> 0 | AQ21: 0 | AR21: =IF((MONTH(PUANTAJ!$B$2))=10,' BORDRO HAZIRLIK'!AE21,IF(AS21>1,AS21,(0))) -> 0 | AS21: 0 | AT21: =IF((MONTH(PUANTAJ!$B$2))=11,' BORDRO HAZIRLIK'!AK22,IF(AU21>1,AU21,(0))) -> 0 | AU21: 0 | AV21: =IF((MONTH(PUANTAJ!$B$2))=11,' BORDRO HAZIRLIK'!AE22,IF(AW21>1,AW21,(0))) -> 0 | AW21: 0 | AX21: =IF((MONTH(PUANTAJ!$B$2))=12,' BORDRO HAZIRLIK'!AK21,IF(AY21>1,AY21,(0))) -> 0 | AY21: 0 | AZ21: =IF((MONTH(PUANTAJ!$B$2))=12,' BORDRO HAZIRLIK'!AE21,IF(BA21>1,BA21,(0))) -> 0 | BA21: 0 | BB21: 0 | BC21: =' BORDRO HAZIRLIK'!AK21 -> 0 | BD21: 0 | BE21: 0 | BF21: =' BORDRO HAZIRLIK'!AE22 -> 0 | BG21: 0
B22: =PUANTAJ!A43 ->  | C22: =PUANTAJ!B43 ->  | D22: =BD22+'PERSONEL BİLGİ GİRİŞİ'!AC23 -> 0 | E22: =BG22+'PERSONEL BİLGİ GİRİŞİ'!AL23 -> 0 | F22: =IF((MONTH(PUANTAJ!$B$2))=1,' BORDRO HAZIRLIK'!AK22,IF(G22>1,G22,(0))) -> 0 | G22: 0 | H22: =IF((MONTH(PUANTAJ!$B$2))=1,' BORDRO HAZIRLIK'!AE22,IF(I22>1,I22,(0))) -> 0 | I22: 0 | J22: =IF((MONTH(PUANTAJ!$B$2))=2,' BORDRO HAZIRLIK'!AK22,IF(K22>1,K22,(0))) -> 0 | K22: 0 | L22: =IF((MONTH(PUANTAJ!$B$2))=2,' BORDRO HAZIRLIK'!AE22,IF(M22>1,M22,(0))) -> 0 | M22: 0 | N22: =IF((MONTH(PUANTAJ!$B$2))=3,' BORDRO HAZIRLIK'!AK22,IF(O22>1,O22,(0))) -> 0 | O22: 0 | P22: =IF((MONTH(PUANTAJ!$B$2))=3,' BORDRO HAZIRLIK'!AE22,IF(Q22>1,Q22,(0))) -> 0 | Q22: 0 | R22: =IF((MONTH(PUANTAJ!$B$2))=4,' BORDRO HAZIRLIK'!AK22,IF(S22>1,S22,(0))) -> 0 | S22: 0 | T22: =IF((MONTH(PUANTAJ!$B$2))=4,' BORDRO HAZIRLIK'!AE22,IF(U22>1,U22,(0))) -> 0 | U22: 0 | V22: =IF((MONTH(PUANTAJ!$B$2))=5,' BORDRO HAZIRLIK'!AK22,IF(W22>1,W22,(0))) -> 0 | W22: 0 | X22: =IF((MONTH(PUANTAJ!$B$2))=5,' BORDRO HAZIRLIK'!AE22,IF(Y22>1,Y22,(0))) -> 0 | Y22: 0 | Z22: =IF((MONTH(PUANTAJ!$B$2))=6,' BORDRO HAZIRLIK'!AK22,IF(AA22>1,AA22,(0))) -> 0 | AA22: 0 | AB22: =IF((MONTH(PUANTAJ!$B$2))=6,' BORDRO HAZIRLIK'!AE22,IF(AC22>1,AC22,(0))) -> 0 | AC22: 0 | AD22: =IF((MONTH(PUANTAJ!$B$2))=7,' BORDRO HAZIRLIK'!AK22,IF(AE22>1,AE22,(0))) -> 0 | AE22: 0 | AF22: =IF((MONTH(PUANTAJ!$B$2))=7,' BORDRO HAZIRLIK'!AE22,IF(AG22>1,AG22,(0))) -> 0 | AG22: 0 | AH22: =IF((MONTH(PUANTAJ!$B$2))=8,' BORDRO HAZIRLIK'!AK22,IF(AI22>1,AI22,(0))) -> 0 | AI22: 0 | AJ22: =IF((MONTH(PUANTAJ!$B$2))=8,' BORDRO HAZIRLIK'!AE22,IF(AK22>1,AK22,(0))) -> 0 | AK22: 0 | AL22: =IF((MONTH(PUANTAJ!$B$2))=9,' BORDRO HAZIRLIK'!AK22,IF(AM22>1,AM22,(0))) -> 0 | AM22: 0 | AN22: =IF((MONTH(PUANTAJ!$B$2))=9,' BORDRO HAZIRLIK'!AE22,IF(AO22>1,AO22,(0))) -> 0 | AO22: 0 | AP22: =IF((MONTH(PUANTAJ!$B$2))=10,' BORDRO HAZIRLIK'!AK22,IF(AQ22>1,AQ22,(0))) -> 0 | AQ22: 0 | AR22: =IF((MONTH(PUANTAJ!$B$2))=10,' BORDRO HAZIRLIK'!AE22,IF(AS22>1,AS22,(0))) -> 0 | AS22: 0 | AT22: =IF((MONTH(PUANTAJ!$B$2))=11,' BORDRO HAZIRLIK'!AK23,IF(AU22>1,AU22,(0))) -> 0 | AU22: 0 | AV22: =IF((MONTH(PUANTAJ!$B$2))=11,' BORDRO HAZIRLIK'!AE23,IF(AW22>1,AW22,(0))) -> 0 | AW22: 0 | AX22: =IF((MONTH(PUANTAJ!$B$2))=12,' BORDRO HAZIRLIK'!AK22,IF(AY22>1,AY22,(0))) -> 0 | AY22: 0 | AZ22: =IF((MONTH(PUANTAJ!$B$2))=12,' BORDRO HAZIRLIK'!AE22,IF(BA22>1,BA22,(0))) -> 0 | BA22: 0 | BB22: 0 | BC22: =' BORDRO HAZIRLIK'!AK22 -> 0 | BD22: 0 | BE22: 0 | BF22: =' BORDRO HAZIRLIK'!AE23 -> 0 | BG22: 0
B23: =PUANTAJ!A45 ->  | C23: =PUANTAJ!B45 ->  | D23: =BD23+'PERSONEL BİLGİ GİRİŞİ'!AC24 -> 0 | E23: =BG23+'PERSONEL BİLGİ GİRİŞİ'!AL24 -> 0 | F23: =IF((MONTH(PUANTAJ!$B$2))=1,' BORDRO HAZIRLIK'!AK23,IF(G23>1,G23,(0))) -> 0 | G23: 0 | H23: =IF((MONTH(PUANTAJ!$B$2))=1,' BORDRO HAZIRLIK'!AE23,IF(I23>1,I23,(0))) -> 0 | I23: 0 | J23: =IF((MONTH(PUANTAJ!$B$2))=2,' BORDRO HAZIRLIK'!AK23,IF(K23>1,K23,(0))) -> 0 | K23: 0 | L23: =IF((MONTH(PUANTAJ!$B$2))=2,' BORDRO HAZIRLIK'!AE23,IF(M23>1,M23,(0))) -> 0 | M23: 0 | N23: =IF((MONTH(PUANTAJ!$B$2))=3,' BORDRO HAZIRLIK'!AK23,IF(O23>1,O23,(0))) -> 0 | O23: 0 | P23: =IF((MONTH(PUANTAJ!$B$2))=3,' BORDRO HAZIRLIK'!AE23,IF(Q23>1,Q23,(0))) -> 0 | Q23: 0 | R23: =IF((MONTH(PUANTAJ!$B$2))=4,' BORDRO HAZIRLIK'!AK23,IF(S23>1,S23,(0))) -> 0 | S23: 0 | T23: =IF((MONTH(PUANTAJ!$B$2))=4,' BORDRO HAZIRLIK'!AE23,IF(U23>1,U23,(0))) -> 0 | U23: 0 | V23: =IF((MONTH(PUANTAJ!$B$2))=5,' BORDRO HAZIRLIK'!AK23,IF(W23>1,W23,(0))) -> 0 | W23: 0 | X23: =IF((MONTH(PUANTAJ!$B$2))=5,' BORDRO HAZIRLIK'!AE23,IF(Y23>1,Y23,(0))) -> 0 | Y23: 0 | Z23: =IF((MONTH(PUANTAJ!$B$2))=6,' BORDRO HAZIRLIK'!AK23,IF(AA23>1,AA23,(0))) -> 0 | AA23: 0 | AB23: =IF((MONTH(PUANTAJ!$B$2))=6,' BORDRO HAZIRLIK'!AE23,IF(AC23>1,AC23,(0))) -> 0 | AC23: 0 | AD23: =IF((MONTH(PUANTAJ!$B$2))=7,' BORDRO HAZIRLIK'!AK23,IF(AE23>1,AE23,(0))) -> 0 | AE23: 0 | AF23: =IF((MONTH(PUANTAJ!$B$2))=7,' BORDRO HAZIRLIK'!AE23,IF(AG23>1,AG23,(0))) -> 0 | AG23: 0 | AH23: =IF((MONTH(PUANTAJ!$B$2))=8,' BORDRO HAZIRLIK'!AK23,IF(AI23>1,AI23,(0))) -> 0 | AI23: 0 | AJ23: =IF((MONTH(PUANTAJ!$B$2))=8,' BORDRO HAZIRLIK'!AE23,IF(AK23>1,AK23,(0))) -> 0 | AK23: 0 | AL23: =IF((MONTH(PUANTAJ!$B$2))=9,' BORDRO HAZIRLIK'!AK23,IF(AM23>1,AM23,(0))) -> 0 | AM23: 0 | AN23: =IF((MONTH(PUANTAJ!$B$2))=9,' BORDRO HAZIRLIK'!AE23,IF(AO23>1,AO23,(0))) -> 0 | AO23: 0 | AP23: =IF((MONTH(PUANTAJ!$B$2))=10,' BORDRO HAZIRLIK'!AK23,IF(AQ23>1,AQ23,(0))) -> 0 | AQ23: 0 | AR23: =IF((MONTH(PUANTAJ!$B$2))=10,' BORDRO HAZIRLIK'!AE23,IF(AS23>1,AS23,(0))) -> 0 | AS23: 0 | AT23: =IF((MONTH(PUANTAJ!$B$2))=11,' BORDRO HAZIRLIK'!AK24,IF(AU23>1,AU23,(0))) -> 0 | AU23: 0 | AV23: =IF((MONTH(PUANTAJ!$B$2))=11,' BORDRO HAZIRLIK'!AE24,IF(AW23>1,AW23,(0))) -> 0 | AW23: 0 | AX23: =IF((MONTH(PUANTAJ!$B$2))=12,' BORDRO HAZIRLIK'!AK23,IF(AY23>1,AY23,(0))) -> 0 | AY23: 0 | AZ23: =IF((MONTH(PUANTAJ!$B$2))=12,' BORDRO HAZIRLIK'!AE23,IF(BA23>1,BA23,(0))) -> 0 | BA23: 0 | BB23: 0 | BC23: =' BORDRO HAZIRLIK'!AK23 -> 0 | BD23: 0 | BE23: 0 | BF23: =' BORDRO HAZIRLIK'!AE24 -> 0 | BG23: 0
B24: =PUANTAJ!A47 ->  | C24: =PUANTAJ!B47 ->  | D24: =BD24+'PERSONEL BİLGİ GİRİŞİ'!AC25 -> 0 | E24: =BG24+'PERSONEL BİLGİ GİRİŞİ'!AL25 -> 0 | F24: =IF((MONTH(PUANTAJ!$B$2))=1,' BORDRO HAZIRLIK'!AK24,IF(G24>1,G24,(0))) -> 0 | G24: 0 | H24: =IF((MONTH(PUANTAJ!$B$2))=1,' BORDRO HAZIRLIK'!AE24,IF(I24>1,I24,(0))) -> 0 | I24: 0 | J24: =IF((MONTH(PUANTAJ!$B$2))=2,' BORDRO HAZIRLIK'!AK24,IF(K24>1,K24,(0))) -> 0 | K24: 0 | L24: =IF((MONTH(PUANTAJ!$B$2))=2,' BORDRO HAZIRLIK'!AE24,IF(M24>1,M24,(0))) -> 0 | M24: 0 | N24: =IF((MONTH(PUANTAJ!$B$2))=3,' BORDRO HAZIRLIK'!AK24,IF(O24>1,O24,(0))) -> 0 | O24: 0 | P24: =IF((MONTH(PUANTAJ!$B$2))=3,' BORDRO HAZIRLIK'!AE24,IF(Q24>1,Q24,(0))) -> 0 | Q24: 0 | R24: =IF((MONTH(PUANTAJ!$B$2))=4,' BORDRO HAZIRLIK'!AK24,IF(S24>1,S24,(0))) -> 0 | S24: 0 | T24: =IF((MONTH(PUANTAJ!$B$2))=4,' BORDRO HAZIRLIK'!AE24,IF(U24>1,U24,(0))) -> 0 | U24: 0 | V24: =IF((MONTH(PUANTAJ!$B$2))=5,' BORDRO HAZIRLIK'!AK24,IF(W24>1,W24,(0))) -> 0 | W24: 0 | X24: =IF((MONTH(PUANTAJ!$B$2))=5,' BORDRO HAZIRLIK'!AE24,IF(Y24>1,Y24,(0))) -> 0 | Y24: 0 | Z24: =IF((MONTH(PUANTAJ!$B$2))=6,' BORDRO HAZIRLIK'!AK24,IF(AA24>1,AA24,(0))) -> 0 | AA24: 0 | AB24: =IF((MONTH(PUANTAJ!$B$2))=6,' BORDRO HAZIRLIK'!AE24,IF(AC24>1,AC24,(0))) -> 0 | AC24: 0 | AD24: =IF((MONTH(PUANTAJ!$B$2))=7,' BORDRO HAZIRLIK'!AK24,IF(AE24>1,AE24,(0))) -> 0 | AE24: 0 | AF24: =IF((MONTH(PUANTAJ!$B$2))=7,' BORDRO HAZIRLIK'!AE24,IF(AG24>1,AG24,(0))) -> 0 | AG24: 0 | AH24: =IF((MONTH(PUANTAJ!$B$2))=8,' BORDRO HAZIRLIK'!AK24,IF(AI24>1,AI24,(0))) -> 0 | AI24: 0 | AJ24: =IF((MONTH(PUANTAJ!$B$2))=8,' BORDRO HAZIRLIK'!AE24,IF(AK24>1,AK24,(0))) -> 0 | AK24: 0 | AL24: =IF((MONTH(PUANTAJ!$B$2))=9,' BORDRO HAZIRLIK'!AK24,IF(AM24>1,AM24,(0))) -> 0 | AM24: 0 | AN24: =IF((MONTH(PUANTAJ!$B$2))=9,' BORDRO HAZIRLIK'!AE24,IF(AO24>1,AO24,(0))) -> 0 | AO24: 0 | AP24: =IF((MONTH(PUANTAJ!$B$2))=10,' BORDRO HAZIRLIK'!AK24,IF(AQ24>1,AQ24,(0))) -> 0 | AQ24: 0 | AR24: =IF((MONTH(PUANTAJ!$B$2))=10,' BORDRO HAZIRLIK'!AE24,IF(AS24>1,AS24,(0))) -> 0 | AS24: 0 | AT24: =IF((MONTH(PUANTAJ!$B$2))=11,' BORDRO HAZIRLIK'!AK25,IF(AU24>1,AU24,(0))) -> 0 | AU24: 0 | AV24: =IF((MONTH(PUANTAJ!$B$2))=11,' BORDRO HAZIRLIK'!AE25,IF(AW24>1,AW24,(0))) -> 0 | AW24: 0 | AX24: =IF((MONTH(PUANTAJ!$B$2))=12,' BORDRO HAZIRLIK'!AK24,IF(AY24>1,AY24,(0))) -> 0 | AY24: 0 | AZ24: =IF((MONTH(PUANTAJ!$B$2))=12,' BORDRO HAZIRLIK'!AE24,IF(BA24>1,BA24,(0))) -> 0 | BA24: 0 | BB24: 0 | BC24: =' BORDRO HAZIRLIK'!AK24 -> 0 | BD24: 0 | BE24: 0 | BF24: =' BORDRO HAZIRLIK'!AE25 -> 0 | BG24: 0
B25: =PUANTAJ!A49 ->  | C25: =PUANTAJ!B49 ->  | D25: =BD25+'PERSONEL BİLGİ GİRİŞİ'!AC26 -> 0 | E25: =BG25+'PERSONEL BİLGİ GİRİŞİ'!AL26 -> 0 | F25: =IF((MONTH(PUANTAJ!$B$2))=1,' BORDRO HAZIRLIK'!AK25,IF(G25>1,G25,(0))) -> 0 | G25: 0 | H25: =IF((MONTH(PUANTAJ!$B$2))=1,' BORDRO HAZIRLIK'!AE25,IF(I25>1,I25,(0))) -> 0 | I25: 0 | J25: =IF((MONTH(PUANTAJ!$B$2))=2,' BORDRO HAZIRLIK'!AK25,IF(K25>1,K25,(0))) -> 0 | K25: 0 | L25: =IF((MONTH(PUANTAJ!$B$2))=2,' BORDRO HAZIRLIK'!AE25,IF(M25>1,M25,(0))) -> 0 | M25: 0 | N25: =IF((MONTH(PUANTAJ!$B$2))=3,' BORDRO HAZIRLIK'!AK25,IF(O25>1,O25,(0))) -> 0 | O25: 0 | P25: =IF((MONTH(PUANTAJ!$B$2))=3,' BORDRO HAZIRLIK'!AE25,IF(Q25>1,Q25,(0))) -> 0 | Q25: 0 | R25: =IF((MONTH(PUANTAJ!$B$2))=4,' BORDRO HAZIRLIK'!AK25,IF(S25>1,S25,(0))) -> 0 | S25: 0 | T25: =IF((MONTH(PUANTAJ!$B$2))=4,' BORDRO HAZIRLIK'!AE25,IF(U25>1,U25,(0))) -> 0 | U25: 0 | V25: =IF((MONTH(PUANTAJ!$B$2))=5,' BORDRO HAZIRLIK'!AK25,IF(W25>1,W25,(0))) -> 0 | W25: 0 | X25: =IF((MONTH(PUANTAJ!$B$2))=5,' BORDRO HAZIRLIK'!AE25,IF(Y25>1,Y25,(0))) -> 0 | Y25: 0 | Z25: =IF((MONTH(PUANTAJ!$B$2))=6,' BORDRO HAZIRLIK'!AK25,IF(AA25>1,AA25,(0))) -> 0 | AA25: 0 | AB25: =IF((MONTH(PUANTAJ!$B$2))=6,' BORDRO HAZIRLIK'!AE25,IF(AC25>1,AC25,(0))) -> 0 | AC25: 0 | AD25: =IF((MONTH(PUANTAJ!$B$2))=7,' BORDRO HAZIRLIK'!AK25,IF(AE25>1,AE25,(0))) -> 0 | AE25: 0 | AF25: =IF((MONTH(PUANTAJ!$B$2))=7,' BORDRO HAZIRLIK'!AE25,IF(AG25>1,AG25,(0))) -> 0 | AG25: 0 | AH25: =IF((MONTH(PUANTAJ!$B$2))=8,' BORDRO HAZIRLIK'!AK25,IF(AI25>1,AI25,(0))) -> 0 | AI25: 0 | AJ25: =IF((MONTH(PUANTAJ!$B$2))=8,' BORDRO HAZIRLIK'!AE25,IF(AK25>1,AK25,(0))) -> 0 | AK25: 0 | AL25: =IF((MONTH(PUANTAJ!$B$2))=9,' BORDRO HAZIRLIK'!AK25,IF(AM25>1,AM25,(0))) -> 0 | AM25: 0 | AN25: =IF((MONTH(PUANTAJ!$B$2))=9,' BORDRO HAZIRLIK'!AE25,IF(AO25>1,AO25,(0))) -> 0 | AO25: 0 | AP25: =IF((MONTH(PUANTAJ!$B$2))=10,' BORDRO HAZIRLIK'!AK25,IF(AQ25>1,AQ25,(0))) -> 0 | AQ25: 0 | AR25: =IF((MONTH(PUANTAJ!$B$2))=10,' BORDRO HAZIRLIK'!AE25,IF(AS25>1,AS25,(0))) -> 0 | AS25: 0 | AT25: =IF((MONTH(PUANTAJ!$B$2))=11,' BORDRO HAZIRLIK'!AK26,IF(AU25>1,AU25,(0))) -> 0 | AU25: 0 | AV25: =IF((MONTH(PUANTAJ!$B$2))=11,' BORDRO HAZIRLIK'!AE26,IF(AW25>1,AW25,(0))) -> 0 | AW25: 0 | AX25: =IF((MONTH(PUANTAJ!$B$2))=12,' BORDRO HAZIRLIK'!AK25,IF(AY25>1,AY25,(0))) -> 0 | AY25: 0 | AZ25: =IF((MONTH(PUANTAJ!$B$2))=12,' BORDRO HAZIRLIK'!AE25,IF(BA25>1,BA25,(0))) -> 0 | BA25: 0 | BB25: 0 | BC25: =' BORDRO HAZIRLIK'!AK25 -> 0 | BD25: 0 | BE25: 0 | BF25: =' BORDRO HAZIRLIK'!AE26 -> 0 | BG25: 0
B26: =PUANTAJ!A51 ->  | C26: =PUANTAJ!B51 ->  | D26: =BD26+'PERSONEL BİLGİ GİRİŞİ'!AC27 -> 0 | E26: =BG26+'PERSONEL BİLGİ GİRİŞİ'!AL27 -> 0 | F26: =IF((MONTH(PUANTAJ!$B$2))=1,' BORDRO HAZIRLIK'!AK26,IF(G26>1,G26,(0))) -> 0 | G26: 0 | H26: =IF((MONTH(PUANTAJ!$B$2))=1,' BORDRO HAZIRLIK'!AE26,IF(I26>1,I26,(0))) -> 0 | I26: 0 | J26: =IF((MONTH(PUANTAJ!$B$2))=2,' BORDRO HAZIRLIK'!AK26,IF(K26>1,K26,(0))) -> 0 | K26: 0 | L26: =IF((MONTH(PUANTAJ!$B$2))=2,' BORDRO HAZIRLIK'!AE26,IF(M26>1,M26,(0))) -> 0 | M26: 0 | N26: =IF((MONTH(PUANTAJ!$B$2))=3,' BORDRO HAZIRLIK'!AK26,IF(O26>1,O26,(0))) -> 0 | O26: 0 | P26: =IF((MONTH(PUANTAJ!$B$2))=3,' BORDRO HAZIRLIK'!AE26,IF(Q26>1,Q26,(0))) -> 0 | Q26: 0 | R26: =IF((MONTH(PUANTAJ!$B$2))=4,' BORDRO HAZIRLIK'!AK26,IF(S26>1,S26,(0))) -> 0 | S26: 0 | T26: =IF((MONTH(PUANTAJ!$B$2))=4,' BORDRO HAZIRLIK'!AE26,IF(U26>1,U26,(0))) -> 0 | U26: 0 | V26: =IF((MONTH(PUANTAJ!$B$2))=5,' BORDRO HAZIRLIK'!AK26,IF(W26>1,W26,(0))) -> 0 | W26: 0 | X26: =IF((MONTH(PUANTAJ!$B$2))=5,' BORDRO HAZIRLIK'!AE26,IF(Y26>1,Y26,(0))) -> 0 | Y26: 0 | Z26: =IF((MONTH(PUANTAJ!$B$2))=6,' BORDRO HAZIRLIK'!AK26,IF(AA26>1,AA26,(0))) -> 0 | AA26: 0 | AB26: =IF((MONTH(PUANTAJ!$B$2))=6,' BORDRO HAZIRLIK'!AE26,IF(AC26>1,AC26,(0))) -> 0 | AC26: 0 | AD26: =IF((MONTH(PUANTAJ!$B$2))=7,' BORDRO HAZIRLIK'!AK26,IF(AE26>1,AE26,(0))) -> 0 | AE26: 0 | AF26: =IF((MONTH(PUANTAJ!$B$2))=7,' BORDRO HAZIRLIK'!AE26,IF(AG26>1,AG26,(0))) -> 0 | AG26: 0 | AH26: =IF((MONTH(PUANTAJ!$B$2))=8,' BORDRO HAZIRLIK'!AK26,IF(AI26>1,AI26,(0))) -> 0 | AI26: 0 | AJ26: =IF((MONTH(PUANTAJ!$B$2))=8,' BORDRO HAZIRLIK'!AE26,IF(AK26>1,AK26,(0))) -> 0 | AK26: 0 | AL26: =IF((MONTH(PUANTAJ!$B$2))=9,' BORDRO HAZIRLIK'!AK26,IF(AM26>1,AM26,(0))) -> 0 | AM26: 0 | AN26: =IF((MONTH(PUANTAJ!$B$2))=9,' BORDRO HAZIRLIK'!AE26,IF(AO26>1,AO26,(0))) -> 0 | AO26: 0 | AP26: =IF((MONTH(PUANTAJ!$B$2))=10,' BORDRO HAZIRLIK'!AK26,IF(AQ26>1,AQ26,(0))) -> 0 | AQ26: 0 | AR26: =IF((MONTH(PUANTAJ!$B$2))=10,' BORDRO HAZIRLIK'!AE26,IF(AS26>1,AS26,(0))) -> 0 | AS26: 0 | AT26: =IF((MONTH(PUANTAJ!$B$2))=11,' BORDRO HAZIRLIK'!AK27,IF(AU26>1,AU26,(0))) -> 0 | AU26: 0 | AV26: =IF((MONTH(PUANTAJ!$B$2))=11,' BORDRO HAZIRLIK'!AE27,IF(AW26>1,AW26,(0))) -> 0 | AW26: 0 | AX26: =IF((MONTH(PUANTAJ!$B$2))=12,' BORDRO HAZIRLIK'!AK26,IF(AY26>1,AY26,(0))) -> 0 | AY26: 0 | AZ26: =IF((MONTH(PUANTAJ!$B$2))=12,' BORDRO HAZIRLIK'!AE26,IF(BA26>1,BA26,(0))) -> 0 | BA26: 0 | BB26: 0 | BC26: =' BORDRO HAZIRLIK'!AK26 -> 0 | BD26: 0 | BE26: 0 | BF26: =' BORDRO HAZIRLIK'!AE27 -> 0 | BG26: 0
B27: =PUANTAJ!A53 ->  | C27: =PUANTAJ!B53 ->  | D27: =BD27+'PERSONEL BİLGİ GİRİŞİ'!AC28 -> 0 | E27: =BG27+'PERSONEL BİLGİ GİRİŞİ'!AL28 -> 0 | F27: =IF((MONTH(PUANTAJ!$B$2))=1,' BORDRO HAZIRLIK'!AK27,IF(G27>1,G27,(0))) -> 0 | G27: 0 | H27: =IF((MONTH(PUANTAJ!$B$2))=1,' BORDRO HAZIRLIK'!AE27,IF(I27>1,I27,(0))) -> 0 | I27: 0 | J27: =IF((MONTH(PUANTAJ!$B$2))=2,' BORDRO HAZIRLIK'!AK27,IF(K27>1,K27,(0))) -> 0 | K27: 0 | L27: =IF((MONTH(PUANTAJ!$B$2))=2,' BORDRO HAZIRLIK'!AE27,IF(M27>1,M27,(0))) -> 0 | M27: 0 | N27: =IF((MONTH(PUANTAJ!$B$2))=3,' BORDRO HAZIRLIK'!AK27,IF(O27>1,O27,(0))) -> 0 | O27: 0 | P27: =IF((MONTH(PUANTAJ!$B$2))=3,' BORDRO HAZIRLIK'!AE27,IF(Q27>1,Q27,(0))) -> 0 | Q27: 0 | R27: =IF((MONTH(PUANTAJ!$B$2))=4,' BORDRO HAZIRLIK'!AK27,IF(S27>1,S27,(0))) -> 0 | S27: 0 | T27: =IF((MONTH(PUANTAJ!$B$2))=4,' BORDRO HAZIRLIK'!AE27,IF(U27>1,U27,(0))) -> 0 | U27: 0 | V27: =IF((MONTH(PUANTAJ!$B$2))=5,' BORDRO HAZIRLIK'!AK27,IF(W27>1,W27,(0))) -> 0 | W27: 0 | X27: =IF((MONTH(PUANTAJ!$B$2))=5,' BORDRO HAZIRLIK'!AE27,IF(Y27>1,Y27,(0))) -> 0 | Y27: 0 | Z27: =IF((MONTH(PUANTAJ!$B$2))=6,' BORDRO HAZIRLIK'!AK27,IF(AA27>1,AA27,(0))) -> 0 | AA27: 0 | AB27: =IF((MONTH(PUANTAJ!$B$2))=6,' BORDRO HAZIRLIK'!AE27,IF(AC27>1,AC27,(0))) -> 0 | AC27: 0 | AD27: =IF((MONTH(PUANTAJ!$B$2))=7,' BORDRO HAZIRLIK'!AK27,IF(AE27>1,AE27,(0))) -> 0 | AE27: 0 | AF27: =IF((MONTH(PUANTAJ!$B$2))=7,' BORDRO HAZIRLIK'!AE27,IF(AG27>1,AG27,(0))) -> 0 | AG27: 0 | AH27: =IF((MONTH(PUANTAJ!$B$2))=8,' BORDRO HAZIRLIK'!AK27,IF(AI27>1,AI27,(0))) -> 0 | AI27: 0 | AJ27: =IF((MONTH(PUANTAJ!$B$2))=8,' BORDRO HAZIRLIK'!AE27,IF(AK27>1,AK27,(0))) -> 0 | AK27: 0 | AL27: =IF((MONTH(PUANTAJ!$B$2))=9,' BORDRO HAZIRLIK'!AK27,IF(AM27>1,AM27,(0))) -> 0 | AM27: 0 | AN27: =IF((MONTH(PUANTAJ!$B$2))=9,' BORDRO HAZIRLIK'!AE27,IF(AO27>1,AO27,(0))) -> 0 | AO27: 0 | AP27: =IF((MONTH(PUANTAJ!$B$2))=10,' BORDRO HAZIRLIK'!AK27,IF(AQ27>1,AQ27,(0))) -> 0 | AQ27: 0 | AR27: =IF((MONTH(PUANTAJ!$B$2))=10,' BORDRO HAZIRLIK'!AE27,IF(AS27>1,AS27,(0))) -> 0 | AS27: 0 | AT27: =IF((MONTH(PUANTAJ!$B$2))=11,' BORDRO HAZIRLIK'!AK28,IF(AU27>1,AU27,(0))) -> 0 | AU27: 0 | AV27: =IF((MONTH(PUANTAJ!$B$2))=11,' BORDRO HAZIRLIK'!AE28,IF(AW27>1,AW27,(0))) -> 0 | AW27: 0 | AX27: =IF((MONTH(PUANTAJ!$B$2))=12,' BORDRO HAZIRLIK'!AK27,IF(AY27>1,AY27,(0))) -> 0 | AY27: 0 | AZ27: =IF((MONTH(PUANTAJ!$B$2))=12,' BORDRO HAZIRLIK'!AE27,IF(BA27>1,BA27,(0))) -> 0 | BA27: 0 | BB27: 0 | BC27: =' BORDRO HAZIRLIK'!AK27 -> 0 | BD27: 0 | BE27: 0 | BF27: =' BORDRO HAZIRLIK'!AE28 -> 0 | BG27: 0
B28: =PUANTAJ!A55 ->  | C28: =PUANTAJ!B55 ->  | D28: =BD28+'PERSONEL BİLGİ GİRİŞİ'!AC29 -> 0 | E28: =BG28+'PERSONEL BİLGİ GİRİŞİ'!AL29 -> 0 | F28: =IF((MONTH(PUANTAJ!$B$2))=1,' BORDRO HAZIRLIK'!AK28,IF(G28>1,G28,(0))) -> 0 | G28: 0 | H28: =IF((MONTH(PUANTAJ!$B$2))=1,' BORDRO HAZIRLIK'!AE28,IF(I28>1,I28,(0))) -> 0 | I28: 0 | J28: =IF((MONTH(PUANTAJ!$B$2))=2,' BORDRO HAZIRLIK'!AK28,IF(K28>1,K28,(0))) -> 0 | K28: 0 | L28: =IF((MONTH(PUANTAJ!$B$2))=2,' BORDRO HAZIRLIK'!AE28,IF(M28>1,M28,(0))) -> 0 | M28: 0 | N28: =IF((MONTH(PUANTAJ!$B$2))=3,' BORDRO HAZIRLIK'!AK28,IF(O28>1,O28,(0))) -> 0 | O28: 0 | P28: =IF((MONTH(PUANTAJ!$B$2))=3,' BORDRO HAZIRLIK'!AE28,IF(Q28>1,Q28,(0))) -> 0 | Q28: 0 | R28: =IF((MONTH(PUANTAJ!$B$2))=4,' BORDRO HAZIRLIK'!AK28,IF(S28>1,S28,(0))) -> 0 | S28: 0 | T28: =IF((MONTH(PUANTAJ!$B$2))=4,' BORDRO HAZIRLIK'!AE28,IF(U28>1,U28,(0))) -> 0 | U28: 0 | V28: =IF((MONTH(PUANTAJ!$B$2))=5,' BORDRO HAZIRLIK'!AK28,IF(W28>1,W28,(0))) -> 0 | W28: 0 | X28: =IF((MONTH(PUANTAJ!$B$2))=5,' BORDRO HAZIRLIK'!AE28,IF(Y28>1,Y28,(0))) -> 0 | Y28: 0 | Z28: =IF((MONTH(PUANTAJ!$B$2))=6,' BORDRO HAZIRLIK'!AK28,IF(AA28>1,AA28,(0))) -> 0 | AA28: 0 | AB28: =IF((MONTH(PUANTAJ!$B$2))=6,' BORDRO HAZIRLIK'!AE28,IF(AC28>1,AC28,(0))) -> 0 | AC28: 0 | AD28: =IF((MONTH(PUANTAJ!$B$2))=7,' BORDRO HAZIRLIK'!AK28,IF(AE28>1,AE28,(0))) -> 0 | AE28: 0 | AF28: =IF((MONTH(PUANTAJ!$B$2))=7,' BORDRO HAZIRLIK'!AE28,IF(AG28>1,AG28,(0))) -> 0 | AG28: 0 | AH28: =IF((MONTH(PUANTAJ!$B$2))=8,' BORDRO HAZIRLIK'!AK28,IF(AI28>1,AI28,(0))) -> 0 | AI28: 0 | AJ28: =IF((MONTH(PUANTAJ!$B$2))=8,' BORDRO HAZIRLIK'!AE28,IF(AK28>1,AK28,(0))) -> 0 | AK28: 0 | AL28: =IF((MONTH(PUANTAJ!$B$2))=9,' BORDRO HAZIRLIK'!AK28,IF(AM28>1,AM28,(0))) -> 0 | AM28: 0 | AN28: =IF((MONTH(PUANTAJ!$B$2))=9,' BORDRO HAZIRLIK'!AE28,IF(AO28>1,AO28,(0))) -> 0 | AO28: 0 | AP28: =IF((MONTH(PUANTAJ!$B$2))=10,' BORDRO HAZIRLIK'!AK28,IF(AQ28>1,AQ28,(0))) -> 0 | AQ28: 0 | AR28: =IF((MONTH(PUANTAJ!$B$2))=10,' BORDRO HAZIRLIK'!AE28,IF(AS28>1,AS28,(0))) -> 0 | AS28: 0 | AT28: =IF((MONTH(PUANTAJ!$B$2))=11,' BORDRO HAZIRLIK'!AK29,IF(AU28>1,AU28,(0))) -> 0 | AU28: 0 | AV28: =IF((MONTH(PUANTAJ!$B$2))=11,' BORDRO HAZIRLIK'!AE29,IF(AW28>1,AW28,(0))) -> 0 | AW28: 0 | AX28: =IF((MONTH(PUANTAJ!$B$2))=12,' BORDRO HAZIRLIK'!AK28,IF(AY28>1,AY28,(0))) -> 0 | AY28: 0 | AZ28: =IF((MONTH(PUANTAJ!$B$2))=12,' BORDRO HAZIRLIK'!AE28,IF(BA28>1,BA28,(0))) -> 0 | BA28: 0 | BB28: 0 | BC28: =' BORDRO HAZIRLIK'!AK28 -> 0 | BD28: 0 | BE28: 0 | BF28: =' BORDRO HAZIRLIK'!AE29 -> 0 | BG28: 0
B29: =PUANTAJ!A57 ->  | C29: =PUANTAJ!B57 ->  | D29: =BD29+'PERSONEL BİLGİ GİRİŞİ'!AC30 -> 0 | E29: =BG29+'PERSONEL BİLGİ GİRİŞİ'!AL30 -> 0 | F29: =IF((MONTH(PUANTAJ!$B$2))=1,' BORDRO HAZIRLIK'!AK29,IF(G29>1,G29,(0))) -> 0 | G29: 0 | H29: =IF((MONTH(PUANTAJ!$B$2))=1,' BORDRO HAZIRLIK'!AE29,IF(I29>1,I29,(0))) -> 0 | I29: 0 | J29: =IF((MONTH(PUANTAJ!$B$2))=2,' BORDRO HAZIRLIK'!AK29,IF(K29>1,K29,(0))) -> 0 | K29: 0 | L29: =IF((MONTH(PUANTAJ!$B$2))=2,' BORDRO HAZIRLIK'!AE29,IF(M29>1,M29,(0))) -> 0 | M29: 0 | N29: =IF((MONTH(PUANTAJ!$B$2))=3,' BORDRO HAZIRLIK'!AK29,IF(O29>1,O29,(0))) -> 0 | O29: 0 | P29: =IF((MONTH(PUANTAJ!$B$2))=3,' BORDRO HAZIRLIK'!AE29,IF(Q29>1,Q29,(0))) -> 0 | Q29: 0 | R29: =IF((MONTH(PUANTAJ!$B$2))=4,' BORDRO HAZIRLIK'!AK29,IF(S29>1,S29,(0))) -> 0 | S29: 0 | T29: =IF((MONTH(PUANTAJ!$B$2))=4,' BORDRO HAZIRLIK'!AE29,IF(U29>1,U29,(0))) -> 0 | U29: 0 | V29: =IF((MONTH(PUANTAJ!$B$2))=5,' BORDRO HAZIRLIK'!AK29,IF(W29>1,W29,(0))) -> 0 | W29: 0 | X29: =IF((MONTH(PUANTAJ!$B$2))=5,' BORDRO HAZIRLIK'!AE29,IF(Y29>1,Y29,(0))) -> 0 | Y29: 0 | Z29: =IF((MONTH(PUANTAJ!$B$2))=6,' BORDRO HAZIRLIK'!AK29,IF(AA29>1,AA29,(0))) -> 0 | AA29: 0 | AB29: =IF((MONTH(PUANTAJ!$B$2))=6,' BORDRO HAZIRLIK'!AE29,IF(AC29>1,AC29,(0))) -> 0 | AC29: 0 | AD29: =IF((MONTH(PUANTAJ!$B$2))=7,' BORDRO HAZIRLIK'!AK29,IF(AE29>1,AE29,(0))) -> 0 | AE29: 0 | AF29: =IF((MONTH(PUANTAJ!$B$2))=7,' BORDRO HAZIRLIK'!AE29,IF(AG29>1,AG29,(0))) -> 0 | AG29: 0 | AH29: =IF((MONTH(PUANTAJ!$B$2))=8,' BORDRO HAZIRLIK'!AK29,IF(AI29>1,AI29,(0))) -> 0 | AI29: 0 | AJ29: =IF((MONTH(PUANTAJ!$B$2))=8,' BORDRO HAZIRLIK'!AE29,IF(AK29>1,AK29,(0))) -> 0 | AK29: 0 | AL29: =IF((MONTH(PUANTAJ!$B$2))=9,' BORDRO HAZIRLIK'!AK29,IF(AM29>1,AM29,(0))) -> 0 | AM29: 0 | AN29: =IF((MONTH(PUANTAJ!$B$2))=9,' BORDRO HAZIRLIK'!AE29,IF(AO29>1,AO29,(0))) -> 0 | AO29: 0 | AP29: =IF((MONTH(PUANTAJ!$B$2))=10,' BORDRO HAZIRLIK'!AK29,IF(AQ29>1,AQ29,(0))) -> 0 | AQ29: 0 | AR29: =IF((MONTH(PUANTAJ!$B$2))=10,' BORDRO HAZIRLIK'!AE29,IF(AS29>1,AS29,(0))) -> 0 | AS29: 0 | AT29: =IF((MONTH(PUANTAJ!$B$2))=11,' BORDRO HAZIRLIK'!AK30,IF(AU29>1,AU29,(0))) -> 0 | AU29: 0 | AV29: =IF((MONTH(PUANTAJ!$B$2))=11,' BORDRO HAZIRLIK'!AE30,IF(AW29>1,AW29,(0))) -> 0 | AW29: 0 | AX29: =IF((MONTH(PUANTAJ!$B$2))=12,' BORDRO HAZIRLIK'!AK29,IF(AY29>1,AY29,(0))) -> 0 | AY29: 0 | AZ29: =IF((MONTH(PUANTAJ!$B$2))=12,' BORDRO HAZIRLIK'!AE29,IF(BA29>1,BA29,(0))) -> 0 | BA29: 0 | BB29: 0 | BC29: =' BORDRO HAZIRLIK'!AK29 -> 0 | BD29: 0 | BE29: 0 | BF29: =' BORDRO HAZIRLIK'!AE30 -> 0 | BG29: 0
B30: =PUANTAJ!A59 ->  | C30: =PUANTAJ!B59 ->  | D30: =BD30+'PERSONEL BİLGİ GİRİŞİ'!AC31 -> 0 | E30: =BG30+'PERSONEL BİLGİ GİRİŞİ'!AL31 -> 0 | F30: =IF((MONTH(PUANTAJ!$B$2))=1,' BORDRO HAZIRLIK'!AK30,IF(G30>1,G30,(0))) -> 0 | G30: 0 | H30: =IF((MONTH(PUANTAJ!$B$2))=1,' BORDRO HAZIRLIK'!AE30,IF(I30>1,I30,(0))) -> 0 | I30: 0 | J30: =IF((MONTH(PUANTAJ!$B$2))=2,' BORDRO HAZIRLIK'!AK30,IF(K30>1,K30,(0))) -> 0 | K30: 0 | L30: =IF((MONTH(PUANTAJ!$B$2))=2,' BORDRO HAZIRLIK'!AE30,IF(M30>1,M30,(0))) -> 0 | M30: 0 | N30: =IF((MONTH(PUANTAJ!$B$2))=3,' BORDRO HAZIRLIK'!AK30,IF(O30>1,O30,(0))) -> 0 | O30: 0 | P30: =IF((MONTH(PUANTAJ!$B$2))=3,' BORDRO HAZIRLIK'!AE30,IF(Q30>1,Q30,(0))) -> 0 | Q30: 0 | R30: =IF((MONTH(PUANTAJ!$B$2))=4,' BORDRO HAZIRLIK'!AK30,IF(S30>1,S30,(0))) -> 0 | S30: 0 | T30: =IF((MONTH(PUANTAJ!$B$2))=4,' BORDRO HAZIRLIK'!AE30,IF(U30>1,U30,(0))) -> 0 | U30: 0 | V30: =IF((MONTH(PUANTAJ!$B$2))=5,' BORDRO HAZIRLIK'!AK30,IF(W30>1,W30,(0))) -> 0 | W30: 0 | X30: =IF((MONTH(PUANTAJ!$B$2))=5,' BORDRO HAZIRLIK'!AE30,IF(Y30>1,Y30,(0))) -> 0 | Y30: 0 | Z30: =IF((MONTH(PUANTAJ!$B$2))=6,' BORDRO HAZIRLIK'!AK30,IF(AA30>1,AA30,(0))) -> 0 | AA30: 0 | AB30: =IF((MONTH(PUANTAJ!$B$2))=6,' BORDRO HAZIRLIK'!AE30,IF(AC30>1,AC30,(0))) -> 0 | AC30: 0 | AD30: =IF((MONTH(PUANTAJ!$B$2))=7,' BORDRO HAZIRLIK'!AK30,IF(AE30>1,AE30,(0))) -> 0 | AE30: 0 | AF30: =IF((MONTH(PUANTAJ!$B$2))=7,' BORDRO HAZIRLIK'!AE30,IF(AG30>1,AG30,(0))) -> 0 | AG30: 0 | AH30: =IF((MONTH(PUANTAJ!$B$2))=8,' BORDRO HAZIRLIK'!AK30,IF(AI30>1,AI30,(0))) -> 0 | AI30: 0 | AJ30: =IF((MONTH(PUANTAJ!$B$2))=8,' BORDRO HAZIRLIK'!AE30,IF(AK30>1,AK30,(0))) -> 0 | AK30: 0 | AL30: =IF((MONTH(PUANTAJ!$B$2))=9,' BORDRO HAZIRLIK'!AK30,IF(AM30>1,AM30,(0))) -> 0 | AM30: 0 | AN30: =IF((MONTH(PUANTAJ!$B$2))=9,' BORDRO HAZIRLIK'!AE30,IF(AO30>1,AO30,(0))) -> 0 | AO30: 0 | AP30: =IF((MONTH(PUANTAJ!$B$2))=10,' BORDRO HAZIRLIK'!AK30,IF(AQ30>1,AQ30,(0))) -> 0 | AQ30: 0 | AR30: =IF((MONTH(PUANTAJ!$B$2))=10,' BORDRO HAZIRLIK'!AE30,IF(AS30>1,AS30,(0))) -> 0 | AS30: 0 | AT30: =IF((MONTH(PUANTAJ!$B$2))=11,' BORDRO HAZIRLIK'!AK31,IF(AU30>1,AU30,(0))) -> 0 | AU30: 0 | AV30: =IF((MONTH(PUANTAJ!$B$2))=11,' BORDRO HAZIRLIK'!AE31,IF(AW30>1,AW30,(0))) -> 0 | AW30: 0 | AX30: =IF((MONTH(PUANTAJ!$B$2))=12,' BORDRO HAZIRLIK'!AK30,IF(AY30>1,AY30,(0))) -> 0 | AY30: 0 | AZ30: =IF((MONTH(PUANTAJ!$B$2))=12,' BORDRO HAZIRLIK'!AE30,IF(BA30>1,BA30,(0))) -> 0 | BA30: 0 | BB30: 0 | BC30: =' BORDRO HAZIRLIK'!AK30 -> 0 | BD30: 0 | BE30: 0 | BF30: =' BORDRO HAZIRLIK'!AE31 -> 0 | BG30: 0
B31: =PUANTAJ!A61 ->  | C31: =PUANTAJ!B61 ->  | D31: =BD31+'PERSONEL BİLGİ GİRİŞİ'!AC32 -> 0 | E31: =BG31+'PERSONEL BİLGİ GİRİŞİ'!AL32 -> 0 | F31: =IF((MONTH(PUANTAJ!$B$2))=1,' BORDRO HAZIRLIK'!AK31,IF(G31>1,G31,(0))) -> 0 | G31: 0 | H31: =IF((MONTH(PUANTAJ!$B$2))=1,' BORDRO HAZIRLIK'!AE31,IF(I31>1,I31,(0))) -> 0 | I31: 0 | J31: =IF((MONTH(PUANTAJ!$B$2))=2,' BORDRO HAZIRLIK'!AK31,IF(K31>1,K31,(0))) -> 0 | K31: 0 | L31: =IF((MONTH(PUANTAJ!$B$2))=2,' BORDRO HAZIRLIK'!AE31,IF(M31>1,M31,(0))) -> 0 | M31: 0 | N31: =IF((MONTH(PUANTAJ!$B$2))=3,' BORDRO HAZIRLIK'!AK31,IF(O31>1,O31,(0))) -> 0 | O31: 0 | P31: =IF((MONTH(PUANTAJ!$B$2))=3,' BORDRO HAZIRLIK'!AE31,IF(Q31>1,Q31,(0))) -> 0 | Q31: 0 | R31: =IF((MONTH(PUANTAJ!$B$2))=4,' BORDRO HAZIRLIK'!AK31,IF(S31>1,S31,(0))) -> 0 | S31: 0 | T31: =IF((MONTH(PUANTAJ!$B$2))=4,' BORDRO HAZIRLIK'!AE31,IF(U31>1,U31,(0))) -> 0 | U31: 0 | V31: =IF((MONTH(PUANTAJ!$B$2))=5,' BORDRO HAZIRLIK'!AK31,IF(W31>1,W31,(0))) -> 0 | W31: 0 | X31: =IF((MONTH(PUANTAJ!$B$2))=5,' BORDRO HAZIRLIK'!AE31,IF(Y31>1,Y31,(0))) -> 0 | Y31: 0 | Z31: =IF((MONTH(PUANTAJ!$B$2))=6,' BORDRO HAZIRLIK'!AK31,IF(AA31>1,AA31,(0))) -> 0 | AA31: 0 | AB31: =IF((MONTH(PUANTAJ!$B$2))=6,' BORDRO HAZIRLIK'!AE31,IF(AC31>1,AC31,(0))) -> 0 | AC31: 0 | AD31: =IF((MONTH(PUANTAJ!$B$2))=7,' BORDRO HAZIRLIK'!AK31,IF(AE31>1,AE31,(0))) -> 0 | AE31: 0 | AF31: =IF((MONTH(PUANTAJ!$B$2))=7,' BORDRO HAZIRLIK'!AE31,IF(AG31>1,AG31,(0))) -> 0 | AG31: 0 | AH31: =IF((MONTH(PUANTAJ!$B$2))=8,' BORDRO HAZIRLIK'!AK31,IF(AI31>1,AI31,(0))) -> 0 | AI31: 0 | AJ31: =IF((MONTH(PUANTAJ!$B$2))=8,' BORDRO HAZIRLIK'!AE31,IF(AK31>1,AK31,(0))) -> 0 | AK31: 0 | AL31: =IF((MONTH(PUANTAJ!$B$2))=9,' BORDRO HAZIRLIK'!AK31,IF(AM31>1,AM31,(0))) -> 0 | AM31: 0 | AN31: =IF((MONTH(PUANTAJ!$B$2))=9,' BORDRO HAZIRLIK'!AE31,IF(AO31>1,AO31,(0))) -> 0 | AO31: 0 | AP31: =IF((MONTH(PUANTAJ!$B$2))=10,' BORDRO HAZIRLIK'!AK31,IF(AQ31>1,AQ31,(0))) -> 0 | AQ31: 0 | AR31: =IF((MONTH(PUANTAJ!$B$2))=10,' BORDRO HAZIRLIK'!AE31,IF(AS31>1,AS31,(0))) -> 0 | AS31: 0 | AT31: =IF((MONTH(PUANTAJ!$B$2))=11,' BORDRO HAZIRLIK'!AK32,IF(AU31>1,AU31,(0))) -> 0 | AU31: 0 | AV31: =IF((MONTH(PUANTAJ!$B$2))=11,' BORDRO HAZIRLIK'!AE32,IF(AW31>1,AW31,(0))) -> 0 | AW31: 0 | AX31: =IF((MONTH(PUANTAJ!$B$2))=12,' BORDRO HAZIRLIK'!AK31,IF(AY31>1,AY31,(0))) -> 0 | AY31: 0 | AZ31: =IF((MONTH(PUANTAJ!$B$2))=12,' BORDRO HAZIRLIK'!AE31,IF(BA31>1,BA31,(0))) -> 0 | BA31: 0 | BB31: 0 | BC31: =' BORDRO HAZIRLIK'!AK31 -> 0 | BD31: 0 | BE31: 0 | BF31: =' BORDRO HAZIRLIK'!AE32 -> 0 | BG31: 0
B32: =PUANTAJ!A63 ->  | C32: =PUANTAJ!B63 ->  | D32: =BD32+'PERSONEL BİLGİ GİRİŞİ'!AC33 -> 0 | E32: =BG32+'PERSONEL BİLGİ GİRİŞİ'!AL33 -> 0 | F32: =IF((MONTH(PUANTAJ!$B$2))=1,' BORDRO HAZIRLIK'!AK32,IF(G32>1,G32,(0))) -> 0 | G32: 0 | H32: =IF((MONTH(PUANTAJ!$B$2))=1,' BORDRO HAZIRLIK'!AE32,IF(I32>1,I32,(0))) -> 0 | I32: 0 | J32: =IF((MONTH(PUANTAJ!$B$2))=2,' BORDRO HAZIRLIK'!AK32,IF(K32>1,K32,(0))) -> 0 | K32: 0 | L32: =IF((MONTH(PUANTAJ!$B$2))=2,' BORDRO HAZIRLIK'!AE32,IF(M32>1,M32,(0))) -> 0 | M32: 0 | N32: =IF((MONTH(PUANTAJ!$B$2))=3,' BORDRO HAZIRLIK'!AK32,IF(O32>1,O32,(0))) -> 0 | O32: 0 | P32: =IF((MONTH(PUANTAJ!$B$2))=3,' BORDRO HAZIRLIK'!AE32,IF(Q32>1,Q32,(0))) -> 0 | Q32: 0 | R32: =IF((MONTH(PUANTAJ!$B$2))=4,' BORDRO HAZIRLIK'!AK32,IF(S32>1,S32,(0))) -> 0 | S32: 0 | T32: =IF((MONTH(PUANTAJ!$B$2))=4,' BORDRO HAZIRLIK'!AE32,IF(U32>1,U32,(0))) -> 0 | U32: 0 | V32: =IF((MONTH(PUANTAJ!$B$2))=5,' BORDRO HAZIRLIK'!AK32,IF(W32>1,W32,(0))) -> 0 | W32: 0 | X32: =IF((MONTH(PUANTAJ!$B$2))=5,' BORDRO HAZIRLIK'!AE32,IF(Y32>1,Y32,(0))) -> 0 | Y32: 0 | Z32: =IF((MONTH(PUANTAJ!$B$2))=6,' BORDRO HAZIRLIK'!AK32,IF(AA32>1,AA32,(0))) -> 0 | AA32: 0 | AB32: =IF((MONTH(PUANTAJ!$B$2))=6,' BORDRO HAZIRLIK'!AE32,IF(AC32>1,AC32,(0))) -> 0 | AC32: 0 | AD32: =IF((MONTH(PUANTAJ!$B$2))=7,' BORDRO HAZIRLIK'!AK32,IF(AE32>1,AE32,(0))) -> 0 | AE32: 0 | AF32: =IF((MONTH(PUANTAJ!$B$2))=7,' BORDRO HAZIRLIK'!AE32,IF(AG32>1,AG32,(0))) -> 0 | AG32: 0 | AH32: =IF((MONTH(PUANTAJ!$B$2))=8,' BORDRO HAZIRLIK'!AK32,IF(AI32>1,AI32,(0))) -> 0 | AI32: 0 | AJ32: =IF((MONTH(PUANTAJ!$B$2))=8,' BORDRO HAZIRLIK'!AE32,IF(AK32>1,AK32,(0))) -> 0 | AK32: 0 | AL32: =IF((MONTH(PUANTAJ!$B$2))=9,' BORDRO HAZIRLIK'!AK32,IF(AM32>1,AM32,(0))) -> 0 | AM32: 0 | AN32: =IF((MONTH(PUANTAJ!$B$2))=9,' BORDRO HAZIRLIK'!AE32,IF(AO32>1,AO32,(0))) -> 0 | AO32: 0 | AP32: =IF((MONTH(PUANTAJ!$B$2))=10,' BORDRO HAZIRLIK'!AK32,IF(AQ32>1,AQ32,(0))) -> 0 | AQ32: 0 | AR32: =IF((MONTH(PUANTAJ!$B$2))=10,' BORDRO HAZIRLIK'!AE32,IF(AS32>1,AS32,(0))) -> 0 | AS32: 0 | AT32: =IF((MONTH(PUANTAJ!$B$2))=11,' BORDRO HAZIRLIK'!AK33,IF(AU32>1,AU32,(0))) -> 0 | AU32: 0 | AV32: =IF((MONTH(PUANTAJ!$B$2))=11,' BORDRO HAZIRLIK'!AE33,IF(AW32>1,AW32,(0))) -> 0 | AW32: 0 | AX32: =IF((MONTH(PUANTAJ!$B$2))=12,' BORDRO HAZIRLIK'!AK32,IF(AY32>1,AY32,(0))) -> 0 | AY32: 0 | AZ32: =IF((MONTH(PUANTAJ!$B$2))=12,' BORDRO HAZIRLIK'!AE32,IF(BA32>1,BA32,(0))) -> 0 | BA32: 0 | BB32: 0 | BC32: =' BORDRO HAZIRLIK'!AK32 -> 0 | BD32: 0 | BE32: 0 | BF32: =' BORDRO HAZIRLIK'!AE33 -> 0 | BG32: 0
B33: =PUANTAJ!A65 ->  | C33: =PUANTAJ!B65 ->  | D33: =BD33+'PERSONEL BİLGİ GİRİŞİ'!AC34 -> 0 | E33: =BG33+'PERSONEL BİLGİ GİRİŞİ'!AL34 -> 0 | F33: =IF((MONTH(PUANTAJ!$B$2))=1,' BORDRO HAZIRLIK'!AK33,IF(G33>1,G33,(0))) -> 0 | G33: 0 | H33: =IF((MONTH(PUANTAJ!$B$2))=1,' BORDRO HAZIRLIK'!AE33,IF(I33>1,I33,(0))) -> 0 | I33: 0 | J33: =IF((MONTH(PUANTAJ!$B$2))=2,' BORDRO HAZIRLIK'!AK33,IF(K33>1,K33,(0))) -> 0 | K33: 0 | L33: =IF((MONTH(PUANTAJ!$B$2))=2,' BORDRO HAZIRLIK'!AE33,IF(M33>1,M33,(0))) -> 0 | M33: 0 | N33: =IF((MONTH(PUANTAJ!$B$2))=3,' BORDRO HAZIRLIK'!AK33,IF(O33>1,O33,(0))) -> 0 | O33: 0 | P33: =IF((MONTH(PUANTAJ!$B$2))=3,' BORDRO HAZIRLIK'!AE33,IF(Q33>1,Q33,(0))) -> 0 | Q33: 0 | R33: =IF((MONTH(PUANTAJ!$B$2))=4,' BORDRO HAZIRLIK'!AK33,IF(S33>1,S33,(0))) -> 0 | S33: 0 | T33: =IF((MONTH(PUANTAJ!$B$2))=4,' BORDRO HAZIRLIK'!AE33,IF(U33>1,U33,(0))) -> 0 | U33: 0 | V33: =IF((MONTH(PUANTAJ!$B$2))=5,' BORDRO HAZIRLIK'!AK33,IF(W33>1,W33,(0))) -> 0 | W33: 0 | X33: =IF((MONTH(PUANTAJ!$B$2))=5,' BORDRO HAZIRLIK'!AE33,IF(Y33>1,Y33,(0))) -> 0 | Y33: 0 | Z33: =IF((MONTH(PUANTAJ!$B$2))=6,' BORDRO HAZIRLIK'!AK33,IF(AA33>1,AA33,(0))) -> 0 | AA33: 0 | AB33: =IF((MONTH(PUANTAJ!$B$2))=6,' BORDRO HAZIRLIK'!AE33,IF(AC33>1,AC33,(0))) -> 0 | AC33: 0 | AD33: =IF((MONTH(PUANTAJ!$B$2))=7,' BORDRO HAZIRLIK'!AK33,IF(AE33>1,AE33,(0))) -> 0 | AE33: 0 | AF33: =IF((MONTH(PUANTAJ!$B$2))=7,' BORDRO HAZIRLIK'!AE33,IF(AG33>1,AG33,(0))) -> 0 | AG33: 0 | AH33: =IF((MONTH(PUANTAJ!$B$2))=8,' BORDRO HAZIRLIK'!AK33,IF(AI33>1,AI33,(0))) -> 0 | AI33: 0 | AJ33: =IF((MONTH(PUANTAJ!$B$2))=8,' BORDRO HAZIRLIK'!AE33,IF(AK33>1,AK33,(0))) -> 0 | AK33: 0 | AL33: =IF((MONTH(PUANTAJ!$B$2))=9,' BORDRO HAZIRLIK'!AK33,IF(AM33>1,AM33,(0))) -> 0 | AM33: 0 | AN33: =IF((MONTH(PUANTAJ!$B$2))=9,' BORDRO HAZIRLIK'!AE33,IF(AO33>1,AO33,(0))) -> 0 | AO33: 0 | AP33: =IF((MONTH(PUANTAJ!$B$2))=10,' BORDRO HAZIRLIK'!AK33,IF(AQ33>1,AQ33,(0))) -> 0 | AQ33: 0 | AR33: =IF((MONTH(PUANTAJ!$B$2))=10,' BORDRO HAZIRLIK'!AE33,IF(AS33>1,AS33,(0))) -> 0 | AS33: 0 | AT33: =IF((MONTH(PUANTAJ!$B$2))=11,' BORDRO HAZIRLIK'!AK34,IF(AU33>1,AU33,(0))) -> 0 | AU33: 0 | AV33: =IF((MONTH(PUANTAJ!$B$2))=11,' BORDRO HAZIRLIK'!AE34,IF(AW33>1,AW33,(0))) -> 0 | AW33: 0 | AX33: =IF((MONTH(PUANTAJ!$B$2))=12,' BORDRO HAZIRLIK'!AK33,IF(AY33>1,AY33,(0))) -> 0 | AY33: 0 | AZ33: =IF((MONTH(PUANTAJ!$B$2))=12,' BORDRO HAZIRLIK'!AE33,IF(BA33>1,BA33,(0))) -> 0 | BA33: 0 | BB33: 0 | BC33: =' BORDRO HAZIRLIK'!AK33 -> 0 | BD33: 0 | BE33: 0 | BF33: =' BORDRO HAZIRLIK'!AE34 -> 0 | BG33: 0
B34: =PUANTAJ!A67 ->  | C34: =PUANTAJ!B67 ->  | D34: =BD34+'PERSONEL BİLGİ GİRİŞİ'!AC35 -> 0 | E34: =BG34+'PERSONEL BİLGİ GİRİŞİ'!AL35 -> 0 | F34: =IF((MONTH(PUANTAJ!$B$2))=1,' BORDRO HAZIRLIK'!AK34,IF(G34>1,G34,(0))) -> 0 | G34: 0 | H34: =IF((MONTH(PUANTAJ!$B$2))=1,' BORDRO HAZIRLIK'!AE34,IF(I34>1,I34,(0))) -> 0 | I34: 0 | J34: =IF((MONTH(PUANTAJ!$B$2))=2,' BORDRO HAZIRLIK'!AK34,IF(K34>1,K34,(0))) -> 0 | K34: 0 | L34: =IF((MONTH(PUANTAJ!$B$2))=2,' BORDRO HAZIRLIK'!AE34,IF(M34>1,M34,(0))) -> 0 | M34: 0 | N34: =IF((MONTH(PUANTAJ!$B$2))=3,' BORDRO HAZIRLIK'!AK34,IF(O34>1,O34,(0))) -> 0 | O34: 0 | P34: =IF((MONTH(PUANTAJ!$B$2))=3,' BORDRO HAZIRLIK'!AE34,IF(Q34>1,Q34,(0))) -> 0 | Q34: 0 | R34: =IF((MONTH(PUANTAJ!$B$2))=4,' BORDRO HAZIRLIK'!AK34,IF(S34>1,S34,(0))) -> 0 | S34: 0 | T34: =IF((MONTH(PUANTAJ!$B$2))=4,' BORDRO HAZIRLIK'!AE34,IF(U34>1,U34,(0))) -> 0 | U34: 0 | V34: =IF((MONTH(PUANTAJ!$B$2))=5,' BORDRO HAZIRLIK'!AK34,IF(W34>1,W34,(0))) -> 0 | W34: 0 | X34: =IF((MONTH(PUANTAJ!$B$2))=5,' BORDRO HAZIRLIK'!AE34,IF(Y34>1,Y34,(0))) -> 0 | Y34: 0 | Z34: =IF((MONTH(PUANTAJ!$B$2))=6,' BORDRO HAZIRLIK'!AK34,IF(AA34>1,AA34,(0))) -> 0 | AA34: 0 | AB34: =IF((MONTH(PUANTAJ!$B$2))=6,' BORDRO HAZIRLIK'!AE34,IF(AC34>1,AC34,(0))) -> 0 | AC34: 0 | AD34: =IF((MONTH(PUANTAJ!$B$2))=7,' BORDRO HAZIRLIK'!AK34,IF(AE34>1,AE34,(0))) -> 0 | AE34: 0 | AF34: =IF((MONTH(PUANTAJ!$B$2))=7,' BORDRO HAZIRLIK'!AE34,IF(AG34>1,AG34,(0))) -> 0 | AG34: 0 | AH34: =IF((MONTH(PUANTAJ!$B$2))=8,' BORDRO HAZIRLIK'!AK34,IF(AI34>1,AI34,(0))) -> 0 | AI34: 0 | AJ34: =IF((MONTH(PUANTAJ!$B$2))=8,' BORDRO HAZIRLIK'!AE34,IF(AK34>1,AK34,(0))) -> 0 | AK34: 0 | AL34: =IF((MONTH(PUANTAJ!$B$2))=9,' BORDRO HAZIRLIK'!AK34,IF(AM34>1,AM34,(0))) -> 0 | AM34: 0 | AN34: =IF((MONTH(PUANTAJ!$B$2))=9,' BORDRO HAZIRLIK'!AE34,IF(AO34>1,AO34,(0))) -> 0 | AO34: 0 | AP34: =IF((MONTH(PUANTAJ!$B$2))=10,' BORDRO HAZIRLIK'!AK34,IF(AQ34>1,AQ34,(0))) -> 0 | AQ34: 0 | AR34: =IF((MONTH(PUANTAJ!$B$2))=10,' BORDRO HAZIRLIK'!AE34,IF(AS34>1,AS34,(0))) -> 0 | AS34: 0 | AT34: =IF((MONTH(PUANTAJ!$B$2))=11,' BORDRO HAZIRLIK'!AK35,IF(AU34>1,AU34,(0))) -> 0 | AU34: 0 | AV34: =IF((MONTH(PUANTAJ!$B$2))=11,' BORDRO HAZIRLIK'!AE35,IF(AW34>1,AW34,(0))) -> 0 | AW34: 0 | AX34: =IF((MONTH(PUANTAJ!$B$2))=12,' BORDRO HAZIRLIK'!AK34,IF(AY34>1,AY34,(0))) -> 0 | AY34: 0 | AZ34: =IF((MONTH(PUANTAJ!$B$2))=12,' BORDRO HAZIRLIK'!AE34,IF(BA34>1,BA34,(0))) -> 0 | BA34: 0 | BB34: 0 | BC34: =' BORDRO HAZIRLIK'!AK34 -> 0 | BD34: 0 | BE34: 0 | BF34: =' BORDRO HAZIRLIK'!AE35 -> 0 | BG34: 0
B35: =PUANTAJ!A69 ->  | C35: =PUANTAJ!B69 ->  | D35: =BD35+'PERSONEL BİLGİ GİRİŞİ'!AC36 -> 0 | E35: =BG35+'PERSONEL BİLGİ GİRİŞİ'!AL36 -> 0 | F35: =IF((MONTH(PUANTAJ!$B$2))=1,' BORDRO HAZIRLIK'!AK35,IF(G35>1,G35,(0))) -> 0 | G35: 0 | H35: =IF((MONTH(PUANTAJ!$B$2))=1,' BORDRO HAZIRLIK'!AE35,IF(I35>1,I35,(0))) -> 0 | I35: 0 | J35: =IF((MONTH(PUANTAJ!$B$2))=2,' BORDRO HAZIRLIK'!AK35,IF(K35>1,K35,(0))) -> 0 | K35: 0 | L35: =IF((MONTH(PUANTAJ!$B$2))=2,' BORDRO HAZIRLIK'!AE35,IF(M35>1,M35,(0))) -> 0 | M35: 0 | N35: =IF((MONTH(PUANTAJ!$B$2))=3,' BORDRO HAZIRLIK'!AK35,IF(O35>1,O35,(0))) -> 0 | O35: 0 | P35: =IF((MONTH(PUANTAJ!$B$2))=3,' BORDRO HAZIRLIK'!AE35,IF(Q35>1,Q35,(0))) -> 0 | Q35: 0 | R35: =IF((MONTH(PUANTAJ!$B$2))=4,' BORDRO HAZIRLIK'!AK35,IF(S35>1,S35,(0))) -> 0 | S35: 0 | T35: =IF((MONTH(PUANTAJ!$B$2))=4,' BORDRO HAZIRLIK'!AE35,IF(U35>1,U35,(0))) -> 0 | U35: 0 | V35: =IF((MONTH(PUANTAJ!$B$2))=5,' BORDRO HAZIRLIK'!AK35,IF(W35>1,W35,(0))) -> 0 | W35: 0 | X35: =IF((MONTH(PUANTAJ!$B$2))=5,' BORDRO HAZIRLIK'!AE35,IF(Y35>1,Y35,(0))) -> 0 | Y35: 0 | Z35: =IF((MONTH(PUANTAJ!$B$2))=6,' BORDRO HAZIRLIK'!AK35,IF(AA35>1,AA35,(0))) -> 0 | AA35: 0 | AB35: =IF((MONTH(PUANTAJ!$B$2))=6,' BORDRO HAZIRLIK'!AE35,IF(AC35>1,AC35,(0))) -> 0 | AC35: 0 | AD35: =IF((MONTH(PUANTAJ!$B$2))=7,' BORDRO HAZIRLIK'!AK35,IF(AE35>1,AE35,(0))) -> 0 | AE35: 0 | AF35: =IF((MONTH(PUANTAJ!$B$2))=7,' BORDRO HAZIRLIK'!AE35,IF(AG35>1,AG35,(0))) -> 0 | AG35: 0 | AH35: =IF((MONTH(PUANTAJ!$B$2))=8,' BORDRO HAZIRLIK'!AK35,IF(AI35>1,AI35,(0))) -> 0 | AI35: 0 | AJ35: =IF((MONTH(PUANTAJ!$B$2))=8,' BORDRO HAZIRLIK'!AE35,IF(AK35>1,AK35,(0))) -> 0 | AK35: 0 | AL35: =IF((MONTH(PUANTAJ!$B$2))=9,' BORDRO HAZIRLIK'!AK35,IF(AM35>1,AM35,(0))) -> 0 | AM35: 0 | AN35: =IF((MONTH(PUANTAJ!$B$2))=9,' BORDRO HAZIRLIK'!AE35,IF(AO35>1,AO35,(0))) -> 0 | AO35: 0 | AP35: =IF((MONTH(PUANTAJ!$B$2))=10,' BORDRO HAZIRLIK'!AK35,IF(AQ35>1,AQ35,(0))) -> 0 | AQ35: 0 | AR35: =IF((MONTH(PUANTAJ!$B$2))=10,' BORDRO HAZIRLIK'!AE35,IF(AS35>1,AS35,(0))) -> 0 | AS35: 0 | AT35: =IF((MONTH(PUANTAJ!$B$2))=11,' BORDRO HAZIRLIK'!AK36,IF(AU35>1,AU35,(0))) -> 0 | AU35: 0 | AV35: =IF((MONTH(PUANTAJ!$B$2))=11,' BORDRO HAZIRLIK'!AE36,IF(AW35>1,AW35,(0))) -> 0 | AW35: 0 | AX35: =IF((MONTH(PUANTAJ!$B$2))=12,' BORDRO HAZIRLIK'!AK35,IF(AY35>1,AY35,(0))) -> 0 | AY35: 0 | AZ35: =IF((MONTH(PUANTAJ!$B$2))=12,' BORDRO HAZIRLIK'!AE35,IF(BA35>1,BA35,(0))) -> 0 | BA35: 0 | BB35: 0 | BC35: =' BORDRO HAZIRLIK'!AK35 -> 0 | BD35: 0 | BE35: 0 | BF35: =' BORDRO HAZIRLIK'!AE36 -> 0 | BG35: 0
B36: =PUANTAJ!A71 ->  | C36: =PUANTAJ!B71 ->  | D36: =BD36+'PERSONEL BİLGİ GİRİŞİ'!AC37 -> 0 | E36: =BG36+'PERSONEL BİLGİ GİRİŞİ'!AL37 -> 0 | F36: =IF((MONTH(PUANTAJ!$B$2))=1,' BORDRO HAZIRLIK'!AK36,IF(G36>1,G36,(0))) -> 0 | G36: 0 | H36: =IF((MONTH(PUANTAJ!$B$2))=1,' BORDRO HAZIRLIK'!AE36,IF(I36>1,I36,(0))) -> 0 | I36: 0 | J36: =IF((MONTH(PUANTAJ!$B$2))=2,' BORDRO HAZIRLIK'!AK36,IF(K36>1,K36,(0))) -> 0 | K36: 0 | L36: =IF((MONTH(PUANTAJ!$B$2))=2,' BORDRO HAZIRLIK'!AE36,IF(M36>1,M36,(0))) -> 0 | M36: 0 | N36: =IF((MONTH(PUANTAJ!$B$2))=3,' BORDRO HAZIRLIK'!AK36,IF(O36>1,O36,(0))) -> 0 | O36: 0 | P36: =IF((MONTH(PUANTAJ!$B$2))=3,' BORDRO HAZIRLIK'!AE36,IF(Q36>1,Q36,(0))) -> 0 | Q36: 0 | R36: =IF((MONTH(PUANTAJ!$B$2))=4,' BORDRO HAZIRLIK'!AK36,IF(S36>1,S36,(0))) -> 0 | S36: 0 | T36: =IF((MONTH(PUANTAJ!$B$2))=4,' BORDRO HAZIRLIK'!AE36,IF(U36>1,U36,(0))) -> 0 | U36: 0 | V36: =IF((MONTH(PUANTAJ!$B$2))=5,' BORDRO HAZIRLIK'!AK36,IF(W36>1,W36,(0))) -> 0 | W36: 0 | X36: =IF((MONTH(PUANTAJ!$B$2))=5,' BORDRO HAZIRLIK'!AE36,IF(Y36>1,Y36,(0))) -> 0 | Y36: 0 | Z36: =IF((MONTH(PUANTAJ!$B$2))=6,' BORDRO HAZIRLIK'!AK36,IF(AA36>1,AA36,(0))) -> 0 | AA36: 0 | AB36: =IF((MONTH(PUANTAJ!$B$2))=6,' BORDRO HAZIRLIK'!AE36,IF(AC36>1,AC36,(0))) -> 0 | AC36: 0 | AD36: =IF((MONTH(PUANTAJ!$B$2))=7,' BORDRO HAZIRLIK'!AK36,IF(AE36>1,AE36,(0))) -> 0 | AE36: 0 | AF36: =IF((MONTH(PUANTAJ!$B$2))=7,' BORDRO HAZIRLIK'!AE36,IF(AG36>1,AG36,(0))) -> 0 | AG36: 0 | AH36: =IF((MONTH(PUANTAJ!$B$2))=8,' BORDRO HAZIRLIK'!AK36,IF(AI36>1,AI36,(0))) -> 0 | AI36: 0 | AJ36: =IF((MONTH(PUANTAJ!$B$2))=8,' BORDRO HAZIRLIK'!AE36,IF(AK36>1,AK36,(0))) -> 0 | AK36: 0 | AL36: =IF((MONTH(PUANTAJ!$B$2))=9,' BORDRO HAZIRLIK'!AK36,IF(AM36>1,AM36,(0))) -> 0 | AM36: 0 | AN36: =IF((MONTH(PUANTAJ!$B$2))=9,' BORDRO HAZIRLIK'!AE36,IF(AO36>1,AO36,(0))) -> 0 | AO36: 0 | AP36: =IF((MONTH(PUANTAJ!$B$2))=10,' BORDRO HAZIRLIK'!AK36,IF(AQ36>1,AQ36,(0))) -> 0 | AQ36: 0 | AR36: =IF((MONTH(PUANTAJ!$B$2))=10,' BORDRO HAZIRLIK'!AE36,IF(AS36>1,AS36,(0))) -> 0 | AS36: 0 | AT36: =IF((MONTH(PUANTAJ!$B$2))=11,' BORDRO HAZIRLIK'!AK37,IF(AU36>1,AU36,(0))) -> 0 | AU36: 0 | AV36: =IF((MONTH(PUANTAJ!$B$2))=11,' BORDRO HAZIRLIK'!AE37,IF(AW36>1,AW36,(0))) -> 0 | AW36: 0 | AX36: =IF((MONTH(PUANTAJ!$B$2))=12,' BORDRO HAZIRLIK'!AK36,IF(AY36>1,AY36,(0))) -> 0 | AY36: 0 | AZ36: =IF((MONTH(PUANTAJ!$B$2))=12,' BORDRO HAZIRLIK'!AE36,IF(BA36>1,BA36,(0))) -> 0 | BA36: 0 | BB36: 0 | BC36: =' BORDRO HAZIRLIK'!AK36 -> 0 | BD36: 0 | BE36: 0 | BF36: =' BORDRO HAZIRLIK'!AE37 -> 0 | BG36: 0
B37: =PUANTAJ!A73 ->  | C37: =PUANTAJ!B73 ->  | D37: =BD37+'PERSONEL BİLGİ GİRİŞİ'!AC38 -> 0 | E37: =BG37+'PERSONEL BİLGİ GİRİŞİ'!AL38 -> 0 | F37: =IF((MONTH(PUANTAJ!$B$2))=1,' BORDRO HAZIRLIK'!AK37,IF(G37>1,G37,(0))) -> 0 | G37: 0 | H37: =IF((MONTH(PUANTAJ!$B$2))=1,' BORDRO HAZIRLIK'!AE37,IF(I37>1,I37,(0))) -> 0 | I37: 0 | J37: =IF((MONTH(PUANTAJ!$B$2))=2,' BORDRO HAZIRLIK'!AK37,IF(K37>1,K37,(0))) -> 0 | K37: 0 | L37: =IF((MONTH(PUANTAJ!$B$2))=2,' BORDRO HAZIRLIK'!AE37,IF(M37>1,M37,(0))) -> 0 | M37: 0 | N37: =IF((MONTH(PUANTAJ!$B$2))=3,' BORDRO HAZIRLIK'!AK37,IF(O37>1,O37,(0))) -> 0 | O37: 0 | P37: =IF((MONTH(PUANTAJ!$B$2))=3,' BORDRO HAZIRLIK'!AE37,IF(Q37>1,Q37,(0))) -> 0 | Q37: 0 | R37: =IF((MONTH(PUANTAJ!$B$2))=4,' BORDRO HAZIRLIK'!AK37,IF(S37>1,S37,(0))) -> 0 | S37: 0 | T37: =IF((MONTH(PUANTAJ!$B$2))=4,' BORDRO HAZIRLIK'!AE37,IF(U37>1,U37,(0))) -> 0 | U37: 0 | V37: =IF((MONTH(PUANTAJ!$B$2))=5,' BORDRO HAZIRLIK'!AK37,IF(W37>1,W37,(0))) -> 0 | W37: 0 | X37: =IF((MONTH(PUANTAJ!$B$2))=5,' BORDRO HAZIRLIK'!AE37,IF(Y37>1,Y37,(0))) -> 0 | Y37: 0 | Z37: =IF((MONTH(PUANTAJ!$B$2))=6,' BORDRO HAZIRLIK'!AK37,IF(AA37>1,AA37,(0))) -> 0 | AA37: 0 | AB37: =IF((MONTH(PUANTAJ!$B$2))=6,' BORDRO HAZIRLIK'!AE37,IF(AC37>1,AC37,(0))) -> 0 | AC37: 0 | AD37: =IF((MONTH(PUANTAJ!$B$2))=7,' BORDRO HAZIRLIK'!AK37,IF(AE37>1,AE37,(0))) -> 0 | AE37: 0 | AF37: =IF((MONTH(PUANTAJ!$B$2))=7,' BORDRO HAZIRLIK'!AE37,IF(AG37>1,AG37,(0))) -> 0 | AG37: 0 | AH37: =IF((MONTH(PUANTAJ!$B$2))=8,' BORDRO HAZIRLIK'!AK37,IF(AI37>1,AI37,(0))) -> 0 | AI37: 0 | AJ37: =IF((MONTH(PUANTAJ!$B$2))=8,' BORDRO HAZIRLIK'!AE37,IF(AK37>1,AK37,(0))) -> 0 | AK37: 0 | AL37: =IF((MONTH(PUANTAJ!$B$2))=9,' BORDRO HAZIRLIK'!AK37,IF(AM37>1,AM37,(0))) -> 0 | AM37: 0 | AN37: =IF((MONTH(PUANTAJ!$B$2))=9,' BORDRO HAZIRLIK'!AE37,IF(AO37>1,AO37,(0))) -> 0 | AO37: 0 | AP37: =IF((MONTH(PUANTAJ!$B$2))=10,' BORDRO HAZIRLIK'!AK37,IF(AQ37>1,AQ37,(0))) -> 0 | AQ37: 0 | AR37: =IF((MONTH(PUANTAJ!$B$2))=10,' BORDRO HAZIRLIK'!AE37,IF(AS37>1,AS37,(0))) -> 0 | AS37: 0 | AT37: =IF((MONTH(PUANTAJ!$B$2))=11,' BORDRO HAZIRLIK'!AK38,IF(AU37>1,AU37,(0))) -> 0 | AU37: 0 | AV37: =IF((MONTH(PUANTAJ!$B$2))=11,' BORDRO HAZIRLIK'!AE38,IF(AW37>1,AW37,(0))) -> 0 | AW37: 0 | AX37: =IF((MONTH(PUANTAJ!$B$2))=12,' BORDRO HAZIRLIK'!AK37,IF(AY37>1,AY37,(0))) -> 0 | AY37: 0 | AZ37: =IF((MONTH(PUANTAJ!$B$2))=12,' BORDRO HAZIRLIK'!AE37,IF(BA37>1,BA37,(0))) -> 0 | BA37: 0 | BB37: =G37+K37+O37+S37+W37+AA37+AE37+AI37+AM37+AQ37+AU37+AY37 -> 0 | BC37: =' BORDRO HAZIRLIK'!AK37 -> 0 | BD37: =BB37+BC37 -> 0 | BE37: =I37+M37+Q37+U37+Y37+AC37+AG37+AK37+AO37+AS37+AW37+BA37 -> 0 | BF37: =' BORDRO HAZIRLIK'!AE38 -> 0 | BG37: =BE37+BF37 -> 0
B38: =PUANTAJ!A75 ->  | C38: =PUANTAJ!B75 ->  | D38: =BD38+'PERSONEL BİLGİ GİRİŞİ'!AC39 -> 0 | E38: =BG38+'PERSONEL BİLGİ GİRİŞİ'!AL39 -> 0 | F38: =IF((MONTH(PUANTAJ!$B$2))=1,' BORDRO HAZIRLIK'!AK38,IF(G38>1,G38,(0))) -> 0 | G38: 0 | H38: =IF((MONTH(PUANTAJ!$B$2))=1,' BORDRO HAZIRLIK'!AE38,IF(I38>1,I38,(0))) -> 0 | I38: 0 | J38: =IF((MONTH(PUANTAJ!$B$2))=2,' BORDRO HAZIRLIK'!AK38,IF(K38>1,K38,(0))) -> 0 | K38: 0 | L38: =IF((MONTH(PUANTAJ!$B$2))=2,' BORDRO HAZIRLIK'!AE38,IF(M38>1,M38,(0))) -> 0 | M38: 0 | N38: =IF((MONTH(PUANTAJ!$B$2))=3,' BORDRO HAZIRLIK'!AK38,IF(O38>1,O38,(0))) -> 0 | O38: 0 | P38: =IF((MONTH(PUANTAJ!$B$2))=3,' BORDRO HAZIRLIK'!AE38,IF(Q38>1,Q38,(0))) -> 0 | Q38: 0 | R38: =IF((MONTH(PUANTAJ!$B$2))=4,' BORDRO HAZIRLIK'!AK38,IF(S38>1,S38,(0))) -> 0 | S38: 0 | T38: =IF((MONTH(PUANTAJ!$B$2))=4,' BORDRO HAZIRLIK'!AE38,IF(U38>1,U38,(0))) -> 0 | U38: 0 | V38: =IF((MONTH(PUANTAJ!$B$2))=5,' BORDRO HAZIRLIK'!AK38,IF(W38>1,W38,(0))) -> 0 | W38: 0 | X38: =IF((MONTH(PUANTAJ!$B$2))=5,' BORDRO HAZIRLIK'!AE38,IF(Y38>1,Y38,(0))) -> 0 | Y38: 0 | Z38: =IF((MONTH(PUANTAJ!$B$2))=6,' BORDRO HAZIRLIK'!AK38,IF(AA38>1,AA38,(0))) -> 0 | AA38: 0 | AB38: =IF((MONTH(PUANTAJ!$B$2))=6,' BORDRO HAZIRLIK'!AE38,IF(AC38>1,AC38,(0))) -> 0 | AC38: 0 | AD38: =IF((MONTH(PUANTAJ!$B$2))=7,' BORDRO HAZIRLIK'!AK38,IF(AE38>1,AE38,(0))) -> 0 | AE38: 0 | AF38: =IF((MONTH(PUANTAJ!$B$2))=7,' BORDRO HAZIRLIK'!AE38,IF(AG38>1,AG38,(0))) -> 0 | AG38: 0 | AH38: =IF((MONTH(PUANTAJ!$B$2))=8,' BORDRO HAZIRLIK'!AK38,IF(AI38>1,AI38,(0))) -> 0 | AI38: 0 | AJ38: =IF((MONTH(PUANTAJ!$B$2))=8,' BORDRO HAZIRLIK'!AE38,IF(AK38>1,AK38,(0))) -> 0 | AK38: 0 | AL38: =IF((MONTH(PUANTAJ!$B$2))=9,' BORDRO HAZIRLIK'!AK38,IF(AM38>1,AM38,(0))) -> 0 | AM38: 0 | AN38: =IF((MONTH(PUANTAJ!$B$2))=9,' BORDRO HAZIRLIK'!AE38,IF(AO38>1,AO38,(0))) -> 0 | AO38: 0 | AP38: =IF((MONTH(PUANTAJ!$B$2))=10,' BORDRO HAZIRLIK'!AK38,IF(AQ38>1,AQ38,(0))) -> 0 | AQ38: 0 | AR38: =IF((MONTH(PUANTAJ!$B$2))=10,' BORDRO HAZIRLIK'!AE38,IF(AS38>1,AS38,(0))) -> 0 | AS38: 0 | AT38: =IF((MONTH(PUANTAJ!$B$2))=11,' BORDRO HAZIRLIK'!AK39,IF(AU38>1,AU38,(0))) -> 0 | AU38: 0 | AV38: =IF((MONTH(PUANTAJ!$B$2))=11,' BORDRO HAZIRLIK'!AE39,IF(AW38>1,AW38,(0))) -> 0 | AW38: 0 | AX38: =IF((MONTH(PUANTAJ!$B$2))=12,' BORDRO HAZIRLIK'!AK38,IF(AY38>1,AY38,(0))) -> 0 | AY38: 0 | AZ38: =IF((MONTH(PUANTAJ!$B$2))=12,' BORDRO HAZIRLIK'!AE38,IF(BA38>1,BA38,(0))) -> 0 | BA38: 0 | BB38: 0 | BC38: =' BORDRO HAZIRLIK'!AK38 -> 0 | BD38: 0 | BE38: 0 | BF38: =' BORDRO HAZIRLIK'!AE39 -> 0 | BG38: 0
C39: =SUM(C4:C38) -> 0 | D39: =BD39+'PERSONEL BİLGİ GİRİŞİ'!AC40 -> 18779.48 | E39: =BG39+'PERSONEL BİLGİ GİRİŞİ'!AL40 -> 17002.12 | F39: =SUM(F4:F38) ->  | G39: 0 | H39: =SUM(H4:H38) ->  | I39: 0 | J39: =SUM(J4:J38) -> 0 | K39: 0 | L39: =SUM(L4:L38) -> 0 | M39: 0 | N39: =SUM(N4:N38) -> 0 | O39: 0 | P39: =SUM(P4:P38) -> 0 | Q39: 0 | R39: =SUM(R4:R38) -> 0 | S39: 0 | T39: =SUM(T4:T38) -> 0 | U39: 0 | V39: =SUM(V4:V38) -> 0 | W39: 0 | X39: =SUM(X4:X38) -> 0 | Y39: 0 | Z39: =SUM(Z4:Z38) -> 0 | AA39: 0 | AB39: =SUM(AB4:AB38) -> 0 | AC39: 0 | AD39: =SUM(AD4:AD38) -> 0 | AE39: 0 | AF39: =SUM(AF4:AF38) -> 0 | AG39: 0 | AH39: =SUM(AH4:AH38) -> 0 | AI39: 0 | AJ39: =SUM(AJ4:AJ38) -> 0 | AK39: 0 | AL39: =SUM(AL4:AL38) -> 0 | AM39: 0 | AN39: =SUM(AN4:AN38) -> 0 | AO39: 0 | AP39: =SUM(AP4:AP38) -> 0 | AQ39: 0 | AR39: =SUM(AR4:AR38) -> 0 | AS39: 0 | AT39: =IF((MONTH(PUANTAJ!$B$2))=11,' BORDRO HAZIRLIK'!AK40,IF(AU39>1,AU39,(0))) -> 0 | AU39: 0 | AV39: =IF((MONTH(PUANTAJ!$B$2))=11,' BORDRO HAZIRLIK'!AE40,IF(AW39>1,AW39,(0))) -> 0 | AW39: 0 | AX39: =SUM(AX4:AX38) -> 0 | AY39: 0 | AZ39: =SUM(AZ4:AZ38) -> 0 | BA39: 0 | BB39: =SUM(BB4:BB38) -> 0 | BC39: 18779.48 | BD39: 18779.48 | BE39: 0 | BF39: 17002.12 | BG39: 17002.12
G40: 0 | I40: 0 | K40: 0 | M40: 0 | O40: 0 | Q40: 0 | S40: 0 | U40: 0 | W40: 0 | Y40: 0 | AA40: 0 | AC40: 0 | AE40: 0 | AG40: 0 | AI40: 0 | AK40: 0 | AM40: 0 | AO40: 0 | AQ40: 0 | AS40: 0 | AU40: 0 | AW40: 0 | AY40: 0
G41: 0 | I41: 0 | K41: 0 | M41: 0 | O41: 0 | Q41: 0 | S41: 0 | U41: 0 | W41: 0 | Y41: 0 | AA41: 0 | AC41: 0 | AE41: 0 | AG41: 0 | AI41: 0 | AK41: 0 | AM41: 0 | AO41: 0 | AQ41: 0 | AS41: 0 | AU41: 0 | AW41: 0 | AY41: 0
G42: 0 | I42: 0 | K42: 0 | M42: 0 | O42: 0 | Q42: 0 | S42: 0 | U42: 0 | W42: 0 | Y42: 0 | AA42: 0 | AC42: 0 | AE42: 0 | AG42: 0 | AI42: 0 | AK42: 0 | AM42: 0 | AO42: 0 | AQ42: 0 | AS42: 0 | AU42: 0 | AW42: 0 | AY42: 0
G43: 0 | I43: 0 | K43: 0 | M43: 0 | O43: 0 | Q43: 0 | S43: 0 | U43: 0 | W43: 0 | Y43: 0 | AA43: 0 | AC43: 0 | AE43: 0 | AG43: 0 | AI43: 0 | AK43: 0 | AM43: 0 | AO43: 0 | AQ43: 0 | AS43: 0 | AU43: 0 | AW43: 0 | AY43: 0
G44: 0 | I44: 0 | K44: 0 | M44: 0 | O44: 0 | Q44: 0 | S44: 0 | U44: 0 | W44: 0 | Y44: 0 | AA44: 0 | AC44: 0 | AE44: 0 | AG44: 0 | AI44: 0 | AK44: 0 | AM44: 0 | AO44: 0 | AQ44: 0 | AS44: 0 | AU44: 0 | AW44: 0 | AY44: 0
G45: 0 | I45: 0 | K45: 0 | M45: 0 | O45: 0 | Q45: 0 | S45: 0 | U45: 0 | W45: 0 | Y45: 0 | AA45: 0 | AC45: 0 | AE45: 0 | AG45: 0 | AI45: 0 | AK45: 0 | AM45: 0 | AO45: 0 | AQ45: 0 | AS45: 0 | AU45: 0 | AW45: 0 | AY45: 0
G46: 0 | I46: 0 | K46: 0 | M46: 0 | O46: 0 | Q46: 0 | S46: 0 | U46: 0 | W46: 0 | Y46: 0 | AA46: 0 | AC46: 0 | AE46: 0 | AG46: 0 | AI46: 0 | AK46: 0 | AM46: 0 | AO46: 0 | AQ46: 0 | AS46: 0 | AU46: 0 | AW46: 0 | AY46: 0
G47: 0 | I47: 0 | K47: 0 | M47: 0 | O47: 0 | Q47: 0 | S47: 0 | U47: 0 | W47: 0 | Y47: 0 | AA47: 0 | AC47: 0 | AE47: 0 | AG47: 0 | AI47: 0 | AK47: 0 | AM47: 0 | AO47: 0 | AQ47: 0 | AS47: 0 | AU47: 0 | AW47: 0 | AY47: 0
G48: 0 | I48: 0 | K48: 0 | M48: 0 | O48: 0 | Q48: 0 | S48: 0 | U48: 0 | W48: 0 | Y48: 0 | AA48: 0 | AC48: 0 | AE48: 0 | AG48: 0 | AI48: 0 | AK48: 0 | AM48: 0 | AO48: 0 | AQ48: 0 | AS48: 0 | AU48: 0 | AW48: 0 | AY48: 0
G49: 0 | I49: 0 | K49: 0 | M49: 0 | O49: 0 | Q49: 0 | S49: 0 | U49: 0 | W49: 0 | Y49: 0 | AA49: 0 | AC49: 0 | AE49: 0 | AG49: 0 | AI49: 0 | AK49: 0 | AM49: 0 | AO49: 0 | AQ49: 0 | AS49: 0 | AU49: 0 | AW49: 0 | AY49: 0
G50: 0 | I50: 0 | K50: 0 | M50: 0 | O50: 0 | Q50: 0 | S50: 0 | U50: 0 | W50: 0 | Y50: 0 | AA50: 0 | AC50: 0 | AE50: 0 | AG50: 0 | AI50: 0 | AK50: 0 | AM50: 0 | AO50: 0 | AQ50: 0 | AS50: 0 | AU50: 0 | AW50: 0 | AY50: 0
G51: 0 | I51: 0 | K51: 0 | M51: 0 | O51: 0 | Q51: 0 | S51: 0 | U51: 0 | W51: 0 | Y51: 0 | AA51: 0 | AC51: 0 | AE51: 0 | AG51: 0 | AI51: 0 | AK51: 0 | AM51: 0 | AO51: 0 | AQ51: 0 | AS51: 0 | AU51: 0 | AW51: 0 | AY51: 0
G52: 0 | I52: 0 | K52: 0 | M52: 0 | O52: 0 | Q52: 0 | S52: 0 | U52: 0 | W52: 0 | Y52: 0 | AA52: 0 | AC52: 0 | AE52: 0 | AG52: 0 | AI52: 0 | AK52: 0 | AM52: 0 | AO52: 0 | AQ52: 0 | AS52: 0 | AU52: 0 | AW52: 0 | AY52: 0
G53: 0 | I53: 0 | K53: 0 | M53: 0 | O53: 0 | Q53: 0 | S53: 0 | U53: 0 | W53: 0 | Y53: 0 | AA53: 0 | AC53: 0 | AE53: 0 | AG53: 0 | AI53: 0 | AK53: 0 | AM53: 0 | AO53: 0 | AQ53: 0 | AS53: 0 | AU53: 0 | AW53: 0 | AY53: 0
G54: 0 | I54: 0 | K54: 0 | M54: 0 | O54: 0 | Q54: 0 | S54: 0 | U54: 0 | W54: 0 | Y54: 0 | AA54: 0 | AC54: 0 | AE54: 0 | AG54: 0 | AI54: 0 | AK54: 0 | AM54: 0 | AO54: 0 | AQ54: 0 | AS54: 0 | AU54: 0 | AW54: 0 | AY54: 0
G55: 0 | I55: 0 | K55: 0 | M55: 0 | O55: 0 | Q55: 0 | S55: 0 | U55: 0 | W55: 0 | Y55: 0 | AA55: 0 | AC55: 0 | AE55: 0 | AG55: 0 | AI55: 0 | AK55: 0 | AM55: 0 | AO55: 0 | AQ55: 0 | AS55: 0 | AU55: 0 | AW55: 0 | AY55: 0
G56: 0 | I56: 0 | K56: 0 | M56: 0 | O56: 0 | Q56: 0 | S56: 0 | U56: 0 | W56: 0 | Y56: 0 | AA56: 0 | AC56: 0 | AE56: 0 | AG56: 0 | AI56: 0 | AK56: 0 | AM56: 0 | AO56: 0 | AQ56: 0 | AS56: 0 | AU56: 0 | AW56: 0 | AY56: 0
G57: 0 | I57: 0 | K57: 0 | M57: 0 | O57: 0 | Q57: 0 | S57: 0 | U57: 0 | W57: 0 | Y57: 0 | AA57: 0 | AC57: 0 | AE57: 0 | AG57: 0 | AI57: 0 | AK57: 0 | AM57: 0 | AO57: 0 | AQ57: 0 | AS57: 0 | AU57: 0 | AW57: 0 | AY57: 0
G58: 0 | I58: 0 | K58: 0 | M58: 0 | O58: 0 | Q58: 0 | S58: 0 | U58: 0 | W58: 0 | Y58: 0 | AA58: 0 | AC58: 0 | AE58: 0 | AG58: 0 | AI58: 0 | AK58: 0 | AM58: 0 | AO58: 0 | AQ58: 0 | AS58: 0 | AU58: 0 | AW58: 0 | AY58: 0
G59: 0 | I59: 0 | K59: 0 | M59: 0 | O59: 0 | Q59: 0 | S59: 0 | U59: 0 | W59: 0 | Y59: 0 | AA59: 0 | AC59: 0 | AE59: 0 | AG59: 0 | AI59: 0 | AK59: 0 | AM59: 0 | AO59: 0 | AQ59: 0 | AS59: 0 | AU59: 0 | AW59: 0 | AY59: 0
G60: 0 | I60: 0 | K60: 0 | M60: 0 | O60: 0 | Q60: 0 | S60: 0 | U60: 0 | W60: 0 | Y60: 0 | AA60: 0 | AC60: 0 | AE60: 0 | AG60: 0 | AI60: 0 | AK60: 0 | AM60: 0 | AO60: 0 | AQ60: 0 | AS60: 0 | AU60: 0 | AW60: 0 | AY60: 0
G61: 0 | I61: 0 | K61: 0 | M61: 0 | O61: 0 | Q61: 0 | S61: 0 | U61: 0 | W61: 0 | Y61: 0 | AA61: 0 | AC61: 0 | AE61: 0 | AG61: 0 | AI61: 0 | AK61: 0 | AM61: 0 | AO61: 0 | AQ61: 0 | AS61: 0 | AU61: 0 | AW61: 0 | AY61: 0
G62: 0 | I62: 0 | K62: 0 | M62: 0 | O62: 0 | Q62: 0 | S62: 0 | U62: 0 | W62: 0 | Y62: 0 | AA62: 0 | AC62: 0 | AE62: 0 | AG62: 0 | AI62: 0 | AK62: 0 | AM62: 0 | AO62: 0 | AQ62: 0 | AS62: 0 | AU62: 0 | AW62: 0 | AY62: 0
G63: 0 | I63: 0 | K63: 0 | M63: 0 | O63: 0 | Q63: 0 | S63: 0 | U63: 0 | W63: 0 | Y63: 0 | AA63: 0 | AC63: 0 | AE63: 0 | AG63: 0 | AI63: 0 | AK63: 0 | AM63: 0 | AO63: 0 | AQ63: 0 | AS63: 0 | AU63: 0 | AW63: 0 | AY63: 0
G64: 0 | I64: 0 | K64: 0 | M64: 0 | O64: 0 | Q64: 0 | S64: 0 | U64: 0 | W64: 0 | Y64: 0 | AA64: 0 | AC64: 0 | AE64: 0 | AG64: 0 | AI64: 0 | AK64: 0 | AM64: 0 | AO64: 0 | AQ64: 0 | AS64: 0 | AU64: 0 | AW64: 0 | AY64: 0
G65: 0 | I65: 0 | K65: 0 | M65: 0 | O65: 0 | Q65: 0 | S65: 0 | U65: 0 | W65: 0 | Y65: 0 | AA65: 0 | AC65: 0 | AE65: 0 | AG65: 0 | AI65: 0 | AK65: 0 | AM65: 0 | AO65: 0 | AQ65: 0 | AS65: 0 | AU65: 0 | AW65: 0 | AY65: 0
G66: 0 | I66: 0 | K66: 0 | M66: 0 | O66: 0 | Q66: 0 | S66: 0 | U66: 0 | W66: 0 | Y66: 0 | AA66: 0 | AC66: 0 | AE66: 0 | AG66: 0 | AI66: 0 | AK66: 0 | AM66: 0 | AO66: 0 | AQ66: 0 | AS66: 0 | AU66: 0 | AW66: 0 | AY66: 0
G67: 0 | I67: 0 | K67: 0 | M67: 0 | O67: 0 | Q67: 0 | S67: 0 | U67: 0 | W67: 0 | Y67: 0 | AA67: 0 | AC67: 0 | AE67: 0 | AG67: 0 | AI67: 0 | AK67: 0 | AM67: 0 | AO67: 0 | AQ67: 0 | AS67: 0 | AU67: 0 | AW67: 0 | AY67: 0
G68: 0 | I68: 0 | K68: 0 | M68: 0 | O68: 0 | Q68: 0 | S68: 0 | U68: 0 | W68: 0 | Y68: 0 | AA68: 0 | AC68: 0 | AE68: 0 | AG68: 0 | AI68: 0 | AK68: 0 | AM68: 0 | AO68: 0 | AQ68: 0 | AS68: 0 | AU68: 0 | AW68: 0 | AY68: 0
G69: 0 | I69: 0 | K69: 0 | M69: 0 | O69: 0 | Q69: 0 | S69: 0 | U69: 0 | W69: 0 | Y69: 0 | AA69: 0 | AC69: 0 | AE69: 0 | AG69: 0 | AI69: 0 | AK69: 0 | AM69: 0 | AO69: 0 | AQ69: 0 | AS69: 0 | AU69: 0 | AW69: 0 | AY69: 0
G70: 0 | I70: 0 | K70: 0 | M70: 0 | O70: 0 | Q70: 0 | S70: 0 | U70: 0 | W70: 0 | Y70: 0 | AA70: 0 | AC70: 0 | AE70: 0 | AG70: 0 | AI70: 0 | AK70: 0 | AM70: 0 | AO70: 0 | AQ70: 0 | AS70: 0 | AU70: 0 | AW70: 0 | AY70: 0
G71: 0 | I71: 0 | K71: 0 | M71: 0 | O71: 0 | Q71: 0 | S71: 0 | U71: 0 | W71: 0 | Y71: 0 | AA71: 0 | AC71: 0 | AE71: 0 | AG71: 0 | AI71: 0 | AK71: 0 | AM71: 0 | AO71: 0 | AQ71: 0 | AS71: 0 | AU71: 0 | AW71: 0 | AY71: 0
G72: 0 | I72: 0 | K72: 0 | M72: 0 | O72: 0 | Q72: 0 | S72: 0 | U72: 0 | W72: 0 | Y72: 0 | AA72: 0 | AC72: 0 | AE72: 0 | AG72: 0 | AI72: 0 | AK72: 0 | AM72: 0 | AO72: 0 | AQ72: 0 | AS72: 0 | AU72: 0 | AW72: 0 | AY72: 0
G73: 0 | I73: 0 | K73: 0 | M73: 0 | O73: 0 | Q73: 0 | S73: 0 | U73: 0 | W73: 0 | Y73: 0 | AA73: 0 | AC73: 0 | AE73: 0 | AG73: 0 | AI73: 0 | AK73: 0 | AM73: 0 | AO73: 0 | AQ73: 0 | AS73: 0 | AU73: 0 | AW73: 0 | AY73: 0
G74: 0 | I74: 0 | K74: 0 | M74: 0 | O74: 0 | Q74: 0 | S74: 0 | U74: 0 | W74: 0 | Y74: 0 | AA74: 0 | AC74: 0 | AE74: 0 | AG74: 0 | AI74: 0 | AK74: 0 | AM74: 0 | AO74: 0 | AQ74: 0 | AS74: 0 | AU74: 0 | AW74: 0 | AY74: 0
G75: 0 | I75: 0 | K75: 0 | M75: 0 | O75: 0 | Q75: 0 | S75: 0 | U75: 0 | W75: 0 | Y75: 0 | AA75: 0 | AC75: 0 | AE75: 0 | AG75: 0 | AI75: 0 | AK75: 0 | AM75: 0 | AO75: 0 | AQ75: 0 | AS75: 0 | AU75: 0 | AW75: 0 | AY75: 0
G76: 0 | I76: 0 | K76: 0 | M76: 0 | O76: 0 | Q76: 0 | S76: 0 | U76: 0 | W76: 0 | Y76: 0 | AA76: 0 | AC76: 0 | AE76: 0 | AG76: 0 | AI76: 0 | AK76: 0 | AM76: 0 | AO76: 0 | AQ76: 0 | AS76: 0 | AU76: 0 | AW76: 0 | AY76: 0
G77: 0 | I77: 0 | K77: 0 | M77: 0 | O77: 0 | Q77: 0 | S77: 0 | U77: 0 | W77: 0 | Y77: 0 | AA77: 0 | AC77: 0 | AE77: 0 | AG77: 0 | AI77: 0 | AK77: 0 | AM77: 0 | AO77: 0 | AQ77: 0 | AS77: 0 | AU77: 0 | AW77: 0 | AY77: 0
G78: 0 | I78: 0 | K78: 0 | M78: 0 | O78: 0 | Q78: 0 | S78: 0 | U78: 0 | W78: 0 | Y78: 0 | AA78: 0 | AC78: 0 | AE78: 0 | AG78: 0 | AI78: 0 | AK78: 0 | AM78: 0 | AO78: 0 | AQ78: 0 | AS78: 0 | AU78: 0 | AW78: 0 | AY78: 0

Sheet TEK KİŞİ BORD
A1: ='ANA SAYFA'!A1 -> AİLE VE SOSYAL HİZMETLER İL MÜDÜRLÜĞÜ | I1: E-POSTA DÜZETLME
A2: =PUANTAJ!AI2 -> 2024-01-01 | B2: K İ Ş İ B O R D R O S U | E2: =TODAY() -> 2024-02-05
A3: ASGARİ ÜCRET | B3: ='ANA SAYFA'!J15 -> 20002.5 | C3: EK DERS | E3: ANA SAYFA | V3: 1 | W3: 2 | X3: 3 | Y3: 4 | Z3: 5 | AA3: 6 | AB3: 7 | AC3: 8 | AD3: 9 | AE3: 10 | AF3: 11 | AG3: 12 | AH3: 13 | AI3: 14 | AJ3: 15 | AK3: 16 | AL3: 17 | AM3: 18 | AN3: 19 | AO3: 20 | AP3: 21 | AQ3: 22 | AR3: 23 | AS3: 24 | AT3: 25 | AU3: 26 | AV3: 27 | AW3: 28 | AX3: 29 | AY3: 30 | AZ3: 31 | BA3: 32 | BB3: 33 | BC3: 34 | BD3: 35 | BE3: 36 | BF3: 37 | BG3: 38 | BH3: 39 | BI3: 40 | BJ3: 41 | BK3: 42 | BL3: 43 | BM3: 44 | BN3: 45 | BO3: 46 | BP3: 47 | BQ3: 48 | BR3: 49 | BS3: 50 | BT3: 51
A4: AD-SOYAD | B4: T.C. KİMLİK NO | C4: HAM ÜCRET | E4: Meslek-Ünvan | V4: AD SOYAD | W4: TC | X4: BÜRÜT TUTAR | Y4: GÜNDÜZ | Z4: GECE | AA4: MESLEĞİ | AB4: SGK | AC4: aylık istisna | AD4: toplam istisna | AE4: gündüz | AF4: NET ÜCRET | AG4: aylık vergi | AH4: gelir vergisi | AI4: damga vergisi | AJ4: sgk matrahı | AK4: toplam gelir vergisi matr. | AL4: HİZMET DESTEK GÖREVİ saati | AM4: HİZMET DESTEK GÖREVİ | AP4: GÜNDÜZ | AQ4: GECE | AR4: HAFTA SONU | AS4: TOPLAM SAAT | AW4: MALULUK YAŞLILIK (İŞVEREN-İŞÇİ) %11 | AX4: MALULUK YAŞLILIK (İŞTİRAKÇİ-İŞÇİ) %9 | AY4: G.S.S. (İŞTİRAKÇİ İŞÇİ) %5 | AZ4: G.S.S. (İŞVEREN İŞÇİ) %7.5 | BB4: SGK ASGARİ ÜCRET İŞVEREN FARKI | BC4: BRÜT ÜCRET | BE4: bes | BF4: İCRA | BG4: ödeme günü | BJ4: KISA VAADELİ SİGORTA KOLLARI PİRİMİ %2 | BK4: İŞSİZLİK SİGORTASI PİRİMİ- İŞVEREN %2 | BL4: İŞSİZLİK SİGORTASI PİRİMİ- İŞÇİ %1 | BM4: E MAİL | BS4: İSTİSNA GLİR | BT4: İSTİSNA DAMGA
A5: ALİ BZC | B5: =VLOOKUP(A5,V5:Y80,2,FALSE) -> 0 | C5: =VLOOKUP(A5,V5:Y80,3,FALSE) -> 17469.6 | E5: =VLOOKUP(A5,V5:AA80,6,FALSE) -> 0 | U5: 1 | V5: =PUANTAJ!B7 -> ALİ BZC | W5: ='PERSONEL BİLGİ GİRİŞİ'!H5 -> 0 | X5: ='PERSONEL BİLGİ GİRİŞİ'!Q5 -> 17469.6 | Y5: ='PERSONEL BİLGİ GİRİŞİ'!R5 -> 106.52 | Z5: ='PERSONEL BİLGİ GİRİŞİ'!U5 -> 114.13 | AA5: ='PERSONEL BİLGİ GİRİŞİ'!E5 -> 0 | AB5: =PUANTAJ!AU7 -> 30 | AC5: =' BORDRO HAZIRLIK'!AE5 -> 17002.12 | AD5: =' BORDRO HAZIRLIK'!AF5 -> 17002.12 | AE5: =' BORDRO HAZIRLIK'!K5 -> 17469.28 | AF5: =' BORDRO HAZIRLIK'!BH5 -> 18498.96 | AG5: =' BORDRO HAZIRLIK'!AK5 -> 18779.48 | AH5: =' BORDRO HAZIRLIK'!AO5 -> 266.6 | AI5: =' BORDRO HAZIRLIK'!AP5 -> 13.92 | AJ5: =' BORDRO HAZIRLIK'!AQ5 -> 21836.6 | AK5: =' BORDRO HAZIRLIK'!AN5 -> 18779.48 | AL5: =' BORDRO HAZIRLIK'!P5 -> 41 | AM5: =' BORDRO HAZIRLIK'!Q5 -> 4367.32 | AP5: =PUANTAJ!AI7 -> 164 | AQ5: =PUANTAJ!AJ7 -> 0 | AR5: =PUANTAJ!AK7 -> 0 | AS5: =PUANTAJ!AM7 -> 205 | AW5: =' BORDRO HAZIRLIK'!AY5 -> 2402.04 | AX5: =' BORDRO HAZIRLIK'!AZ5 -> 1965.29 | AY5: =' BORDRO HAZIRLIK'!BA5 -> 1091.83 | AZ5: =' BORDRO HAZIRLIK'!BB5 -> 1637.75 | BB5: =' BORDRO HAZIRLIK'!AR5 -> 0 | BC5: =' BORDRO HAZIRLIK'!AJ5 -> 21836.6 | BE5: =' BORDRO HAZIRLIK'!AS5 -> 0 | BF5: =' BORDRO HAZIRLIK'!AT5 -> 0 | BG5: =' BORDRO HAZIRLIK'!I5 -> 23 | BJ5: =' BORDRO HAZIRLIK'!BC5 -> 436.73 | BK5: =' BORDRO HAZIRLIK'!BD5 -> 0 | BL5: =' BORDRO HAZIRLIK'!BE5 -> 0 | BM5: ='PERSONEL BİLGİ GİRİŞİ'!I5 -> 0 | BS5: =' BORDRO HAZIRLIK'!AG5 -> 2550.32 | BT5: =' BORDRO HAZIRLIK'!AH5 -> 151.82
A6: Çalışma (Ödeme) Günü | B6: =VLOOKUP(A5,V5:BG80,38,FALSE) -> 23 | U6: 2 | V6: =PUANTAJ!B9 ->  | W6: ='PERSONEL BİLGİ GİRİŞİ'!H6 -> 0 | X6: ='PERSONEL BİLGİ GİRİŞİ'!Q6 -> 0 | Y6: ='PERSONEL BİLGİ GİRİŞİ'!R6 -> 0 | Z6: ='PERSONEL BİLGİ GİRİŞİ'!U6 -> 0 | AA6: ='PERSONEL BİLGİ GİRİŞİ'!E6 -> 0 | AB6: =PUANTAJ!AU9 -> 0 | AC6: =' BORDRO HAZIRLIK'!AE6 -> 0 | AD6: =' BORDRO HAZIRLIK'!AF6 -> 0 | AE6: =' BORDRO HAZIRLIK'!K6 -> 0 | AF6: =' BORDRO HAZIRLIK'!BH6 -> 0 | AG6: =' BORDRO HAZIRLIK'!AK6 -> 0 | AH6: =' BORDRO HAZIRLIK'!AO6 -> 0 | AI6: =' BORDRO HAZIRLIK'!AP6 -> 0 | AJ6: =' BORDRO HAZIRLIK'!AQ6 -> 0 | AK6: =' BORDRO HAZIRLIK'!AN6 -> 0 | AL6: =' BORDRO HAZIRLIK'!P6 -> 0 | AM6: =' BORDRO HAZIRLIK'!Q6 -> 0 | AP6: =PUANTAJ!AI9 -> 0 | AQ6: =PUANTAJ!AJ9 -> 0 | AR6: =PUANTAJ!AK9 -> 0 | AS6: =PUANTAJ!AM9 -> 0 | AW6: =' BORDRO HAZIRLIK'!AY6 -> 0 | AX6: =' BORDRO HAZIRLIK'!AZ6 -> 0 | AY6: =' BORDRO HAZIRLIK'!BA6 -> 0 | AZ6: =' BORDRO HAZIRLIK'!BB6 -> 0 | BB6: =' BORDRO HAZIRLIK'!AR6 -> 0 | BC6: =' BORDRO HAZIRLIK'!AJ6 -> 0 | BE6: =' BORDRO HAZIRLIK'!AS6 -> 0 | BF6: =' BORDRO HAZIRLIK'!AT6 -> 0 | BG6: =' BORDRO HAZIRLIK'!I6 -> 0 | BJ6: =' BORDRO HAZIRLIK'!BC6 -> 0 | BK6: =' BORDRO HAZIRLIK'!BD6 -> 0 | BL6: =' BORDRO HAZIRLIK'!BE6 -> 0 | BM6: ='PERSONEL BİLGİ GİRİŞİ'!I6 -> 0 | BS6: =' BORDRO HAZIRLIK'!AG6 -> 0 | BT6: =' BORDRO HAZIRLIK'!AH6 -> 0
A7: SGK Günü | B7: =VLOOKUP(A5,V5:AB80,7,FALSE) -> 30 | L7: Mail Başlığı: | M7: [TARİH] Tarihli Bordronuz | U7: 3 | V7: =PUANTAJ!B11 ->  | W7: ='PERSONEL BİLGİ GİRİŞİ'!H7 -> 0 | X7: ='PERSONEL BİLGİ GİRİŞİ'!Q7 -> 0 | Y7: ='PERSONEL BİLGİ GİRİŞİ'!R7 -> 0 | Z7: ='PERSONEL BİLGİ GİRİŞİ'!U7 -> 0 | AA7: ='PERSONEL BİLGİ GİRİŞİ'!E7 -> 0 | AB7: =PUANTAJ!AU11 -> 0 | AC7: =' BORDRO HAZIRLIK'!AE7 -> 0 | AD7: =' BORDRO HAZIRLIK'!AF7 -> 0 | AE7: =' BORDRO HAZIRLIK'!K7 -> 0 | AF7: =' BORDRO HAZIRLIK'!BH7 -> 0 | AG7: =' BORDRO HAZIRLIK'!AK7 -> 0 | AH7: =' BORDRO HAZIRLIK'!AO7 -> 0 | AI7: =' BORDRO HAZIRLIK'!AP7 -> 0 | AJ7: =' BORDRO HAZIRLIK'!AQ7 -> 0 | AK7: =' BORDRO HAZIRLIK'!AN7 -> 0 | AL7: =' BORDRO HAZIRLIK'!P7 -> 0 | AM7: =' BORDRO HAZIRLIK'!Q7 -> 0 | AP7: =PUANTAJ!AI11 -> 0 | AQ7: =PUANTAJ!AJ11 -> 0 | AR7: =PUANTAJ!AK11 -> 0 | AS7: =PUANTAJ!AM11 -> 0 | AW7: =' BORDRO HAZIRLIK'!AY7 -> 0 | AX7: =' BORDRO HAZIRLIK'!AZ7 -> 0 | AY7: =' BORDRO HAZIRLIK'!BA7 -> 0 | AZ7: =' BORDRO HAZIRLIK'!BB7 -> 0 | BB7: =' BORDRO HAZIRLIK'!AR7 -> 0 | BC7: =' BORDRO HAZIRLIK'!AJ7 -> 0 | BE7: =' BORDRO HAZIRLIK'!AS7 -> 0 | BF7: =' BORDRO HAZIRLIK'!AT7 -> 0 | BG7: =' BORDRO HAZIRLIK'!I7 -> 0 | BJ7: =' BORDRO HAZIRLIK'!BC7 -> 0 | BK7: =' BORDRO HAZIRLIK'!BD7 -> 0 | BL7: =' BORDRO HAZIRLIK'!BE7 -> 0 | BM7: ='PERSONEL BİLGİ GİRİŞİ'!I7 -> 0 | BS7: =' BORDRO HAZIRLIK'!AG7 -> 0 | BT7: =' BORDRO HAZIRLIK'!AH7 -> 0
A8: Aylık İstisna | B8: =VLOOKUP(A5,V5:AC80,8,FALSE) -> 17002 | E8: Gelir Vergisi | F8: =VLOOKUP(A5,V5:AO80,13,FALSE) -> 266.6 | L8: Mail İçeriği: | M8: Sayın [İSİM], [TARİH] tarihli bordronuzu ekte bulabilirsiniz. İyi Çalışmalar, | U8: 4 | V8: =PUANTAJ!B13 ->  | W8: ='PERSONEL BİLGİ GİRİŞİ'!H8 -> 0 | X8: ='PERSONEL BİLGİ GİRİŞİ'!Q8 -> 0 | Y8: ='PERSONEL BİLGİ GİRİŞİ'!R8 -> 0 | Z8: ='PERSONEL BİLGİ GİRİŞİ'!U8 -> 0 | AA8: ='PERSONEL BİLGİ GİRİŞİ'!E8 -> 0 | AB8: =PUANTAJ!AU13 -> 0 | AC8: =' BORDRO HAZIRLIK'!AE8 -> 0 | AD8: =' BORDRO HAZIRLIK'!AF8 -> 0 | AE8: =' BORDRO HAZIRLIK'!K8 -> 0 | AF8: =' BORDRO HAZIRLIK'!BH8 -> 0 | AG8: =' BORDRO HAZIRLIK'!AK8 -> 0 | AH8: =' BORDRO HAZIRLIK'!AO8 -> 0 | AI8: =' BORDRO HAZIRLIK'!AP8 -> 0 | AJ8: =' BORDRO HAZIRLIK'!AQ8 -> 0 | AK8: =' BORDRO HAZIRLIK'!AN8 -> 0 | AL8: =' BORDRO HAZIRLIK'!P8 -> 0 | AM8: =' BORDRO HAZIRLIK'!Q8 -> 0 | AP8: =PUANTAJ!AI13 -> 0 | AQ8: =PUANTAJ!AJ13 -> 0 | AR8: =PUANTAJ!AK13 -> 0 | AS8: =PUANTAJ!AM13 -> 0 | AW8: =' BORDRO HAZIRLIK'!AY8 -> 0 | AX8: =' BORDRO HAZIRLIK'!AZ8 -> 0 | AY8: =' BORDRO HAZIRLIK'!BA8 -> 0 | AZ8: =' BORDRO HAZIRLIK'!BB8 -> 0 | BB8: =' BORDRO HAZIRLIK'!AR8 -> 0 | BC8: =' BORDRO HAZIRLIK'!AJ8 -> 0 | BE8: =' BORDRO HAZIRLIK'!AS8 -> 0 | BF8: =' BORDRO HAZIRLIK'!AT8 -> 0 | BG8: =' BORDRO HAZIRLIK'!I8 -> 0 | BJ8: =' BORDRO HAZIRLIK'!BC8 -> 0 | BK8: =' BORDRO HAZIRLIK'!BD8 -> 0 | BL8: =' BORDRO HAZIRLIK'!BE8 -> 0 | BM8: ='PERSONEL BİLGİ GİRİŞİ'!I8 -> 0 | BS8: =' BORDRO HAZIRLIK'!AG8 -> 0 | BT8: =' BORDRO HAZIRLIK'!AH8 -> 0
A9: Bürüt Ücret | B9: =VLOOKUP(A5,V5:BC80,34,FALSE) -> 21836.6 | E9: Damga Vergisi | F9: =VLOOKUP(A5,V5:AO80,14,FALSE) -> 13.92 | U9: 5 | V9: =PUANTAJ!B15 ->  | W9: ='PERSONEL BİLGİ GİRİŞİ'!H9 -> 0 | X9: ='PERSONEL BİLGİ GİRİŞİ'!Q9 -> 0 | Y9: ='PERSONEL BİLGİ GİRİŞİ'!R9 -> 0 | Z9: ='PERSONEL BİLGİ GİRİŞİ'!U9 -> 0 | AA9: ='PERSONEL BİLGİ GİRİŞİ'!E9 -> 0 | AB9: =PUANTAJ!AU15 -> 0 | AC9: =' BORDRO HAZIRLIK'!AE9 -> 0 | AD9: =' BORDRO HAZIRLIK'!AF9 -> 0 | AE9: =' BORDRO HAZIRLIK'!K9 -> 0 | AF9: =' BORDRO HAZIRLIK'!BH9 -> 0 | AG9: =' BORDRO HAZIRLIK'!AK9 -> 0 | AH9: =' BORDRO HAZIRLIK'!AO9 -> 0 | AI9: =' BORDRO HAZIRLIK'!AP9 -> 0 | AJ9: =' BORDRO HAZIRLIK'!AQ9 -> 0 | AK9: =' BORDRO HAZIRLIK'!AN9 -> 0 | AL9: =' BORDRO HAZIRLIK'!P9 -> 0 | AM9: =' BORDRO HAZIRLIK'!Q9 -> 0 | AP9: =PUANTAJ!AI15 -> 0 | AQ9: =PUANTAJ!AJ15 -> 0 | AR9: =PUANTAJ!AK15 -> 0 | AS9: =PUANTAJ!AM15 -> 0 | AW9: =' BORDRO HAZIRLIK'!AY9 -> 0 | AX9: =' BORDRO HAZIRLIK'!AZ9 -> 0 | AY9: =' BORDRO HAZIRLIK'!BA9 -> 0 | AZ9: =' BORDRO HAZIRLIK'!BB9 -> 0 | BB9: =' BORDRO HAZIRLIK'!AR9 -> 0 | BC9: =' BORDRO HAZIRLIK'!AJ9 -> 0 | BE9: =' BORDRO HAZIRLIK'!AS9 -> 0 | BF9: =' BORDRO HAZIRLIK'!AT9 -> 0 | BG9: =' BORDRO HAZIRLIK'!I9 -> 0 | BJ9: =' BORDRO HAZIRLIK'!BC9 -> 0 | BK9: =' BORDRO HAZIRLIK'!BD9 -> 0 | BL9: =' BORDRO HAZIRLIK'!BE9 -> 0 | BM9: ='PERSONEL BİLGİ GİRİŞİ'!I9 -> 0 | BS9: =' BORDRO HAZIRLIK'!AG9 -> 0 | BT9: =' BORDRO HAZIRLIK'!AH9 -> 0
A10: Uygulanan Toplam İstisna | B10: =VLOOKUP(A5,V5:AD80,9,FALSE) -> 17002.12 | E10: SGK Matrahı | F10: =VLOOKUP(A5,V5:AO80,15,FALSE) -> 21836.6 | U10: 6 | V10: =PUANTAJ!B17 ->  | W10: ='PERSONEL BİLGİ GİRİŞİ'!H10 -> 0 | X10: ='PERSONEL BİLGİ GİRİŞİ'!Q10 -> 0 | Y10: ='PERSONEL BİLGİ GİRİŞİ'!R10 -> 0 | Z10: ='PERSONEL BİLGİ GİRİŞİ'!U10 -> 0 | AA10: ='PERSONEL BİLGİ GİRİŞİ'!E10 -> 0 | AB10: =PUANTAJ!AU17 -> 0 | AC10: =' BORDRO HAZIRLIK'!AE10 -> 0 | AD10: =' BORDRO HAZIRLIK'!AF10 -> 0 | AE10: =' BORDRO HAZIRLIK'!K10 -> 0 | AF10: =' BORDRO HAZIRLIK'!BH10 -> 0 | AG10: =' BORDRO HAZIRLIK'!AK10 -> 0 | AH10: =' BORDRO HAZIRLIK'!AO10 -> 0 | AI10: =' BORDRO HAZIRLIK'!AP10 -> 0 | AJ10: =' BORDRO HAZIRLIK'!AQ10 -> 0 | AK10: =' BORDRO HAZIRLIK'!AN10 -> 0 | AL10: =' BORDRO HAZIRLIK'!P10 -> 0 | AM10: =' BORDRO HAZIRLIK'!Q10 -> 0 | AP10: =PUANTAJ!AI17 -> 0 | AQ10: =PUANTAJ!AJ17 -> 0 | AR10: =PUANTAJ!AK17 -> 0 | AS10: =PUANTAJ!AM17 -> 0 | AW10: =' BORDRO HAZIRLIK'!AY10 -> 0 | AX10: =' BORDRO HAZIRLIK'!AZ10 -> 0 | AY10: =' BORDRO HAZIRLIK'!BA10 -> 0 | AZ10: =' BORDRO HAZIRLIK'!BB10 -> 0 | BB10: =' BORDRO HAZIRLIK'!AR10 -> 0 | BC10: =' BORDRO HAZIRLIK'!AJ10 -> 0 | BE10: =' BORDRO HAZIRLIK'!AS10 -> 0 | BF10: =' BORDRO HAZIRLIK'!AT10 -> 0 | BG10: =' BORDRO HAZIRLIK'!I10 -> 0 | BJ10: =' BORDRO HAZIRLIK'!BC10 -> 0 | BK10: =' BORDRO HAZIRLIK'!BD10 -> 0 | BL10: =' BORDRO HAZIRLIK'!BE10 -> 0 | BM10: ='PERSONEL BİLGİ GİRİŞİ'!I10 -> 0 | BS10: =' BORDRO HAZIRLIK'!AG10 -> 0 | BT10: =' BORDRO HAZIRLIK'!AH10 -> 0
A11: Gündüz | B11: =VLOOKUP(A5,V5:AE780,10,FALSE) -> 17469.28 | C11: =VLOOKUP(A5,V5:BR80,21,FALSE) -> 164 | D11: SAAT | E11: MALULUK YAŞLILIK (İŞVEREN-İŞÇİ) %11 | F11: =VLOOKUP(A5,V5:AZ80,28,FALSE) -> 2402.04 | U11: 7 | V11: =PUANTAJ!B19 ->  | W11: ='PERSONEL BİLGİ GİRİŞİ'!H11 -> 0 | X11: ='PERSONEL BİLGİ GİRİŞİ'!Q11 -> 0 | Y11: ='PERSONEL BİLGİ GİRİŞİ'!R11 -> 0 | Z11: ='PERSONEL BİLGİ GİRİŞİ'!U11 -> 0 | AA11: ='PERSONEL BİLGİ GİRİŞİ'!E11 -> 0 | AB11: =PUANTAJ!AU19 -> 0 | AC11: =' BORDRO HAZIRLIK'!AE11 -> 0 | AD11: =' BORDRO HAZIRLIK'!AF11 -> 0 | AE11: =' BORDRO HAZIRLIK'!K11 -> 0 | AF11: =' BORDRO HAZIRLIK'!BH11 -> 0 | AG11: =' BORDRO HAZIRLIK'!AK11 -> 0 | AH11: =' BORDRO HAZIRLIK'!AO11 -> 0 | AI11: =' BORDRO HAZIRLIK'!AP11 -> 0 | AJ11: =' BORDRO HAZIRLIK'!AQ11 -> 0 | AK11: =' BORDRO HAZIRLIK'!AN11 -> 0 | AL11: =' BORDRO HAZIRLIK'!P11 -> 0 | AM11: =' BORDRO HAZIRLIK'!Q11 -> 0 | AP11: =PUANTAJ!AI19 -> 0 | AQ11: =PUANTAJ!AJ19 -> 0 | AR11: =PUANTAJ!AK19 -> 0 | AS11: =PUANTAJ!AM19 -> 0 | AW11: =' BORDRO HAZIRLIK'!AY11 -> 0 | AX11: =' BORDRO HAZIRLIK'!AZ11 -> 0 | AY11: =' BORDRO HAZIRLIK'!BA11 -> 0 | AZ11: =' BORDRO HAZIRLIK'!BB11 -> 0 | BB11: =' BORDRO HAZIRLIK'!AR11 -> 0 | BC11: =' BORDRO HAZIRLIK'!AJ11 -> 0 | BE11: =' BORDRO HAZIRLIK'!AS11 -> 0 | BF11: =' BORDRO HAZIRLIK'!AT11 -> 0 | BG11: =' BORDRO HAZIRLIK'!I11 -> 0 | BJ11: =' BORDRO HAZIRLIK'!BC11 -> 0 | BK11: =' BORDRO HAZIRLIK'!BD11 -> 0 | BL11: =' BORDRO HAZIRLIK'!BE11 -> 0 | BM11: ='PERSONEL BİLGİ GİRİŞİ'!I11 -> 0 | BS11: =' BORDRO HAZIRLIK'!AG11 -> 0 | BT11: =' BORDRO HAZIRLIK'!AH11 -> 0
A12: Gece | B12: =VLOOKUP(A5,V5:AS80,22,FALSE) -> 0 | C12: =VLOOKUP(A5,V5:BR80,22,FALSE) -> 0 | D12: SAAT | E12: MALULUK YAŞLILIK (İŞTİRAKÇİ-İŞÇİ) %9 | F12: =VLOOKUP(A5,V5:AZ80,29,FALSE) -> 1965.29 | U12: 8 | V12: =PUANTAJ!B21 ->  | W12: ='PERSONEL BİLGİ GİRİŞİ'!H12 -> 0 | X12: ='PERSONEL BİLGİ GİRİŞİ'!Q12 -> 0 | Y12: ='PERSONEL BİLGİ GİRİŞİ'!R12 -> 0 | Z12: ='PERSONEL BİLGİ GİRİŞİ'!U12 -> 0 | AA12: ='PERSONEL BİLGİ GİRİŞİ'!E12 -> 0 | AB12: =PUANTAJ!AU21 -> 0 | AC12: =' BORDRO HAZIRLIK'!AE12 -> 0 | AD12: =' BORDRO HAZIRLIK'!AF12 -> 0 | AE12: =' BORDRO HAZIRLIK'!K12 -> 0 | AF12: =' BORDRO HAZIRLIK'!BH12 -> 0 | AG12: =' BORDRO HAZIRLIK'!AK12 -> 0 | AH12: =' BORDRO HAZIRLIK'!AO12 -> 0 | AI12: =' BORDRO HAZIRLIK'!AP12 -> 0 | AJ12: =' BORDRO HAZIRLIK'!AQ12 -> 0 | AK12: =' BORDRO HAZIRLIK'!AN12 -> 0 | AL12: =' BORDRO HAZIRLIK'!P12 -> 0 | AM12: =' BORDRO HAZIRLIK'!Q12 -> 0 | AP12: =PUANTAJ!AI21 -> 0 | AQ12: =PUANTAJ!AJ21 -> 0 | AR12: =PUANTAJ!AK21 -> 0 | AS12: =PUANTAJ!AM21 -> 0 | AW12: =' BORDRO HAZIRLIK'!AY12 -> 0 | AX12: =' BORDRO HAZIRLIK'!AZ12 -> 0 | AY12: =' BORDRO HAZIRLIK'!BA12 -> 0 | AZ12: =' BORDRO HAZIRLIK'!BB12 -> 0 | BB12: =' BORDRO HAZIRLIK'!AR12 -> 0 | BC12: =' BORDRO HAZIRLIK'!AJ12 -> 0 | BE12: =' BORDRO HAZIRLIK'!AS12 -> 0 | BF12: =' BORDRO HAZIRLIK'!AT12 -> 0 | BG12: =' BORDRO HAZIRLIK'!I12 -> 0 | BJ12: =' BORDRO HAZIRLIK'!BC12 -> 0 | BK12: =' BORDRO HAZIRLIK'!BD12 -> 0 | BL12: =' BORDRO HAZIRLIK'!BE12 -> 0 | BM12: ='PERSONEL BİLGİ GİRİŞİ'!I12 -> 0 | BS12: =' BORDRO HAZIRLIK'!AG12 -> 0 | BT12: =' BORDRO HAZIRLIK'!AH12 -> 0
A13: Hafta Sonu | B13: =VLOOKUP(A5,V5:AS80,21,FALSE) -> 164 | C13: =VLOOKUP(A5,V5:BR80,23,FALSE) -> 0 | D13: SAAT | E13: G.S.S. (İŞTİRAKÇİ İŞÇİ) %5 | F13: =VLOOKUP(A5,V5:AZ80,30,FALSE) -> 1091.83 | U13: 9 | V13: =PUANTAJ!B23 ->  | W13: ='PERSONEL BİLGİ GİRİŞİ'!H13 -> 0 | X13: ='PERSONEL BİLGİ GİRİŞİ'!Q13 -> 0 | Y13: ='PERSONEL BİLGİ GİRİŞİ'!R13 -> 0 | Z13: ='PERSONEL BİLGİ GİRİŞİ'!U13 -> 0 | AA13: ='PERSONEL BİLGİ GİRİŞİ'!E13 -> 0 | AB13: =PUANTAJ!AU23 -> 0 | AC13: =' BORDRO HAZIRLIK'!AE13 -> 0 | AD13: =' BORDRO HAZIRLIK'!AF13 -> 0 | AE13: =' BORDRO HAZIRLIK'!K13 -> 0 | AF13: =' BORDRO HAZIRLIK'!BH13 -> 0 | AG13: =' BORDRO HAZIRLIK'!AK13 -> 0 | AH13: =' BORDRO HAZIRLIK'!AO13 -> 0 | AI13: =' BORDRO HAZIRLIK'!AP13 -> 0 | AJ13: =' BORDRO HAZIRLIK'!AQ13 -> 0 | AK13: =' BORDRO HAZIRLIK'!AN13 -> 0 | AL13: =' BORDRO HAZIRLIK'!P13 -> 0 | AM13: =' BORDRO HAZIRLIK'!Q13 -> 0 | AP13: =PUANTAJ!AI23 -> 0 | AQ13: =PUANTAJ!AJ23 -> 0 | AR13: =PUANTAJ!AK23 -> 0 | AS13: =PUANTAJ!AM23 -> 0 | AW13: =' BORDRO HAZIRLIK'!AY13 -> 0 | AX13: =' BORDRO HAZIRLIK'!AZ13 -> 0 | AY13: =' BORDRO HAZIRLIK'!BA13 -> 0 | AZ13: =' BORDRO HAZIRLIK'!BB13 -> 0 | BB13: =' BORDRO HAZIRLIK'!AR13 -> 0 | BC13: =' BORDRO HAZIRLIK'!AJ13 -> 0 | BE13: =' BORDRO HAZIRLIK'!AS13 -> 0 | BF13: =' BORDRO HAZIRLIK'!AT13 -> 0 | BG13: =' BORDRO HAZIRLIK'!I13 -> 0 | BJ13: =' BORDRO HAZIRLIK'!BC13 -> 0 | BK13: =' BORDRO HAZIRLIK'!BD13 -> 0 | BL13: =' BORDRO HAZIRLIK'!BE13 -> 0 | BM13: ='PERSONEL BİLGİ GİRİŞİ'!I13 -> 0 | BS13: =' BORDRO HAZIRLIK'!AG13 -> 0 | BT13: =' BORDRO HAZIRLIK'!AH13 -> 0
A14: TOPLAM ÇALIŞMA SAATİ | C14: =SUM(C11:C13) -> 164 | D14: SAAT | E14: G.S.S. (İŞVEREN İŞÇİ) %7.5 | F14: =VLOOKUP(A5,V5:AZ80,31,FALSE) -> 1637.75 | U14: 10 | V14: =PUANTAJ!B25 ->  | W14: ='PERSONEL BİLGİ GİRİŞİ'!H14 -> 0 | X14: ='PERSONEL BİLGİ GİRİŞİ'!Q14 -> 0 | Y14: ='PERSONEL BİLGİ GİRİŞİ'!R14 -> 0 | Z14: ='PERSONEL BİLGİ GİRİŞİ'!U14 -> 0 | AA14: ='PERSONEL BİLGİ GİRİŞİ'!E14 -> 0 | AB14: =PUANTAJ!AU25 -> 0 | AC14: =' BORDRO HAZIRLIK'!AE14 -> 0 | AD14: =' BORDRO HAZIRLIK'!AF14 -> 0 | AE14: =' BORDRO HAZIRLIK'!K14 -> 0 | AF14: =' BORDRO HAZIRLIK'!BH14 -> 0 | AG14: =' BORDRO HAZIRLIK'!AK14 -> 0 | AH14: =' BORDRO HAZIRLIK'!AO14 -> 0 | AI14: =' BORDRO HAZIRLIK'!AP14 -> 0 | AJ14: =' BORDRO HAZIRLIK'!AQ14 -> 0 | AK14: =' BORDRO HAZIRLIK'!AN14 -> 0 | AL14: =' BORDRO HAZIRLIK'!P14 -> 0 | AM14: =' BORDRO HAZIRLIK'!Q14 -> 0 | AP14: =PUANTAJ!AI25 -> 0 | AQ14: =PUANTAJ!AJ25 -> 0 | AR14: =PUANTAJ!AK25 -> 0 | AS14: =PUANTAJ!AM25 -> 0 | AW14: =' BORDRO HAZIRLIK'!AY14 -> 0 | AX14: =' BORDRO HAZIRLIK'!AZ14 -> 0 | AY14: =' BORDRO HAZIRLIK'!BA14 -> 0 | AZ14: =' BORDRO HAZIRLIK'!BB14 -> 0 | BB14: =' BORDRO HAZIRLIK'!AR14 -> 0 | BC14: =' BORDRO HAZIRLIK'!AJ14 -> 0 | BE14: =' BORDRO HAZIRLIK'!AS14 -> 0 | BF14: =' BORDRO HAZIRLIK'!AT14 -> 0 | BG14: =' BORDRO HAZIRLIK'!I14 -> 0 | BJ14: =' BORDRO HAZIRLIK'!BC14 -> 0 | BK14: =' BORDRO HAZIRLIK'!BD14 -> 0 | BL14: =' BORDRO HAZIRLIK'!BE14 -> 0 | BM14: ='PERSONEL BİLGİ GİRİŞİ'!I14 -> 0 | BS14: =' BORDRO HAZIRLIK'!AG14 -> 0 | BT14: =' BORDRO HAZIRLIK'!AH14 -> 0
A15: HİZMET DESTEK GÖREVİ EK ÖDEME SAATİ | C15: =VLOOKUP(A5,V5:AS80,17,FALSE) -> 41 | D15: SAAT | E15: KISA VAADELİ SİGORTA KOLLARI PİRİMİ %2 | F15: =VLOOKUP(A5,V5:BL80,41,FALSE) -> 436.73 | U15: 11 | V15: =PUANTAJ!B27 ->  | W15: ='PERSONEL BİLGİ GİRİŞİ'!H15 -> 0 | X15: ='PERSONEL BİLGİ GİRİŞİ'!Q15 -> 0 | Y15: ='PERSONEL BİLGİ GİRİŞİ'!R15 -> 0 | Z15: ='PERSONEL BİLGİ GİRİŞİ'!U15 -> 0 | AA15: ='PERSONEL BİLGİ GİRİŞİ'!E15 -> 0 | AB15: =PUANTAJ!AU27 -> 0 | AC15: =' BORDRO HAZIRLIK'!AE15 -> 0 | AD15: =' BORDRO HAZIRLIK'!AF15 -> 0 | AE15: =' BORDRO HAZIRLIK'!K15 -> 0 | AF15: =' BORDRO HAZIRLIK'!BH15 -> 0 | AG15: =' BORDRO HAZIRLIK'!AK15 -> 0 | AH15: =' BORDRO HAZIRLIK'!AO15 -> 0 | AI15: =' BORDRO HAZIRLIK'!AP15 -> 0 | AJ15: =' BORDRO HAZIRLIK'!AQ15 -> 0 | AK15: =' BORDRO HAZIRLIK'!AN15 -> 0 | AL15: =' BORDRO HAZIRLIK'!P15 -> 0 | AM15: =' BORDRO HAZIRLIK'!Q15 -> 0 | AP15: =PUANTAJ!AI27 -> 0 | AQ15: =PUANTAJ!AJ27 -> 0 | AR15: =PUANTAJ!AK27 -> 0 | AS15: =PUANTAJ!AM27 -> 0 | AW15: =' BORDRO HAZIRLIK'!AY15 -> 0 | AX15: =' BORDRO HAZIRLIK'!AZ15 -> 0 | AY15: =' BORDRO HAZIRLIK'!BA15 -> 0 | AZ15: =' BORDRO HAZIRLIK'!BB15 -> 0 | BB15: =' BORDRO HAZIRLIK'!AR15 -> 0 | BC15: =' BORDRO HAZIRLIK'!AJ15 -> 0 | BE15: =' BORDRO HAZIRLIK'!AS15 -> 0 | BF15: =' BORDRO HAZIRLIK'!AT15 -> 0 | BG15: =' BORDRO HAZIRLIK'!I15 -> 0 | BJ15: =' BORDRO HAZIRLIK'!BC15 -> 0 | BK15: =' BORDRO HAZIRLIK'!BD15 -> 0 | BL15: =' BORDRO HAZIRLIK'!BE15 -> 0 | BM15: ='PERSONEL BİLGİ GİRİŞİ'!I15 -> 0 | BS15: =' BORDRO HAZIRLIK'!AG15 -> 0 | BT15: =' BORDRO HAZIRLIK'!AH15 -> 0
A16: HİZMET DESTEK GÖREVİ EK ÖDEME | C16: =VLOOKUP(A5,V5:AS80,18,FALSE) -> 4367 | D16: TL | E16: İŞSİZLİK SİGORTASI PİRİMİ- İŞVEREN %2 | F16: =VLOOKUP(A5,V5:BL80,42,FALSE) -> 0 | U16: 12 | V16: =PUANTAJ!B29 ->  | W16: ='PERSONEL BİLGİ GİRİŞİ'!H16 -> 0 | X16: ='PERSONEL BİLGİ GİRİŞİ'!Q16 -> 0 | Y16: ='PERSONEL BİLGİ GİRİŞİ'!R16 -> 0 | Z16: ='PERSONEL BİLGİ GİRİŞİ'!U16 -> 0 | AA16: ='PERSONEL BİLGİ GİRİŞİ'!E16 -> 0 | AB16: =PUANTAJ!AU29 -> 0 | AC16: =' BORDRO HAZIRLIK'!AE16 -> 0 | AD16: =' BORDRO HAZIRLIK'!AF16 -> 0 | AE16: =' BORDRO HAZIRLIK'!K16 -> 0 | AF16: =' BORDRO HAZIRLIK'!BH16 -> 0 | AG16: =' BORDRO HAZIRLIK'!AK16 -> 0 | AH16: =' BORDRO HAZIRLIK'!AO16 -> 0 | AI16: =' BORDRO HAZIRLIK'!AP16 -> 0 | AJ16: =' BORDRO HAZIRLIK'!AQ16 -> 0 | AK16: =' BORDRO HAZIRLIK'!AN16 -> 0 | AL16: =' BORDRO HAZIRLIK'!P16 -> 0 | AM16: =' BORDRO HAZIRLIK'!Q16 -> 0 | AP16: =PUANTAJ!AI29 -> 0 | AQ16: =PUANTAJ!AJ29 -> 0 | AR16: =PUANTAJ!AK29 -> 0 | AS16: =PUANTAJ!AM29 -> 0 | AW16: =' BORDRO HAZIRLIK'!AY16 -> 0 | AX16: =' BORDRO HAZIRLIK'!AZ16 -> 0 | AY16: =' BORDRO HAZIRLIK'!BA16 -> 0 | AZ16: =' BORDRO HAZIRLIK'!BB16 -> 0 | BB16: =' BORDRO HAZIRLIK'!AR16 -> 0 | BC16: =' BORDRO HAZIRLIK'!AJ16 -> 0 | BE16: =' BORDRO HAZIRLIK'!AS16 -> 0 | BF16: =' BORDRO HAZIRLIK'!AT16 -> 0 | BG16: =' BORDRO HAZIRLIK'!I16 -> 0 | BJ16: =' BORDRO HAZIRLIK'!BC16 -> 0 | BK16: =' BORDRO HAZIRLIK'!BD16 -> 0 | BL16: =' BORDRO HAZIRLIK'!BE16 -> 0 | BM16: ='PERSONEL BİLGİ GİRİŞİ'!I16 -> 0 | BS16: =' BORDRO HAZIRLIK'!AG16 -> 0 | BT16: =' BORDRO HAZIRLIK'!AH16 -> 0
E17: İŞSİZLİK SİGORTASI PİRİMİ- İŞÇİ %1 | F17: =VLOOKUP(A5,V5:BL80,43,FALSE) -> 0 | U17: 13 | V17: =PUANTAJ!B31 ->  | W17: ='PERSONEL BİLGİ GİRİŞİ'!H17 -> 0 | X17: ='PERSONEL BİLGİ GİRİŞİ'!Q17 -> 0 | Y17: ='PERSONEL BİLGİ GİRİŞİ'!R17 -> 0 | Z17: ='PERSONEL BİLGİ GİRİŞİ'!U17 -> 0 | AA17: ='PERSONEL BİLGİ GİRİŞİ'!E17 -> 0 | AB17: =PUANTAJ!AU31 -> 0 | AC17: =' BORDRO HAZIRLIK'!AE17 -> 0 | AD17: =' BORDRO HAZIRLIK'!AF17 -> 0 | AE17: =' BORDRO HAZIRLIK'!K17 -> 0 | AF17: =' BORDRO HAZIRLIK'!BH17 -> 0 | AG17: =' BORDRO HAZIRLIK'!AK17 -> 0 | AH17: =' BORDRO HAZIRLIK'!AO17 -> 0 | AI17: =' BORDRO HAZIRLIK'!AP17 -> 0 | AJ17: =' BORDRO HAZIRLIK'!AQ17 -> 0 | AK17: =' BORDRO HAZIRLIK'!AN17 -> 0 | AL17: =' BORDRO HAZIRLIK'!P17 -> 0 | AM17: =' BORDRO HAZIRLIK'!Q17 -> 0 | AP17: =PUANTAJ!AI31 -> 0 | AQ17: =PUANTAJ!AJ31 -> 0 | AR17: =PUANTAJ!AK31 -> 0 | AS17: =PUANTAJ!AM31 -> 0 | AW17: =' BORDRO HAZIRLIK'!AY17 -> 0 | AX17: =' BORDRO HAZIRLIK'!AZ17 -> 0 | AY17: =' BORDRO HAZIRLIK'!BA17 -> 0 | AZ17: =' BORDRO HAZIRLIK'!BB17 -> 0 | BB17: =' BORDRO HAZIRLIK'!AR17 -> 0 | BC17: =' BORDRO HAZIRLIK'!AJ17 -> 0 | BE17: =' BORDRO HAZIRLIK'!AS17 -> 0 | BF17: =' BORDRO HAZIRLIK'!AT17 -> 0 | BG17: =' BORDRO HAZIRLIK'!I17 -> 0 | BJ17: =' BORDRO HAZIRLIK'!BC17 -> 0 | BK17: =' BORDRO HAZIRLIK'!BD17 -> 0 | BL17: =' BORDRO HAZIRLIK'!BE17 -> 0 | BM17: ='PERSONEL BİLGİ GİRİŞİ'!I17 -> 0 | BS17: =' BORDRO HAZIRLIK'!AG17 -> 0 | BT17: =' BORDRO HAZIRLIK'!AH17 -> 0
E18: SGK ASG. ÜCR. İŞVEREN FARK | F18: =VLOOKUP(A5,V5:BB80,33,FALSE) -> 0 | U18: 14 | V18: =PUANTAJ!B33 ->  | W18: ='PERSONEL BİLGİ GİRİŞİ'!H18 -> 0 | X18: ='PERSONEL BİLGİ GİRİŞİ'!Q18 -> 0 | Y18: ='PERSONEL BİLGİ GİRİŞİ'!R18 -> 0 | Z18: ='PERSONEL BİLGİ GİRİŞİ'!U18 -> 0 | AA18: ='PERSONEL BİLGİ GİRİŞİ'!E18 -> 0 | AB18: =PUANTAJ!AU33 -> 0 | AC18: =' BORDRO HAZIRLIK'!AE18 -> 0 | AD18: =' BORDRO HAZIRLIK'!AF18 -> 0 | AE18: =' BORDRO HAZIRLIK'!K18 -> 0 | AF18: =' BORDRO HAZIRLIK'!BH18 -> 0 | AG18: =' BORDRO HAZIRLIK'!AK18 -> 0 | AH18: =' BORDRO HAZIRLIK'!AO18 -> 0 | AI18: =' BORDRO HAZIRLIK'!AP18 -> 0 | AJ18: =' BORDRO HAZIRLIK'!AQ18 -> 0 | AK18: =' BORDRO HAZIRLIK'!AN18 -> 0 | AL18: =' BORDRO HAZIRLIK'!P18 -> 0 | AM18: =' BORDRO HAZIRLIK'!Q18 -> 0 | AP18: =PUANTAJ!AI33 -> 0 | AQ18: =PUANTAJ!AJ33 -> 0 | AR18: =PUANTAJ!AK33 -> 0 | AS18: =PUANTAJ!AM33 -> 0 | AW18: =' BORDRO HAZIRLIK'!AY18 -> 0 | AX18: =' BORDRO HAZIRLIK'!AZ18 -> 0 | AY18: =' BORDRO HAZIRLIK'!BA18 -> 0 | AZ18: =' BORDRO HAZIRLIK'!BB18 -> 0 | BB18: =' BORDRO HAZIRLIK'!AR18 -> 0 | BC18: =' BORDRO HAZIRLIK'!AJ18 -> 0 | BE18: =' BORDRO HAZIRLIK'!AS18 -> 0 | BF18: =' BORDRO HAZIRLIK'!AT18 -> 0 | BG18: =' BORDRO HAZIRLIK'!I18 -> 0 | BJ18: =' BORDRO HAZIRLIK'!BC18 -> 0 | BK18: =' BORDRO HAZIRLIK'!BD18 -> 0 | BL18: =' BORDRO HAZIRLIK'!BE18 -> 0 | BM18: ='PERSONEL BİLGİ GİRİŞİ'!I18 -> 0 | BS18: =' BORDRO HAZIRLIK'!AG18 -> 0 | BT18: =' BORDRO HAZIRLIK'!AH18 -> 0
E19: Bes | F19: =VLOOKUP(A5,V5:BE80,36,FALSE) -> 0 | U19: 15 | V19: =PUANTAJ!B35 ->  | W19: ='PERSONEL BİLGİ GİRİŞİ'!H19 -> 0 | X19: ='PERSONEL BİLGİ GİRİŞİ'!Q19 -> 0 | Y19: ='PERSONEL BİLGİ GİRİŞİ'!R19 -> 0 | Z19: ='PERSONEL BİLGİ GİRİŞİ'!U19 -> 0 | AA19: ='PERSONEL BİLGİ GİRİŞİ'!E19 -> 0 | AB19: =PUANTAJ!AU35 -> 0 | AC19: =' BORDRO HAZIRLIK'!AE19 -> 0 | AD19: =' BORDRO HAZIRLIK'!AF19 -> 0 | AE19: =' BORDRO HAZIRLIK'!K19 -> 0 | AF19: =' BORDRO HAZIRLIK'!BH19 -> 0 | AG19: =' BORDRO HAZIRLIK'!AK19 -> 0 | AH19: =' BORDRO HAZIRLIK'!AO19 -> 0 | AI19: =' BORDRO HAZIRLIK'!AP19 -> 0 | AJ19: =' BORDRO HAZIRLIK'!AQ19 -> 0 | AK19: =' BORDRO HAZIRLIK'!AN19 -> 0 | AL19: =' BORDRO HAZIRLIK'!P19 -> 0 | AM19: =' BORDRO HAZIRLIK'!Q19 -> 0 | AP19: =PUANTAJ!AI35 -> 0 | AQ19: =PUANTAJ!AJ35 -> 0 | AR19: =PUANTAJ!AK35 -> 0 | AS19: =PUANTAJ!AM35 -> 0 | AW19: =' BORDRO HAZIRLIK'!AY19 -> 0 | AX19: =' BORDRO HAZIRLIK'!AZ19 -> 0 | AY19: =' BORDRO HAZIRLIK'!BA19 -> 0 | AZ19: =' BORDRO HAZIRLIK'!BB19 -> 0 | BB19: =' BORDRO HAZIRLIK'!AR19 -> 0 | BC19: =' BORDRO HAZIRLIK'!AJ19 -> 0 | BE19: =' BORDRO HAZIRLIK'!AS19 -> 0 | BF19: =' BORDRO HAZIRLIK'!AT19 -> 0 | BG19: =' BORDRO HAZIRLIK'!I19 -> 0 | BJ19: =' BORDRO HAZIRLIK'!BC19 -> 0 | BK19: =' BORDRO HAZIRLIK'!BD19 -> 0 | BL19: =' BORDRO HAZIRLIK'!BE19 -> 0 | BM19: ='PERSONEL BİLGİ GİRİŞİ'!I19 -> 0 | BS19: =' BORDRO HAZIRLIK'!AG19 -> 0 | BT19: =' BORDRO HAZIRLIK'!AH19 -> 0
A20: TOPLAM | B20: =VLOOKUP(A5,V5:BT780,24,FALSE) -> 205 | C20: SAAT | E20: İcra | F20: =VLOOKUP(A5,V5:BF80,37,FALSE) -> 0 | U20: 16 | V20: =PUANTAJ!B37 ->  | W20: ='PERSONEL BİLGİ GİRİŞİ'!H20 -> 0 | X20: ='PERSONEL BİLGİ GİRİŞİ'!Q20 -> 0 | Y20: ='PERSONEL BİLGİ GİRİŞİ'!R20 -> 0 | Z20: ='PERSONEL BİLGİ GİRİŞİ'!U20 -> 0 | AA20: ='PERSONEL BİLGİ GİRİŞİ'!E20 -> 0 | AB20: =PUANTAJ!AU37 -> 0 | AC20: =' BORDRO HAZIRLIK'!AE20 -> 0 | AD20: =' BORDRO HAZIRLIK'!AF20 -> 0 | AE20: =' BORDRO HAZIRLIK'!K20 -> 0 | AF20: =' BORDRO HAZIRLIK'!BH20 -> 0 | AG20: =' BORDRO HAZIRLIK'!AK20 -> 0 | AH20: =' BORDRO HAZIRLIK'!AO20 -> 0 | AI20: =' BORDRO HAZIRLIK'!AP20 -> 0 | AJ20: =' BORDRO HAZIRLIK'!AQ20 -> 0 | AK20: =' BORDRO HAZIRLIK'!AN20 -> 0 | AL20: =' BORDRO HAZIRLIK'!P20 -> 0 | AM20: =' BORDRO HAZIRLIK'!Q20 -> 0 | AP20: =PUANTAJ!AI37 -> 0 | AQ20: =PUANTAJ!AJ37 -> 0 | AR20: =PUANTAJ!AK37 -> 0 | AS20: =PUANTAJ!AM37 -> 0 | AW20: =' BORDRO HAZIRLIK'!AY20 -> 0 | AX20: =' BORDRO HAZIRLIK'!AZ20 -> 0 | AY20: =' BORDRO HAZIRLIK'!BA20 -> 0 | AZ20: =' BORDRO HAZIRLIK'!BB20 -> 0 | BB20: =' BORDRO HAZIRLIK'!AR20 -> 0 | BC20: =' BORDRO HAZIRLIK'!AJ20 -> 0 | BE20: =' BORDRO HAZIRLIK'!AS20 -> 0 | BF20: =' BORDRO HAZIRLIK'!AT20 -> 0 | BG20: =' BORDRO HAZIRLIK'!I20 -> 0 | BJ20: =' BORDRO HAZIRLIK'!BC20 -> 0 | BK20: =' BORDRO HAZIRLIK'!BD20 -> 0 | BL20: =' BORDRO HAZIRLIK'!BE20 -> 0 | BM20: ='PERSONEL BİLGİ GİRİŞİ'!I20 -> 0 | BS20: =' BORDRO HAZIRLIK'!AG20 -> 0 | BT20: =' BORDRO HAZIRLIK'!AH20 -> 0
E21: Nafaka | F21: =VLOOKUP(A5,V5:BF80,19,FALSE) -> 0 | U21: 17 | V21: =PUANTAJ!B39 ->  | W21: ='PERSONEL BİLGİ GİRİŞİ'!H21 -> 0 | X21: ='PERSONEL BİLGİ GİRİŞİ'!Q21 -> 0 | Y21: ='PERSONEL BİLGİ GİRİŞİ'!R21 -> 0 | Z21: ='PERSONEL BİLGİ GİRİŞİ'!U21 -> 0 | AA21: ='PERSONEL BİLGİ GİRİŞİ'!E21 -> 0 | AB21: =PUANTAJ!AU39 -> 0 | AC21: =' BORDRO HAZIRLIK'!AE21 -> 0 | AD21: =' BORDRO HAZIRLIK'!AF21 -> 0 | AE21: =' BORDRO HAZIRLIK'!K21 -> 0 | AF21: =' BORDRO HAZIRLIK'!BH21 -> 0 | AG21: =' BORDRO HAZIRLIK'!AK21 -> 0 | AH21: =' BORDRO HAZIRLIK'!AO21 -> 0 | AI21: =' BORDRO HAZIRLIK'!AP21 -> 0 | AJ21: =' BORDRO HAZIRLIK'!AQ21 -> 0 | AK21: =' BORDRO HAZIRLIK'!AN21 -> 0 | AL21: =' BORDRO HAZIRLIK'!P21 -> 0 | AM21: =' BORDRO HAZIRLIK'!Q21 -> 0 | AP21: =PUANTAJ!AI39 -> 0 | AQ21: =PUANTAJ!AJ39 -> 0 | AR21: =PUANTAJ!AK39 -> 0 | AS21: =PUANTAJ!AM39 -> 0 | AW21: =' BORDRO HAZIRLIK'!AY21 -> 0 | AX21: =' BORDRO HAZIRLIK'!AZ21 -> 0 | AY21: =' BORDRO HAZIRLIK'!BA21 -> 0 | AZ21: =' BORDRO HAZIRLIK'!BB21 -> 0 | BB21: =' BORDRO HAZIRLIK'!AR21 -> 0 | BC21: =' BORDRO HAZIRLIK'!AJ21 -> 0 | BE21: =' BORDRO HAZIRLIK'!AS21 -> 0 | BF21: =' BORDRO HAZIRLIK'!AT21 -> 0 | BG21: =' BORDRO HAZIRLIK'!I21 -> 0 | BJ21: =' BORDRO HAZIRLIK'!BC21 -> 0 | BK21: =' BORDRO HAZIRLIK'!BD21 -> 0 | BL21: =' BORDRO HAZIRLIK'!BE21 -> 0 | BM21: ='PERSONEL BİLGİ GİRİŞİ'!I21 -> 0 | BS21: =' BORDRO HAZIRLIK'!AG21 -> 0 | BT21: =' BORDRO HAZIRLIK'!AH21 -> 0
A22: GÜNDÜZ SAAT ÜCRETİ(1SAAT) | B22: =VLOOKUP(A5,V5:AS80,4,FALSE) -> 106.52 | E22: KESİNTİLER | F22: =SUM(F6:F21)-F10 -> 7814.16 | U22: 18 | V22: =PUANTAJ!B41 ->  | W22: ='PERSONEL BİLGİ GİRİŞİ'!H22 -> 0 | X22: ='PERSONEL BİLGİ GİRİŞİ'!Q22 -> 0 | Y22: ='PERSONEL BİLGİ GİRİŞİ'!R22 -> 0 | Z22: ='PERSONEL BİLGİ GİRİŞİ'!U22 -> 0 | AA22: ='PERSONEL BİLGİ GİRİŞİ'!E22 -> 0 | AB22: =PUANTAJ!AU41 -> 0 | AC22: =' BORDRO HAZIRLIK'!AE22 -> 0 | AD22: =' BORDRO HAZIRLIK'!AF22 -> 0 | AE22: =' BORDRO HAZIRLIK'!K22 -> 0 | AF22: =' BORDRO HAZIRLIK'!BH22 -> 0 | AG22: =' BORDRO HAZIRLIK'!AK22 -> 0 | AH22: =' BORDRO HAZIRLIK'!AO22 -> 0 | AI22: =' BORDRO HAZIRLIK'!AP22 -> 0 | AJ22: =' BORDRO HAZIRLIK'!AQ22 -> 0 | AK22: =' BORDRO HAZIRLIK'!AN22 -> 0 | AL22: =' BORDRO HAZIRLIK'!P22 -> 0 | AM22: =' BORDRO HAZIRLIK'!Q22 -> 0 | AP22: =PUANTAJ!AI41 -> 0 | AQ22: =PUANTAJ!AJ41 -> 0 | AR22: =PUANTAJ!AK41 -> 0 | AS22: =PUANTAJ!AM41 -> 0 | AW22: =' BORDRO HAZIRLIK'!AY22 -> 0 | AX22: =' BORDRO HAZIRLIK'!AZ22 -> 0 | AY22: =' BORDRO HAZIRLIK'!BA22 -> 0 | AZ22: =' BORDRO HAZIRLIK'!BB22 -> 0 | BB22: =' BORDRO HAZIRLIK'!AR22 -> 0 | BC22: =' BORDRO HAZIRLIK'!AJ22 -> 0 | BE22: =' BORDRO HAZIRLIK'!AS22 -> 0 | BF22: =' BORDRO HAZIRLIK'!AT22 -> 0 | BG22: =' BORDRO HAZIRLIK'!I22 -> 0 | BJ22: =' BORDRO HAZIRLIK'!BC22 -> 0 | BK22: =' BORDRO HAZIRLIK'!BD22 -> 0 | BL22: =' BORDRO HAZIRLIK'!BE22 -> 0 | BM22: ='PERSONEL BİLGİ GİRİŞİ'!I22 -> 0 | BS22: =' BORDRO HAZIRLIK'!AG22 -> 0 | BT22: =' BORDRO HAZIRLIK'!AH22 -> 0
A23: GECE SAAT ÜCRETİ(1 SAAT) | B23: =VLOOKUP(A5,V5:AS80,5,FALSE) -> 114.13 | E23: KAZANÇ | F23: =B9+B10 -> 38838.72 | U23: 19 | V23: =PUANTAJ!B43 ->  | W23: ='PERSONEL BİLGİ GİRİŞİ'!H23 -> 0 | X23: ='PERSONEL BİLGİ GİRİŞİ'!Q23 -> 0 | Y23: ='PERSONEL BİLGİ GİRİŞİ'!R23 -> 0 | Z23: ='PERSONEL BİLGİ GİRİŞİ'!U23 -> 0 | AA23: ='PERSONEL BİLGİ GİRİŞİ'!E23 -> 0 | AB23: =PUANTAJ!AU43 -> 0 | AC23: =' BORDRO HAZIRLIK'!AE23 -> 0 | AD23: =' BORDRO HAZIRLIK'!AF23 -> 0 | AE23: =' BORDRO HAZIRLIK'!K23 -> 0 | AF23: =' BORDRO HAZIRLIK'!BH23 -> 0 | AG23: =' BORDRO HAZIRLIK'!AK23 -> 0 | AH23: =' BORDRO HAZIRLIK'!AO23 -> 0 | AI23: =' BORDRO HAZIRLIK'!AP23 -> 0 | AJ23: =' BORDRO HAZIRLIK'!AQ23 -> 0 | AK23: =' BORDRO HAZIRLIK'!AN23 -> 0 | AL23: =' BORDRO HAZIRLIK'!P23 -> 0 | AM23: =' BORDRO HAZIRLIK'!Q23 -> 0 | AP23: =PUANTAJ!AI43 -> 0 | AQ23: =PUANTAJ!AJ43 -> 0 | AR23: =PUANTAJ!AK43 -> 0 | AS23: =PUANTAJ!AM43 -> 0 | AW23: =' BORDRO HAZIRLIK'!AY23 -> 0 | AX23: =' BORDRO HAZIRLIK'!AZ23 -> 0 | AY23: =' BORDRO HAZIRLIK'!BA23 -> 0 | AZ23: =' BORDRO HAZIRLIK'!BB23 -> 0 | BB23: =' BORDRO HAZIRLIK'!AR23 -> 0 | BC23: =' BORDRO HAZIRLIK'!AJ23 -> 0 | BE23: =' BORDRO HAZIRLIK'!AS23 -> 0 | BF23: =' BORDRO HAZIRLIK'!AT23 -> 0 | BG23: =' BORDRO HAZIRLIK'!I23 -> 0 | BJ23: =' BORDRO HAZIRLIK'!BC23 -> 0 | BK23: =' BORDRO HAZIRLIK'!BD23 -> 0 | BL23: =' BORDRO HAZIRLIK'!BE23 -> 0 | BM23: ='PERSONEL BİLGİ GİRİŞİ'!I23 -> 0 | BS23: =' BORDRO HAZIRLIK'!AG23 -> 0 | BT23: =' BORDRO HAZIRLIK'!AH23 -> 0
A24: GELİR VERGİSİ İSTİSNA TUTARI | B24: =VLOOKUP(A5,V5:BU79,50,FALSE) -> 2550.32 | E24: NET ÜCRET | F24: =VLOOKUP(A5,V5:AF80,11,FALSE) -> 18498.96 | U24: 20 | V24: =PUANTAJ!B45 ->  | W24: ='PERSONEL BİLGİ GİRİŞİ'!H24 -> 0 | X24: ='PERSONEL BİLGİ GİRİŞİ'!Q24 -> 0 | Y24: ='PERSONEL BİLGİ GİRİŞİ'!R24 -> 0 | Z24: ='PERSONEL BİLGİ GİRİŞİ'!U24 -> 0 | AA24: ='PERSONEL BİLGİ GİRİŞİ'!E24 -> 0 | AB24: =PUANTAJ!AU45 -> 0 | AC24: =' BORDRO HAZIRLIK'!AE24 -> 0 | AD24: =' BORDRO HAZIRLIK'!AF24 -> 0 | AE24: =' BORDRO HAZIRLIK'!K24 -> 0 | AF24: =' BORDRO HAZIRLIK'!BH24 -> 0 | AG24: =' BORDRO HAZIRLIK'!AK24 -> 0 | AH24: =' BORDRO HAZIRLIK'!AO24 -> 0 | AI24: =' BORDRO HAZIRLIK'!AP24 -> 0 | AJ24: =' BORDRO HAZIRLIK'!AQ24 -> 0 | AK24: =' BORDRO HAZIRLIK'!AN24 -> 0 | AL24: =' BORDRO HAZIRLIK'!P24 -> 0 | AM24: =' BORDRO HAZIRLIK'!Q24 -> 0 | AP24: =PUANTAJ!AI45 -> 0 | AQ24: =PUANTAJ!AJ45 -> 0 | AR24: =PUANTAJ!AK45 -> 0 | AS24: =PUANTAJ!AM45 -> 0 | AW24: =' BORDRO HAZIRLIK'!AY24 -> 0 | AX24: =' BORDRO HAZIRLIK'!AZ24 -> 0 | AY24: =' BORDRO HAZIRLIK'!BA24 -> 0 | AZ24: =' BORDRO HAZIRLIK'!BB24 -> 0 | BB24: =' BORDRO HAZIRLIK'!AR24 -> 0 | BC24: =' BORDRO HAZIRLIK'!AJ24 -> 0 | BE24: =' BORDRO HAZIRLIK'!AS24 -> 0 | BF24: =' BORDRO HAZIRLIK'!AT24 -> 0 | BG24: =' BORDRO HAZIRLIK'!I24 -> 0 | BJ24: =' BORDRO HAZIRLIK'!BC24 -> 0 | BK24: =' BORDRO HAZIRLIK'!BD24 -> 0 | BL24: =' BORDRO HAZIRLIK'!BE24 -> 0 | BM24: ='PERSONEL BİLGİ GİRİŞİ'!I24 -> 0 | BS24: =' BORDRO HAZIRLIK'!AG24 -> 0 | BT24: =' BORDRO HAZIRLIK'!AH24 -> 0
A25: DAMGA VERGİSİ İSTİSNA TUTARI | B25: =VLOOKUP(A5,V5:BU79,51,FALSE) -> 151.82 | U25: 21 | V25: =PUANTAJ!B47 ->  | W25: ='PERSONEL BİLGİ GİRİŞİ'!H25 -> 0 | X25: ='PERSONEL BİLGİ GİRİŞİ'!Q25 -> 0 | Y25: ='PERSONEL BİLGİ GİRİŞİ'!R25 -> 0 | Z25: ='PERSONEL BİLGİ GİRİŞİ'!U25 -> 0 | AA25: ='PERSONEL BİLGİ GİRİŞİ'!E25 -> 0 | AB25: =PUANTAJ!AU47 -> 0 | AC25: =' BORDRO HAZIRLIK'!AE25 -> 0 | AD25: =' BORDRO HAZIRLIK'!AF25 -> 0 | AE25: =' BORDRO HAZIRLIK'!K25 -> 0 | AF25: =' BORDRO HAZIRLIK'!BH25 -> 0 | AG25: =' BORDRO HAZIRLIK'!AK25 -> 0 | AH25: =' BORDRO HAZIRLIK'!AO25 -> 0 | AI25: =' BORDRO HAZIRLIK'!AP25 -> 0 | AJ25: =' BORDRO HAZIRLIK'!AQ25 -> 0 | AK25: =' BORDRO HAZIRLIK'!AN25 -> 0 | AL25: =' BORDRO HAZIRLIK'!P25 -> 0 | AM25: =' BORDRO HAZIRLIK'!Q25 -> 0 | AP25: =PUANTAJ!AI47 -> 0 | AQ25: =PUANTAJ!AJ47 -> 0 | AR25: =PUANTAJ!AK47 -> 0 | AS25: =PUANTAJ!AM47 -> 0 | AW25: =' BORDRO HAZIRLIK'!AY25 -> 0 | AX25: =' BORDRO HAZIRLIK'!AZ25 -> 0 | AY25: =' BORDRO HAZIRLIK'!BA25 -> 0 | AZ25: =' BORDRO HAZIRLIK'!BB25 -> 0 | BB25: =' BORDRO HAZIRLIK'!AR25 -> 0 | BC25: =' BORDRO HAZIRLIK'!AJ25 -> 0 | BE25: =' BORDRO HAZIRLIK'!AS25 -> 0 | BF25: =' BORDRO HAZIRLIK'!AT25 -> 0 | BG25: =' BORDRO HAZIRLIK'!I25 -> 0 | BJ25: =' BORDRO HAZIRLIK'!BC25 -> 0 | BK25: =' BORDRO HAZIRLIK'!BD25 -> 0 | BL25: =' BORDRO HAZIRLIK'!BE25 -> 0 | BM25: ='PERSONEL BİLGİ GİRİŞİ'!I25 -> 0 | BS25: =' BORDRO HAZIRLIK'!AG25 -> 0 | BT25: =' BORDRO HAZIRLIK'!AH25 -> 0
E26: İMZA | U26: 22 | V26: =PUANTAJ!B49 ->  | W26: ='PERSONEL BİLGİ GİRİŞİ'!H26 -> 0 | X26: ='PERSONEL BİLGİ GİRİŞİ'!Q26 -> 0 | Y26: ='PERSONEL BİLGİ GİRİŞİ'!R26 -> 0 | Z26: ='PERSONEL BİLGİ GİRİŞİ'!U26 -> 0 | AA26: ='PERSONEL BİLGİ GİRİŞİ'!E26 -> 0 | AB26: =PUANTAJ!AU49 -> 0 | AC26: =' BORDRO HAZIRLIK'!AE26 -> 0 | AD26: =' BORDRO HAZIRLIK'!AF26 -> 0 | AE26: =' BORDRO HAZIRLIK'!K26 -> 0 | AF26: =' BORDRO HAZIRLIK'!BH26 -> 0 | AG26: =' BORDRO HAZIRLIK'!AK26 -> 0 | AH26: =' BORDRO HAZIRLIK'!AO26 -> 0 | AI26: =' BORDRO HAZIRLIK'!AP26 -> 0 | AJ26: =' BORDRO HAZIRLIK'!AQ26 -> 0 | AK26: =' BORDRO HAZIRLIK'!AN26 -> 0 | AL26: =' BORDRO HAZIRLIK'!P26 -> 0 | AM26: =' BORDRO HAZIRLIK'!Q26 -> 0 | AP26: =PUANTAJ!AI49 -> 0 | AQ26: =PUANTAJ!AJ49 -> 0 | AR26: =PUANTAJ!AK49 -> 0 | AS26: =PUANTAJ!AM49 -> 0 | AW26: =' BORDRO HAZIRLIK'!AY26 -> 0 | AX26: =' BORDRO HAZIRLIK'!AZ26 -> 0 | AY26: =' BORDRO HAZIRLIK'!BA26 -> 0 | AZ26: =' BORDRO HAZIRLIK'!BB26 -> 0 | BB26: =' BORDRO HAZIRLIK'!AR26 -> 0 | BC26: =' BORDRO HAZIRLIK'!AJ26 -> 0 | BE26: =' BORDRO HAZIRLIK'!AS26 -> 0 | BF26: =' BORDRO HAZIRLIK'!AT26 -> 0 | BG26: =' BORDRO HAZIRLIK'!I26 -> 0 | BJ26: =' BORDRO HAZIRLIK'!BC26 -> 0 | BK26: =' BORDRO HAZIRLIK'!BD26 -> 0 | BL26: =' BORDRO HAZIRLIK'!BE26 -> 0 | BM26: ='PERSONEL BİLGİ GİRİŞİ'!I26 -> 0 | BS26: =' BORDRO HAZIRLIK'!AG26 -> 0 | BT26: =' BORDRO HAZIRLIK'!AH26 -> 0
A27: Aylık Gelir Vergi Matr. | B27: =VLOOKUP(A5,V5:AO80,12,FALSE) -> 18779.48 | C27: % | D27: =IF(B28<'ANA SAYFA'!P19,15,IF(B28<'ANA SAYFA'!P20,20,27)) -> 15 | E27: =A5 -> ALİ BZC | U27: 23 | V27: =PUANTAJ!B51 ->  | W27: ='PERSONEL BİLGİ GİRİŞİ'!H27 -> 0 | X27: ='PERSONEL BİLGİ GİRİŞİ'!Q27 -> 0 | Y27: ='PERSONEL BİLGİ GİRİŞİ'!R27 -> 0 | Z27: ='PERSONEL BİLGİ GİRİŞİ'!U27 -> 0 | AA27: ='PERSONEL BİLGİ GİRİŞİ'!E27 -> 0 | AB27: =PUANTAJ!AU51 -> 0 | AC27: =' BORDRO HAZIRLIK'!AE27 -> 0 | AD27: =' BORDRO HAZIRLIK'!AF27 -> 0 | AE27: =' BORDRO HAZIRLIK'!K27 -> 0 | AF27: =' BORDRO HAZIRLIK'!BH27 -> 0 | AG27: =' BORDRO HAZIRLIK'!AK27 -> 0 | AH27: =' BORDRO HAZIRLIK'!AO27 -> 0 | AI27: =' BORDRO HAZIRLIK'!AP27 -> 0 | AJ27: =' BORDRO HAZIRLIK'!AQ27 -> 0 | AK27: =' BORDRO HAZIRLIK'!AN27 -> 0 | AL27: =' BORDRO HAZIRLIK'!P27 -> 0 | AM27: =' BORDRO HAZIRLIK'!Q27 -> 0 | AP27: =PUANTAJ!AI51 -> 0 | AQ27: =PUANTAJ!AJ51 -> 0 | AR27: =PUANTAJ!AK51 -> 0 | AS27: =PUANTAJ!AM51 -> 0 | AW27: =' BORDRO HAZIRLIK'!AY27 -> 0 | AX27: =' BORDRO HAZIRLIK'!AZ27 -> 0 | AY27: =' BORDRO HAZIRLIK'!BA27 -> 0 | AZ27: =' BORDRO HAZIRLIK'!BB27 -> 0 | BB27: =' BORDRO HAZIRLIK'!AR27 -> 0 | BC27: =' BORDRO HAZIRLIK'!AJ27 -> 0 | BE27: =' BORDRO HAZIRLIK'!AS27 -> 0 | BF27: =' BORDRO HAZIRLIK'!AT27 -> 0 | BG27: =' BORDRO HAZIRLIK'!I27 -> 0 | BJ27: =' BORDRO HAZIRLIK'!BC27 -> 0 | BK27: =' BORDRO HAZIRLIK'!BD27 -> 0 | BL27: =' BORDRO HAZIRLIK'!BE27 -> 0 | BM27: ='PERSONEL BİLGİ GİRİŞİ'!I27 -> 0 | BS27: =' BORDRO HAZIRLIK'!AG27 -> 0 | BT27: =' BORDRO HAZIRLIK'!AH27 -> 0
A28: Yıllık Toplam Gelir Vergisi | B28: =VLOOKUP(A5,V5:AK80,16,FALSE) -> 18779.48 | U28: 24 | V28: =PUANTAJ!B53 ->  | W28: ='PERSONEL BİLGİ GİRİŞİ'!H28 -> 0 | X28: ='PERSONEL BİLGİ GİRİŞİ'!Q28 -> 0 | Y28: ='PERSONEL BİLGİ GİRİŞİ'!R28 -> 0 | Z28: ='PERSONEL BİLGİ GİRİŞİ'!U28 -> 0 | AA28: ='PERSONEL BİLGİ GİRİŞİ'!E28 -> 0 | AB28: =PUANTAJ!AU53 -> 0 | AC28: =' BORDRO HAZIRLIK'!AE28 -> 0 | AD28: =' BORDRO HAZIRLIK'!AF28 -> 0 | AE28: =' BORDRO HAZIRLIK'!K28 -> 0 | AF28: =' BORDRO HAZIRLIK'!BH28 -> 0 | AG28: =' BORDRO HAZIRLIK'!AK28 -> 0 | AH28: =' BORDRO HAZIRLIK'!AO28 -> 0 | AI28: =' BORDRO HAZIRLIK'!AP28 -> 0 | AJ28: =' BORDRO HAZIRLIK'!AQ28 -> 0 | AK28: =' BORDRO HAZIRLIK'!AN28 -> 0 | AL28: =' BORDRO HAZIRLIK'!P28 -> 0 | AM28: =' BORDRO HAZIRLIK'!Q28 -> 0 | AP28: =PUANTAJ!AI53 -> 0 | AQ28: =PUANTAJ!AJ53 -> 0 | AR28: =PUANTAJ!AK53 -> 0 | AS28: =PUANTAJ!AM53 -> 0 | AW28: =' BORDRO HAZIRLIK'!AY28 -> 0 | AX28: =' BORDRO HAZIRLIK'!AZ28 -> 0 | AY28: =' BORDRO HAZIRLIK'!BA28 -> 0 | AZ28: =' BORDRO HAZIRLIK'!BB28 -> 0 | BB28: =' BORDRO HAZIRLIK'!AR28 -> 0 | BC28: =' BORDRO HAZIRLIK'!AJ28 -> 0 | BE28: =' BORDRO HAZIRLIK'!AS28 -> 0 | BF28: =' BORDRO HAZIRLIK'!AT28 -> 0 | BG28: =' BORDRO HAZIRLIK'!I28 -> 0 | BJ28: =' BORDRO HAZIRLIK'!BC28 -> 0 | BK28: =' BORDRO HAZIRLIK'!BD28 -> 0 | BL28: =' BORDRO HAZIRLIK'!BE28 -> 0 | BM28: ='PERSONEL BİLGİ GİRİŞİ'!I28 -> 0 | BS28: =' BORDRO HAZIRLIK'!AG28 -> 0 | BT28: =' BORDRO HAZIRLIK'!AH28 -> 0
A29: İstisna Aylık Gelir Vergi Matr. | B29: =VLOOKUP(A5,V5:AO80,8,FALSE) -> 17002.12 | C29: % | D29: =IF(B30<'ANA SAYFA'!P19,15,IF(B30<'ANA SAYFA'!P20,20,27)) -> 15 | U29: 25 | V29: =PUANTAJ!B55 ->  | W29: ='PERSONEL BİLGİ GİRİŞİ'!H29 -> 0 | X29: ='PERSONEL BİLGİ GİRİŞİ'!Q29 -> 0 | Y29: ='PERSONEL BİLGİ GİRİŞİ'!R29 -> 0 | Z29: ='PERSONEL BİLGİ GİRİŞİ'!U29 -> 0 | AA29: ='PERSONEL BİLGİ GİRİŞİ'!E29 -> 0 | AB29: =PUANTAJ!AU55 -> 0 | AC29: =' BORDRO HAZIRLIK'!AE29 -> 0 | AD29: =' BORDRO HAZIRLIK'!AF29 -> 0 | AE29: =' BORDRO HAZIRLIK'!K29 -> 0 | AF29: =' BORDRO HAZIRLIK'!BH29 -> 0 | AG29: =' BORDRO HAZIRLIK'!AK29 -> 0 | AH29: =' BORDRO HAZIRLIK'!AO29 -> 0 | AI29: =' BORDRO HAZIRLIK'!AP29 -> 0 | AJ29: =' BORDRO HAZIRLIK'!AQ29 -> 0 | AK29: =' BORDRO HAZIRLIK'!AN29 -> 0 | AL29: =' BORDRO HAZIRLIK'!P29 -> 0 | AM29: =' BORDRO HAZIRLIK'!Q29 -> 0 | AP29: =PUANTAJ!AI55 -> 0 | AQ29: =PUANTAJ!AJ55 -> 0 | AR29: =PUANTAJ!AK55 -> 0 | AS29: =PUANTAJ!AM55 -> 0 | AW29: =' BORDRO HAZIRLIK'!AY29 -> 0 | AX29: =' BORDRO HAZIRLIK'!AZ29 -> 0 | AY29: =' BORDRO HAZIRLIK'!BA29 -> 0 | AZ29: =' BORDRO HAZIRLIK'!BB29 -> 0 | BB29: =' BORDRO HAZIRLIK'!AR29 -> 0 | BC29: =' BORDRO HAZIRLIK'!AJ29 -> 0 | BE29: =' BORDRO HAZIRLIK'!AS29 -> 0 | BF29: =' BORDRO HAZIRLIK'!AT29 -> 0 | BG29: =' BORDRO HAZIRLIK'!I29 -> 0 | BJ29: =' BORDRO HAZIRLIK'!BC29 -> 0 | BK29: =' BORDRO HAZIRLIK'!BD29 -> 0 | BL29: =' BORDRO HAZIRLIK'!BE29 -> 0 | BM29: ='PERSONEL BİLGİ GİRİŞİ'!I29 -> 0 | BS29: =' BORDRO HAZIRLIK'!AG29 -> 0 | BT29: =' BORDRO HAZIRLIK'!AH29 -> 0
A30: İstisna Yıllık Top. Gelir Vergisi | B30: =VLOOKUP(A5,V5:AK80,9,FALSE) -> 17002.12 | U30: 26 | V30: =PUANTAJ!B57 ->  | W30: ='PERSONEL BİLGİ GİRİŞİ'!H30 -> 0 | X30: ='PERSONEL BİLGİ GİRİŞİ'!Q30 -> 0 | Y30: ='PERSONEL BİLGİ GİRİŞİ'!R30 -> 0 | Z30: ='PERSONEL BİLGİ GİRİŞİ'!U30 -> 0 | AA30: ='PERSONEL BİLGİ GİRİŞİ'!E30 -> 0 | AB30: =PUANTAJ!AU57 -> 0 | AC30: =' BORDRO HAZIRLIK'!AE30 -> 0 | AD30: =' BORDRO HAZIRLIK'!AF30 -> 0 | AE30: =' BORDRO HAZIRLIK'!K30 -> 0 | AF30: =' BORDRO HAZIRLIK'!BH30 -> 0 | AG30: =' BORDRO HAZIRLIK'!AK30 -> 0 | AH30: =' BORDRO HAZIRLIK'!AO30 -> 0 | AI30: =' BORDRO HAZIRLIK'!AP30 -> 0 | AJ30: =' BORDRO HAZIRLIK'!AQ30 -> 0 | AK30: =' BORDRO HAZIRLIK'!AN30 -> 0 | AL30: =' BORDRO HAZIRLIK'!P30 -> 0 | AM30: =' BORDRO HAZIRLIK'!Q30 -> 0 | AP30: =PUANTAJ!AI57 -> 0 | AQ30: =PUANTAJ!AJ57 -> 0 | AR30: =PUANTAJ!AK57 -> 0 | AS30: =PUANTAJ!AM57 -> 0 | AW30: =' BORDRO HAZIRLIK'!AY30 -> 0 | AX30: =' BORDRO HAZIRLIK'!AZ30 -> 0 | AY30: =' BORDRO HAZIRLIK'!BA30 -> 0 | AZ30: =' BORDRO HAZIRLIK'!BB30 -> 0 | BB30: =' BORDRO HAZIRLIK'!AR30 -> 0 | BC30: =' BORDRO HAZIRLIK'!AJ30 -> 0 | BE30: =' BORDRO HAZIRLIK'!AS30 -> 0 | BF30: =' BORDRO HAZIRLIK'!AT30 -> 0 | BG30: =' BORDRO HAZIRLIK'!I30 -> 0 | BJ30: =' BORDRO HAZIRLIK'!BC30 -> 0 | BK30: =' BORDRO HAZIRLIK'!BD30 -> 0 | BL30: =' BORDRO HAZIRLIK'!BE30 -> 0 | BM30: ='PERSONEL BİLGİ GİRİŞİ'!I30 -> 0 | BS30: =' BORDRO HAZIRLIK'!AG30 -> 0 | BT30: =' BORDRO HAZIRLIK'!AH30 -> 0
A31: E MAİL | B31: =VLOOKUP(A5,V5:BM45,44,FALSE) -> 0 | E31: =TODAY() -> 2024-02-05 | U31: 27 | V31: =PUANTAJ!B59 ->  | W31: ='PERSONEL BİLGİ GİRİŞİ'!H31 -> 0 | X31: ='PERSONEL BİLGİ GİRİŞİ'!Q31 -> 0 | Y31: ='PERSONEL BİLGİ GİRİŞİ'!R31 -> 0 | Z31: ='PERSONEL BİLGİ GİRİŞİ'!U31 -> 0 | AA31: ='PERSONEL BİLGİ GİRİŞİ'!E31 -> 0 | AB31: =PUANTAJ!AU59 -> 0 | AC31: =' BORDRO HAZIRLIK'!AE31 -> 0 | AD31: =' BORDRO HAZIRLIK'!AF31 -> 0 | AE31: =' BORDRO HAZIRLIK'!K31 -> 0 | AF31: =' BORDRO HAZIRLIK'!BH31 -> 0 | AG31: =' BORDRO HAZIRLIK'!AK31 -> 0 | AH31: =' BORDRO HAZIRLIK'!AO31 -> 0 | AI31: =' BORDRO HAZIRLIK'!AP31 -> 0 | AJ31: =' BORDRO HAZIRLIK'!AQ31 -> 0 | AK31: =' BORDRO HAZIRLIK'!AN31 -> 0 | AL31: =' BORDRO HAZIRLIK'!P31 -> 0 | AM31: =' BORDRO HAZIRLIK'!Q31 -> 0 | AP31: =PUANTAJ!AI59 -> 0 | AQ31: =PUANTAJ!AJ59 -> 0 | AR31: =PUANTAJ!AK59 -> 0 | AS31: =PUANTAJ!AM59 -> 0 | AW31: =' BORDRO HAZIRLIK'!AY31 -> 0 | AX31: =' BORDRO HAZIRLIK'!AZ31 -> 0 | AY31: =' BORDRO HAZIRLIK'!BA31 -> 0 | AZ31: =' BORDRO HAZIRLIK'!BB31 -> 0 | BB31: =' BORDRO HAZIRLIK'!AR31 -> 0 | BC31: =' BORDRO HAZIRLIK'!AJ31 -> 0 | BE31: =' BORDRO HAZIRLIK'!AS31 -> 0 | BF31: =' BORDRO HAZIRLIK'!AT31 -> 0 | BG31: =' BORDRO HAZIRLIK'!I31 -> 0 | BJ31: =' BORDRO HAZIRLIK'!BC31 -> 0 | BK31: =' BORDRO HAZIRLIK'!BD31 -> 0 | BL31: =' BORDRO HAZIRLIK'!BE31 -> 0 | BM31: ='PERSONEL BİLGİ GİRİŞİ'!I31 -> 0 | BS31: =' BORDRO HAZIRLIK'!AG31 -> 0 | BT31: =' BORDRO HAZIRLIK'!AH31 -> 0
U32: 28 | V32: =PUANTAJ!B61 ->  | W32: ='PERSONEL BİLGİ GİRİŞİ'!H32 -> 0 | X32: ='PERSONEL BİLGİ GİRİŞİ'!Q32 -> 0 | Y32: ='PERSONEL BİLGİ GİRİŞİ'!R32 -> 0 | Z32: ='PERSONEL BİLGİ GİRİŞİ'!U32 -> 0 | AA32: ='PERSONEL BİLGİ GİRİŞİ'!E32 -> 0 | AB32: =PUANTAJ!AU61 -> 0 | AC32: =' BORDRO HAZIRLIK'!AE32 -> 0 | AD32: =' BORDRO HAZIRLIK'!AF32 -> 0 | AE32: =' BORDRO HAZIRLIK'!K32 -> 0 | AF32: =' BORDRO HAZIRLIK'!BH32 -> 0 | AG32: =' BORDRO HAZIRLIK'!AK32 -> 0 | AH32: =' BORDRO HAZIRLIK'!AO32 -> 0 | AI32: =' BORDRO HAZIRLIK'!AP32 -> 0 | AJ32: =' BORDRO HAZIRLIK'!AQ32 -> 0 | AK32: =' BORDRO HAZIRLIK'!AN32 -> 0 | AL32: =' BORDRO HAZIRLIK'!P32 -> 0 | AM32: =' BORDRO HAZIRLIK'!Q32 -> 0 | AP32: =PUANTAJ!AI61 -> 0 | AQ32: =PUANTAJ!AJ61 -> 0 | AR32: =PUANTAJ!AK61 -> 0 | AS32: =PUANTAJ!AM61 -> 0 | AW32: =' BORDRO HAZIRLIK'!AY32 -> 0 | AX32: =' BORDRO HAZIRLIK'!AZ32 -> 0 | AY32: =' BORDRO HAZIRLIK'!BA32 -> 0 | AZ32: =' BORDRO HAZIRLIK'!BB32 -> 0 | BB32: =' BORDRO HAZIRLIK'!AR32 -> 0 | BC32: =' BORDRO HAZIRLIK'!AJ32 -> 0 | BE32: =' BORDRO HAZIRLIK'!AS32 -> 0 | BF32: =' BORDRO HAZIRLIK'!AT32 -> 0 | BG32: =' BORDRO HAZIRLIK'!I32 -> 0 | BJ32: =' BORDRO HAZIRLIK'!BC32 -> 0 | BK32: =' BORDRO HAZIRLIK'!BD32 -> 0 | BL32: =' BORDRO HAZIRLIK'!BE32 -> 0 | BM32: ='PERSONEL BİLGİ GİRİŞİ'!I32 -> 0 | BS32: =' BORDRO HAZIRLIK'!AG32 -> 0 | BT32: =' BORDRO HAZIRLIK'!AH32 -> 0
A33: ='PERSONEL BİLGİ GİRİŞİ'!J82 -> 0 | U33: 29 | V33: =PUANTAJ!B63 ->  | W33: ='PERSONEL BİLGİ GİRİŞİ'!H33 -> 0 | X33: ='PERSONEL BİLGİ GİRİŞİ'!Q33 -> 0 | Y33: ='PERSONEL BİLGİ GİRİŞİ'!R33 -> 0 | Z33: ='PERSONEL BİLGİ GİRİŞİ'!U33 -> 0 | AA33: ='PERSONEL BİLGİ GİRİŞİ'!E33 -> 0 | AB33: =PUANTAJ!AU63 -> 0 | AC33: =' BORDRO HAZIRLIK'!AE33 -> 0 | AD33: =' BORDRO HAZIRLIK'!AF33 -> 0 | AE33: =' BORDRO HAZIRLIK'!K33 -> 0 | AF33: =' BORDRO HAZIRLIK'!BH33 -> 0 | AG33: =' BORDRO HAZIRLIK'!AK33 -> 0 | AH33: =' BORDRO HAZIRLIK'!AO33 -> 0 | AI33: =' BORDRO HAZIRLIK'!AP33 -> 0 | AJ33: =' BORDRO HAZIRLIK'!AQ33 -> 0 | AK33: =' BORDRO HAZIRLIK'!AN33 -> 0 | AL33: =' BORDRO HAZIRLIK'!P33 -> 0 | AM33: =' BORDRO HAZIRLIK'!Q33 -> 0 | AP33: =PUANTAJ!AI63 -> 0 | AQ33: =PUANTAJ!AJ63 -> 0 | AR33: =PUANTAJ!AK63 -> 0 | AS33: =PUANTAJ!AM63 -> 0 | AW33: =' BORDRO HAZIRLIK'!AY33 -> 0 | AX33: =' BORDRO HAZIRLIK'!AZ33 -> 0 | AY33: =' BORDRO HAZIRLIK'!BA33 -> 0 | AZ33: =' BORDRO HAZIRLIK'!BB33 -> 0 | BB33: =' BORDRO HAZIRLIK'!AR33 -> 0 | BC33: =' BORDRO HAZIRLIK'!AJ33 -> 0 | BE33: =' BORDRO HAZIRLIK'!AS33 -> 0 | BF33: =' BORDRO HAZIRLIK'!AT33 -> 0 | BG33: =' BORDRO HAZIRLIK'!I33 -> 0 | BJ33: =' BORDRO HAZIRLIK'!BC33 -> 0 | BK33: =' BORDRO HAZIRLIK'!BD33 -> 0 | BL33: =' BORDRO HAZIRLIK'!BE33 -> 0 | BM33: ='PERSONEL BİLGİ GİRİŞİ'!I33 -> 0 | BS33: =' BORDRO HAZIRLIK'!AG33 -> 0 | BT33: =' BORDRO HAZIRLIK'!AH33 -> 0
A34: ='PERSONEL BİLGİ GİRİŞİ'!J83 ->  | U34: 30 | V34: =PUANTAJ!B65 ->  | W34: ='PERSONEL BİLGİ GİRİŞİ'!H34 -> 0 | X34: ='PERSONEL BİLGİ GİRİŞİ'!Q34 -> 0 | Y34: ='PERSONEL BİLGİ GİRİŞİ'!R34 -> 0 | Z34: ='PERSONEL BİLGİ GİRİŞİ'!U34 -> 0 | AA34: ='PERSONEL BİLGİ GİRİŞİ'!E34 -> 0 | AB34: =PUANTAJ!AU65 -> 0 | AC34: =' BORDRO HAZIRLIK'!AE34 -> 0 | AD34: =' BORDRO HAZIRLIK'!AF34 -> 0 | AE34: =' BORDRO HAZIRLIK'!K34 -> 0 | AF34: =' BORDRO HAZIRLIK'!BH34 -> 0 | AG34: =' BORDRO HAZIRLIK'!AK34 -> 0 | AH34: =' BORDRO HAZIRLIK'!AO34 -> 0 | AI34: =' BORDRO HAZIRLIK'!AP34 -> 0 | AJ34: =' BORDRO HAZIRLIK'!AQ34 -> 0 | AK34: =' BORDRO HAZIRLIK'!AN34 -> 0 | AL34: =' BORDRO HAZIRLIK'!P34 -> 0 | AM34: =' BORDRO HAZIRLIK'!Q34 -> 0 | AP34: =PUANTAJ!AI65 -> 0 | AQ34: =PUANTAJ!AJ65 -> 0 | AR34: =PUANTAJ!AK65 -> 0 | AS34: =PUANTAJ!AM65 -> 0 | AW34: =' BORDRO HAZIRLIK'!AY34 -> 0 | AX34: =' BORDRO HAZIRLIK'!AZ34 -> 0 | AY34: =' BORDRO HAZIRLIK'!BA34 -> 0 | AZ34: =' BORDRO HAZIRLIK'!BB34 -> 0 | BB34: =' BORDRO HAZIRLIK'!AR34 -> 0 | BC34: =' BORDRO HAZIRLIK'!AJ34 -> 0 | BE34: =' BORDRO HAZIRLIK'!AS34 -> 0 | BF34: =' BORDRO HAZIRLIK'!AT34 -> 0 | BG34: =' BORDRO HAZIRLIK'!I34 -> 0 | BJ34: =' BORDRO HAZIRLIK'!BC34 -> 0 | BK34: =' BORDRO HAZIRLIK'!BD34 -> 0 | BL34: =' BORDRO HAZIRLIK'!BE34 -> 0 | BM34: ='PERSONEL BİLGİ GİRİŞİ'!I34 -> 0 | BS34: =' BORDRO HAZIRLIK'!AG34 -> 0 | BT34: =' BORDRO HAZIRLIK'!AH34 -> 0
A35: =TODAY() -> 2024-02-05 | U35: 31 | V35: =PUANTAJ!B67 ->  | W35: ='PERSONEL BİLGİ GİRİŞİ'!H35 -> 0 | X35: ='PERSONEL BİLGİ GİRİŞİ'!Q35 -> 0 | Y35: ='PERSONEL BİLGİ GİRİŞİ'!R35 -> 0 | Z35: ='PERSONEL BİLGİ GİRİŞİ'!U35 -> 0 | AA35: ='PERSONEL BİLGİ GİRİŞİ'!E35 -> 0 | AB35: =PUANTAJ!AU67 -> 0 | AC35: =' BORDRO HAZIRLIK'!AE35 -> 0 | AD35: =' BORDRO HAZIRLIK'!AF35 -> 0 | AE35: =' BORDRO HAZIRLIK'!K35 -> 0 | AF35: =' BORDRO HAZIRLIK'!BH35 -> 0 | AG35: =' BORDRO HAZIRLIK'!AK35 -> 0 | AH35: =' BORDRO HAZIRLIK'!AO35 -> 0 | AI35: =' BORDRO HAZIRLIK'!AP35 -> 0 | AJ35: =' BORDRO HAZIRLIK'!AQ35 -> 0 | AK35: =' BORDRO HAZIRLIK'!AN35 -> 0 | AL35: =' BORDRO HAZIRLIK'!P35 -> 0 | AM35: =' BORDRO HAZIRLIK'!Q35 -> 0 | AP35: =PUANTAJ!AI67 -> 0 | AQ35: =PUANTAJ!AJ67 -> 0 | AR35: =PUANTAJ!AK67 -> 0 | AS35: =PUANTAJ!AM67 -> 0 | AW35: =' BORDRO HAZIRLIK'!AY35 -> 0 | AX35: =' BORDRO HAZIRLIK'!AZ35 -> 0 | AY35: =' BORDRO HAZIRLIK'!BA35 -> 0 | AZ35: =' BORDRO HAZIRLIK'!BB35 -> 0 | BB35: =' BORDRO HAZIRLIK'!AR35 -> 0 | BC35: =' BORDRO HAZIRLIK'!AJ35 -> 0 | BE35: =' BORDRO HAZIRLIK'!AS35 -> 0 | BF35: =' BORDRO HAZIRLIK'!AT35 -> 0 | BG35: =' BORDRO HAZIRLIK'!I35 -> 0 | BJ35: =' BORDRO HAZIRLIK'!BC35 -> 0 | BK35: =' BORDRO HAZIRLIK'!BD35 -> 0 | BL35: =' BORDRO HAZIRLIK'!BE35 -> 0 | BM35: ='PERSONEL BİLGİ GİRİŞİ'!I35 -> 0 | BS35: =' BORDRO HAZIRLIK'!AG35 -> 0 | BT35: =' BORDRO HAZIRLIK'!AH35 -> 0
U36: 32 | V36: =PUANTAJ!B69 ->  | W36: ='PERSONEL BİLGİ GİRİŞİ'!H36 -> 0 | X36: ='PERSONEL BİLGİ GİRİŞİ'!Q36 -> 0 | Y36: ='PERSONEL BİLGİ GİRİŞİ'!R36 -> 0 | Z36: ='PERSONEL BİLGİ GİRİŞİ'!U36 -> 0 | AA36: ='PERSONEL BİLGİ GİRİŞİ'!E36 -> 0 | AB36: =PUANTAJ!AU69 -> 0 | AC36: =' BORDRO HAZIRLIK'!AE36 -> 0 | AD36: =' BORDRO HAZIRLIK'!AF36 -> 0 | AE36: =' BORDRO HAZIRLIK'!K36 -> 0 | AF36: =' BORDRO HAZIRLIK'!BH36 -> 0 | AG36: =' BORDRO HAZIRLIK'!AK36 -> 0 | AH36: =' BORDRO HAZIRLIK'!AO36 -> 0 | AI36: =' BORDRO HAZIRLIK'!AP36 -> 0 | AJ36: =' BORDRO HAZIRLIK'!AQ36 -> 0 | AK36: =' BORDRO HAZIRLIK'!AN36 -> 0 | AL36: =' BORDRO HAZIRLIK'!P36 -> 0 | AM36: =' BORDRO HAZIRLIK'!Q36 -> 0 | AP36: =PUANTAJ!AI69 -> 0 | AQ36: =PUANTAJ!AJ69 -> 0 | AR36: =PUANTAJ!AK69 -> 0 | AS36: =PUANTAJ!AM69 -> 0 | AW36: =' BORDRO HAZIRLIK'!AY36 -> 0 | AX36: =' BORDRO HAZIRLIK'!AZ36 -> 0 | AY36: =' BORDRO HAZIRLIK'!BA36 -> 0 | AZ36: =' BORDRO HAZIRLIK'!BB36 -> 0 | BB36: =' BORDRO HAZIRLIK'!AR36 -> 0 | BC36: =' BORDRO HAZIRLIK'!AJ36 -> 0 | BE36: =' BORDRO HAZIRLIK'!AS36 -> 0 | BF36: =' BORDRO HAZIRLIK'!AT36 -> 0 | BG36: =' BORDRO HAZIRLIK'!I36 -> 0 | BJ36: =' BORDRO HAZIRLIK'!BC36 -> 0 | BK36: =' BORDRO HAZIRLIK'!BD36 -> 0 | BL36: =' BORDRO HAZIRLIK'!BE36 -> 0 | BM36: ='PERSONEL BİLGİ GİRİŞİ'!I36 -> 0 | BS36: =' BORDRO HAZIRLIK'!AG36 -> 0 | BT36: =' BORDRO HAZIRLIK'!AH36 -> 0
U37: 33 | V37: =PUANTAJ!B71 ->  | W37: ='PERSONEL BİLGİ GİRİŞİ'!H37 -> 0 | X37: ='PERSONEL BİLGİ GİRİŞİ'!Q37 -> 0 | Y37: ='PERSONEL BİLGİ GİRİŞİ'!R37 -> 0 | Z37: ='PERSONEL BİLGİ GİRİŞİ'!U37 -> 0 | AA37: ='PERSONEL BİLGİ GİRİŞİ'!E37 -> 0 | AB37: =PUANTAJ!AU71 -> 0 | AC37: =' BORDRO HAZIRLIK'!AE37 -> 0 | AD37: =' BORDRO HAZIRLIK'!AF37 -> 0 | AE37: =' BORDRO HAZIRLIK'!K37 -> 0 | AF37: =' BORDRO HAZIRLIK'!BH37 -> 0 | AG37: =' BORDRO HAZIRLIK'!AK37 -> 0 | AH37: =' BORDRO HAZIRLIK'!AO37 -> 0 | AI37: =' BORDRO HAZIRLIK'!AP37 -> 0 | AJ37: =' BORDRO HAZIRLIK'!AQ37 -> 0 | AK37: =' BORDRO HAZIRLIK'!AN37 -> 0 | AL37: =' BORDRO HAZIRLIK'!P37 -> 0 | AM37: =' BORDRO HAZIRLIK'!Q37 -> 0 | AP37: =PUANTAJ!AI71 -> 0 | AQ37: =PUANTAJ!AJ71 -> 0 | AR37: =PUANTAJ!AK71 -> 0 | AS37: =PUANTAJ!AM71 -> 0 | AW37: =' BORDRO HAZIRLIK'!AY37 -> 0 | AX37: =' BORDRO HAZIRLIK'!AZ37 -> 0 | AY37: =' BORDRO HAZIRLIK'!BA37 -> 0 | AZ37: =' BORDRO HAZIRLIK'!BB37 -> 0 | BB37: =' BORDRO HAZIRLIK'!AR37 -> 0 | BC37: =' BORDRO HAZIRLIK'!AJ37 -> 0 | BE37: =' BORDRO HAZIRLIK'!AS37 -> 0 | BF37: =' BORDRO HAZIRLIK'!AT37 -> 0 | BG37: =' BORDRO HAZIRLIK'!I37 -> 0 | BJ37: =' BORDRO HAZIRLIK'!BC37 -> 0 | BK37: =' BORDRO HAZIRLIK'!BD37 -> 0 | BL37: =' BORDRO HAZIRLIK'!BE37 -> 0 | BM37: ='PERSONEL BİLGİ GİRİŞİ'!I37 -> 0 | BS37: =' BORDRO HAZIRLIK'!AG37 -> 0 | BT37: =' BORDRO HAZIRLIK'!AH37 -> 0
U38: 34 | V38: =PUANTAJ!B73 ->  | W38: ='PERSONEL BİLGİ GİRİŞİ'!H38 -> 0 | X38: ='PERSONEL BİLGİ GİRİŞİ'!Q38 -> 0 | Y38: ='PERSONEL BİLGİ GİRİŞİ'!R38 -> 0 | Z38: ='PERSONEL BİLGİ GİRİŞİ'!U38 -> 0 | AA38: ='PERSONEL BİLGİ GİRİŞİ'!E38 -> 0 | AB38: =PUANTAJ!AU73 -> 0 | AC38: =' BORDRO HAZIRLIK'!AE38 -> 0 | AD38: =' BORDRO HAZIRLIK'!AF38 -> 0 | AE38: =' BORDRO HAZIRLIK'!K38 -> 0 | AF38: =' BORDRO HAZIRLIK'!BH38 -> 0 | AG38: =' BORDRO HAZIRLIK'!AK38 -> 0 | AH38: =' BORDRO HAZIRLIK'!AO38 -> 0 | AI38: =' BORDRO HAZIRLIK'!AP38 -> 0 | AJ38: =' BORDRO HAZIRLIK'!AQ38 -> 0 | AK38: =' BORDRO HAZIRLIK'!AN38 -> 0 | AL38: =' BORDRO HAZIRLIK'!P38 -> 0 | AM38: =' BORDRO HAZIRLIK'!Q38 -> 0 | AP38: =PUANTAJ!AI73 -> 0 | AQ38: =PUANTAJ!AJ73 -> 0 | AR38: =PUANTAJ!AK73 -> 0 | AS38: =PUANTAJ!AM73 -> 0 | AW38: =' BORDRO HAZIRLIK'!AY38 -> 0 | AX38: =' BORDRO HAZIRLIK'!AZ38 -> 0 | AY38: =' BORDRO HAZIRLIK'!BA38 -> 0 | AZ38: =' BORDRO HAZIRLIK'!BB38 -> 0 | BB38: =' BORDRO HAZIRLIK'!AR38 -> 0 | BC38: =' BORDRO HAZIRLIK'!AJ38 -> 0 | BE38: =' BORDRO HAZIRLIK'!AS38 -> 0 | BF38: =' BORDRO HAZIRLIK'!AT38 -> 0 | BG38: =' BORDRO HAZIRLIK'!I38 -> 0 | BJ38: =' BORDRO HAZIRLIK'!BC38 -> 0 | BK38: =' BORDRO HAZIRLIK'!BD38 -> 0 | BL38: =' BORDRO HAZIRLIK'!BE38 -> 0 | BM38: ='PERSONEL BİLGİ GİRİŞİ'!I38 -> 0 | BS38: =' BORDRO HAZIRLIK'!AG38 -> 0 | BT38: =' BORDRO HAZIRLIK'!AH38 -> 0
U39: 35 | V39: =PUANTAJ!B75 ->  | W39: ='PERSONEL BİLGİ GİRİŞİ'!H39 -> 0 | X39: ='PERSONEL BİLGİ GİRİŞİ'!Q39 -> 0 | Y39: ='PERSONEL BİLGİ GİRİŞİ'!R39 -> 0 | Z39: ='PERSONEL BİLGİ GİRİŞİ'!U39 -> 0 | AA39: ='PERSONEL BİLGİ GİRİŞİ'!E39 -> 0 | AB39: =PUANTAJ!AU75 -> 0 | AC39: =' BORDRO HAZIRLIK'!#REF! ->  | AD39: =' BORDRO HAZIRLIK'!#REF! ->  | AE39: =' BORDRO HAZIRLIK'!#REF! ->  | AF39: =' BORDRO HAZIRLIK'!#REF! ->  | AG39: =' BORDRO HAZIRLIK'!#REF! ->  | AH39: =' BORDRO HAZIRLIK'!#REF! ->  | AI39: =' BORDRO HAZIRLIK'!#REF! ->  | AJ39: =' BORDRO HAZIRLIK'!#REF! ->  | AK39: =' BORDRO HAZIRLIK'!#REF! ->  | AL39: =' BORDRO HAZIRLIK'!#REF! ->  | AM39: =' BORDRO HAZIRLIK'!#REF! ->  | AP39: =PUANTAJ!AI75 -> 0 | AQ39: =PUANTAJ!AJ75 -> 0 | AR39: =PUANTAJ!AK75 -> 0 | AS39: =PUANTAJ!AM75 -> 0 | AW39: =' BORDRO HAZIRLIK'!#REF! ->  | AX39: =' BORDRO HAZIRLIK'!#REF! ->  | AY39: =' BORDRO HAZIRLIK'!#REF! ->  | AZ39: =' BORDRO HAZIRLIK'!#REF! ->  | BB39: =' BORDRO HAZIRLIK'!#REF! ->  | BC39: =' BORDRO HAZIRLIK'!#REF! ->  | BE39: =' BORDRO HAZIRLIK'!#REF! ->  | BF39: =' BORDRO HAZIRLIK'!#REF! ->  | BG39: =' BORDRO HAZIRLIK'!#REF! ->  | BJ39: =' BORDRO HAZIRLIK'!#REF! ->  | BK39: =' BORDRO HAZIRLIK'!#REF! ->  | BL39: =' BORDRO HAZIRLIK'!#REF! ->  | BM39: ='PERSONEL BİLGİ GİRİŞİ'!I39 -> 0 | BS39: =' BORDRO HAZIRLIK'!#REF! ->  | BT39: =' BORDRO HAZIRLIK'!#REF! -> 
U40: 36 | V40: =PUANTAJ!#REF! ->  | W40: ='PERSONEL BİLGİ GİRİŞİ'!H40 -> 0 | X40: ='PERSONEL BİLGİ GİRİŞİ'!Q40 -> 0 | Y40: ='PERSONEL BİLGİ GİRİŞİ'!R40 -> 0 | Z40: ='PERSONEL BİLGİ GİRİŞİ'!U40 -> 0 | AA40: ='PERSONEL BİLGİ GİRİŞİ'!E40 -> 0 | AB40: =PUANTAJ!#REF! ->  | AC40: =' BORDRO HAZIRLIK'!#REF! ->  | AD40: =' BORDRO HAZIRLIK'!#REF! ->  | AE40: =' BORDRO HAZIRLIK'!#REF! ->  | AF40: =' BORDRO HAZIRLIK'!#REF! ->  | AG40: =' BORDRO HAZIRLIK'!#REF! ->  | AH40: =' BORDRO HAZIRLIK'!#REF! ->  | AI40: =' BORDRO HAZIRLIK'!#REF! ->  | AJ40: =' BORDRO HAZIRLIK'!#REF! ->  | AK40: =' BORDRO HAZIRLIK'!#REF! ->  | AL40: =' BORDRO HAZIRLIK'!#REF! ->  | AM40: =' BORDRO HAZIRLIK'!#REF! ->  | AP40: =PUANTAJ!#REF! ->  | AQ40: =PUANTAJ!#REF! ->  | AR40: =PUANTAJ!#REF! ->  | AS40: =PUANTAJ!#REF! ->  | AW40: =' BORDRO HAZIRLIK'!#REF! ->  | AX40: =' BORDRO HAZIRLIK'!#REF! ->  | AY40: =' BORDRO HAZIRLIK'!#REF! ->  | AZ40: =' BORDRO HAZIRLIK'!#REF! ->  | BB40: =' BORDRO HAZIRLIK'!#REF! ->  | BC40: =' BORDRO HAZIRLIK'!#REF! ->  | BE40: =' BORDRO HAZIRLIK'!#REF! ->  | BF40: =' BORDRO HAZIRLIK'!#REF! ->  | BG40: =' BORDRO HAZIRLIK'!#REF! ->  | BJ40: =' BORDRO HAZIRLIK'!#REF! ->  | BK40: =' BORDRO HAZIRLIK'!#REF! ->  | BL40: =' BORDRO HAZIRLIK'!#REF! ->  | BM40: ='PERSONEL BİLGİ GİRİŞİ'!I40 -> 0 | BS40: =' BORDRO HAZIRLIK'!#REF! ->  | BT40: =' BORDRO HAZIRLIK'!#REF! -> 
U41: 37 | V41: =PUANTAJ!#REF! ->  | W41: ='PERSONEL BİLGİ GİRİŞİ'!H41 -> 0 | X41: ='PERSONEL BİLGİ GİRİŞİ'!Q41 -> 0 | Y41: ='PERSONEL BİLGİ GİRİŞİ'!R41 -> 0 | Z41: ='PERSONEL BİLGİ GİRİŞİ'!U41 -> 0 | AA41: ='PERSONEL BİLGİ GİRİŞİ'!E41 -> 0 | AB41: =PUANTAJ!#REF! ->  | AC41: =' BORDRO HAZIRLIK'!AE40 -> 17002.12 | AD41: =' BORDRO HAZIRLIK'!AF40 -> 17002.12 | AE41: =' BORDRO HAZIRLIK'!K40 -> 17469.28 | AF41: =' BORDRO HAZIRLIK'!BH40 -> 18498.96 | AG41: =' BORDRO HAZIRLIK'!AK40 -> 18779.48 | AH41: =' BORDRO HAZIRLIK'!AO40 -> 266.6 | AI41: =' BORDRO HAZIRLIK'!AP40 -> 13.92 | AJ41: =' BORDRO HAZIRLIK'!AQ40 -> 21836.6 | AK41: =' BORDRO HAZIRLIK'!AN40 -> 18779.48 | AL41: =' BORDRO HAZIRLIK'!P40 -> 41 | AM41: =' BORDRO HAZIRLIK'!Q40 -> 4367.32 | AP41: =PUANTAJ!#REF! ->  | AQ41: =PUANTAJ!#REF! ->  | AR41: =PUANTAJ!#REF! ->  | AS41: =PUANTAJ!#REF! ->  | AW41: =' BORDRO HAZIRLIK'!AY40 -> 2402.04 | AX41: =' BORDRO HAZIRLIK'!AZ40 -> 1965.29 | AY41: =' BORDRO HAZIRLIK'!BA40 -> 1091.83 | AZ41: =' BORDRO HAZIRLIK'!BB40 -> 1637.75 | BB41: =' BORDRO HAZIRLIK'!AR40 -> 0 | BC41: =' BORDRO HAZIRLIK'!AJ40 -> 21836.6 | BE41: =' BORDRO HAZIRLIK'!AS40 -> 0 | BF41: =' BORDRO HAZIRLIK'!AT40 -> 0 | BG41: =' BORDRO HAZIRLIK'!I40 -> 23 | BJ41: =' BORDRO HAZIRLIK'!BC40 -> 436.73 | BK41: =' BORDRO HAZIRLIK'!BD40 -> 0 | BL41: =' BORDRO HAZIRLIK'!BE40 -> 0 | BM41: ='PERSONEL BİLGİ GİRİŞİ'!I41 -> 0 | BS41: =' BORDRO HAZIRLIK'!AG40 -> 2550.32 | BT41: =' BORDRO HAZIRLIK'!AH40 -> 151.82

Sheet PERSONEL BİLGİ GİRİŞİ
A1: ='ANA SAYFA'!A1 -> AİLE VE SOSYAL HİZMETLER İL MÜDÜRLÜĞÜ
J2: ANASAYFA | K2: ASGARİ ÜCRET | Q2: ANA SAYFA | AP2: ANASAYFA | BC2: ANA SAYFA
A3: =CONCATENATE('PERSONEL BİLGİ GİRİŞİ'!B5," ") -> ALİ BZC | F3: 13 | G3: 00000 | J3: =PUANTAJ!AI2 -> 2024-01-01 | AG3: EĞİTİM YARDIMI
A4: SIRA NO | B4: ADI | C4: SOYADI | D4: İLK SOYADI | E4: MESLEK KODU | F4: Belge Türü | G4: Kanun No (5 Hane) | H4: TC. KİMLİK NO | I4: E-POSTA Göndermek için tıkla | J4: İBAN HESAP NO | K4: İŞE GİRİŞ | L4: İŞTEN ÇIKIŞ | M4: İŞTEN ÇIKIŞ NEDENİ | N4: EKSİK GÜN NEDENİ | O4: 1 GÜNLÜK BÜRÜT ÜCRET | P4: 1 GÜNLÜK ÜCRET + ÜCRET ZAMMI | Q4: BÜRÜT ÜCRET | R4: GÜNDÜZ SAAT ÜCRETİ | S4: 2.ZAM GÜNDÜZ | T4: 2.ZAM GECE | U4: GECE VE HAFTA SONU SAAT ÜCRETİ | V4: SEHVEN ÖDENEMEYEN ÜCRET | W4: SEHVEN ÖDENEMEYEN ÜCRETİN NEDENİ | X4: KİŞİ BORCU (BRÜT) | Y4: KİŞİ BORCU NEDENİ | Z4: AGİ İNDİRİM ORANI | AA4: AGİ | AC4: EK VERGİ MATRAHI | AD4: EK VERGİ MATRAHI | AE4: EK VERGİ MATRAHI | AF4: EK VERGİ MATRAHI | AG4: EK VERGİ MATRAHI | AH4: EK VERGİ MATRAHI | AI4: EK VERGİ MATRAHI | AJ4: EK VERGİ MATRAHI | AK4: EK VERGİ MATRAHI | AL4: İSTİSNA EK VERGİ MATRAHI | AM4: BES | AN4: BAYRAM | AO4: İCRA | AP4: İKRAMİYE TEDİYE | AQ4: KISTELYEVM İKRAMİYE | AR4: EVLENME | AS4: DOĞUM YARDIMI | AT4: NAFAKA | AU4: ÖLÜM YARDIMI | AV4: SENDİKA AİDAT | AY4: ENGELLİ VERGİ İNDİRİMİ | BD4: KEFALET GİRİŞ AİDAT KESİNTİSİ | BE4: KEFALET KESİNTİSİ | BF4: 14 GÜNLÜK MAAŞ FARKI
A5: =IF(B5="","",ROW(B5)-4) -> 1 | B5: ALİ BZC | F5: =IF(B5<>"",$F$3,"") -> 13 | G5: =IF(B5<>"",$G$3,"") -> 00000 | O5: =Q5/30 -> 582.32 | P5: =O5 -> 582.32 | Q5: =('ANA SAYFA'!$N$24*'ANA SAYFA'!$N$25*(PUANTAJ!AI7))+('ANA SAYFA'!$N$24*'ANA SAYFA'!$N$3*(PUANTAJ!AJ7+PUANTAJ!AK7)) -> 17469.6 | R5: =IF(Q5=0,(0),'ANA SAYFA'!$H$15*'ANA SAYFA'!$N$25) -> 106.52 | U5: =IF(Q5=0,0,'ANA SAYFA'!$H$15*'ANA SAYFA'!$O$25) -> 114.13 | AA5: =ROUND('ANA SAYFA'!$J$15*15/100*Z5/100,2) -> 0 | AC5: 0 | AD5: 85247.76 | AE5: 84508.26 | AF5: 85247.76 | AG5: 84508.26 | AH5: 85247.76 | AI5: 84508.26 | AJ5: 85247.76 | AK5: 84508.26 | AL5: 0 | BJ5: EKSİK GÜN NEDENLERİ | BM5: İŞTEN ÇIKIŞ NEDENLERİ
A6: =IF(B6="","",ROW(B6)-4) ->  | F6: =IF(B6<>"",$F$3,"") ->  | G6: =IF(B6<>"",$G$3,"") ->  | O6: =Q6/30 -> 0 | P6: =O6 -> 0 | Q6: =('ANA SAYFA'!$N$24*'ANA SAYFA'!$N$25*(PUANTAJ!AI9))+('ANA SAYFA'!$N$24*'ANA SAYFA'!$N$3*(PUANTAJ!AJ9+PUANTAJ!AK9)) -> 0 | R6: =IF(Q6=0,(0),'ANA SAYFA'!$H$15*'ANA SAYFA'!$N$25) -> 0 | U6: =IF(Q6=0,0,'ANA SAYFA'!$H$15*'ANA SAYFA'!$O$25) -> 0 | AA6: =ROUND('ANA SAYFA'!$J$15*15/100*Z6/100,2) -> 0 | AC6: 0 | AD6: 85247.76 | AE6: 84252 | AF6: 85247.76 | AG6: 84252 | AH6: 85248 | AI6: 84252 | AJ6: 85248 | AK6: 84252.42 | AL6: 0
O7: 0 | P7: 0 | Q7: =('ANA SAYFA'!$N$24*'ANA SAYFA'!$N$25*(PUANTAJ!AI11))+('ANA SAYFA'!$N$24*'ANA SAYFA'!$N$3*(PUANTAJ!AJ11+PUANTAJ!AK11)) -> 0 | R7: =IF(Q7=0,(0),'ANA SAYFA'!$H$15*'ANA SAYFA'!$N$25) -> 0 | U7: =IF(Q7=0,0,'ANA SAYFA'!$H$15*'ANA SAYFA'!$O$25) -> 0 | AA7: =ROUND('ANA SAYFA'!$J$15*15/100*Z7/100,2) -> 0 | AC7: 0 | AD7: 85247.76 | AE7: 84414 | AF7: 85247.76 | AG7: 84414 | AH7: 85248 | AI7: 84414 | AJ7: 85248 | AK7: 84413.52 | AL7: 0
O8: 0 | P8: 0 | Q8: =('ANA SAYFA'!$N$24*'ANA SAYFA'!$N$25*(PUANTAJ!AI13))+('ANA SAYFA'!$N$24*'ANA SAYFA'!$N$3*(PUANTAJ!AJ13+PUANTAJ!AK13)) -> 0 | R8: =IF(Q8=0,(0),'ANA SAYFA'!$H$15*'ANA SAYFA'!$N$25) -> 0 | U8: =IF(Q8=0,0,'ANA SAYFA'!$H$15*'ANA SAYFA'!$O$25) -> 0 | AA8: =ROUND('ANA SAYFA'!$J$15*15/100*Z8/100,2) -> 0 | AC8: 0 | AD8: 85247.76 | AE8: 85625 | AF8: 85247.76 | AG8: 85625 | AH8: 85248 | AI8: 85625 | AJ8: 85248 | AK8: 85625.48 | AL8: 0
O9: 0 | P9: 0 | Q9: =('ANA SAYFA'!$N$24*'ANA SAYFA'!$N$25*(PUANTAJ!AI15))+('ANA SAYFA'!$N$24*'ANA SAYFA'!$N$3*(PUANTAJ!AJ15+PUANTAJ!AK15)) -> 0 | R9: =IF(Q9=0,(0),'ANA SAYFA'!$H$15*'ANA SAYFA'!$N$25) -> 0 | U9: =IF(Q9=0,0,'ANA SAYFA'!$H$15*'ANA SAYFA'!$O$25) -> 0 | AA9: =ROUND('ANA SAYFA'!$J$15*15/100*Z9/100,2) -> 0 | AC9: 0 | AL9: 0
O10: 0 | P10: 0 | Q10: =('ANA SAYFA'!$N$24*'ANA SAYFA'!$N$25*(PUANTAJ!AI17))+('ANA SAYFA'!$N$24*'ANA SAYFA'!$N$3*(PUANTAJ!AJ17+PUANTAJ!AK17)) -> 0 | R10: =IF(Q10=0,(0),'ANA SAYFA'!$H$15*'ANA SAYFA'!$N$25) -> 0 | U10: =IF(Q10=0,0,'ANA SAYFA'!$H$15*'ANA SAYFA'!$O$25) -> 0 | AA10: =ROUND('ANA SAYFA'!$J$15*15/100*Z10/100,2) -> 0 | AC10: 0 | AL10: 0
O11: 0 | P11: 0 | Q11: =('ANA SAYFA'!$N$24*'ANA SAYFA'!$N$25*(PUANTAJ!AI19))+('ANA SAYFA'!$N$24*'ANA SAYFA'!$N$3*(PUANTAJ!AJ19+PUANTAJ!AK19)) -> 0 | R11: =IF(Q11=0,(0),'ANA SAYFA'!$H$15*'ANA SAYFA'!$N$25) -> 0 | U11: =IF(Q11=0,0,'ANA SAYFA'!$H$15*'ANA SAYFA'!$O$25) -> 0 | AA11: =ROUND('ANA SAYFA'!$J$15*15/100*Z11/100,2) -> 0 | AC11: 0 | AL11: 0
O12: 0 | P12: 0 | Q12: =('ANA SAYFA'!$N$24*'ANA SAYFA'!$N$25*(PUANTAJ!AI21))+('ANA SAYFA'!$N$24*'ANA SAYFA'!$N$3*(PUANTAJ!AJ21+PUANTAJ!AK21)) -> 0 | R12: =IF(Q12=0,(0),'ANA SAYFA'!$H$15*'ANA SAYFA'!$N$25) -> 0 | U12: =IF(Q12=0,0,'ANA SAYFA'!$H$15*'ANA SAYFA'!$O$25) -> 0 | AA12: =ROUND('ANA SAYFA'!$J$15*15/100*Z12/100,2) -> 0 | AC12: 0 | AL12: 0
O13: 0 | P13: 0 | Q13: =('ANA SAYFA'!$N$24*'ANA SAYFA'!$N$25*(PUANTAJ!AI23))+('ANA SAYFA'!$N$24*'ANA SAYFA'!$N$3*(PUANTAJ!AJ23+PUANTAJ!AK23)) -> 0 | R13: =IF(Q13=0,(0),'ANA SAYFA'!$H$15*'ANA SAYFA'!$N$25) -> 0 | U13: =IF(Q13=0,0,'ANA SAYFA'!$H$15*'ANA SAYFA'!$O$25) -> 0 | AA13: =ROUND('ANA SAYFA'!$J$15*15/100*Z13/100,2) -> 0 | AC13: 0 | AL13: 0
O14: 0 | P14: 0 | Q14: =('ANA SAYFA'!$N$24*'ANA SAYFA'!$N$25*(PUANTAJ!AI25))+('ANA SAYFA'!$N$24*'ANA SAYFA'!$N$3*(PUANTAJ!AJ25+PUANTAJ!AK25)) -> 0 | R14: =IF(Q14=0,(0),'ANA SAYFA'!$H$15*'ANA SAYFA'!$N$25) -> 0 | U14: =IF(Q14=0,0,'ANA SAYFA'!$H$15*'ANA SAYFA'!$O$25) -> 0 | AA14: =ROUND('ANA SAYFA'!$J$15*15/100*Z14/100,2) -> 0 | AC14: 0 | AL14: 0
O15: 0 | P15: 0 | Q15: =('ANA SAYFA'!$N$24*'ANA SAYFA'!$N$25*(PUANTAJ!AI27))+('ANA SAYFA'!$N$24*'ANA SAYFA'!$N$3*(PUANTAJ!AJ27+PUANTAJ!AK27)) -> 0 | R15: =IF(Q15=0,(0),'ANA SAYFA'!$H$15*'ANA SAYFA'!$N$25) -> 0 | U15: =IF(Q15=0,0,'ANA SAYFA'!$H$15*'ANA SAYFA'!$O$25) -> 0 | AA15: =ROUND('ANA SAYFA'!$J$15*15/100*Z15/100,2) -> 0 | AC15: 0 | AL15: 0
O16: 0 | P16: 0 | Q16: =('ANA SAYFA'!$N$24*'ANA SAYFA'!$N$25*(PUANTAJ!AI29))+('ANA SAYFA'!$N$24*'ANA SAYFA'!$N$3*(PUANTAJ!AJ29+PUANTAJ!AK29)) -> 0 | R16: =IF(Q16=0,(0),'ANA SAYFA'!$H$15*'ANA SAYFA'!$N$25) -> 0 | U16: =IF(Q16=0,0,'ANA SAYFA'!$H$15*'ANA SAYFA'!$O$25) -> 0 | AA16: =ROUND('ANA SAYFA'!$J$15*15/100*Z16/100,2) -> 0 | AC16: 0 | AL16: 0
O17: 0 | P17: 0 | Q17: =('ANA SAYFA'!$N$24*'ANA SAYFA'!$N$25*(PUANTAJ!AI31))+('ANA SAYFA'!$N$24*'ANA SAYFA'!$N$3*(PUANTAJ!AJ31+PUANTAJ!AK31)) -> 0 | R17: =IF(Q17=0,(0),'ANA SAYFA'!$H$15*'ANA SAYFA'!$N$25) -> 0 | U17: =IF(Q17=0,0,'ANA SAYFA'!$H$15*'ANA SAYFA'!$O$25) -> 0 | AA17: =ROUND('ANA SAYFA'!$J$15*15/100*Z17/100,2) -> 0 | AC17: 0 | AL17: 0
O18: 0 | P18: 0 | Q18: =('ANA SAYFA'!$N$24*'ANA SAYFA'!$N$25*(PUANTAJ!AI33))+('ANA SAYFA'!$N$24*'ANA SAYFA'!$N$3*(PUANTAJ!AJ33+PUANTAJ!AK33)) -> 0 | R18: =IF(Q18=0,(0),'ANA SAYFA'!$H$15*'ANA SAYFA'!$N$25) -> 0 | U18: =IF(Q18=0,0,'ANA SAYFA'!$H$15*'ANA SAYFA'!$O$25) -> 0 | AA18: =ROUND('ANA SAYFA'!$J$15*15/100*Z18/100,2) -> 0 | AC18: 0 | AL18: 0
O19: 0 | P19: 0 | Q19: =('ANA SAYFA'!$N$24*'ANA SAYFA'!$N$25*(PUANTAJ!AI35))+('ANA SAYFA'!$N$24*'ANA SAYFA'!$N$3*(PUANTAJ!AJ35+PUANTAJ!AK35)) -> 0 | R19: =IF(Q19=0,(0),'ANA SAYFA'!$H$15*'ANA SAYFA'!$N$25) -> 0 | U19: =IF(Q19=0,0,'ANA SAYFA'!$H$15*'ANA SAYFA'!$O$25) -> 0 | AA19: =ROUND('ANA SAYFA'!$J$15*15/100*Z19/100,2) -> 0 | AC19: 0 | AL19: 0
O20: 0 | P20: 0 | Q20: =('ANA SAYFA'!$N$24*'ANA SAYFA'!$N$25*(PUANTAJ!AI37))+('ANA SAYFA'!$N$24*'ANA SAYFA'!$N$3*(PUANTAJ!AJ37+PUANTAJ!AK37)) -> 0 | R20: =IF(Q20=0,(0),'ANA SAYFA'!$H$15*'ANA SAYFA'!$N$25) -> 0 | U20: =IF(Q20=0,0,'ANA SAYFA'!$H$15*'ANA SAYFA'!$O$25) -> 0 | AA20: =ROUND('ANA SAYFA'!$J$15*15/100*Z20/100,2) -> 0 | AC20: 0 | AL20: 0
O21: 0 | P21: 0 | Q21: =('ANA SAYFA'!$N$24*'ANA SAYFA'!$N$25*(PUANTAJ!AI39))+('ANA SAYFA'!$N$24*'ANA SAYFA'!$N$3*(PUANTAJ!AJ39+PUANTAJ!AK39)) -> 0 | R21: =IF(Q21=0,(0),'ANA SAYFA'!$H$15*'ANA SAYFA'!$N$25) -> 0 | U21: =IF(Q21=0,0,'ANA SAYFA'!$H$15*'ANA SAYFA'!$O$25) -> 0 | AA21: =ROUND('ANA SAYFA'!$J$15*15/100*Z21/100,2) -> 0 | AC21: 0 | AL21: 0
O22: 0 | P22: 0 | Q22: =('ANA SAYFA'!$N$24*'ANA SAYFA'!$N$25*(PUANTAJ!AI41))+('ANA SAYFA'!$N$24*'ANA SAYFA'!$N$3*(PUANTAJ!AJ41+PUANTAJ!AK41)) -> 0 | R22: =IF(Q22=0,(0),'ANA SAYFA'!$H$15*'ANA SAYFA'!$N$25) -> 0 | U22: =IF(Q22=0,0,'ANA SAYFA'!$H$15*'ANA SAYFA'!$O$25) -> 0 | AA22: =ROUND('ANA SAYFA'!$J$15*15/100*Z22/100,2) -> 0 | AC22: 0 | AL22: 0
O23: 0 | P23: 0 | Q23: =('ANA SAYFA'!$N$24*'ANA SAYFA'!$N$25*(PUANTAJ!AI43))+('ANA SAYFA'!$N$24*'ANA SAYFA'!$N$3*(PUANTAJ!AJ43+PUANTAJ!AK43)) -> 0 | R23: =IF(Q23=0,(0),'ANA SAYFA'!$H$15*'ANA SAYFA'!$N$25) -> 0 | U23: =IF(Q23=0,0,'ANA SAYFA'!$H$15*'ANA SAYFA'!$O$25) -> 0 | AA23: =ROUND('ANA SAYFA'!$J$15*15/100*Z23/100,2) -> 0 | AC23: 0 | AL23: 0
O24: 0 | P24: 0 | Q24: =('ANA SAYFA'!$N$24*'ANA SAYFA'!$N$25*(PUANTAJ!AI45))+('ANA SAYFA'!$N$24*'ANA SAYFA'!$N$3*(PUANTAJ!AJ45+PUANTAJ!AK45)) -> 0 | R24: =IF(Q24=0,(0),'ANA SAYFA'!$H$15*'ANA SAYFA'!$N$25) -> 0 | U24: =IF(Q24=0,0,'ANA SAYFA'!$H$15*'ANA SAYFA'!$O$25) -> 0 | AA24: =ROUND('ANA SAYFA'!$J$15*15/100*Z24/100,2) -> 0 | AC24: 0 | AL24: 0
O25: 0 | P25: 0 | Q25: =('ANA SAYFA'!$N$24*'ANA SAYFA'!$N$25*(PUANTAJ!AI47))+('ANA SAYFA'!$N$24*'ANA SAYFA'!$N$3*(PUANTAJ!AJ47+PUANTAJ!AK47)) -> 0 | R25: =IF(Q25=0,(0),'ANA SAYFA'!$H$15*'ANA SAYFA'!$N$25) -> 0 | U25: =IF(Q25=0,0,'ANA SAYFA'!$H$15*'ANA SAYFA'!$O$25) -> 0 | AA25: =ROUND('ANA SAYFA'!$J$15*15/100*Z25/100,2) -> 0 | AC25: 0 | AL25: 0
O26: 0 | P26: 0 | Q26: =('ANA SAYFA'!$N$24*'ANA SAYFA'!$N$25*(PUANTAJ!AI49))+('ANA SAYFA'!$N$24*'ANA SAYFA'!$N$3*(PUANTAJ!AJ49+PUANTAJ!AK49)) -> 0 | R26: =IF(Q26=0,(0),'ANA SAYFA'!$H$15*'ANA SAYFA'!$N$25) -> 0 | U26: =IF(Q26=0,0,'ANA SAYFA'!$H$15*'ANA SAYFA'!$O$25) -> 0 | AA26: =ROUND('ANA SAYFA'!$J$15*15/100*Z26/100,2) -> 0 | AC26: 0 | AL26: 0
O27: 0 | P27: 0 | Q27: =('ANA SAYFA'!$N$24*'ANA SAYFA'!$N$25*(PUANTAJ!AI51))+('ANA SAYFA'!$N$24*'ANA SAYFA'!$N$3*(PUANTAJ!AJ51+PUANTAJ!AK51)) -> 0 | R27: =IF(Q27=0,(0),'ANA SAYFA'!$H$15*'ANA SAYFA'!$N$25) -> 0 | U27: =IF(Q27=0,0,'ANA SAYFA'!$H$15*'ANA SAYFA'!$O$25) -> 0 | AA27: =ROUND('ANA SAYFA'!$J$15*15/100*Z27/100,2) -> 0 | AC27: 0 | AL27: 0
O28: 0 | P28: 0 | Q28: =('ANA SAYFA'!$N$24*'ANA SAYFA'!$N$25*(PUANTAJ!AI53))+('ANA SAYFA'!$N$24*'ANA SAYFA'!$N$3*(PUANTAJ!AJ53+PUANTAJ!AK53)) -> 0 | R28: =IF(Q28=0,(0),'ANA SAYFA'!$H$15*'ANA SAYFA'!$N$25) -> 0 | U28: =IF(Q28=0,0,'ANA SAYFA'!$H$15*'ANA SAYFA'!$O$25) -> 0 | AA28: =ROUND('ANA SAYFA'!$J$15*15/100*Z28/100,2) -> 0 | AC28: 0 | AD28: 3.57 | AL28: 0 | BI28: 24 | BJ28: 24-YARIM ÇALIŞMA ÖDENEĞİ VE DİĞER NEDENLER | BL28: 24
O29: 0 | P29: 0 | Q29: =('ANA SAYFA'!$N$24*'ANA SAYFA'!$N$25*(PUANTAJ!AI55))+('ANA SAYFA'!$N$24*'ANA SAYFA'!$N$3*(PUANTAJ!AJ55+PUANTAJ!AK55)) -> 0 | R29: =IF(Q29=0,(0),'ANA SAYFA'!$H$15*'ANA SAYFA'!$N$25) -> 0 | U29: =IF(Q29=0,0,'ANA SAYFA'!$H$15*'ANA SAYFA'!$O$25) -> 0 | AA29: =ROUND('ANA SAYFA'!$J$15*15/100*Z29/100,2) -> 0 | AC29: 0 | AD29: 3.57 | AL29: 0 | BI29: 25 | BJ29: 25-DİĞER BELGE/KANUN TÜRLERİNDEN GÜN TAMAMLAMA | BL29: 25
O30: 0 | P30: 0 | Q30: =('ANA SAYFA'!$N$24*'ANA SAYFA'!$N$25*(PUANTAJ!AI57))+('ANA SAYFA'!$N$24*'ANA SAYFA'!$N$3*(PUANTAJ!AJ57+PUANTAJ!AK57)) -> 0 | R30: =IF(Q30=0,(0),'ANA SAYFA'!$H$15*'ANA SAYFA'!$N$25) -> 0 | U30: =IF(Q30=0,0,'ANA SAYFA'!$H$15*'ANA SAYFA'!$O$25) -> 0 | AA30: =ROUND('ANA SAYFA'!$J$15*15/100*Z30/100,2) -> 0 | AC30: 0 | AD30: 3.57 | AL30: 0 | BI30: 26 | BJ30: 26-KISMİ İSTİHDAMA İZİN VERİLEN YABANCI UYRUKLU | BL30: 26
O31: 0 | P31: 0 | Q31: =('ANA SAYFA'!$N$24*'ANA SAYFA'!$N$25*(PUANTAJ!AI59))+('ANA SAYFA'!$N$24*'ANA SAYFA'!$N$3*(PUANTAJ!AJ59+PUANTAJ!AK59)) -> 0 | R31: =IF(Q31=0,(0),'ANA SAYFA'!$H$15*'ANA SAYFA'!$N$25) -> 0 | U31: =IF(Q31=0,0,'ANA SAYFA'!$H$15*'ANA SAYFA'!$O$25) -> 0 | AA31: =ROUND('ANA SAYFA'!$J$15*15/100*Z31/100,2) -> 0 | AC31: 0 | AD31: 3.57 | AL31: 0 | BI31: 27 | BJ31: 27-KISA ÇALIŞMA ÖDENEĞİ VE DİĞER NEDENLER | BL31: 27
O32: 0 | P32: 0 | Q32: =('ANA SAYFA'!$N$24*'ANA SAYFA'!$N$25*(PUANTAJ!AI61))+('ANA SAYFA'!$N$24*'ANA SAYFA'!$N$3*(PUANTAJ!AJ61+PUANTAJ!AK61)) -> 0 | R32: =IF(Q32=0,(0),'ANA SAYFA'!$H$15*'ANA SAYFA'!$N$25) -> 0 | U32: =IF(Q32=0,0,'ANA SAYFA'!$H$15*'ANA SAYFA'!$O$25) -> 0 | AA32: =ROUND('ANA SAYFA'!$J$15*15/100*Z32/100,2) -> 0 | AC32: 0 | AD32: 3.57 | AL32: 0 | BI32: 28 | BJ32: 28-PANDEMİ ÜCRETSİZ İZİN(4857 GEÇ. 10.MD) | BL32: 28
O33: 0 | P33: 0 | Q33: =('ANA SAYFA'!$N$24*'ANA SAYFA'!$N$25*(PUANTAJ!AI63))+('ANA SAYFA'!$N$24*'ANA SAYFA'!$N$3*(PUANTAJ!AJ63+PUANTAJ!AK63)) -> 0 | R33: =IF(Q33=0,(0),'ANA SAYFA'!$H$15*'ANA SAYFA'!$N$25) -> 0 | U33: =IF(Q33=0,0,'ANA SAYFA'!$H$15*'ANA SAYFA'!$O$25) -> 0 | AA33: =ROUND('ANA SAYFA'!$J$15*15/100*Z33/100,2) -> 0 | AC33: 0 | AD33: 3.57 | AL33: 0 | BI33: 29 | BJ33: 29-29-PANDEMİ ÜCRETSİ İZİN(4857. GEÇ.10.MD) VE DİĞER | BL33: 30
O34: 0 | P34: 0 | Q34: =('ANA SAYFA'!$N$24*'ANA SAYFA'!$N$25*(PUANTAJ!AI65))+('ANA SAYFA'!$N$24*'ANA SAYFA'!$N$3*(PUANTAJ!AJ65+PUANTAJ!AK65)) -> 0 | R34: =IF(Q34=0,(0),'ANA SAYFA'!$H$15*'ANA SAYFA'!$N$25) -> 0 | U34: =IF(Q34=0,0,'ANA SAYFA'!$H$15*'ANA SAYFA'!$O$25) -> 0 | AA34: =ROUND('ANA SAYFA'!$J$15*15/100*Z34/100,2) -> 0 | AC34: 0 | AD34: 3.57 | AL34: 0 | BL34: 31
O35: 0 | P35: 0 | Q35: =('ANA SAYFA'!$N$24*'ANA SAYFA'!$N$25*(PUANTAJ!AI67))+('ANA SAYFA'!$N$24*'ANA SAYFA'!$N$3*(PUANTAJ!AJ67+PUANTAJ!AK67)) -> 0 | R35: =IF(Q35=0,(0),'ANA SAYFA'!$H$15*'ANA SAYFA'!$N$25) -> 0 | U35: =IF(Q35=0,0,'ANA SAYFA'!$H$15*'ANA SAYFA'!$O$25) -> 0 | AA35: =ROUND('ANA SAYFA'!$J$15*15/100*Z35/100,2) -> 0 | AC35: 0 | AD35: 3.57 | AL35: 0 | BL35: 32
O36: 0 | P36: 0 | Q36: =('ANA SAYFA'!$N$24*'ANA SAYFA'!$N$25*(PUANTAJ!AI69))+('ANA SAYFA'!$N$24*'ANA SAYFA'!$N$3*(PUANTAJ!AJ69+PUANTAJ!AK69)) -> 0 | R36: =IF(Q36=0,(0),'ANA SAYFA'!$H$15*'ANA SAYFA'!$N$25) -> 0 | U36: =IF(Q36=0,0,'ANA SAYFA'!$H$15*'ANA SAYFA'!$O$25) -> 0 | AA36: =ROUND('ANA SAYFA'!$J$15*15/100*Z36/100,2) -> 0 | AC36: 0 | AD36: 3.57 | AL36: 0 | BL36: 33
O37: 0 | P37: 0 | Q37: =('ANA SAYFA'!$N$24*'ANA SAYFA'!$N$25*(PUANTAJ!AI71))+('ANA SAYFA'!$N$24*'ANA SAYFA'!$N$3*(PUANTAJ!AJ71+PUANTAJ!AK71)) -> 0 | R37: =IF(Q37=0,(0),'ANA SAYFA'!$H$15*'ANA SAYFA'!$N$25) -> 0 | U37: =IF(Q37=0,0,'ANA SAYFA'!$H$15*'ANA SAYFA'!$O$25) -> 0 | AA37: =ROUND('ANA SAYFA'!$J$15*15/100*Z37/100,2) -> 0 | AC37: 0 | AD37: 3.57 | AL37: 0 | BL37: 34
O38: 0 | P38: 0 | Q38: =('ANA SAYFA'!$N$24*'ANA SAYFA'!$N$25*(PUANTAJ!AI73))+('ANA SAYFA'!$N$24*'ANA SAYFA'!$N$3*(PUANTAJ!AJ73+PUANTAJ!AK73)) -> 0 | R38: =IF(Q38=0,(0),'ANA SAYFA'!$H$15*'ANA SAYFA'!$N$25) -> 0 | U38: =IF(Q38=0,0,'ANA SAYFA'!$H$15*'ANA SAYFA'!$O$25) -> 0 | AA38: =ROUND('ANA SAYFA'!$J$15*15/100*Z38/100,2) -> 0 | AC38: 0 | AD38: 3.57 | AL38: 0 | BL38: 37
O39: 0 | P39: 0 | Q39: =('ANA SAYFA'!$N$24*'ANA SAYFA'!$N$25*(PUANTAJ!AI75))+('ANA SAYFA'!$N$24*'ANA SAYFA'!$N$3*(PUANTAJ!AJ75+PUANTAJ!AK75)) -> 0 | R39: =IF(Q39=0,(0),'ANA SAYFA'!$H$15*'ANA SAYFA'!$N$25) -> 0 | U39: =IF(Q39=0,0,'ANA SAYFA'!$H$15*'ANA SAYFA'!$O$25) -> 0 | AA39: =ROUND('ANA SAYFA'!$J$15*15/100*Z39/100,2) -> 0 | AC39: 0 | AD39: 3.57 | AL39: 0 | BL39: 38
AC40: 0 | AL40: 0 | BL40: 39
AC41: 0 | AL41: 0 | BL41: 40
AC42: 0 | AL42: 0 | BL42: 42
AC43: 0 | AL43: 0 | BL43: 43
AC44: 0 | AL44: 0 | BL44: 44
AC45: 0 | AL45: 0 | BL45: 45
AC46: 0 | AL46: 0 | BL46: 46
AC47: 0 | AL47: 0 | BL47: 47
AC48: 0 | AL48: 0 | BL48: 48
AC49: 0 | AL49: 0 | BL49: 49
AC50: 0 | AL50: 0 | BL50: 50
AC51: 0 | AL51: 0
AC52: 0 | AL52: 0
AC53: 0 | AL53: 0
AC54: 0 | AL54: 0
AC55: 0 | AL55: 0
AC56: 0 | AL56: 0
AC57: 0 | AL57: 0
AC58: 0 | AL58: 0
AC59: 0 | AL59: 0
AC60: 0 | AL60: 0
AC61: 0 | AL61: 0
AC62: 0 | AL62: 0
AC63: 0 | AL63: 0
AC64: 0 | AL64: 0
AC65: 0 | AL65: 0
AC66: 0 | AL66: 0
AC67: 0 | AL67: 0
AC68: 0 | AL68: 0
AC69: 0 | AL69: 0
AC70: 0 | AL70: 0
AC71: 0 | AL71: 0
AC72: 0 | AL72: 0
AC73: 0 | AL73: 0
AC74: 0 | AL74: 0
AC75: 0 | AL75: 0
AC76: 0 | AL76: 0
AC77: 0 | AL77: 0
AC78: 0 | AL78: 0
AC79: 0 | AL79: 0
A81: ='ANA SAYFA'!G13 -> MAAŞ MUTEMEDİ | J81: ='ANA SAYFA'!G12 -> GERÇEKLEŞTİRME GÖREVLİSİ | K81: ='ANA SAYFA'!G11 -> HARCAMA YETKİLİSİ
A82: ='ANA SAYFA'!H13 -> 0 | J82: ='ANA SAYFA'!H12 -> 0 | K82: ='ANA SAYFA'!H11 -> 0
A83: ='ANA SAYFA'!J13 ->  | J83: ='ANA SAYFA'!J12 ->  | K83: ='ANA SAYFA'!J11 -> 
A84: =TODAY() -> 2024-02-05 | J84: =TODAY() -> 2024-02-05 | K84: =TODAY() -> 2024-02-05 | AF84: VAR (30 Gün)
AF85: VAR (13 Gün)
U86: 10 | V86: 50 | AF86: YOK | AN86: VAR(KENDİSİ) | AR86: YOK
U87: 20 | V87: 57.5 | AN87: VAR(İŞ KAZASI) | AR87: SENDİKA
U88: 30 | V88: 60 | AN88: VAR(YAKINI) | AR88: DAYANIŞMA
U89: 40 | V89: 65 | AN89: YOK
U90: 50 | V90: 67.5
U91: 55 | V91: 75
U92: 60 | V92: 80
U93: 65 | V93: 85
U94: 70
U95: 75
U96: 80
U97: 100
U98: 110 | AA98: Çalışanın kendisi (bekar) %50
U99: 120 | AA99: Evli eşi çalışmayan ve çocuksuz %60
AA100: Evli eşi çalışmayan ve 1 çocuklu %67,5 | AG100: 100 | AH100: İLKOKUL
AA101: Evli eşi çalışmayan ve 2 çocuklu %75 | AG101: 110 | AH101: ORTAOKUL
AA102: Evli eşi çalışmayan ve 3 çocuklu %80 | AG102: 120 | AH102: LİSE
AA103: Evli eşi çalışmayan ve 4 çocuklu %85 | AG103: 140 | AH103: ÜNİVERSİTE
AA104: Evli eşi çalışan ve çocuksuz %50
AA105: Evli eşi çalışan ve 1 çocuklu %57,5
AA106: Evli eşi çalışan ve 2 çocuklu %65
AA107: Evli eşi çalışan ve 3 çocuklu %70
AA108: Evli eşi çalışan ve 4 çocuklu %75

Sheet PUANTAJ
A1: ANA SAYFA | C1: ='PERSONEL BİLGİ GİRİŞİ'!A1 -> AİLE VE SOSYAL HİZMETLER İL MÜDÜRLÜĞÜ
B2: 2024-01-01 | D2: =B2 -> 2024-01-01 | E2: =IFERROR(IF((D2+1)<=VLOOKUP($B$2,TAKVİM!$A:$C,3,0),D2+1,""),"") -> 2024-01-02 | F2: =IFERROR(IF((E2+1)<=VLOOKUP($B$2,TAKVİM!$A:$C,3,0),E2+1,""),"") -> 2024-01-03 | G2: =IFERROR(IF((F2+1)<=VLOOKUP($B$2,TAKVİM!$A:$C,3,0),F2+1,""),"") -> 2024-01-04 | H2: =IFERROR(IF((G2+1)<=VLOOKUP($B$2,TAKVİM!$A:$C,3,0),G2+1,""),"") -> 2024-01-05 | I2: =IFERROR(IF((H2+1)<=VLOOKUP($B$2,TAKVİM!$A:$C,3,0),H2+1,""),"") -> 2024-01-06 | J2: =IFERROR(IF((I2+1)<=VLOOKUP($B$2,TAKVİM!$A:$C,3,0),I2+1,""),"") -> 2024-01-07 | K2: =IFERROR(IF((J2+1)<=VLOOKUP($B$2,TAKVİM!$A:$C,3,0),J2+1,""),"") -> 2024-01-08 | L2: =IFERROR(IF((K2+1)<=VLOOKUP($B$2,TAKVİM!$A:$C,3,0),K2+1,""),"") -> 2024-01-09 | M2: =IFERROR(IF((L2+1)<=VLOOKUP($B$2,TAKVİM!$A:$C,3,0),L2+1,""),"") -> 2024-01-10 | N2: =IFERROR(IF((M2+1)<=VLOOKUP($B$2,TAKVİM!$A:$C,3,0),M2+1,""),"") -> 2024-01-11 | O2: =IFERROR(IF((N2+1)<=VLOOKUP($B$2,TAKVİM!$A:$C,3,0),N2+1,""),"") -> 2024-01-12 | P2: =IFERROR(IF((O2+1)<=VLOOKUP($B$2,TAKVİM!$A:$C,3,0),O2+1,""),"") -> 2024-01-13 | Q2: =IFERROR(IF((P2+1)<=VLOOKUP($B$2,TAKVİM!$A:$C,3,0),P2+1,""),"") -> 2024-01-14 | R2: =IFERROR(IF((Q2+1)<=VLOOKUP($B$2,TAKVİM!$A:$C,3,0),Q2+1,""),"") -> 2024-01-15 | S2: =IFERROR(IF((R2+1)<=VLOOKUP($B$2,TAKVİM!$A:$C,3,0),R2+1,""),"") -> 2024-01-16 | T2: =IFERROR(IF((S2+1)<=VLOOKUP($B$2,TAKVİM!$A:$C,3,0),S2+1,""),"") -> 2024-01-17 | U2: =IFERROR(IF((T2+1)<=VLOOKUP($B$2,TAKVİM!$A:$C,3,0),T2+1,""),"") -> 2024-01-18 | V2: =IFERROR(IF((U2+1)<=VLOOKUP($B$2,TAKVİM!$A:$C,3,0),U2+1,""),"") -> 2024-01-19 | W2: =IFERROR(IF((V2+1)<=VLOOKUP($B$2,TAKVİM!$A:$C,3,0),V2+1,""),"") -> 2024-01-20 | X2: =IFERROR(IF((W2+1)<=VLOOKUP($B$2,TAKVİM!$A:$C,3,0),W2+1,""),"") -> 2024-01-21 | Y2: =IFERROR(IF((X2+1)<=VLOOKUP($B$2,TAKVİM!$A:$C,3,0),X2+1,""),"") -> 2024-01-22 | Z2: =IFERROR(IF((Y2+1)<=VLOOKUP($B$2,TAKVİM!$A:$C,3,0),Y2+1,""),"") -> 2024-01-23 | AA2: =IFERROR(IF((Z2+1)<=VLOOKUP($B$2,TAKVİM!$A:$C,3,0),Z2+1,""),"") -> 2024-01-24 | AB2: =IFERROR(IF((AA2+1)<=VLOOKUP($B$2,TAKVİM!$A:$C,3,0),AA2+1,""),"") -> 2024-01-25 | AC2: =IFERROR(IF((AB2+1)<=VLOOKUP($B$2,TAKVİM!$A:$C,3,0),AB2+1,""),"") -> 2024-01-26 | AD2: =IFERROR(IF((AC2+1)<=VLOOKUP($B$2,TAKVİM!$A:$C,3,0),AC2+1,""),"") -> 2024-01-27 | AE2: =IFERROR(IF((AD2+1)<=VLOOKUP($B$2,TAKVİM!$A:$C,3,0),AD2+1,""),"") -> 2024-01-28 | AF2: =IFERROR(IF((AE2+1)<=VLOOKUP($B$2,TAKVİM!$A:$C,3,0),AE2+1,""),"") -> 2024-01-29 | AG2: =IFERROR(IF((AF2+1)<=VLOOKUP($B$2,TAKVİM!$A:$C,3,0),AF2+1,""),"") -> 2024-01-30 | AH2: =IFERROR(IF((AG2+1)<=VLOOKUP($B$2,TAKVİM!$A:$C,3,0),AG2+1,""),"") -> 2024-01-31 | AI2: =B2 -> 2024-01-01 | AX2: ANA SAYFA
A3: P U A N T A J L İ S T E S İ | AI3: Toplam
A5: =' BORDRO HAZIRLIK'!A4 -> SIRA NO | D5: =B2 -> 2024-01-01 | E5: =IFERROR(IF((D2+1)<=VLOOKUP($B$2,TAKVİM!$A:$C,3,0),D2+1,""),"") -> 2024-01-02 | F5: =IFERROR(IF((E2+1)<=VLOOKUP($B$2,TAKVİM!$A:$C,3,0),E2+1,""),"") -> 2024-01-03 | G5: =IFERROR(IF((F2+1)<=VLOOKUP($B$2,TAKVİM!$A:$C,3,0),F2+1,""),"") -> 2024-01-04 | H5: =IFERROR(IF((G2+1)<=VLOOKUP($B$2,TAKVİM!$A:$C,3,0),G2+1,""),"") -> 2024-01-05 | I5: =IFERROR(IF((H2+1)<=VLOOKUP($B$2,TAKVİM!$A:$C,3,0),H2+1,""),"") -> 2024-01-06 | J5: =IFERROR(IF((I2+1)<=VLOOKUP($B$2,TAKVİM!$A:$C,3,0),I2+1,""),"") -> 2024-01-07 | K5: =IFERROR(IF((J2+1)<=VLOOKUP($B$2,TAKVİM!$A:$C,3,0),J2+1,""),"") -> 2024-01-08 | L5: =IFERROR(IF((K2+1)<=VLOOKUP($B$2,TAKVİM!$A:$C,3,0),K2+1,""),"") -> 2024-01-09 | M5: =IFERROR(IF((L2+1)<=VLOOKUP($B$2,TAKVİM!$A:$C,3,0),L2+1,""),"") -> 2024-01-10 | N5: =IFERROR(IF((M2+1)<=VLOOKUP($B$2,TAKVİM!$A:$C,3,0),M2+1,""),"") -> 2024-01-11 | O5: =IFERROR(IF((N2+1)<=VLOOKUP($B$2,TAKVİM!$A:$C,3,0),N2+1,""),"") -> 2024-01-12 | P5: =IFERROR(IF((O2+1)<=VLOOKUP($B$2,TAKVİM!$A:$C,3,0),O2+1,""),"") -> 2024-01-13 | Q5: =IFERROR(IF((P2+1)<=VLOOKUP($B$2,TAKVİM!$A:$C,3,0),P2+1,""),"") -> 2024-01-14 | R5: =IFERROR(IF((Q2+1)<=VLOOKUP($B$2,TAKVİM!$A:$C,3,0),Q2+1,""),"") -> 2024-01-15 | S5: =IFERROR(IF((R2+1)<=VLOOKUP($B$2,TAKVİM!$A:$C,3,0),R2+1,""),"") -> 2024-01-16 | T5: =IFERROR(IF((S2+1)<=VLOOKUP($B$2,TAKVİM!$A:$C,3,0),S2+1,""),"") -> 2024-01-17 | U5: =IFERROR(IF((T2+1)<=VLOOKUP($B$2,TAKVİM!$A:$C,3,0),T2+1,""),"") -> 2024-01-18 | V5: =IFERROR(IF((U2+1)<=VLOOKUP($B$2,TAKVİM!$A:$C,3,0),U2+1,""),"") -> 2024-01-19 | W5: =IFERROR(IF((V2+1)<=VLOOKUP($B$2,TAKVİM!$A:$C,3,0),V2+1,""),"") -> 2024-01-20 | X5: =IFERROR(IF((W2+1)<=VLOOKUP($B$2,TAKVİM!$A:$C,3,0),W2+1,""),"") -> 2024-01-21 | Y5: =IFERROR(IF((X2+1)<=VLOOKUP($B$2,TAKVİM!$A:$C,3,0),X2+1,""),"") -> 2024-01-22 | Z5: =IFERROR(IF((Y2+1)<=VLOOKUP($B$2,TAKVİM!$A:$C,3,0),Y2+1,""),"") -> 2024-01-23 | AA5: =IFERROR(IF((Z2+1)<=VLOOKUP($B$2,TAKVİM!$A:$C,3,0),Z2+1,""),"") -> 2024-01-24 | AB5: =IFERROR(IF((AA2+1)<=VLOOKUP($B$2,TAKVİM!$A:$C,3,0),AA2+1,""),"") -> 2024-01-25 | AC5: =IFERROR(IF((AB2+1)<=VLOOKUP($B$2,TAKVİM!$A:$C,3,0),AB2+1,""),"") -> 2024-01-26 | AD5: =IFERROR(IF((AC2+1)<=VLOOKUP($B$2,TAKVİM!$A:$C,3,0),AC2+1,""),"") -> 2024-01-27 | AE5: =IFERROR(IF((AD2+1)<=VLOOKUP($B$2,TAKVİM!$A:$C,3,0),AD2+1,""),"") -> 2024-01-28 | AF5: =IFERROR(IF((AE2+1)<=VLOOKUP($B$2,TAKVİM!$A:$C,3,0),AE2+1,""),"") -> 2024-01-29 | AG5: =IFERROR(IF((AF2+1)<=VLOOKUP($B$2,TAKVİM!$A:$C,3,0),AF2+1,""),"") -> 2024-01-30 | AH5: =IFERROR(IF((AG2+1)<=VLOOKUP($B$2,TAKVİM!$A:$C,3,0),AG2+1,""),"") -> 2024-01-31 | AI5: GÜNDÜZ | AJ5: GECE | AK5: HAFTA SONU | AL5: EK SAAT | AM5: TOPLAM SAAT | AN5: OTALAMA SAAT | AO5: FAZLA ÇALIŞMA | AP5: HAFTA TATİLİ | AQ5: MAZERET İZNİ | AR5: ÜCRETSİZ İZİN | AS5: RESMİ TATİL | AT5: TOPLAM ÇALIŞMA GÜNÜ | AU5: S G K | AV5: RAPOR | AW5: İstirhat Süresince Çalışmamıştır. | AX5: İMZA | BF5: 19
B6: =' BORDRO HAZIRLIK'!B4 -> AD-SOYAD | C6: =' BORDRO HAZIRLIK'!C4 -> TC. KİMLİK NO | D6: =+TEXT(D5,"gggg") -> Pazartesi | E6: =+TEXT(E5,"gggg") -> Salı | F6: =+TEXT(F5,"gggg") -> Çarşamba | G6: =+TEXT(G5,"gggg") -> Perşembe | H6: Cuma | I6: Cumartesi | J6: Pazar | K6: Pazartesi | L6: Salı | M6: Çarşamba | N6: Perşembe | O6: Cuma | P6: Cumartesi | Q6: Pazar | R6: Pazartesi | S6: Salı | T6: Çarşamba | U6: Perşembe | V6: Cuma | W6: Cumartesi | X6: Pazar | Y6: Pazartesi | Z6: Salı | AA6: Çarşamba | AB6: Perşembe | AC6: Cuma | AD6: Cumartesi | AE6: Pazar | AF6: Pazartesi | AG6: Salı | AH6: Çarşamba | AI6: SAAT | AJ6: SAAT | AK6: SAAT | AL6: SAAT | AO6: GÜN | AP6: GÜN | AQ6: GÜN | AR6: GÜN | AS6: GÜN | AU6: GÜN | AV6: GÜN | AW6: Evet Hayır | BB6: EKSİK GÜN NEDENİ | BF6: ÜCRETSİZ İZİN
A7: ='PERSONEL BİLGİ GİRİŞİ'!A5 -> 1 | B7: =CONCATENATE('PERSONEL BİLGİ GİRİŞİ'!B5," ",'PERSONEL BİLGİ GİRİŞİ'!C5) -> ALİ BZC | C7: ='PERSONEL BİLGİ GİRİŞİ'!H5 -> 0 | D7: rt | E7: 8 | F7: 8 | G7: 8 | H7: 8 | I7: t | J7: t | K7: 8 | L7: 8 | M7: 8 | N7: 8 | O7: 4 | P7: t | Q7: t | R7: 8 | S7: 8 | T7: 8 | U7: 8 | V7: 4 | W7: t | X7: t | Y7: 8 | Z7: 8 | AA7: 8 | AB7: 8 | AC7: 4 | AD7: t | AE7: t | AF7: 8 | AG7: 8 | AH7: 8 | AI7: =IF(A7="",0,COUNTIF(D7:AH8,"1")*1+COUNTIF(D7:AH8,"2")*2+COUNTIF(D7:AH8,"3")*3+COUNTIF(D7:AH8,"4")*4+COUNTIF(D7:AH8,"5")*5+COUNTIF(D7:AH8,"6")*6+COUNTIF(D7:AH8,"7")*7+COUNTIF(D7:AH8,"8")*8+COUNTIF(D7:AH8,"9")*9+COUNTIF(D7:AH8,"10")*10+COUNTIF(D7:AH8,"Mİ")*8) -> 164 | AJ7: =IF(A7="",0,COUNTIF(D7:AH8,"GC1")*1+COUNTIF(D7:AH8,"GC2")*2+COUNTIF(D7:AH8,"GC3")*3+COUNTIF(D7:AH8,"GC4")*4+COUNTIF(D7:AH8,"GC5")*5+COUNTIF(D7:AH8,"GC6")*6+COUNTIF(D7:AH8,"GC7")*7+COUNTIF(D7:AH8,"GC8")*8) -> 0 | AK7: =IF(A7="",0,COUNTIF(D7:AH8,"HS4")*4+COUNTIF(D7:AH8,"HS8")*8) -> 0 | AL7: =(AI7+AJ7+AK7)/4 -> 41 | AM7: =IF(A7="",0,(AI7+AJ7+AK7)+AL7) -> 205 | AN7: =(AI7+AJ7+AK7)/4 -> 41 | AO7: =IF(A7="",0,COUNTIF(D7:AH8,"FÇ")) -> 0 | AP7: =IF(A7="",0,COUNTIF(D7:AH8,"T")) -> 8 | AQ7: =IF(A7="",0,COUNTIF(D7:AH8,"Mİ")) -> 0 | AR7: =IF(A7="",0,COUNTIF(D7:AH8,"Üİ")) -> 0 | AS7: =IF(A7="",0,COUNTIF(D7:AH8,"RT")) -> 1 | AT7: =IF(A7="",0,COUNTIF(D7:AH7,"1")+COUNTIF(D7:AH7,"2")+COUNTIF(D7:AH7,"3")+COUNTIF(D7:AH7,"4")+COUNTIF(D7:AH7,"5")+COUNTIF(D7:AH7,"6")+COUNTIF(D7:AH7,"7")+COUNTIF(D7:AH7,"8")+COUNTIF(D7:AH7,"9")+COUNTIF(D7:AH7,"HS4")+COUNTIF(D7:AH7,"HS8")+COUNTIF(D7:AH7,"GC1")+COUNTIF(D7:AH7,"GC2")+COUNTIF(D7:AH7,"GC3")+COUNTIF(D7:AH7,"GC4")+COUNTIF(D7:AH7,"GC5")+COUNTIF(D7:AH7,"GC6")+COUNTIF(D7:AH7,"GC7")+COUNTIF(D7:AH7,"GC8")+AO7+AQ7+AS7+AP7) -> 31 | AU7: =IF(AN7<30,ROUNDUP(((AM7-AL7)/7.5),0),IF(AV7+AR7=0,30,AT7)) -> 30 | AV7: =IF(A7="",0,IF(AN7<30,(COUNTA(D7:AH7)-AU7),COUNTIF(D7:AH7,"R"))) -> 0 | AW7: =IF(((COUNTIF(D7:AH7,"R")))>=1,"E","") ->  | BE7: 1 | BF7: =COUNTIF(D7:AH7,"Üİ") -> 0
A9: ='PERSONEL BİLGİ GİRİŞİ'!A6 ->  | B9: =CONCATENATE('PERSONEL BİLGİ GİRİŞİ'!B6," ",'PERSONEL BİLGİ GİRİŞİ'!C6) ->  | C9: ='PERSONEL BİLGİ GİRİŞİ'!H6 -> 0 | AI9: =IF(A9="",0,COUNTIF(D9:AH10,"1")*1+COUNTIF(D9:AH10,"2")*2+COUNTIF(D9:AH10,"3")*3+COUNTIF(D9:AH10,"4")*4+COUNTIF(D9:AH10,"5")*5+COUNTIF(D9:AH10,"6")*6+COUNTIF(D9:AH10,"7")*7+COUNTIF(D9:AH10,"8")*8+COUNTIF(D9:AH10,"9")*9+COUNTIF(D9:AH10,"10")*10+COUNTIF(D9:AH10,"Mİ")*8) -> 0 | AJ9: =IF(A9="",0,COUNTIF(D9:AH10,"GC1")*1+COUNTIF(D9:AH10,"GC2")*2+COUNTIF(D9:AH10,"GC3")*3+COUNTIF(D9:AH10,"GC4")*4+COUNTIF(D9:AH10,"GC5")*5+COUNTIF(D9:AH10,"GC6")*6+COUNTIF(D9:AH10,"GC7")*7+COUNTIF(D9:AH10,"GC8")*8) -> 0 | AK9: =IF(A9="",0,COUNTIF(D9:AH10,"HS4")*4+COUNTIF(D9:AH10,"HS8")*8) -> 0 | AL9: =(AI9+AJ9+AK9)/4 -> 0 | AM9: =IF(A9="",0,(AI9+AJ9+AK9)+AL9) -> 0 | AN9: =(AI9+AJ9+AK9)/4 -> 0 | AO9: =IF(A9="",0,COUNTIF(D9:AH10,"FÇ")) -> 0 | AP9: =IF(A9="",0,COUNTIF(D9:AH10,"T")) -> 0 | AQ9: =IF(A9="",0,COUNTIF(D9:AH10,"Mİ")) -> 0 | AR9: =IF(A9="",0,COUNTIF(D9:AH10,"Üİ")) -> 0 | AS9: =IF(A9="",0,COUNTIF(D9:AH10,"RT")) -> 0 | AT9: =IF(A9="",0,COUNTIF(D9:AH9,"1")+COUNTIF(D9:AH9,"2")+COUNTIF(D9:AH9,"3")+COUNTIF(D9:AH9,"4")+COUNTIF(D9:AH9,"5")+COUNTIF(D9:AH9,"6")+COUNTIF(D9:AH9,"7")+COUNTIF(D9:AH9,"8")+COUNTIF(D9:AH9,"9")+COUNTIF(D9:AH9,"HS4")+COUNTIF(D9:AH9,"HS8")+COUNTIF(D9:AH9,"GC1")+COUNTIF(D9:AH9,"GC2")+COUNTIF(D9:AH9,"GC3")+COUNTIF(D9:AH9,"GC4")+COUNTIF(D9:AH9,"GC5")+COUNTIF(D9:AH9,"GC6")+COUNTIF(D9:AH9,"GC7")+COUNTIF(D9:AH9,"GC8")+AO9+AQ9+AS9+AP9) -> 0 | AU9: =IF(AN9<30,ROUNDUP(((AM9-AL9)/7.5),0),IF(AV9+AR9=0,30,AT9)) -> 0 | AV9: =IF(A9="",0,IF(AN9<30,(COUNTA(D9:AH9)-AU9),COUNTIF(D9:AH9,"R"))) -> 0 | AW9: =IF(((COUNTIF(D9:AH9,"R")))>=1,"E","") ->  | BE9: 2 | BF9: =COUNTIF(D9:AH9,"Üİ") -> 0
A11: ='PERSONEL BİLGİ GİRİŞİ'!A7 ->  | B11: =CONCATENATE('PERSONEL BİLGİ GİRİŞİ'!B7," ",'PERSONEL BİLGİ GİRİŞİ'!C7) ->  | C11: ='PERSONEL BİLGİ GİRİŞİ'!H7 -> 0 | AI11: =IF(A11="",0,COUNTIF(D11:AH12,"1")*1+COUNTIF(D11:AH12,"2")*2+COUNTIF(D11:AH12,"3")*3+COUNTIF(D11:AH12,"4")*4+COUNTIF(D11:AH12,"5")*5+COUNTIF(D11:AH12,"6")*6+COUNTIF(D11:AH12,"7")*7+COUNTIF(D11:AH12,"8")*8+COUNTIF(D11:AH12,"9")*9+COUNTIF(D11:AH12,"10")*10+COUNTIF(D11:AH12,"Mİ")*8) -> 0 | AJ11: =IF(A11="",0,COUNTIF(D11:AH12,"GC1")*1+COUNTIF(D11:AH12,"GC2")*2+COUNTIF(D11:AH12,"GC3")*3+COUNTIF(D11:AH12,"GC4")*4+COUNTIF(D11:AH12,"GC5")*5+COUNTIF(D11:AH12,"GC6")*6+COUNTIF(D11:AH12,"GC7")*7+COUNTIF(D11:AH12,"GC8")*8) -> 0 | AK11: =IF(A11="",0,COUNTIF(D11:AH12,"HS4")*4+COUNTIF(D11:AH12,"HS8")*8) -> 0 | AL11: =(AI11+AJ11+AK11)/4 -> 0 | AM11: =IF(A11="",0,(AI11+AJ11+AK11)+AL11) -> 0 | AN11: =(AI11+AJ11+AK11)/4 -> 0 | AO11: =IF(A11="",0,COUNTIF(D11:AH12,"FÇ")) -> 0 | AP11: =IF(A11="",0,COUNTIF(D11:AH12,"T")) -> 0 | AQ11: =IF(A11="",0,COUNTIF(D11:AH12,"Mİ")) -> 0 | AR11: =IF(A11="",0,COUNTIF(D11:AH12,"Üİ")) -> 0 | AS11: =IF(A11="",0,COUNTIF(D11:AH12,"RT")) -> 0 | AT11: =IF(A11="",0,COUNTIF(D11:AH11,"1")+COUNTIF(D11:AH11,"2")+COUNTIF(D11:AH11,"3")+COUNTIF(D11:AH11,"4")+COUNTIF(D11:AH11,"5")+COUNTIF(D11:AH11,"6")+COUNTIF(D11:AH11,"7")+COUNTIF(D11:AH11,"8")+COUNTIF(D11:AH11,"9")+COUNTIF(D11:AH11,"HS4")+COUNTIF(D11:AH11,"HS8")+COUNTIF(D11:AH11,"GC1")+COUNTIF(D11:AH11,"GC2")+COUNTIF(D11:AH11,"GC3")+COUNTIF(D11:AH11,"GC4")+COUNTIF(D11:AH11,"GC5")+COUNTIF(D11:AH11,"GC6")+COUNTIF(D11:AH11,"GC7")+COUNTIF(D11:AH11,"GC8")+AO11+AQ11+AS11+AP11) -> 0 | AU11: =IF(AN11<30,ROUNDUP(((AM11-AL11)/7.5),0),IF(AV11+AR11=0,30,AT11)) -> 0 | AV11: =IF(A11="",0,IF(AN11<30,(COUNTA(D11:AH11)-AU11),COUNTIF(D11:AH11,"R"))) -> 0 | AW11: =IF(((COUNTIF(D11:AH11,"R")))>=1,"E","") ->  | BE11: 3 | BF11: =COUNTIF(D11:AH11,"Üİ") -> 0
A13: ='PERSONEL BİLGİ GİRİŞİ'!A8 ->  | B13: =CONCATENATE('PERSONEL BİLGİ GİRİŞİ'!B8," ",'PERSONEL BİLGİ GİRİŞİ'!C8) ->  | C13: ='PERSONEL BİLGİ GİRİŞİ'!H8 -> 0 | AI13: =IF(A13="",0,COUNTIF(D13:AH14,"1")*1+COUNTIF(D13:AH14,"2")*2+COUNTIF(D13:AH14,"3")*3+COUNTIF(D13:AH14,"4")*4+COUNTIF(D13:AH14,"5")*5+COUNTIF(D13:AH14,"6")*6+COUNTIF(D13:AH14,"7")*7+COUNTIF(D13:AH14,"8")*8+COUNTIF(D13:AH14,"9")*9+COUNTIF(D13:AH14,"10")*10+COUNTIF(D13:AH14,"Mİ")*8) -> 0 | AJ13: =IF(A13="",0,COUNTIF(D13:AH14,"GC1")*1+COUNTIF(D13:AH14,"GC2")*2+COUNTIF(D13:AH14,"GC3")*3+COUNTIF(D13:AH14,"GC4")*4+COUNTIF(D13:AH14,"GC5")*5+COUNTIF(D13:AH14,"GC6")*6+COUNTIF(D13:AH14,"GC7")*7+COUNTIF(D13:AH14,"GC8")*8) -> 0 | AK13: =IF(A13="",0,COUNTIF(D13:AH14,"HS4")*4+COUNTIF(D13:AH14,"HS8")*8) -> 0 | AL13: =(AI13+AJ13+AK13)/4 -> 0 | AM13: =IF(A13="",0,(AI13+AJ13+AK13)+AL13) -> 0 | AN13: =(AI13+AJ13+AK13)/4 -> 0 | AO13: =IF(A13="",0,COUNTIF(D13:AH14,"FÇ")) -> 0 | AP13: =IF(A13="",0,COUNTIF(D13:AH14,"T")) -> 0 | AQ13: =IF(A13="",0,COUNTIF(D13:AH14,"Mİ")) -> 0 | AR13: =IF(A13="",0,COUNTIF(D13:AH14,"Üİ")) -> 0 | AS13: =IF(A13="",0,COUNTIF(D13:AH14,"RT")) -> 0 | AT13: =IF(A13="",0,COUNTIF(D13:AH13,"1")+COUNTIF(D13:AH13,"2")+COUNTIF(D13:AH13,"3")+COUNTIF(D13:AH13,"4")+COUNTIF(D13:AH13,"5")+COUNTIF(D13:AH13,"6")+COUNTIF(D13:AH13,"7")+COUNTIF(D13:AH13,"8")+COUNTIF(D13:AH13,"9")+COUNTIF(D13:AH13,"HS4")+COUNTIF(D13:AH13,"HS8")+COUNTIF(D13:AH13,"GC1")+COUNTIF(D13:AH13,"GC2")+COUNTIF(D13:AH13,"GC3")+COUNTIF(D13:AH13,"GC4")+COUNTIF(D13:AH13,"GC5")+COUNTIF(D13:AH13,"GC6")+COUNTIF(D13:AH13,"GC7")+COUNTIF(D13:AH13,"GC8")+AO13+AQ13+AS13+AP13) -> 0 | AU13: =IF(AN13<30,ROUNDUP(((AM13-AL13)/7.5),0),IF(AV13+AR13=0,30,AT13)) -> 0 | AV13: =IF(A13="",0,IF(AN13<30,(COUNTA(D13:AH13)-AU13),COUNTIF(D13:AH13,"R"))) -> 0 | AW13: =IF(((COUNTIF(D13:AH13,"R")))>=1,"E","") ->  | BE13: 4 | BF13: =COUNTIF(D13:AH13,"Üİ") -> 0
A15: ='PERSONEL BİLGİ GİRİŞİ'!A9 ->  | B15: =CONCATENATE('PERSONEL BİLGİ GİRİŞİ'!B9," ",'PERSONEL BİLGİ GİRİŞİ'!C9) ->  | C15: ='PERSONEL BİLGİ GİRİŞİ'!H9 -> 0 | AI15: =IF(A15="",0,COUNTIF(D15:AH16,"1")*1+COUNTIF(D15:AH16,"2")*2+COUNTIF(D15:AH16,"3")*3+COUNTIF(D15:AH16,"4")*4+COUNTIF(D15:AH16,"5")*5+COUNTIF(D15:AH16,"6")*6+COUNTIF(D15:AH16,"7")*7+COUNTIF(D15:AH16,"8")*8+COUNTIF(D15:AH16,"9")*9+COUNTIF(D15:AH16,"10")*10+COUNTIF(D15:AH16,"Mİ")*8) -> 0 | AJ15: =IF(A15="",0,COUNTIF(D15:AH16,"GC1")*1+COUNTIF(D15:AH16,"GC2")*2+COUNTIF(D15:AH16,"GC3")*3+COUNTIF(D15:AH16,"GC4")*4+COUNTIF(D15:AH16,"GC5")*5+COUNTIF(D15:AH16,"GC6")*6+COUNTIF(D15:AH16,"GC7")*7+COUNTIF(D15:AH16,"GC8")*8) -> 0 | AK15: =IF(A15="",0,COUNTIF(D15:AH16,"HS4")*4+COUNTIF(D15:AH16,"HS8")*8) -> 0 | AL15: =(AI15+AJ15+AK15)/4 -> 0 | AM15: =IF(A15="",0,(AI15+AJ15+AK15)+AL15) -> 0 | AN15: =(AI15+AJ15+AK15)/4 -> 0 | AO15: =IF(A15="",0,COUNTIF(D15:AH16,"FÇ")) -> 0 | AP15: =IF(A15="",0,COUNTIF(D15:AH16,"T")) -> 0 | AQ15: =IF(A15="",0,COUNTIF(D15:AH16,"Mİ")) -> 0 | AR15: =IF(A15="",0,COUNTIF(D15:AH16,"Üİ")) -> 0 | AS15: =IF(A15="",0,COUNTIF(D15:AH16,"RT")) -> 0 | AT15: =IF(A15="",0,COUNTIF(D15:AH15,"1")+COUNTIF(D15:AH15,"2")+COUNTIF(D15:AH15,"3")+COUNTIF(D15:AH15,"4")+COUNTIF(D15:AH15,"5")+COUNTIF(D15:AH15,"6")+COUNTIF(D15:AH15,"7")+COUNTIF(D15:AH15,"8")+COUNTIF(D15:AH15,"9")+COUNTIF(D15:AH15,"HS4")+COUNTIF(D15:AH15,"HS8")+COUNTIF(D15:AH15,"GC1")+COUNTIF(D15:AH15,"GC2")+COUNTIF(D15:AH15,"GC3")+COUNTIF(D15:AH15,"GC4")+COUNTIF(D15:AH15,"GC5")+COUNTIF(D15:AH15,"GC6")+COUNTIF(D15:AH15,"GC7")+COUNTIF(D15:AH15,"GC8")+AO15+AQ15+AS15+AP15) -> 0 | AU15: =IF(AN15<30,ROUNDUP(((AM15-AL15)/7.5),0),IF(AV15+AR15=0,30,AT15)) -> 0 | AV15: =IF(A15="",0,IF(AN15<30,(COUNTA(D15:AH15)-AU15),COUNTIF(D15:AH15,"R"))) -> 0 | AW15: =IF(((COUNTIF(D15:AH15,"R")))>=1,"E","") ->  | BE15: 5 | BF15: =COUNTIF(D15:AH15,"Üİ") -> 0
A17: ='PERSONEL BİLGİ GİRİŞİ'!A10 ->  | B17: =CONCATENATE('PERSONEL BİLGİ GİRİŞİ'!B10," ",'PERSONEL BİLGİ GİRİŞİ'!C10) ->  | C17: ='PERSONEL BİLGİ GİRİŞİ'!H10 -> 0 | AI17: =IF(A17="",0,COUNTIF(D17:AH18,"1")*1+COUNTIF(D17:AH18,"2")*2+COUNTIF(D17:AH18,"3")*3+COUNTIF(D17:AH18,"4")*4+COUNTIF(D17:AH18,"5")*5+COUNTIF(D17:AH18,"6")*6+COUNTIF(D17:AH18,"7")*7+COUNTIF(D17:AH18,"8")*8+COUNTIF(D17:AH18,"9")*9+COUNTIF(D17:AH18,"10")*10+COUNTIF(D17:AH18,"Mİ")*8) -> 0 | AJ17: =IF(A17="",0,COUNTIF(D17:AH18,"GC1")*1+COUNTIF(D17:AH18,"GC2")*2+COUNTIF(D17:AH18,"GC3")*3+COUNTIF(D17:AH18,"GC4")*4+COUNTIF(D17:AH18,"GC5")*5+COUNTIF(D17:AH18,"GC6")*6+COUNTIF(D17:AH18,"GC7")*7+COUNTIF(D17:AH18,"GC8")*8) -> 0 | AK17: =IF(A17="",0,COUNTIF(D17:AH18,"HS4")*4+COUNTIF(D17:AH18,"HS8")*8) -> 0 | AL17: =(AI17+AJ17+AK17)/4 -> 0 | AM17: =IF(A17="",0,(AI17+AJ17+AK17)+AL17) -> 0 | AN17: =(AI17+AJ17+AK17)/4 -> 0 | AO17: =IF(A17="",0,COUNTIF(D17:AH18,"FÇ")) -> 0 | AP17: =IF(A17="",0,COUNTIF(D17:AH18,"T")) -> 0 | AQ17: =IF(A17="",0,COUNTIF(D17:AH18,"Mİ")) -> 0 | AR17: =IF(A17="",0,COUNTIF(D17:AH18,"Üİ")) -> 0 | AS17: =IF(A17="",0,COUNTIF(D17:AH18,"RT")) -> 0 | AT17: =IF(A17="",0,COUNTIF(D17:AH17,"1")+COUNTIF(D17:AH17,"2")+COUNTIF(D17:AH17,"3")+COUNTIF(D17:AH17,"4")+COUNTIF(D17:AH17,"5")+COUNTIF(D17:AH17,"6")+COUNTIF(D17:AH17,"7")+COUNTIF(D17:AH17,"8")+COUNTIF(D17:AH17,"9")+COUNTIF(D17:AH17,"HS4")+COUNTIF(D17:AH17,"HS8")+COUNTIF(D17:AH17,"GC1")+COUNTIF(D17:AH17,"GC2")+COUNTIF(D17:AH17,"GC3")+COUNTIF(D17:AH17,"GC4")+COUNTIF(D17:AH17,"GC5")+COUNTIF(D17:AH17,"GC6")+COUNTIF(D17:AH17,"GC7")+COUNTIF(D17:AH17,"GC8")+AO17+AQ17+AS17+AP17) -> 0 | AU17: =IF(AN17<30,ROUNDUP(((AM17-AL17)/7.5),0),IF(AV17+AR17=0,30,AT17)) -> 0 | AV17: =IF(A17="",0,IF(AN17<30,(COUNTA(D17:AH17)-AU17),COUNTIF(D17:AH17,"R"))) -> 0 | AW17: =IF(((COUNTIF(D17:AH17,"R")))>=1,"E","") ->  | BE17: 6 | BF17: =COUNTIF(D17:AH17,"Üİ") -> 0
A19: ='PERSONEL BİLGİ GİRİŞİ'!A11 ->  | B19: =CONCATENATE('PERSONEL BİLGİ GİRİŞİ'!B11," ",'PERSONEL BİLGİ GİRİŞİ'!C11) ->  | C19: ='PERSONEL BİLGİ GİRİŞİ'!H11 -> 0 | AI19: =IF(A19="",0,COUNTIF(D19:AH20,"1")*1+COUNTIF(D19:AH20,"2")*2+COUNTIF(D19:AH20,"3")*3+COUNTIF(D19:AH20,"4")*4+COUNTIF(D19:AH20,"5")*5+COUNTIF(D19:AH20,"6")*6+COUNTIF(D19:AH20,"7")*7+COUNTIF(D19:AH20,"8")*8+COUNTIF(D19:AH20,"9")*9+COUNTIF(D19:AH20,"10")*10+COUNTIF(D19:AH20,"Mİ")*8) -> 0 | AJ19: =IF(A19="",0,COUNTIF(D19:AH20,"GC1")*1+COUNTIF(D19:AH20,"GC2")*2+COUNTIF(D19:AH20,"GC3")*3+COUNTIF(D19:AH20,"GC4")*4+COUNTIF(D19:AH20,"GC5")*5+COUNTIF(D19:AH20,"GC6")*6+COUNTIF(D19:AH20,"GC7")*7+COUNTIF(D19:AH20,"GC8")*8) -> 0 | AK19: =IF(A19="",0,COUNTIF(D19:AH20,"HS4")*4+COUNTIF(D19:AH20,"HS8")*8) -> 0 | AL19: =(AI19+AJ19+AK19)/4 -> 0 | AM19: =IF(A19="",0,(AI19+AJ19+AK19)+AL19) -> 0 | AN19: =(AI19+AJ19+AK19)/4 -> 0 | AO19: =IF(A19="",0,COUNTIF(D19:AH20,"FÇ")) -> 0 | AP19: =IF(A19="",0,COUNTIF(D19:AH20,"T")) -> 0 | AQ19: =IF(A19="",0,COUNTIF(D19:AH20,"Mİ")) -> 0 | AR19: =IF(A19="",0,COUNTIF(D19:AH20,"Üİ")) -> 0 | AS19: =IF(A19="",0,COUNTIF(D19:AH20,"RT")) -> 0 | AT19: =IF(A19="",0,COUNTIF(D19:AH19,"1")+COUNTIF(D19:AH19,"2")+COUNTIF(D19:AH19,"3")+COUNTIF(D19:AH19,"4")+COUNTIF(D19:AH19,"5")+COUNTIF(D19:AH19,"6")+COUNTIF(D19:AH19,"7")+COUNTIF(D19:AH19,"8")+COUNTIF(D19:AH19,"9")+COUNTIF(D19:AH19,"HS4")+COUNTIF(D19:AH19,"HS8")+COUNTIF(D19:AH19,"GC1")+COUNTIF(D19:AH19,"GC2")+COUNTIF(D19:AH19,"GC3")+COUNTIF(D19:AH19,"GC4")+COUNTIF(D19:AH19,"GC5")+COUNTIF(D19:AH19,"GC6")+COUNTIF(D19:AH19,"GC7")+COUNTIF(D19:AH19,"GC8")+AO19+AQ19+AS19+AP19) -> 0 | AU19: =IF(AN19<30,ROUNDUP(((AM19-AL19)/7.5),0),IF(AV19+AR19=0,30,AT19)) -> 0 | AV19: =IF(A19="",0,IF(AN19<30,(COUNTA(D19:AH19)-AU19),COUNTIF(D19:AH19,"R"))) -> 0 | AW19: =IF(((COUNTIF(D19:AH19,"R")))>=1,"E","") ->  | BE19: 7 | BF19: =COUNTIF(D19:AH19,"Üİ") -> 0
A21: ='PERSONEL BİLGİ GİRİŞİ'!A12 ->  | B21: =CONCATENATE('PERSONEL BİLGİ GİRİŞİ'!B12," ",'PERSONEL BİLGİ GİRİŞİ'!C12) ->  | C21: ='PERSONEL BİLGİ GİRİŞİ'!H12 -> 0 | AI21: =IF(A21="",0,COUNTIF(D21:AH22,"1")*1+COUNTIF(D21:AH22,"2")*2+COUNTIF(D21:AH22,"3")*3+COUNTIF(D21:AH22,"4")*4+COUNTIF(D21:AH22,"5")*5+COUNTIF(D21:AH22,"6")*6+COUNTIF(D21:AH22,"7")*7+COUNTIF(D21:AH22,"8")*8+COUNTIF(D21:AH22,"9")*9+COUNTIF(D21:AH22,"10")*10+COUNTIF(D21:AH22,"Mİ")*8) -> 0 | AJ21: =IF(A21="",0,COUNTIF(D21:AH22,"GC1")*1+COUNTIF(D21:AH22,"GC2")*2+COUNTIF(D21:AH22,"GC3")*3+COUNTIF(D21:AH22,"GC4")*4+COUNTIF(D21:AH22,"GC5")*5+COUNTIF(D21:AH22,"GC6")*6+COUNTIF(D21:AH22,"GC7")*7+COUNTIF(D21:AH22,"GC8")*8) -> 0 | AK21: =IF(A21="",0,COUNTIF(D21:AH22,"HS4")*4+COUNTIF(D21:AH22,"HS8")*8) -> 0 | AL21: =(AI21+AJ21+AK21)/4 -> 0 | AM21: =IF(A21="",0,(AI21+AJ21+AK21)+AL21) -> 0 | AN21: =(AI21+AJ21+AK21)/4 -> 0 | AO21: =IF(A21="",0,COUNTIF(D21:AH22,"FÇ")) -> 0 | AP21: =IF(A21="",0,COUNTIF(D21:AH22,"T")) -> 0 | AQ21: =IF(A21="",0,COUNTIF(D21:AH22,"Mİ")) -> 0 | AR21: =IF(A21="",0,COUNTIF(D21:AH22,"Üİ")) -> 0 | AS21: =IF(A21="",0,COUNTIF(D21:AH22,"RT")) -> 0 | AT21: =IF(A21="",0,COUNTIF(D21:AH21,"1")+COUNTIF(D21:AH21,"2")+COUNTIF(D21:AH21,"3")+COUNTIF(D21:AH21,"4")+COUNTIF(D21:AH21,"5")+COUNTIF(D21:AH21,"6")+COUNTIF(D21:AH21,"7")+COUNTIF(D21:AH21,"8")+COUNTIF(D21:AH21,"9")+COUNTIF(D21:AH21,"HS4")+COUNTIF(D21:AH21,"HS8")+COUNTIF(D21:AH21,"GC1")+COUNTIF(D21:AH21,"GC2")+COUNTIF(D21:AH21,"GC3")+COUNTIF(D21:AH21,"GC4")+COUNTIF(D21:AH21,"GC5")+COUNTIF(D21:AH21,"GC6")+COUNTIF(D21:AH21,"GC7")+COUNTIF(D21:AH21,"GC8")+AO21+AQ21+AS21+AP21) -> 0 | AU21: =IF(AN21<30,ROUNDUP(((AM21-AL21)/7.5),0),IF(AV21+AR21=0,30,AT21)) -> 0 | AV21: =IF(A21="",0,IF(AN21<30,(COUNTA(D21:AH21)-AU21),COUNTIF(D21:AH21,"R"))) -> 0 | AW21: =IF(((COUNTIF(D21:AH21,"R")))>=1,"E","") ->  | BE21: 8 | BF21: =COUNTIF(D21:AH21,"Üİ") -> 0
A23: ='PERSONEL BİLGİ GİRİŞİ'!A13 ->  | B23: =CONCATENATE('PERSONEL BİLGİ GİRİŞİ'!B13," ",'PERSONEL BİLGİ GİRİŞİ'!C13) ->  | C23: ='PERSONEL BİLGİ GİRİŞİ'!H13 -> 0 | AI23: =IF(A23="",0,COUNTIF(D23:AH24,"1")*1+COUNTIF(D23:AH24,"2")*2+COUNTIF(D23:AH24,"3")*3+COUNTIF(D23:AH24,"4")*4+COUNTIF(D23:AH24,"5")*5+COUNTIF(D23:AH24,"6")*6+COUNTIF(D23:AH24,"7")*7+COUNTIF(D23:AH24,"8")*8+COUNTIF(D23:AH24,"9")*9+COUNTIF(D23:AH24,"10")*10+COUNTIF(D23:AH24,"Mİ")*8) -> 0 | AJ23: =IF(A23="",0,COUNTIF(D23:AH24,"GC1")*1+COUNTIF(D23:AH24,"GC2")*2+COUNTIF(D23:AH24,"GC3")*3+COUNTIF(D23:AH24,"GC4")*4+COUNTIF(D23:AH24,"GC5")*5+COUNTIF(D23:AH24,"GC6")*6+COUNTIF(D23:AH24,"GC7")*7+COUNTIF(D23:AH24,"GC8")*8) -> 0 | AK23: =IF(A23="",0,COUNTIF(D23:AH24,"HS4")*4+COUNTIF(D23:AH24,"HS8")*8) -> 0 | AL23: =(AI23+AJ23+AK23)/4 -> 0 | AM23: =IF(A23="",0,(AI23+AJ23+AK23)+AL23) -> 0 | AN23: =(AI23+AJ23+AK23)/4 -> 0 | AO23: =IF(A23="",0,COUNTIF(D23:AH24,"FÇ")) -> 0 | AP23: =IF(A23="",0,COUNTIF(D23:AH24,"T")) -> 0 | AQ23: =IF(A23="",0,COUNTIF(D23:AH24,"Mİ")) -> 0 | AR23: =IF(A23="",0,COUNTIF(D23:AH24,"Üİ")) -> 0 | AS23: =IF(A23="",0,COUNTIF(D23:AH24,"RT")) -> 0 | AT23: =IF(A23="",0,COUNTIF(D23:AH23,"1")+COUNTIF(D23:AH23,"2")+COUNTIF(D23:AH23,"3")+COUNTIF(D23:AH23,"4")+COUNTIF(D23:AH23,"5")+COUNTIF(D23:AH23,"6")+COUNTIF(D23:AH23,"7")+COUNTIF(D23:AH23,"8")+COUNTIF(D23:AH23,"9")+COUNTIF(D23:AH23,"HS4")+COUNTIF(D23:AH23,"HS8")+COUNTIF(D23:AH23,"GC1")+COUNTIF(D23:AH23,"GC2")+COUNTIF(D23:AH23,"GC3")+COUNTIF(D23:AH23,"GC4")+COUNTIF(D23:AH23,"GC5")+COUNTIF(D23:AH23,"GC6")+COUNTIF(D23:AH23,"GC7")+COUNTIF(D23:AH23,"GC8")+AO23+AQ23+AS23+AP23) -> 0 | AU23: =IF(AN23<30,ROUNDUP(((AM23-AL23)/7.5),0),IF(AV23+AR23=0,30,AT23)) -> 0 | AV23: =IF(A23="",0,IF(AN23<30,(COUNTA(D23:AH23)-AU23),COUNTIF(D23:AH23,"R"))) -> 0 | AW23: =IF(((COUNTIF(D23:AH23,"R")))>=1,"E","") ->  | BE23: 9 | BF23: =COUNTIF(D23:AH23,"Üİ") -> 0
A25: ='PERSONEL BİLGİ GİRİŞİ'!A14 ->  | B25: =CONCATENATE('PERSONEL BİLGİ GİRİŞİ'!B14," ",'PERSONEL BİLGİ GİRİŞİ'!C14) ->  | C25: ='PERSONEL BİLGİ GİRİŞİ'!H14 -> 0 | AI25: =IF(A25="",0,COUNTIF(D25:AH26,"1")*1+COUNTIF(D25:AH26,"2")*2+COUNTIF(D25:AH26,"3")*3+COUNTIF(D25:AH26,"4")*4+COUNTIF(D25:AH26,"5")*5+COUNTIF(D25:AH26,"6")*6+COUNTIF(D25:AH26,"7")*7+COUNTIF(D25:AH26,"8")*8+COUNTIF(D25:AH26,"9")*9+COUNTIF(D25:AH26,"10")*10+COUNTIF(D25:AH26,"Mİ")*8) -> 0 | AJ25: =IF(A25="",0,COUNTIF(D25:AH26,"GC1")*1+COUNTIF(D25:AH26,"GC2")*2+COUNTIF(D25:AH26,"GC3")*3+COUNTIF(D25:AH26,"GC4")*4+COUNTIF(D25:AH26,"GC5")*5+COUNTIF(D25:AH26,"GC6")*6+COUNTIF(D25:AH26,"GC7")*7+COUNTIF(D25:AH26,"GC8")*8) -> 0 | AK25: =IF(A25="",0,COUNTIF(D25:AH26,"HS4")*4+COUNTIF(D25:AH26,"HS8")*8) -> 0 | AL25: =(AI25+AJ25+AK25)/4 -> 0 | AM25: =IF(A25="",0,(AI25+AJ25+AK25)+AL25) -> 0 | AN25: =(AI25+AJ25+AK25)/4 -> 0 | AO25: =IF(A25="",0,COUNTIF(D25:AH26,"FÇ")) -> 0 | AP25: =IF(A25="",0,COUNTIF(D25:AH26,"T")) -> 0 | AQ25: =IF(A25="",0,COUNTIF(D25:AH26,"Mİ")) -> 0 | AR25: =IF(A25="",0,COUNTIF(D25:AH26,"Üİ")) -> 0 | AS25: =IF(A25="",0,COUNTIF(D25:AH26,"RT")) -> 0 | AT25: =IF(A25="",0,COUNTIF(D25:AH25,"1")+COUNTIF(D25:AH25,"2")+COUNTIF(D25:AH25,"3")+COUNTIF(D25:AH25,"4")+COUNTIF(D25:AH25,"5")+COUNTIF(D25:AH25,"6")+COUNTIF(D25:AH25,"7")+COUNTIF(D25:AH25,"8")+COUNTIF(D25:AH25,"9")+COUNTIF(D25:AH25,"HS4")+COUNTIF(D25:AH25,"HS8")+COUNTIF(D25:AH25,"GC1")+COUNTIF(D25:AH25,"GC2")+COUNTIF(D25:AH25,"GC3")+COUNTIF(D25:AH25,"GC4")+COUNTIF(D25:AH25,"GC5")+COUNTIF(D25:AH25,"GC6")+COUNTIF(D25:AH25,"GC7")+COUNTIF(D25:AH25,"GC8")+AO25+AQ25+AS25+AP25) -> 0 | AU25: =IF(AN25<30,ROUNDUP(((AM25-AL25)/7.5),0),IF(AV25+AR25=0,30,AT25)) -> 0 | AV25: =IF(A25="",0,IF(AN25<30,(COUNTA(D25:AH25)-AU25),COUNTIF(D25:AH25,"R"))) -> 0 | AW25: =IF(((COUNTIF(D25:AH25,"R")))>=1,"E","") ->  | BE25: 10 | BF25: =COUNTIF(D25:AH25,"Üİ") -> 0
A27: ='PERSONEL BİLGİ GİRİŞİ'!A15 ->  | B27: =CONCATENATE('PERSONEL BİLGİ GİRİŞİ'!B15," ",'PERSONEL BİLGİ GİRİŞİ'!C15) ->  | C27: ='PERSONEL BİLGİ GİRİŞİ'!H15 -> 0 | AI27: =IF(A27="",0,COUNTIF(D27:AH28,"1")*1+COUNTIF(D27:AH28,"2")*2+COUNTIF(D27:AH28,"3")*3+COUNTIF(D27:AH28,"4")*4+COUNTIF(D27:AH28,"5")*5+COUNTIF(D27:AH28,"6")*6+COUNTIF(D27:AH28,"7")*7+COUNTIF(D27:AH28,"8")*8+COUNTIF(D27:AH28,"9")*9+COUNTIF(D27:AH28,"10")*10+COUNTIF(D27:AH28,"Mİ")*8) -> 0 | AJ27: =IF(A27="",0,COUNTIF(D27:AH28,"GC1")*1+COUNTIF(D27:AH28,"GC2")*2+COUNTIF(D27:AH28,"GC3")*3+COUNTIF(D27:AH28,"GC4")*4+COUNTIF(D27:AH28,"GC5")*5+COUNTIF(D27:AH28,"GC6")*6+COUNTIF(D27:AH28,"GC7")*7+COUNTIF(D27:AH28,"GC8")*8) -> 0 | AK27: =IF(A27="",0,COUNTIF(D27:AH28,"HS4")*4+COUNTIF(D27:AH28,"HS8")*8) -> 0 | AL27: =(AI27+AJ27+AK27)/4 -> 0 | AM27: =IF(A27="",0,(AI27+AJ27+AK27)+AL27) -> 0 | AN27: =(AI27+AJ27+AK27)/4 -> 0 | AO27: =IF(A27="",0,COUNTIF(D27:AH28,"FÇ")) -> 0 | AP27: =IF(A27="",0,COUNTIF(D27:AH28,"T")) -> 0 | AQ27: =IF(A27="",0,COUNTIF(D27:AH28,"Mİ")) -> 0 | AR27: =IF(A27="",0,COUNTIF(D27:AH28,"Üİ")) -> 0 | AS27: =IF(A27="",0,COUNTIF(D27:AH28,"RT")) -> 0 | AT27: =IF(A27="",0,COUNTIF(D27:AH27,"1")+COUNTIF(D27:AH27,"2")+COUNTIF(D27:AH27,"3")+COUNTIF(D27:AH27,"4")+COUNTIF(D27:AH27,"5")+COUNTIF(D27:AH27,"6")+COUNTIF(D27:AH27,"7")+COUNTIF(D27:AH27,"8")+COUNTIF(D27:AH27,"9")+COUNTIF(D27:AH27,"HS4")+COUNTIF(D27:AH27,"HS8")+COUNTIF(D27:AH27,"GC1")+COUNTIF(D27:AH27,"GC2")+COUNTIF(D27:AH27,"GC3")+COUNTIF(D27:AH27,"GC4")+COUNTIF(D27:AH27,"GC5")+COUNTIF(D27:AH27,"GC6")+COUNTIF(D27:AH27,"GC7")+COUNTIF(D27:AH27,"GC8")+AO27+AQ27+AS27+AP27) -> 0 | AU27: =IF(AN27<30,ROUNDUP(((AM27-AL27)/7.5),0),IF(AV27+AR27=0,30,AT27)) -> 0 | AV27: =IF(A27="",0,IF(AN27<30,(COUNTA(D27:AH27)-AU27),COUNTIF(D27:AH27,"R"))) -> 0 | AW27: =IF(((COUNTIF(D27:AH27,"R")))>=1,"E","") ->  | BE27: 11 | BF27: =COUNTIF(D27:AH27,"Üİ") -> 0
A29: ='PERSONEL BİLGİ GİRİŞİ'!A16 ->  | B29: =CONCATENATE('PERSONEL BİLGİ GİRİŞİ'!B16," ",'PERSONEL BİLGİ GİRİŞİ'!C16) ->  | C29: ='PERSONEL BİLGİ GİRİŞİ'!H16 -> 0 | AI29: =IF(A29="",0,COUNTIF(D29:AH30,"1")*1+COUNTIF(D29:AH30,"2")*2+COUNTIF(D29:AH30,"3")*3+COUNTIF(D29:AH30,"4")*4+COUNTIF(D29:AH30,"5")*5+COUNTIF(D29:AH30,"6")*6+COUNTIF(D29:AH30,"7")*7+COUNTIF(D29:AH30,"8")*8+COUNTIF(D29:AH30,"9")*9+COUNTIF(D29:AH30,"10")*10+COUNTIF(D29:AH30,"Mİ")*8) -> 0 | AJ29: =IF(A29="",0,COUNTIF(D29:AH30,"GC1")*1+COUNTIF(D29:AH30,"GC2")*2+COUNTIF(D29:AH30,"GC3")*3+COUNTIF(D29:AH30,"GC4")*4+COUNTIF(D29:AH30,"GC5")*5+COUNTIF(D29:AH30,"GC6")*6+COUNTIF(D29:AH30,"GC7")*7+COUNTIF(D29:AH30,"GC8")*8) -> 0 | AK29: =IF(A29="",0,COUNTIF(D29:AH30,"HS4")*4+COUNTIF(D29:AH30,"HS8")*8) -> 0 | AL29: =(AI29+AJ29+AK29)/4 -> 0 | AM29: =IF(A29="",0,(AI29+AJ29+AK29)+AL29) -> 0 | AN29: =(AI29+AJ29+AK29)/4 -> 0 | AO29: =IF(A29="",0,COUNTIF(D29:AH30,"FÇ")) -> 0 | AP29: =IF(A29="",0,COUNTIF(D29:AH30,"T")) -> 0 | AQ29: =IF(A29="",0,COUNTIF(D29:AH30,"Mİ")) -> 0 | AR29: =IF(A29="",0,COUNTIF(D29:AH30,"Üİ")) -> 0 | AS29: =IF(A29="",0,COUNTIF(D29:AH30,"RT")) -> 0 | AT29: =IF(A29="",0,COUNTIF(D29:AH29,"1")+COUNTIF(D29:AH29,"2")+COUNTIF(D29:AH29,"3")+COUNTIF(D29:AH29,"4")+COUNTIF(D29:AH29,"5")+COUNTIF(D29:AH29,"6")+COUNTIF(D29:AH29,"7")+COUNTIF(D29:AH29,"8")+COUNTIF(D29:AH29,"9")+COUNTIF(D29:AH29,"HS4")+COUNTIF(D29:AH29,"HS8")+COUNTIF(D29:AH29,"GC1")+COUNTIF(D29:AH29,"GC2")+COUNTIF(D29:AH29,"GC3")+COUNTIF(D29:AH29,"GC4")+COUNTIF(D29:AH29,"GC5")+COUNTIF(D29:AH29,"GC6")+COUNTIF(D29:AH29,"GC7")+COUNTIF(D29:AH29,"GC8")+AO29+AQ29+AS29+AP29) -> 0 | AU29: =IF(AN29<30,ROUNDUP(((AM29-AL29)/7.5),0),IF(AV29+AR29=0,30,AT29)) -> 0 | AV29: =IF(A29="",0,IF(AN29<30,(COUNTA(D29:AH29)-AU29),COUNTIF(D29:AH29,"R"))) -> 0 | AW29: =IF(((COUNTIF(D29:AH29,"R")))>=1,"E","") ->  | BE29: 12 | BF29: =COUNTIF(D29:AH29,"Üİ") -> 0
A31: ='PERSONEL BİLGİ GİRİŞİ'!A17 ->  | B31: =CONCATENATE('PERSONEL BİLGİ GİRİŞİ'!B17," ",'PERSONEL BİLGİ GİRİŞİ'!C17) ->  | C31: ='PERSONEL BİLGİ GİRİŞİ'!H17 -> 0 | AI31: =IF(A31="",0,COUNTIF(D31:AH32,"1")*1+COUNTIF(D31:AH32,"2")*2+COUNTIF(D31:AH32,"3")*3+COUNTIF(D31:AH32,"4")*4+COUNTIF(D31:AH32,"5")*5+COUNTIF(D31:AH32,"6")*6+COUNTIF(D31:AH32,"7")*7+COUNTIF(D31:AH32,"8")*8+COUNTIF(D31:AH32,"9")*9+COUNTIF(D31:AH32,"10")*10+COUNTIF(D31:AH32,"Mİ")*8) -> 0 | AJ31: =IF(A31="",0,COUNTIF(D31:AH32,"GC1")*1+COUNTIF(D31:AH32,"GC2")*2+COUNTIF(D31:AH32,"GC3")*3+COUNTIF(D31:AH32,"GC4")*4+COUNTIF(D31:AH32,"GC5")*5+COUNTIF(D31:AH32,"GC6")*6+COUNTIF(D31:AH32,"GC7")*7+COUNTIF(D31:AH32,"GC8")*8) -> 0 | AK31: =IF(A31="",0,COUNTIF(D31:AH32,"HS4")*4+COUNTIF(D31:AH32,"HS8")*8) -> 0 | AL31: =(AI31+AJ31+AK31)/4 -> 0 | AM31: =IF(A31="",0,(AI31+AJ31+AK31)+AL31) -> 0 | AN31: =(AI31+AJ31+AK31)/4 -> 0 | AO31: =IF(A31="",0,COUNTIF(D31:AH32,"FÇ")) -> 0 | AP31: =IF(A31="",0,COUNTIF(D31:AH32,"T")) -> 0 | AQ31: =IF(A31="",0,COUNTIF(D31:AH32,"Mİ")) -> 0 | AR31: =IF(A31="",0,COUNTIF(D31:AH32,"Üİ")) -> 0 | AS31: =IF(A31="",0,COUNTIF(D31:AH32,"RT")) -> 0 | AT31: =IF(A31="",0,COUNTIF(D31:AH31,"1")+COUNTIF(D31:AH31,"2")+COUNTIF(D31:AH31,"3")+COUNTIF(D31:AH31,"4")+COUNTIF(D31:AH31,"5")+COUNTIF(D31:AH31,"6")+COUNTIF(D31:AH31,"7")+COUNTIF(D31:AH31,"8")+COUNTIF(D31:AH31,"9")+COUNTIF(D31:AH31,"HS4")+COUNTIF(D31:AH31,"HS8")+COUNTIF(D31:AH31,"GC1")+COUNTIF(D31:AH31,"GC2")+COUNTIF(D31:AH31,"GC3")+COUNTIF(D31:AH31,"GC4")+COUNTIF(D31:AH31,"GC5")+COUNTIF(D31:AH31,"GC6")+COUNTIF(D31:AH31,"GC7")+COUNTIF(D31:AH31,"GC8")+AO31+AQ31+AS31+AP31) -> 0 | AU31: =IF(AN31<30,ROUNDUP(((AM31-AL31)/7.5),0),IF(AV31+AR31=0,30,AT31)) -> 0 | AV31: =IF(A31="",0,IF(AN31<30,(COUNTA(D31:AH31)-AU31),COUNTIF(D31:AH31,"R"))) -> 0 | AW31: =IF(((COUNTIF(D31:AH31,"R")))>=1,"E","") ->  | BE31: 13 | BF31: =COUNTIF(D31:AH31,"Üİ") -> 0
A33: ='PERSONEL BİLGİ GİRİŞİ'!A18 ->  | B33: =CONCATENATE('PERSONEL BİLGİ GİRİŞİ'!B18," ",'PERSONEL BİLGİ GİRİŞİ'!C18) ->  | C33: ='PERSONEL BİLGİ GİRİŞİ'!H18 -> 0 | AI33: =IF(A33="",0,COUNTIF(D33:AH34,"1")*1+COUNTIF(D33:AH34,"2")*2+COUNTIF(D33:AH34,"3")*3+COUNTIF(D33:AH34,"4")*4+COUNTIF(D33:AH34,"5")*5+COUNTIF(D33:AH34,"6")*6+COUNTIF(D33:AH34,"7")*7+COUNTIF(D33:AH34,"8")*8+COUNTIF(D33:AH34,"9")*9+COUNTIF(D33:AH34,"10")*10+COUNTIF(D33:AH34,"Mİ")*8) -> 0 | AJ33: =IF(A33="",0,COUNTIF(D33:AH34,"GC1")*1+COUNTIF(D33:AH34,"GC2")*2+COUNTIF(D33:AH34,"GC3")*3+COUNTIF(D33:AH34,"GC4")*4+COUNTIF(D33:AH34,"GC5")*5+COUNTIF(D33:AH34,"GC6")*6+COUNTIF(D33:AH34,"GC7")*7+COUNTIF(D33:AH34,"GC8")*8) -> 0 | AK33: =IF(A33="",0,COUNTIF(D33:AH34,"HS4")*4+COUNTIF(D33:AH34,"HS8")*8) -> 0 | AL33: =(AI33+AJ33+AK33)/4 -> 0 | AM33: =IF(A33="",0,(AI33+AJ33+AK33)+AL33) -> 0 | AN33: =(AI33+AJ33+AK33)/4 -> 0 | AO33: =IF(A33="",0,COUNTIF(D33:AH34,"FÇ")) -> 0 | AP33: =IF(A33="",0,COUNTIF(D33:AH34,"T")) -> 0 | AQ33: =IF(A33="",0,COUNTIF(D33:AH34,"Mİ")) -> 0 | AR33: =IF(A33="",0,COUNTIF(D33:AH34,"Üİ")) -> 0 | AS33: =IF(A33="",0,COUNTIF(D33:AH34,"RT")) -> 0 | AT33: =IF(A33="",0,COUNTIF(D33:AH33,"1")+COUNTIF(D33:AH33,"2")+COUNTIF(D33:AH33,"3")+COUNTIF(D33:AH33,"4")+COUNTIF(D33:AH33,"5")+COUNTIF(D33:AH33,"6")+COUNTIF(D33:AH33,"7")+COUNTIF(D33:AH33,"8")+COUNTIF(D33:AH33,"9")+COUNTIF(D33:AH33,"HS4")+COUNTIF(D33:AH33,"HS8")+COUNTIF(D33:AH33,"GC1")+COUNTIF(D33:AH33,"GC2")+COUNTIF(D33:AH33,"GC3")+COUNTIF(D33:AH33,"GC4")+COUNTIF(D33:AH33,"GC5")+COUNTIF(D33:AH33,"GC6")+COUNTIF(D33:AH33,"GC7")+COUNTIF(D33:AH33,"GC8")+AO33+AQ33+AS33+AP33) -> 0 | AU33: =IF(AN33<30,ROUNDUP(((AM33-AL33)/7.5),0),IF(AV33+AR33=0,30,AT33)) -> 0 | AV33: =IF(A33="",0,IF(AN33<30,(COUNTA(D33:AH33)-AU33),COUNTIF(D33:AH33,"R"))) -> 0 | AW33: =IF(((COUNTIF(D33:AH33,"R")))>=1,"E","") ->  | BE33: 14 | BF33: =COUNTIF(D33:AH33,"Üİ") -> 0
A35: ='PERSONEL BİLGİ GİRİŞİ'!A19 ->  | B35: =CONCATENATE('PERSONEL BİLGİ GİRİŞİ'!B19," ",'PERSONEL BİLGİ GİRİŞİ'!C19) ->  | C35: ='PERSONEL BİLGİ GİRİŞİ'!H19 -> 0 | AI35: =IF(A35="",0,COUNTIF(D35:AH36,"1")*1+COUNTIF(D35:AH36,"2")*2+COUNTIF(D35:AH36,"3")*3+COUNTIF(D35:AH36,"4")*4+COUNTIF(D35:AH36,"5")*5+COUNTIF(D35:AH36,"6")*6+COUNTIF(D35:AH36,"7")*7+COUNTIF(D35:AH36,"8")*8+COUNTIF(D35:AH36,"9")*9+COUNTIF(D35:AH36,"10")*10+COUNTIF(D35:AH36,"Mİ")*8) -> 0 | AJ35: =IF(A35="",0,COUNTIF(D35:AH36,"GC1")*1+COUNTIF(D35:AH36,"GC2")*2+COUNTIF(D35:AH36,"GC3")*3+COUNTIF(D35:AH36,"GC4")*4+COUNTIF(D35:AH36,"GC5")*5+COUNTIF(D35:AH36,"GC6")*6+COUNTIF(D35:AH36,"GC7")*7+COUNTIF(D35:AH36,"GC8")*8) -> 0 | AK35: =IF(A35="",0,COUNTIF(D35:AH36,"HS4")*4+COUNTIF(D35:AH36,"HS8")*8) -> 0 | AL35: =(AI35+AJ35+AK35)/4 -> 0 | AM35: =IF(A35="",0,(AI35+AJ35+AK35)+AL35) -> 0 | AN35: =(AI35+AJ35+AK35)/4 -> 0 | AO35: =IF(A35="",0,COUNTIF(D35:AH36,"FÇ")) -> 0 | AP35: =IF(A35="",0,COUNTIF(D35:AH36,"T")) -> 0 | AQ35: =IF(A35="",0,COUNTIF(D35:AH36,"Mİ")) -> 0 | AR35: =IF(A35="",0,COUNTIF(D35:AH36,"Üİ")) -> 0 | AS35: =IF(A35="",0,COUNTIF(D35:AH36,"RT")) -> 0 | AT35: =IF(A35="",0,COUNTIF(D35:AH35,"1")+COUNTIF(D35:AH35,"2")+COUNTIF(D35:AH35,"3")+COUNTIF(D35:AH35,"4")+COUNTIF(D35:AH35,"5")+COUNTIF(D35:AH35,"6")+COUNTIF(D35:AH35,"7")+COUNTIF(D35:AH35,"8")+COUNTIF(D35:AH35,"9")+COUNTIF(D35:AH35,"HS4")+COUNTIF(D35:AH35,"HS8")+COUNTIF(D35:AH35,"GC1")+COUNTIF(D35:AH35,"GC2")+COUNTIF(D35:AH35,"GC3")+COUNTIF(D35:AH35,"GC4")+COUNTIF(D35:AH35,"GC5")+COUNTIF(D35:AH35,"GC6")+COUNTIF(D35:AH35,"GC7")+COUNTIF(D35:AH35,"GC8")+AO35+AQ35+AS35+AP35) -> 0 | AU35: =IF(AN35<30,ROUNDUP(((AM35-AL35)/7.5),0),IF(AV35+AR35=0,30,AT35)) -> 0 | AV35: =IF(A35="",0,IF(AN35<30,(COUNTA(D35:AH35)-AU35),COUNTIF(D35:AH35,"R"))) -> 0 | AW35: =IF(((COUNTIF(D35:AH35,"R")))>=1,"E","") ->  | BE35: 15 | BF35: =COUNTIF(D35:AH35,"Üİ") -> 0
A37: ='PERSONEL BİLGİ GİRİŞİ'!A20 ->  | B37: =CONCATENATE('PERSONEL BİLGİ GİRİŞİ'!B20," ",'PERSONEL BİLGİ GİRİŞİ'!C20) ->  | C37: ='PERSONEL BİLGİ GİRİŞİ'!H20 -> 0 | AI37: =IF(A37="",0,COUNTIF(D37:AH38,"1")*1+COUNTIF(D37:AH38,"2")*2+COUNTIF(D37:AH38,"3")*3+COUNTIF(D37:AH38,"4")*4+COUNTIF(D37:AH38,"5")*5+COUNTIF(D37:AH38,"6")*6+COUNTIF(D37:AH38,"7")*7+COUNTIF(D37:AH38,"8")*8+COUNTIF(D37:AH38,"9")*9+COUNTIF(D37:AH38,"10")*10+COUNTIF(D37:AH38,"Mİ")*8) -> 0 | AJ37: =IF(A37="",0,COUNTIF(D37:AH38,"GC1")*1+COUNTIF(D37:AH38,"GC2")*2+COUNTIF(D37:AH38,"GC3")*3+COUNTIF(D37:AH38,"GC4")*4+COUNTIF(D37:AH38,"GC5")*5+COUNTIF(D37:AH38,"GC6")*6+COUNTIF(D37:AH38,"GC7")*7+COUNTIF(D37:AH38,"GC8")*8) -> 0 | AK37: =IF(A37="",0,COUNTIF(D37:AH38,"HS4")*4+COUNTIF(D37:AH38,"HS8")*8) -> 0 | AL37: =(AI37+AJ37+AK37)/4 -> 0 | AM37: =IF(A37="",0,(AI37+AJ37+AK37)+AL37) -> 0 | AN37: =(AI37+AJ37+AK37)/4 -> 0 | AO37: =IF(A37="",0,COUNTIF(D37:AH38,"FÇ")) -> 0 | AP37: =IF(A37="",0,COUNTIF(D37:AH38,"T")) -> 0 | AQ37: =IF(A37="",0,COUNTIF(D37:AH38,"Mİ")) -> 0 | AR37: =IF(A37="",0,COUNTIF(D37:AH38,"Üİ")) -> 0 | AS37: =IF(A37="",0,COUNTIF(D37:AH38,"RT")) -> 0 | AT37: =IF(A37="",0,COUNTIF(D37:AH37,"1")+COUNTIF(D37:AH37,"2")+COUNTIF(D37:AH37,"3")+COUNTIF(D37:AH37,"4")+COUNTIF(D37:AH37,"5")+COUNTIF(D37:AH37,"6")+COUNTIF(D37:AH37,"7")+COUNTIF(D37:AH37,"8")+COUNTIF(D37:AH37,"9")+COUNTIF(D37:AH37,"HS4")+COUNTIF(D37:AH37,"HS8")+COUNTIF(D37:AH37,"GC1")+COUNTIF(D37:AH37,"GC2")+COUNTIF(D37:AH37,"GC3")+COUNTIF(D37:AH37,"GC4")+COUNTIF(D37:AH37,"GC5")+COUNTIF(D37:AH37,"GC6")+COUNTIF(D37:AH37,"GC7")+COUNTIF(D37:AH37,"GC8")+AO37+AQ37+AS37+AP37) -> 0 | AU37: =IF(AN37<30,ROUNDUP(((AM37-AL37)/7.5),0),IF(AV37+AR37=0,30,AT37)) -> 0 | AV37: =IF(A37="",0,IF(AN37<30,(COUNTA(D37:AH37)-AU37),COUNTIF(D37:AH37,"R"))) -> 0 | AW37: =IF(((COUNTIF(D37:AH37,"R")))>=1,"E","") ->  | BE37: 16 | BF37: =COUNTIF(D37:AH37,"Üİ") -> 0
A39: ='PERSONEL BİLGİ GİRİŞİ'!A21 ->  | B39: =CONCATENATE('PERSONEL BİLGİ GİRİŞİ'!B21," ",'PERSONEL BİLGİ GİRİŞİ'!C21) ->  | C39: ='PERSONEL BİLGİ GİRİŞİ'!H21 -> 0 | AI39: =IF(A39="",0,COUNTIF(D39:AH40,"1")*1+COUNTIF(D39:AH40,"2")*2+COUNTIF(D39:AH40,"3")*3+COUNTIF(D39:AH40,"4")*4+COUNTIF(D39:AH40,"5")*5+COUNTIF(D39:AH40,"6")*6+COUNTIF(D39:AH40,"7")*7+COUNTIF(D39:AH40,"8")*8+COUNTIF(D39:AH40,"9")*9+COUNTIF(D39:AH40,"10")*10+COUNTIF(D39:AH40,"Mİ")*8) -> 0 | AJ39: =IF(A39="",0,COUNTIF(D39:AH40,"GC1")*1+COUNTIF(D39:AH40,"GC2")*2+COUNTIF(D39:AH40,"GC3")*3+COUNTIF(D39:AH40,"GC4")*4+COUNTIF(D39:AH40,"GC5")*5+COUNTIF(D39:AH40,"GC6")*6+COUNTIF(D39:AH40,"GC7")*7+COUNTIF(D39:AH40,"GC8")*8) -> 0 | AK39: =IF(A39="",0,COUNTIF(D39:AH40,"HS4")*4+COUNTIF(D39:AH40,"HS8")*8) -> 0 | AL39: =(AI39+AJ39+AK39)/4 -> 0 | AM39: =IF(A39="",0,(AI39+AJ39+AK39)+AL39) -> 0 | AN39: =(AI39+AJ39+AK39)/4 -> 0 | AO39: =IF(A39="",0,COUNTIF(D39:AH40,"FÇ")) -> 0 | AP39: =IF(A39="",0,COUNTIF(D39:AH40,"T")) -> 0 | AQ39: =IF(A39="",0,COUNTIF(D39:AH40,"Mİ")) -> 0 | AR39: =IF(A39="",0,COUNTIF(D39:AH40,"Üİ")) -> 0 | AS39: =IF(A39="",0,COUNTIF(D39:AH40,"RT")) -> 0 | AT39: =IF(A39="",0,COUNTIF(D39:AH39,"1")+COUNTIF(D39:AH39,"2")+COUNTIF(D39:AH39,"3")+COUNTIF(D39:AH39,"4")+COUNTIF(D39:AH39,"5")+COUNTIF(D39:AH39,"6")+COUNTIF(D39:AH39,"7")+COUNTIF(D39:AH39,"8")+COUNTIF(D39:AH39,"9")+COUNTIF(D39:AH39,"HS4")+COUNTIF(D39:AH39,"HS8")+COUNTIF(D39:AH39,"GC1")+COUNTIF(D39:AH39,"GC2")+COUNTIF(D39:AH39,"GC3")+COUNTIF(D39:AH39,"GC4")+COUNTIF(D39:AH39,"GC5")+COUNTIF(D39:AH39,"GC6")+COUNTIF(D39:AH39,"GC7")+COUNTIF(D39:AH39,"GC8")+AO39+AQ39+AS39+AP39) -> 0 | AU39: =IF(AN39<30,ROUNDUP(((AM39-AL39)/7.5),0),IF(AV39+AR39=0,30,AT39)) -> 0 | AV39: =IF(A39="",0,IF(AN39<30,(COUNTA(D39:AH39)-AU39),COUNTIF(D39:AH39,"R"))) -> 0 | AW39: =IF(((COUNTIF(D39:AH39,"R")))>=1,"E","") ->  | BE39: 17 | BF39: =COUNTIF(D39:AH39,"Üİ") -> 0
A41: ='PERSONEL BİLGİ GİRİŞİ'!A22 ->  | B41: =CONCATENATE('PERSONEL BİLGİ GİRİŞİ'!B22," ",'PERSONEL BİLGİ GİRİŞİ'!C22) ->  | C41: ='PERSONEL BİLGİ GİRİŞİ'!H22 -> 0 | AI41: =IF(A41="",0,COUNTIF(D41:AH42,"1")*1+COUNTIF(D41:AH42,"2")*2+COUNTIF(D41:AH42,"3")*3+COUNTIF(D41:AH42,"4")*4+COUNTIF(D41:AH42,"5")*5+COUNTIF(D41:AH42,"6")*6+COUNTIF(D41:AH42,"7")*7+COUNTIF(D41:AH42,"8")*8+COUNTIF(D41:AH42,"9")*9+COUNTIF(D41:AH42,"10")*10+COUNTIF(D41:AH42,"Mİ")*8) -> 0 | AJ41: =IF(A41="",0,COUNTIF(D41:AH42,"GC1")*1+COUNTIF(D41:AH42,"GC2")*2+COUNTIF(D41:AH42,"GC3")*3+COUNTIF(D41:AH42,"GC4")*4+COUNTIF(D41:AH42,"GC5")*5+COUNTIF(D41:AH42,"GC6")*6+COUNTIF(D41:AH42,"GC7")*7+COUNTIF(D41:AH42,"GC8")*8) -> 0 | AK41: =IF(A41="",0,COUNTIF(D41:AH42,"HS4")*4+COUNTIF(D41:AH42,"HS8")*8) -> 0 | AL41: =(AI41+AJ41+AK41)/4 -> 0 | AM41: =IF(A41="",0,(AI41+AJ41+AK41)+AL41) -> 0 | AN41: =(AI41+AJ41+AK41)/4 -> 0 | AO41: =IF(A41="",0,COUNTIF(D41:AH42,"FÇ")) -> 0 | AP41: =IF(A41="",0,COUNTIF(D41:AH42,"T")) -> 0 | AQ41: =IF(A41="",0,COUNTIF(D41:AH42,"Mİ")) -> 0 | AR41: =IF(A41="",0,COUNTIF(D41:AH42,"Üİ")) -> 0 | AS41: =IF(A41="",0,COUNTIF(D41:AH42,"RT")) -> 0 | AT41: =IF(A41="",0,COUNTIF(D41:AH41,"1")+COUNTIF(D41:AH41,"2")+COUNTIF(D41:AH41,"3")+COUNTIF(D41:AH41,"4")+COUNTIF(D41:AH41,"5")+COUNTIF(D41:AH41,"6")+COUNTIF(D41:AH41,"7")+COUNTIF(D41:AH41,"8")+COUNTIF(D41:AH41,"9")+COUNTIF(D41:AH41,"HS4")+COUNTIF(D41:AH41,"HS8")+COUNTIF(D41:AH41,"GC1")+COUNTIF(D41:AH41,"GC2")+COUNTIF(D41:AH41,"GC3")+COUNTIF(D41:AH41,"GC4")+COUNTIF(D41:AH41,"GC5")+COUNTIF(D41:AH41,"GC6")+COUNTIF(D41:AH41,"GC7")+COUNTIF(D41:AH41,"GC8")+AO41+AQ41+AS41+AP41) -> 0 | AU41: =IF(AN41<30,ROUNDUP(((AM41-AL41)/7.5),0),IF(AV41+AR41=0,30,AT41)) -> 0 | AV41: =IF(A41="",0,IF(AN41<30,(COUNTA(D41:AH41)-AU41),COUNTIF(D41:AH41,"R"))) -> 0 | AW41: =IF(((COUNTIF(D41:AH41,"R")))>=1,"E","") ->  | BE41: 18 | BF41: =COUNTIF(D41:AH41,"Üİ") -> 0
A43: ='PERSONEL BİLGİ GİRİŞİ'!A23 ->  | B43: =CONCATENATE('PERSONEL BİLGİ GİRİŞİ'!B23," ",'PERSONEL BİLGİ GİRİŞİ'!C23) ->  | C43: ='PERSONEL BİLGİ GİRİŞİ'!H23 -> 0 | AI43: =IF(A43="",0,COUNTIF(D43:AH44,"1")*1+COUNTIF(D43:AH44,"2")*2+COUNTIF(D43:AH44,"3")*3+COUNTIF(D43:AH44,"4")*4+COUNTIF(D43:AH44,"5")*5+COUNTIF(D43:AH44,"6")*6+COUNTIF(D43:AH44,"7")*7+COUNTIF(D43:AH44,"8")*8+COUNTIF(D43:AH44,"9")*9+COUNTIF(D43:AH44,"10")*10+COUNTIF(D43:AH44,"Mİ")*8) -> 0 | AJ43: =IF(A43="",0,COUNTIF(D43:AH44,"GC1")*1+COUNTIF(D43:AH44,"GC2")*2+COUNTIF(D43:AH44,"GC3")*3+COUNTIF(D43:AH44,"GC4")*4+COUNTIF(D43:AH44,"GC5")*5+COUNTIF(D43:AH44,"GC6")*6+COUNTIF(D43:AH44,"GC7")*7+COUNTIF(D43:AH44,"GC8")*8) -> 0 | AK43: =IF(A43="",0,COUNTIF(D43:AH44,"HS4")*4+COUNTIF(D43:AH44,"HS8")*8) -> 0 | AL43: =(AI43+AJ43+AK43)/4 -> 0 | AM43: =IF(A43="",0,(AI43+AJ43+AK43)+AL43) -> 0 | AN43: =(AI43+AJ43+AK43)/4 -> 0 | AO43: =IF(A43="",0,COUNTIF(D43:AH44,"FÇ")) -> 0 | AP43: =IF(A43="",0,COUNTIF(D43:AH44,"T")) -> 0 | AQ43: =IF(A43="",0,COUNTIF(D43:AH44,"Mİ")) -> 0 | AR43: =IF(A43="",0,COUNTIF(D43:AH44,"Üİ")) -> 0 | AS43: =IF(A43="",0,COUNTIF(D43:AH44,"RT")) -> 0 | AT43: =IF(A43="",0,COUNTIF(D43:AH43,"1")+COUNTIF(D43:AH43,"2")+COUNTIF(D43:AH43,"3")+COUNTIF(D43:AH43,"4")+COUNTIF(D43:AH43,"5")+COUNTIF(D43:AH43,"6")+COUNTIF(D43:AH43,"7")+COUNTIF(D43:AH43,"8")+COUNTIF(D43:AH43,"9")+COUNTIF(D43:AH43,"HS4")+COUNTIF(D43:AH43,"HS8")+COUNTIF(D43:AH43,"GC1")+COUNTIF(D43:AH43,"GC2")+COUNTIF(D43:AH43,"GC3")+COUNTIF(D43:AH43,"GC4")+COUNTIF(D43:AH43,"GC5")+COUNTIF(D43:AH43,"GC6")+COUNTIF(D43:AH43,"GC7")+COUNTIF(D43:AH43,"GC8")+AO43+AQ43+AS43+AP43) -> 0 | AU43: =IF(AN43<30,ROUNDUP(((AM43-AL43)/7.5),0),IF(AV43+AR43=0,30,AT43)) -> 0 | AV43: =IF(A43="",0,IF(AN43<30,(COUNTA(D43:AH43)-AU43),COUNTIF(D43:AH43,"R"))) -> 0 | AW43: =IF(((COUNTIF(D43:AH43,"R")))>=1,"E","") ->  | BE43: 19 | BF43: =COUNTIF(D43:AH43,"Üİ") -> 0
A45: ='PERSONEL BİLGİ GİRİŞİ'!A24 ->  | B45: =CONCATENATE('PERSONEL BİLGİ GİRİŞİ'!B24," ",'PERSONEL BİLGİ GİRİŞİ'!C24) ->  | C45: ='PERSONEL BİLGİ GİRİŞİ'!H24 -> 0 | AI45: =IF(A45="",0,COUNTIF(D45:AH46,"1")*1+COUNTIF(D45:AH46,"2")*2+COUNTIF(D45:AH46,"3")*3+COUNTIF(D45:AH46,"4")*4+COUNTIF(D45:AH46,"5")*5+COUNTIF(D45:AH46,"6")*6+COUNTIF(D45:AH46,"7")*7+COUNTIF(D45:AH46,"8")*8+COUNTIF(D45:AH46,"9")*9+COUNTIF(D45:AH46,"10")*10+COUNTIF(D45:AH46,"Mİ")*8) -> 0 | AJ45: =IF(A45="",0,COUNTIF(D45:AH46,"GC1")*1+COUNTIF(D45:AH46,"GC2")*2+COUNTIF(D45:AH46,"GC3")*3+COUNTIF(D45:AH46,"GC4")*4+COUNTIF(D45:AH46,"GC5")*5+COUNTIF(D45:AH46,"GC6")*6+COUNTIF(D45:AH46,"GC7")*7+COUNTIF(D45:AH46,"GC8")*8) -> 0 | AK45: =IF(A45="",0,COUNTIF(D45:AH46,"HS4")*4+COUNTIF(D45:AH46,"HS8")*8) -> 0 | AL45: =(AI45+AJ45+AK45)/4 -> 0 | AM45: =IF(A45="",0,(AI45+AJ45+AK45)+AL45) -> 0 | AN45: =(AI45+AJ45+AK45)/4 -> 0 | AO45: =IF(A45="",0,COUNTIF(D45:AH46,"FÇ")) -> 0 | AP45: =IF(A45="",0,COUNTIF(D45:AH46,"T")) -> 0 | AQ45: =IF(A45="",0,COUNTIF(D45:AH46,"Mİ")) -> 0 | AR45: =IF(A45="",0,COUNTIF(D45:AH46,"Üİ")) -> 0 | AS45: =IF(A45="",0,COUNTIF(D45:AH46,"RT")) -> 0 | AT45: =IF(A45="",0,COUNTIF(D45:AH45,"1")+COUNTIF(D45:AH45,"2")+COUNTIF(D45:AH45,"3")+COUNTIF(D45:AH45,"4")+COUNTIF(D45:AH45,"5")+COUNTIF(D45:AH45,"6")+COUNTIF(D45:AH45,"7")+COUNTIF(D45:AH45,"8")+COUNTIF(D45:AH45,"9")+COUNTIF(D45:AH45,"HS4")+COUNTIF(D45:AH45,"HS8")+COUNTIF(D45:AH45,"GC1")+COUNTIF(D45:AH45,"GC2")+COUNTIF(D45:AH45,"GC3")+COUNTIF(D45:AH45,"GC4")+COUNTIF(D45:AH45,"GC5")+COUNTIF(D45:AH45,"GC6")+COUNTIF(D45:AH45,"GC7")+COUNTIF(D45:AH45,"GC8")+AO45+AQ45+AS45+AP45) -> 0 | AU45: =IF(AN45<30,ROUNDUP(((AM45-AL45)/7.5),0),IF(AV45+AR45=0,30,AT45)) -> 0 | AV45: =IF(A45="",0,IF(AN45<30,(COUNTA(D45:AH45)-AU45),COUNTIF(D45:AH45,"R"))) -> 0 | AW45: =IF(((COUNTIF(D45:AH45,"R")))>=1,"E","") ->  | BE45: 20 | BF45: =COUNTIF(D45:AH45,"Üİ") -> 0
A47: ='PERSONEL BİLGİ GİRİŞİ'!A25 ->  | B47: =CONCATENATE('PERSONEL BİLGİ GİRİŞİ'!B25," ",'PERSONEL BİLGİ GİRİŞİ'!C25) ->  | C47: ='PERSONEL BİLGİ GİRİŞİ'!H25 -> 0 | AI47: =IF(A47="",0,COUNTIF(D47:AH48,"1")*1+COUNTIF(D47:AH48,"2")*2+COUNTIF(D47:AH48,"3")*3+COUNTIF(D47:AH48,"4")*4+COUNTIF(D47:AH48,"5")*5+COUNTIF(D47:AH48,"6")*6+COUNTIF(D47:AH48,"7")*7+COUNTIF(D47:AH48,"8")*8+COUNTIF(D47:AH48,"9")*9+COUNTIF(D47:AH48,"10")*10+COUNTIF(D47:AH48,"Mİ")*8) -> 0 | AJ47: =IF(A47="",0,COUNTIF(D47:AH48,"GC1")*1+COUNTIF(D47:AH48,"GC2")*2+COUNTIF(D47:AH48,"GC3")*3+COUNTIF(D47:AH48,"GC4")*4+COUNTIF(D47:AH48,"GC5")*5+COUNTIF(D47:AH48,"GC6")*6+COUNTIF(D47:AH48,"GC7")*7+COUNTIF(D47:AH48,"GC8")*8) -> 0 | AK47: =IF(A47="",0,COUNTIF(D47:AH48,"HS4")*4+COUNTIF(D47:AH48,"HS8")*8) -> 0 | AL47: =(AI47+AJ47+AK47)/4 -> 0 | AM47: =IF(A47="",0,(AI47+AJ47+AK47)+AL47) -> 0 | AN47: =(AI47+AJ47+AK47)/4 -> 0 | AO47: =IF(A47="",0,COUNTIF(D47:AH48,"FÇ")) -> 0 | AP47: =IF(A47="",0,COUNTIF(D47:AH48,"T")) -> 0 | AQ47: =IF(A47="",0,COUNTIF(D47:AH48,"Mİ")) -> 0 | AR47: =IF(A47="",0,COUNTIF(D47:AH48,"Üİ")) -> 0 | AS47: =IF(A47="",0,COUNTIF(D47:AH48,"RT")) -> 0 | AT47: =IF(A47="",0,COUNTIF(D47:AH47,"1")+COUNTIF(D47:AH47,"2")+COUNTIF(D47:AH47,"3")+COUNTIF(D47:AH47,"4")+COUNTIF(D47:AH47,"5")+COUNTIF(D47:AH47,"6")+COUNTIF(D47:AH47,"7")+COUNTIF(D47:AH47,"8")+COUNTIF(D47:AH47,"9")+COUNTIF(D47:AH47,"HS4")+COUNTIF(D47:AH47,"HS8")+COUNTIF(D47:AH47,"GC1")+COUNTIF(D47:AH47,"GC2")+COUNTIF(D47:AH47,"GC3")+COUNTIF(D47:AH47,"GC4")+COUNTIF(D47:AH47,"GC5")+COUNTIF(D47:AH47,"GC6")+COUNTIF(D47:AH47,"GC7")+COUNTIF(D47:AH47,"GC8")+AO47+AQ47+AS47+AP47) -> 0 | AU47: =IF(AN47<30,ROUNDUP(((AM47-AL47)/7.5),0),IF(AV47+AR47=0,30,AT47)) -> 0 | AV47: =IF(A47="",0,IF(AN47<30,(COUNTA(D47:AH47)-AU47),COUNTIF(D47:AH47,"R"))) -> 0 | AW47: =IF(((COUNTIF(D47:AH47,"R")))>=1,"E","") ->  | BE47: 21 | BF47: =COUNTIF(D47:AH47,"Üİ") -> 0
A49: ='PERSONEL BİLGİ GİRİŞİ'!A26 ->  | B49: =CONCATENATE('PERSONEL BİLGİ GİRİŞİ'!B26," ",'PERSONEL BİLGİ GİRİŞİ'!C26) ->  | C49: ='PERSONEL BİLGİ GİRİŞİ'!H26 -> 0 | AI49: =IF(A49="",0,COUNTIF(D49:AH50,"1")*1+COUNTIF(D49:AH50,"2")*2+COUNTIF(D49:AH50,"3")*3+COUNTIF(D49:AH50,"4")*4+COUNTIF(D49:AH50,"5")*5+COUNTIF(D49:AH50,"6")*6+COUNTIF(D49:AH50,"7")*7+COUNTIF(D49:AH50,"8")*8+COUNTIF(D49:AH50,"9")*9+COUNTIF(D49:AH50,"10")*10+COUNTIF(D49:AH50,"Mİ")*8) -> 0 | AJ49: =IF(A49="",0,COUNTIF(D49:AH50,"GC1")*1+COUNTIF(D49:AH50,"GC2")*2+COUNTIF(D49:AH50,"GC3")*3+COUNTIF(D49:AH50,"GC4")*4+COUNTIF(D49:AH50,"GC5")*5+COUNTIF(D49:AH50,"GC6")*6+COUNTIF(D49:AH50,"GC7")*7+COUNTIF(D49:AH50,"GC8")*8) -> 0 | AK49: =IF(A49="",0,COUNTIF(D49:AH50,"HS4")*4+COUNTIF(D49:AH50,"HS8")*8) -> 0 | AL49: =(AI49+AJ49+AK49)/4 -> 0 | AM49: =IF(A49="",0,(AI49+AJ49+AK49)+AL49) -> 0 | AN49: =(AI49+AJ49+AK49)/4 -> 0 | AO49: =IF(A49="",0,COUNTIF(D49:AH50,"FÇ")) -> 0 | AP49: =IF(A49="",0,COUNTIF(D49:AH50,"T")) -> 0 | AQ49: =IF(A49="",0,COUNTIF(D49:AH50,"Mİ")) -> 0 | AR49: =IF(A49="",0,COUNTIF(D49:AH50,"Üİ")) -> 0 | AS49: =IF(A49="",0,COUNTIF(D49:AH50,"RT")) -> 0 | AT49: =IF(A49="",0,COUNTIF(D49:AH49,"1")+COUNTIF(D49:AH49,"2")+COUNTIF(D49:AH49,"3")+COUNTIF(D49:AH49,"4")+COUNTIF(D49:AH49,"5")+COUNTIF(D49:AH49,"6")+COUNTIF(D49:AH49,"7")+COUNTIF(D49:AH49,"8")+COUNTIF(D49:AH49,"9")+COUNTIF(D49:AH49,"HS4")+COUNTIF(D49:AH49,"HS8")+COUNTIF(D49:AH49,"GC1")+COUNTIF(D49:AH49,"GC2")+COUNTIF(D49:AH49,"GC3")+COUNTIF(D49:AH49,"GC4")+COUNTIF(D49:AH49,"GC5")+COUNTIF(D49:AH49,"GC6")+COUNTIF(D49:AH49,"GC7")+COUNTIF(D49:AH49,"GC8")+AO49+AQ49+AS49+AP49) -> 0 | AU49: =IF(AN49<30,ROUNDUP(((AM49-AL49)/7.5),0),IF(AV49+AR49=0,30,AT49)) -> 0 | AV49: =IF(A49="",0,IF(AN49<30,(COUNTA(D49:AH49)-AU49),COUNTIF(D49:AH49,"R"))) -> 0 | AW49: =IF(((COUNTIF(D49:AH49,"R")))>=1,"E","") ->  | BE49: 22 | BF49: =COUNTIF(D49:AH49,"Üİ") -> 0
A51: ='PERSONEL BİLGİ GİRİŞİ'!A27 ->  | B51: =CONCATENATE('PERSONEL BİLGİ GİRİŞİ'!B27," ",'PERSONEL BİLGİ GİRİŞİ'!C27) ->  | C51: ='PERSONEL BİLGİ GİRİŞİ'!H27 -> 0 | AI51: =IF(A51="",0,COUNTIF(D51:AH52,"1")*1+COUNTIF(D51:AH52,"2")*2+COUNTIF(D51:AH52,"3")*3+COUNTIF(D51:AH52,"4")*4+COUNTIF(D51:AH52,"5")*5+COUNTIF(D51:AH52,"6")*6+COUNTIF(D51:AH52,"7")*7+COUNTIF(D51:AH52,"8")*8+COUNTIF(D51:AH52,"9")*9+COUNTIF(D51:AH52,"10")*10+COUNTIF(D51:AH52,"Mİ")*8) -> 0 | AJ51: =IF(A51="",0,COUNTIF(D51:AH52,"GC1")*1+COUNTIF(D51:AH52,"GC2")*2+COUNTIF(D51:AH52,"GC3")*3+COUNTIF(D51:AH52,"GC4")*4+COUNTIF(D51:AH52,"GC5")*5+COUNTIF(D51:AH52,"GC6")*6+COUNTIF(D51:AH52,"GC7")*7+COUNTIF(D51:AH52,"GC8")*8) -> 0 | AK51: =IF(A51="",0,COUNTIF(D51:AH52,"HS4")*4+COUNTIF(D51:AH52,"HS8")*8) -> 0 | AL51: =(AI51+AJ51+AK51)/4 -> 0 | AM51: =IF(A51="",0,(AI51+AJ51+AK51)+AL51) -> 0 | AN51: =(AI51+AJ51+AK51)/4 -> 0 | AO51: =IF(A51="",0,COUNTIF(D51:AH52,"FÇ")) -> 0 | AP51: =IF(A51="",0,COUNTIF(D51:AH52,"T")) -> 0 | AQ51: =IF(A51="",0,COUNTIF(D51:AH52,"Mİ")) -> 0 | AR51: =IF(A51="",0,COUNTIF(D51:AH52,"Üİ")) -> 0 | AS51: =IF(A51="",0,COUNTIF(D51:AH52,"RT")) -> 0 | AT51: =IF(A51="",0,COUNTIF(D51:AH51,"1")+COUNTIF(D51:AH51,"2")+COUNTIF(D51:AH51,"3")+COUNTIF(D51:AH51,"4")+COUNTIF(D51:AH51,"5")+COUNTIF(D51:AH51,"6")+COUNTIF(D51:AH51,"7")+COUNTIF(D51:AH51,"8")+COUNTIF(D51:AH51,"9")+COUNTIF(D51:AH51,"HS4")+COUNTIF(D51:AH51,"HS8")+COUNTIF(D51:AH51,"GC1")+COUNTIF(D51:AH51,"GC2")+COUNTIF(D51:AH51,"GC3")+COUNTIF(D51:AH51,"GC4")+COUNTIF(D51:AH51,"GC5")+COUNTIF(D51:AH51,"GC6")+COUNTIF(D51:AH51,"GC7")+COUNTIF(D51:AH51,"GC8")+AO51+AQ51+AS51+AP51) -> 0 | AU51: =IF(AN51<30,ROUNDUP(((AM51-AL51)/7.5),0),IF(AV51+AR51=0,30,AT51)) -> 0 | AV51: =IF(A51="",0,IF(AN51<30,(COUNTA(D51:AH51)-AU51),COUNTIF(D51:AH51,"R"))) -> 0 | AW51: =IF(((COUNTIF(D51:AH51,"R")))>=1,"E","") ->  | BE51: 23 | BF51: =COUNTIF(D51:AH51,"Üİ") -> 0
A53: ='PERSONEL BİLGİ GİRİŞİ'!A28 ->  | B53: =CONCATENATE('PERSONEL BİLGİ GİRİŞİ'!B28," ",'PERSONEL BİLGİ GİRİŞİ'!C28) ->  | C53: ='PERSONEL BİLGİ GİRİŞİ'!H28 -> 0 | AI53: =IF(A53="",0,COUNTIF(D53:AH54,"1")*1+COUNTIF(D53:AH54,"2")*2+COUNTIF(D53:AH54,"3")*3+COUNTIF(D53:AH54,"4")*4+COUNTIF(D53:AH54,"5")*5+COUNTIF(D53:AH54,"6")*6+COUNTIF(D53:AH54,"7")*7+COUNTIF(D53:AH54,"8")*8+COUNTIF(D53:AH54,"9")*9+COUNTIF(D53:AH54,"10")*10+COUNTIF(D53:AH54,"Mİ")*8) -> 0 | AJ53: =IF(A53="",0,COUNTIF(D53:AH54,"GC1")*1+COUNTIF(D53:AH54,"GC2")*2+COUNTIF(D53:AH54,"GC3")*3+COUNTIF(D53:AH54,"GC4")*4+COUNTIF(D53:AH54,"GC5")*5+COUNTIF(D53:AH54,"GC6")*6+COUNTIF(D53:AH54,"GC7")*7+COUNTIF(D53:AH54,"GC8")*8) -> 0 | AK53: =IF(A53="",0,COUNTIF(D53:AH54,"HS4")*4+COUNTIF(D53:AH54,"HS8")*8) -> 0 | AL53: =(AI53+AJ53+AK53)/4 -> 0 | AM53: =IF(A53="",0,(AI53+AJ53+AK53)+AL53) -> 0 | AN53: =(AI53+AJ53+AK53)/4 -> 0 | AO53: =IF(A53="",0,COUNTIF(D53:AH54,"FÇ")) -> 0 | AP53: =IF(A53="",0,COUNTIF(D53:AH54,"T")) -> 0 | AQ53: =IF(A53="",0,COUNTIF(D53:AH54,"Mİ")) -> 0 | AR53: =IF(A53="",0,COUNTIF(D53:AH54,"Üİ")) -> 0 | AS53: =IF(A53="",0,COUNTIF(D53:AH54,"RT")) -> 0 | AT53: =IF(A53="",0,COUNTIF(D53:AH53,"1")+COUNTIF(D53:AH53,"2")+COUNTIF(D53:AH53,"3")+COUNTIF(D53:AH53,"4")+COUNTIF(D53:AH53,"5")+COUNTIF(D53:AH53,"6")+COUNTIF(D53:AH53,"7")+COUNTIF(D53:AH53,"8")+COUNTIF(D53:AH53,"9")+COUNTIF(D53:AH53,"HS4")+COUNTIF(D53:AH53,"HS8")+COUNTIF(D53:AH53,"GC1")+COUNTIF(D53:AH53,"GC2")+COUNTIF(D53:AH53,"GC3")+COUNTIF(D53:AH53,"GC4")+COUNTIF(D53:AH53,"GC5")+COUNTIF(D53:AH53,"GC6")+COUNTIF(D53:AH53,"GC7")+COUNTIF(D53:AH53,"GC8")+AO53+AQ53+AS53+AP53) -> 0 | AU53: =IF(AN53<30,ROUNDUP(((AM53-AL53)/7.5),0),IF(AV53+AR53=0,30,AT53)) -> 0 | AV53: =IF(A53="",0,IF(AN53<30,(COUNTA(D53:AH53)-AU53),COUNTIF(D53:AH53,"R"))) -> 0 | AW53: =IF(((COUNTIF(D53:AH53,"R")))>=1,"E","") ->  | BE53: 24 | BF53: =COUNTIF(D53:AH53,"Üİ") -> 0
A55: ='PERSONEL BİLGİ GİRİŞİ'!A29 ->  | B55: =CONCATENATE('PERSONEL BİLGİ GİRİŞİ'!B29," ",'PERSONEL BİLGİ GİRİŞİ'!C29) ->  | C55: ='PERSONEL BİLGİ GİRİŞİ'!H29 -> 0 | AI55: =IF(A55="",0,COUNTIF(D55:AH56,"1")*1+COUNTIF(D55:AH56,"2")*2+COUNTIF(D55:AH56,"3")*3+COUNTIF(D55:AH56,"4")*4+COUNTIF(D55:AH56,"5")*5+COUNTIF(D55:AH56,"6")*6+COUNTIF(D55:AH56,"7")*7+COUNTIF(D55:AH56,"8")*8+COUNTIF(D55:AH56,"9")*9+COUNTIF(D55:AH56,"10")*10+COUNTIF(D55:AH56,"Mİ")*8) -> 0 | AJ55: =IF(A55="",0,COUNTIF(D55:AH56,"GC1")*1+COUNTIF(D55:AH56,"GC2")*2+COUNTIF(D55:AH56,"GC3")*3+COUNTIF(D55:AH56,"GC4")*4+COUNTIF(D55:AH56,"GC5")*5+COUNTIF(D55:AH56,"GC6")*6+COUNTIF(D55:AH56,"GC7")*7+COUNTIF(D55:AH56,"GC8")*8) -> 0 | AK55: =IF(A55="",0,COUNTIF(D55:AH56,"HS4")*4+COUNTIF(D55:AH56,"HS8")*8) -> 0 | AL55: =(AI55+AJ55+AK55)/4 -> 0 | AM55: =IF(A55="",0,(AI55+AJ55+AK55)+AL55) -> 0 | AN55: =(AI55+AJ55+AK55)/4 -> 0 | AO55: =IF(A55="",0,COUNTIF(D55:AH56,"FÇ")) -> 0 | AP55: =IF(A55="",0,COUNTIF(D55:AH56,"T")) -> 0 | AQ55: =IF(A55="",0,COUNTIF(D55:AH56,"Mİ")) -> 0 | AR55: =IF(A55="",0,COUNTIF(D55:AH56,"Üİ")) -> 0 | AS55: =IF(A55="",0,COUNTIF(D55:AH56,"RT")) -> 0 | AT55: =IF(A55="",0,COUNTIF(D55:AH55,"1")+COUNTIF(D55:AH55,"2")+COUNTIF(D55:AH55,"3")+COUNTIF(D55:AH55,"4")+COUNTIF(D55:AH55,"5")+COUNTIF(D55:AH55,"6")+COUNTIF(D55:AH55,"7")+COUNTIF(D55:AH55,"8")+COUNTIF(D55:AH55,"9")+COUNTIF(D55:AH55,"HS4")+COUNTIF(D55:AH55,"HS8")+COUNTIF(D55:AH55,"GC1")+COUNTIF(D55:AH55,"GC2")+COUNTIF(D55:AH55,"GC3")+COUNTIF(D55:AH55,"GC4")+COUNTIF(D55:AH55,"GC5")+COUNTIF(D55:AH55,"GC6")+COUNTIF(D55:AH55,"GC7")+COUNTIF(D55:AH55,"GC8")+AO55+AQ55+AS55+AP55) -> 0 | AU55: =IF(AN55<30,ROUNDUP(((AM55-AL55)/7.5),0),IF(AV55+AR55=0,30,AT55)) -> 0 | AV55: =IF(A55="",0,IF(AN55<30,(COUNTA(D55:AH55)-AU55),COUNTIF(D55:AH55,"R"))) -> 0 | AW55: =IF(((COUNTIF(D55:AH55,"R")))>=1,"E","") ->  | BE55: 25 | BF55: =COUNTIF(D55:AH55,"Üİ") -> 0
A57: ='PERSONEL BİLGİ GİRİŞİ'!A30 ->  | B57: =CONCATENATE('PERSONEL BİLGİ GİRİŞİ'!B30," ",'PERSONEL BİLGİ GİRİŞİ'!C30) ->  | C57: ='PERSONEL BİLGİ GİRİŞİ'!H30 -> 0 | AI57: =IF(A57="",0,COUNTIF(D57:AH58,"1")*1+COUNTIF(D57:AH58,"2")*2+COUNTIF(D57:AH58,"3")*3+COUNTIF(D57:AH58,"4")*4+COUNTIF(D57:AH58,"5")*5+COUNTIF(D57:AH58,"6")*6+COUNTIF(D57:AH58,"7")*7+COUNTIF(D57:AH58,"8")*8+COUNTIF(D57:AH58,"9")*9+COUNTIF(D57:AH58,"10")*10+COUNTIF(D57:AH58,"Mİ")*8) -> 0 | AJ57: =IF(A57="",0,COUNTIF(D57:AH58,"GC1")*1+COUNTIF(D57:AH58,"GC2")*2+COUNTIF(D57:AH58,"GC3")*3+COUNTIF(D57:AH58,"GC4")*4+COUNTIF(D57:AH58,"GC5")*5+COUNTIF(D57:AH58,"GC6")*6+COUNTIF(D57:AH58,"GC7")*7+COUNTIF(D57:AH58,"GC8")*8) -> 0 | AK57: =IF(A57="",0,COUNTIF(D57:AH58,"HS4")*4+COUNTIF(D57:AH58,"HS8")*8) -> 0 | AL57: =(AI57+AJ57+AK57)/4 -> 0 | AM57: =IF(A57="",0,(AI57+AJ57+AK57)+AL57) -> 0 | AN57: =(AI57+AJ57+AK57)/4 -> 0 | AO57: =IF(A57="",0,COUNTIF(D57:AH58,"FÇ")) -> 0 | AP57: =IF(A57="",0,COUNTIF(D57:AH58,"T")) -> 0 | AQ57: =IF(A57="",0,COUNTIF(D57:AH58,"Mİ")) -> 0 | AR57: =IF(A57="",0,COUNTIF(D57:AH58,"Üİ")) -> 0 | AS57: =IF(A57="",0,COUNTIF(D57:AH58,"RT")) -> 0 | AT57: =IF(A57="",0,COUNTIF(D57:AH57,"1")+COUNTIF(D57:AH57,"2")+COUNTIF(D57:AH57,"3")+COUNTIF(D57:AH57,"4")+COUNTIF(D57:AH57,"5")+COUNTIF(D57:AH57,"6")+COUNTIF(D57:AH57,"7")+COUNTIF(D57:AH57,"8")+COUNTIF(D57:AH57,"9")+COUNTIF(D57:AH57,"HS4")+COUNTIF(D57:AH57,"HS8")+COUNTIF(D57:AH57,"GC1")+COUNTIF(D57:AH57,"GC2")+COUNTIF(D57:AH57,"GC3")+COUNTIF(D57:AH57,"GC4")+COUNTIF(D57:AH57,"GC5")+COUNTIF(D57:AH57,"GC6")+COUNTIF(D57:AH57,"GC7")+COUNTIF(D57:AH57,"GC8")+AO57+AQ57+AS57+AP57) -> 0 | AU57: =IF(AN57<30,ROUNDUP(((AM57-AL57)/7.5),0),IF(AV57+AR57=0,30,AT57)) -> 0 | AV57: =IF(A57="",0,IF(AN57<30,(COUNTA(D57:AH57)-AU57),COUNTIF(D57:AH57,"R"))) -> 0 | AW57: =IF(((COUNTIF(D57:AH57,"R")))>=1,"E","") ->  | BE57: 26 | BF57: =COUNTIF(D57:AH57,"Üİ") -> 0
A59: ='PERSONEL BİLGİ GİRİŞİ'!A31 ->  | B59: =CONCATENATE('PERSONEL BİLGİ GİRİŞİ'!B31," ",'PERSONEL BİLGİ GİRİŞİ'!C31) ->  | C59: ='PERSONEL BİLGİ GİRİŞİ'!H31 -> 0 | AI59: =IF(A59="",0,COUNTIF(D59:AH60,"1")*1+COUNTIF(D59:AH60,"2")*2+COUNTIF(D59:AH60,"3")*3+COUNTIF(D59:AH60,"4")*4+COUNTIF(D59:AH60,"5")*5+COUNTIF(D59:AH60,"6")*6+COUNTIF(D59:AH60,"7")*7+COUNTIF(D59:AH60,"8")*8+COUNTIF(D59:AH60,"9")*9+COUNTIF(D59:AH60,"10")*10+COUNTIF(D59:AH60,"Mİ")*8) -> 0 | AJ59: =IF(A59="",0,COUNTIF(D59:AH60,"GC1")*1+COUNTIF(D59:AH60,"GC2")*2+COUNTIF(D59:AH60,"GC3")*3+COUNTIF(D59:AH60,"GC4")*4+COUNTIF(D59:AH60,"GC5")*5+COUNTIF(D59:AH60,"GC6")*6+COUNTIF(D59:AH60,"GC7")*7+COUNTIF(D59:AH60,"GC8")*8) -> 0 | AK59: =IF(A59="",0,COUNTIF(D59:AH60,"HS4")*4+COUNTIF(D59:AH60,"HS8")*8) -> 0 | AL59: =(AI59+AJ59+AK59)/4 -> 0 | AM59: =IF(A59="",0,(AI59+AJ59+AK59)+AL59) -> 0 | AN59: =(AI59+AJ59+AK59)/4 -> 0 | AO59: =IF(A59="",0,COUNTIF(D59:AH60,"FÇ")) -> 0 | AP59: =IF(A59="",0,COUNTIF(D59:AH60,"T")) -> 0 | AQ59: =IF(A59="",0,COUNTIF(D59:AH60,"Mİ")) -> 0 | AR59: =IF(A59="",0,COUNTIF(D59:AH60,"Üİ")) -> 0 | AS59: =IF(A59="",0,COUNTIF(D59:AH60,"RT")) -> 0 | AT59: =IF(A59="",0,COUNTIF(D59:AH59,"1")+COUNTIF(D59:AH59,"2")+COUNTIF(D59:AH59,"3")+COUNTIF(D59:AH59,"4")+COUNTIF(D59:AH59,"5")+COUNTIF(D59:AH59,"6")+COUNTIF(D59:AH59,"7")+COUNTIF(D59:AH59,"8")+COUNTIF(D59:AH59,"9")+COUNTIF(D59:AH59,"HS4")+COUNTIF(D59:AH59,"HS8")+COUNTIF(D59:AH59,"GC1")+COUNTIF(D59:AH59,"GC2")+COUNTIF(D59:AH59,"GC3")+COUNTIF(D59:AH59,"GC4")+COUNTIF(D59:AH59,"GC5")+COUNTIF(D59:AH59,"GC6")+COUNTIF(D59:AH59,"GC7")+COUNTIF(D59:AH59,"GC8")+AO59+AQ59+AS59+AP59) -> 0 | AU59: =IF(AN59<30,ROUNDUP(((AM59-AL59)/7.5),0),IF(AV59+AR59=0,30,AT59)) -> 0 | AV59: =IF(A59="",0,IF(AN59<30,(COUNTA(D59:AH59)-AU59),COUNTIF(D59:AH59,"R"))) -> 0 | AW59: =IF(((COUNTIF(D59:AH59,"R")))>=1,"E","") ->  | BE59: 27 | BF59: =COUNTIF(D59:AH59,"Üİ") -> 0
A61: ='PERSONEL BİLGİ GİRİŞİ'!A32 ->  | B61: =CONCATENATE('PERSONEL BİLGİ GİRİŞİ'!B32," ",'PERSONEL BİLGİ GİRİŞİ'!C32) ->  | C61: ='PERSONEL BİLGİ GİRİŞİ'!H32 -> 0 | AI61: =IF(A61="",0,COUNTIF(D61:AH62,"1")*1+COUNTIF(D61:AH62,"2")*2+COUNTIF(D61:AH62,"3")*3+COUNTIF(D61:AH62,"4")*4+COUNTIF(D61:AH62,"5")*5+COUNTIF(D61:AH62,"6")*6+COUNTIF(D61:AH62,"7")*7+COUNTIF(D61:AH62,"8")*8+COUNTIF(D61:AH62,"9")*9+COUNTIF(D61:AH62,"10")*10+COUNTIF(D61:AH62,"Mİ")*8) -> 0 | AJ61: =IF(A61="",0,COUNTIF(D61:AH62,"GC1")*1+COUNTIF(D61:AH62,"GC2")*2+COUNTIF(D61:AH62,"GC3")*3+COUNTIF(D61:AH62,"GC4")*4+COUNTIF(D61:AH62,"GC5")*5+COUNTIF(D61:AH62,"GC6")*6+COUNTIF(D61:AH62,"GC7")*7+COUNTIF(D61:AH62,"GC8")*8) -> 0 | AK61: =IF(A61="",0,COUNTIF(D61:AH62,"HS4")*4+COUNTIF(D61:AH62,"HS8")*8) -> 0 | AL61: =(AI61+AJ61+AK61)/4 -> 0 | AM61: =IF(A61="",0,(AI61+AJ61+AK61)+AL61) -> 0 | AN61: =(AI61+AJ61+AK61)/4 -> 0 | AO61: =IF(A61="",0,COUNTIF(D61:AH62,"FÇ")) -> 0 | AP61: =IF(A61="",0,COUNTIF(D61:AH62,"T")) -> 0 | AQ61: =IF(A61="",0,COUNTIF(D61:AH62,"Mİ")) -> 0 | AR61: =IF(A61="",0,COUNTIF(D61:AH62,"Üİ")) -> 0 | AS61: =IF(A61="",0,COUNTIF(D61:AH62,"RT")) -> 0 | AT61: =IF(A61="",0,COUNTIF(D61:AH61,"1")+COUNTIF(D61:AH61,"2")+COUNTIF(D61:AH61,"3")+COUNTIF(D61:AH61,"4")+COUNTIF(D61:AH61,"5")+COUNTIF(D61:AH61,"6")+COUNTIF(D61:AH61,"7")+COUNTIF(D61:AH61,"8")+COUNTIF(D61:AH61,"9")+COUNTIF(D61:AH61,"HS4")+COUNTIF(D61:AH61,"HS8")+COUNTIF(D61:AH61,"GC1")+COUNTIF(D61:AH61,"GC2")+COUNTIF(D61:AH61,"GC3")+COUNTIF(D61:AH61,"GC4")+COUNTIF(D61:AH61,"GC5")+COUNTIF(D61:AH61,"GC6")+COUNTIF(D61:AH61,"GC7")+COUNTIF(D61:AH61,"GC8")+AO61+AQ61+AS61+AP61) -> 0 | AU61: =IF(AN61<30,ROUNDUP(((AM61-AL61)/7.5),0),IF(AV61+AR61=0,30,AT61)) -> 0 | AV61: =IF(A61="",0,IF(AN61<30,(COUNTA(D61:AH61)-AU61),COUNTIF(D61:AH61,"R"))) -> 0 | AW61: =IF(((COUNTIF(D61:AH61,"R")))>=1,"E","") ->  | BE61: 28 | BF61: =COUNTIF(D61:AH61,"Üİ") -> 0
A63: ='PERSONEL BİLGİ GİRİŞİ'!A33 ->  | B63: =CONCATENATE('PERSONEL BİLGİ GİRİŞİ'!B33," ",'PERSONEL BİLGİ GİRİŞİ'!C33) ->  | C63: ='PERSONEL BİLGİ GİRİŞİ'!H33 -> 0 | AI63: =IF(A63="",0,COUNTIF(D63:AH64,"1")*1+COUNTIF(D63:AH64,"2")*2+COUNTIF(D63:AH64,"3")*3+COUNTIF(D63:AH64,"4")*4+COUNTIF(D63:AH64,"5")*5+COUNTIF(D63:AH64,"6")*6+COUNTIF(D63:AH64,"7")*7+COUNTIF(D63:AH64,"8")*8+COUNTIF(D63:AH64,"9")*9+COUNTIF(D63:AH64,"10")*10+COUNTIF(D63:AH64,"Mİ")*8) -> 0 | AJ63: =IF(A63="",0,COUNTIF(D63:AH64,"GC1")*1+COUNTIF(D63:AH64,"GC2")*2+COUNTIF(D63:AH64,"GC3")*3+COUNTIF(D63:AH64,"GC4")*4+COUNTIF(D63:AH64,"GC5")*5+COUNTIF(D63:AH64,"GC6")*6+COUNTIF(D63:AH64,"GC7")*7+COUNTIF(D63:AH64,"GC8")*8) -> 0 | AK63: =IF(A63="",0,COUNTIF(D63:AH64,"HS4")*4+COUNTIF(D63:AH64,"HS8")*8) -> 0 | AL63: =(AI63+AJ63+AK63)/4 -> 0 | AM63: =IF(A63="",0,(AI63+AJ63+AK63)+AL63) -> 0 | AN63: =(AI63+AJ63+AK63)/4 -> 0 | AO63: =IF(A63="",0,COUNTIF(D63:AH64,"FÇ")) -> 0 | AP63: =IF(A63="",0,COUNTIF(D63:AH64,"T")) -> 0 | AQ63: =IF(A63="",0,COUNTIF(D63:AH64,"Mİ")) -> 0 | AR63: =IF(A63="",0,COUNTIF(D63:AH64,"Üİ")) -> 0 | AS63: =IF(A63="",0,COUNTIF(D63:AH64,"RT")) -> 0 | AT63: =IF(A63="",0,COUNTIF(D63:AH63,"1")+COUNTIF(D63:AH63,"2")+COUNTIF(D63:AH63,"3")+COUNTIF(D63:AH63,"4")+COUNTIF(D63:AH63,"5")+COUNTIF(D63:AH63,"6")+COUNTIF(D63:AH63,"7")+COUNTIF(D63:AH63,"8")+COUNTIF(D63:AH63,"9")+COUNTIF(D63:AH63,"HS4")+COUNTIF(D63:AH63,"HS8")+COUNTIF(D63:AH63,"GC1")+COUNTIF(D63:AH63,"GC2")+COUNTIF(D63:AH63,"GC3")+COUNTIF(D63:AH63,"GC4")+COUNTIF(D63:AH63,"GC5")+COUNTIF(D63:AH63,"GC6")+COUNTIF(D63:AH63,"GC7")+COUNTIF(D63:AH63,"GC8")+AO63+AQ63+AS63+AP63) -> 0 | AU63: =IF(AN63<30,ROUNDUP((AM63/7.5),0),IF(AV63+AR63=0,30,AT63)) -> 0 | AV63: =IF(A63="",0,IF(AN63<30,(COUNTA(D63:AH63)-AU63),COUNTIF(D63:AH63,"R"))) -> 0 | AW63: =IF(((COUNTIF(D63:AH63,"R")))>=1,"E","") ->  | BE63: 29 | BF63: =COUNTIF(D63:AH63,"Üİ") -> 0
A65: ='PERSONEL BİLGİ GİRİŞİ'!A34 ->  | B65: =CONCATENATE('PERSONEL BİLGİ GİRİŞİ'!B34," ",'PERSONEL BİLGİ GİRİŞİ'!C34) ->  | C65: ='PERSONEL BİLGİ GİRİŞİ'!H34 -> 0 | AI65: =IF(A65="",0,COUNTIF(D65:AH66,"1")*1+COUNTIF(D65:AH66,"2")*2+COUNTIF(D65:AH66,"3")*3+COUNTIF(D65:AH66,"4")*4+COUNTIF(D65:AH66,"5")*5+COUNTIF(D65:AH66,"6")*6+COUNTIF(D65:AH66,"7")*7+COUNTIF(D65:AH66,"8")*8+COUNTIF(D65:AH66,"9")*9+COUNTIF(D65:AH66,"10")*10+COUNTIF(D65:AH66,"Mİ")*8) -> 0 | AJ65: =IF(A65="",0,COUNTIF(D65:AH66,"GC1")*1+COUNTIF(D65:AH66,"GC2")*2+COUNTIF(D65:AH66,"GC3")*3+COUNTIF(D65:AH66,"GC4")*4+COUNTIF(D65:AH66,"GC5")*5+COUNTIF(D65:AH66,"GC6")*6+COUNTIF(D65:AH66,"GC7")*7+COUNTIF(D65:AH66,"GC8")*8) -> 0 | AK65: =IF(A65="",0,COUNTIF(D65:AH66,"HS4")*4+COUNTIF(D65:AH66,"HS8")*8) -> 0 | AL65: =(AI65+AJ65+AK65)/4 -> 0 | AM65: =IF(A65="",0,(AI65+AJ65+AK65)+AL65) -> 0 | AN65: =(AI65+AJ65+AK65)/4 -> 0 | AO65: =IF(A65="",0,COUNTIF(D65:AH66,"FÇ")) -> 0 | AP65: =IF(A65="",0,COUNTIF(D65:AH66,"T")) -> 0 | AQ65: =IF(A65="",0,COUNTIF(D65:AH66,"Mİ")) -> 0 | AR65: =IF(A65="",0,COUNTIF(D65:AH66,"Üİ")) -> 0 | AS65: =IF(A65="",0,COUNTIF(D65:AH66,"RT")) -> 0 | AT65: =IF(A65="",0,COUNTIF(D65:AH65,"1")+COUNTIF(D65:AH65,"2")+COUNTIF(D65:AH65,"3")+COUNTIF(D65:AH65,"4")+COUNTIF(D65:AH65,"5")+COUNTIF(D65:AH65,"6")+COUNTIF(D65:AH65,"7")+COUNTIF(D65:AH65,"8")+COUNTIF(D65:AH65,"9")+COUNTIF(D65:AH65,"HS4")+COUNTIF(D65:AH65,"HS8")+COUNTIF(D65:AH65,"GC1")+COUNTIF(D65:AH65,"GC2")+COUNTIF(D65:AH65,"GC3")+COUNTIF(D65:AH65,"GC4")+COUNTIF(D65:AH65,"GC5")+COUNTIF(D65:AH65,"GC6")+COUNTIF(D65:AH65,"GC7")+COUNTIF(D65:AH65,"GC8")+AO65+AQ65+AS65+AP65) -> 0 | AU65: =IF(AN65<30,ROUNDUP((AM65/7.5),0),IF(AV65+AR65=0,30,AT65)) -> 0 | AV65: =IF(A65="",0,IF(AN65<30,(COUNTA(D65:AH65)-AU65),COUNTIF(D65:AH65,"R"))) -> 0 | AW65: =IF(((COUNTIF(D65:AH65,"R")))>=1,"E","") ->  | BE65: 30 | BF65: =COUNTIF(D65:AH65,"Üİ") -> 0
A67: ='PERSONEL BİLGİ GİRİŞİ'!A35 ->  | B67: =CONCATENATE('PERSONEL BİLGİ GİRİŞİ'!B35," ",'PERSONEL BİLGİ GİRİŞİ'!C35) ->  | C67: ='PERSONEL BİLGİ GİRİŞİ'!H35 -> 0 | AI67: =IF(A67="",0,COUNTIF(D67:AH68,"1")*1+COUNTIF(D67:AH68,"2")*2+COUNTIF(D67:AH68,"3")*3+COUNTIF(D67:AH68,"4")*4+COUNTIF(D67:AH68,"5")*5+COUNTIF(D67:AH68,"6")*6+COUNTIF(D67:AH68,"7")*7+COUNTIF(D67:AH68,"8")*8+COUNTIF(D67:AH68,"9")*9+COUNTIF(D67:AH68,"10")*10+COUNTIF(D67:AH68,"Mİ")*8) -> 0 | AJ67: =IF(A67="",0,COUNTIF(D67:AH68,"GC1")*1+COUNTIF(D67:AH68,"GC2")*2+COUNTIF(D67:AH68,"GC3")*3+COUNTIF(D67:AH68,"GC4")*4+COUNTIF(D67:AH68,"GC5")*5+COUNTIF(D67:AH68,"GC6")*6+COUNTIF(D67:AH68,"GC7")*7+COUNTIF(D67:AH68,"GC8")*8) -> 0 | AK67: =IF(A67="",0,COUNTIF(D67:AH68,"HS4")*4+COUNTIF(D67:AH68,"HS8")*8) -> 0 | AL67: =(AI67+AJ67+AK67)/4 -> 0 | AM67: =IF(A67="",0,(AI67+AJ67+AK67)+AL67) -> 0 | AN67: =(AI67+AJ67+AK67)/4 -> 0 | AO67: =IF(A67="",0,COUNTIF(D67:AH68,"FÇ")) -> 0 | AP67: =IF(A67="",0,COUNTIF(D67:AH68,"T")) -> 0 | AQ67: =IF(A67="",0,COUNTIF(D67:AH68,"Mİ")) -> 0 | AR67: =IF(A67="",0,COUNTIF(D67:AH68,"Üİ")) -> 0 | AS67: =IF(A67="",0,COUNTIF(D67:AH68,"RT")) -> 0 | AT67: =IF(A67="",0,COUNTIF(D67:AH67,"1")+COUNTIF(D67:AH67,"2")+COUNTIF(D67:AH67,"3")+COUNTIF(D67:AH67,"4")+COUNTIF(D67:AH67,"5")+COUNTIF(D67:AH67,"6")+COUNTIF(D67:AH67,"7")+COUNTIF(D67:AH67,"8")+COUNTIF(D67:AH67,"9")+COUNTIF(D67:AH67,"HS4")+COUNTIF(D67:AH67,"HS8")+COUNTIF(D67:AH67,"GC1")+COUNTIF(D67:AH67,"GC2")+COUNTIF(D67:AH67,"GC3")+COUNTIF(D67:AH67,"GC4")+COUNTIF(D67:AH67,"GC5")+COUNTIF(D67:AH67,"GC6")+COUNTIF(D67:AH67,"GC7")+COUNTIF(D67:AH67,"GC8")+AO67+AQ67+AS67+AP67) -> 0 | AU67: =IF(AN67<30,ROUNDUP((AM67/7.5),0),IF(AV67+AR67=0,30,AT67)) -> 0 | AV67: =IF(A67="",0,IF(AN67<30,(COUNTA(D67:AH67)-AU67),COUNTIF(D67:AH67,"R"))) -> 0 | AW67: =IF(((COUNTIF(D67:AH67,"R")))>=1,"E","") ->  | BE67: 31 | BF67: =COUNTIF(D67:AH67,"Üİ") -> 0
A69: ='PERSONEL BİLGİ GİRİŞİ'!A36 ->  | B69: =CONCATENATE('PERSONEL BİLGİ GİRİŞİ'!B36," ",'PERSONEL BİLGİ GİRİŞİ'!C36) ->  | C69: ='PERSONEL BİLGİ GİRİŞİ'!H36 -> 0 | AI69: =IF(A69="",0,COUNTIF(D69:AH70,"1")*1+COUNTIF(D69:AH70,"2")*2+COUNTIF(D69:AH70,"3")*3+COUNTIF(D69:AH70,"4")*4+COUNTIF(D69:AH70,"5")*5+COUNTIF(D69:AH70,"6")*6+COUNTIF(D69:AH70,"7")*7+COUNTIF(D69:AH70,"8")*8+COUNTIF(D69:AH70,"9")*9+COUNTIF(D69:AH70,"10")*10+COUNTIF(D69:AH70,"Mİ")*8) -> 0 | AJ69: =IF(A69="",0,COUNTIF(D69:AH70,"GC1")*1+COUNTIF(D69:AH70,"GC2")*2+COUNTIF(D69:AH70,"GC3")*3+COUNTIF(D69:AH70,"GC4")*4+COUNTIF(D69:AH70,"GC5")*5+COUNTIF(D69:AH70,"GC6")*6+COUNTIF(D69:AH70,"GC7")*7+COUNTIF(D69:AH70,"GC8")*8) -> 0 | AK69: =IF(A69="",0,COUNTIF(D69:AH70,"HS4")*4+COUNTIF(D69:AH70,"HS8")*8) -> 0 | AL69: =(AI69+AJ69+AK69)/4 -> 0 | AM69: =IF(A69="",0,(AI69+AJ69+AK69)+AL69) -> 0 | AN69: =(AI69+AJ69+AK69)/4 -> 0 | AO69: =IF(A69="",0,COUNTIF(D69:AH70,"FÇ")) -> 0 | AP69: =IF(A69="",0,COUNTIF(D69:AH70,"T")) -> 0 | AQ69: =IF(A69="",0,COUNTIF(D69:AH70,"Mİ")) -> 0 | AR69: =IF(A69="",0,COUNTIF(D69:AH70,"Üİ")) -> 0 | AS69: =IF(A69="",0,COUNTIF(D69:AH70,"RT")) -> 0 | AT69: =IF(A69="",0,COUNTIF(D69:AH69,"1")+COUNTIF(D69:AH69,"2")+COUNTIF(D69:AH69,"3")+COUNTIF(D69:AH69,"4")+COUNTIF(D69:AH69,"5")+COUNTIF(D69:AH69,"6")+COUNTIF(D69:AH69,"7")+COUNTIF(D69:AH69,"8")+COUNTIF(D69:AH69,"9")+COUNTIF(D69:AH69,"HS4")+COUNTIF(D69:AH69,"HS8")+COUNTIF(D69:AH69,"GC1")+COUNTIF(D69:AH69,"GC2")+COUNTIF(D69:AH69,"GC3")+COUNTIF(D69:AH69,"GC4")+COUNTIF(D69:AH69,"GC5")+COUNTIF(D69:AH69,"GC6")+COUNTIF(D69:AH69,"GC7")+COUNTIF(D69:AH69,"GC8")+AO69+AQ69+AS69+AP69) -> 0 | AU69: =IF(AN69<30,ROUNDUP((AM69/7.5),0),IF(AV69+AR69=0,30,AT69)) -> 0 | AV69: =IF(A69="",0,IF(AN69<30,(COUNTA(D69:AH69)-AU69),COUNTIF(D69:AH69,"R"))) -> 0 | AW69: =IF(((COUNTIF(D69:AH69,"R")))>=1,"E","") ->  | BE69: 32 | BF69: =COUNTIF(D69:AH69,"Üİ") -> 0
A71: ='PERSONEL BİLGİ GİRİŞİ'!A37 ->  | B71: =CONCATENATE('PERSONEL BİLGİ GİRİŞİ'!B37," ",'PERSONEL BİLGİ GİRİŞİ'!C37) ->  | C71: ='PERSONEL BİLGİ GİRİŞİ'!H37 -> 0 | AI71: =IF(A71="",0,COUNTIF(D71:AH72,"1")*1+COUNTIF(D71:AH72,"2")*2+COUNTIF(D71:AH72,"3")*3+COUNTIF(D71:AH72,"4")*4+COUNTIF(D71:AH72,"5")*5+COUNTIF(D71:AH72,"6")*6+COUNTIF(D71:AH72,"7")*7+COUNTIF(D71:AH72,"8")*8+COUNTIF(D71:AH72,"9")*9+COUNTIF(D71:AH72,"10")*10+COUNTIF(D71:AH72,"Mİ")*8) -> 0 | AJ71: =IF(A71="",0,COUNTIF(D71:AH72,"GC1")*1+COUNTIF(D71:AH72,"GC2")*2+COUNTIF(D71:AH72,"GC3")*3+COUNTIF(D71:AH72,"GC4")*4+COUNTIF(D71:AH72,"GC5")*5+COUNTIF(D71:AH72,"GC6")*6+COUNTIF(D71:AH72,"GC7")*7+COUNTIF(D71:AH72,"GC8")*8) -> 0 | AK71: =IF(A71="",0,COUNTIF(D71:AH72,"HS4")*4+COUNTIF(D71:AH72,"HS8")*8) -> 0 | AL71: =(AI71+AJ71+AK71)/4 -> 0 | AM71: =IF(A71="",0,(AI71+AJ71+AK71)+AL71) -> 0 | AN71: =(AI71+AJ71+AK71)/4 -> 0 | AO71: =IF(A71="",0,COUNTIF(D71:AH72,"FÇ")) -> 0 | AP71: =IF(A71="",0,COUNTIF(D71:AH72,"T")) -> 0 | AQ71: =IF(A71="",0,COUNTIF(D71:AH72,"Mİ")) -> 0 | AR71: =IF(A71="",0,COUNTIF(D71:AH72,"Üİ")) -> 0 | AS71: =IF(A71="",0,COUNTIF(D71:AH72,"RT")) -> 0 | AT71: =IF(A71="",0,COUNTIF(D71:AH71,"1")+COUNTIF(D71:AH71,"2")+COUNTIF(D71:AH71,"3")+COUNTIF(D71:AH71,"4")+COUNTIF(D71:AH71,"5")+COUNTIF(D71:AH71,"6")+COUNTIF(D71:AH71,"7")+COUNTIF(D71:AH71,"8")+COUNTIF(D71:AH71,"9")+COUNTIF(D71:AH71,"HS4")+COUNTIF(D71:AH71,"HS8")+COUNTIF(D71:AH71,"GC1")+COUNTIF(D71:AH71,"GC2")+COUNTIF(D71:AH71,"GC3")+COUNTIF(D71:AH71,"GC4")+COUNTIF(D71:AH71,"GC5")+COUNTIF(D71:AH71,"GC6")+COUNTIF(D71:AH71,"GC7")+COUNTIF(D71:AH71,"GC8")+AO71+AQ71+AS71+AP71) -> 0 | AU71: =IF(AN71<30,ROUNDUP((AM71/7.5),0),IF(AV71+AR71=0,30,AT71)) -> 0 | AV71: =IF(A71="",0,IF(AN71<30,(COUNTA(D71:AH71)-AU71),COUNTIF(D71:AH71,"R"))) -> 0 | AW71: =IF(((COUNTIF(D71:AH71,"R")))>=1,"E","") ->  | BE71: 33 | BF71: =COUNTIF(D71:AH71,"Üİ") -> 0
A73: ='PERSONEL BİLGİ GİRİŞİ'!A38 ->  | B73: =CONCATENATE('PERSONEL BİLGİ GİRİŞİ'!B38," ",'PERSONEL BİLGİ GİRİŞİ'!C38) ->  | C73: ='PERSONEL BİLGİ GİRİŞİ'!H38 -> 0 | AI73: =IF(A73="",0,COUNTIF(D73:AH74,"1")*1+COUNTIF(D73:AH74,"2")*2+COUNTIF(D73:AH74,"3")*3+COUNTIF(D73:AH74,"4")*4+COUNTIF(D73:AH74,"5")*5+COUNTIF(D73:AH74,"6")*6+COUNTIF(D73:AH74,"7")*7+COUNTIF(D73:AH74,"8")*8+COUNTIF(D73:AH74,"9")*9+COUNTIF(D73:AH74,"10")*10+COUNTIF(D73:AH74,"Mİ")*8) -> 0 | AJ73: =IF(A73="",0,COUNTIF(D73:AH74,"GC1")*1+COUNTIF(D73:AH74,"GC2")*2+COUNTIF(D73:AH74,"GC3")*3+COUNTIF(D73:AH74,"GC4")*4+COUNTIF(D73:AH74,"GC5")*5+COUNTIF(D73:AH74,"GC6")*6+COUNTIF(D73:AH74,"GC7")*7+COUNTIF(D73:AH74,"GC8")*8) -> 0 | AK73: =IF(A73="",0,COUNTIF(D73:AH74,"HS4")*4+COUNTIF(D73:AH74,"HS8")*8) -> 0 | AL73: =(AI73+AJ73+AK73)/4 -> 0 | AM73: =IF(A73="",0,(AI73+AJ73+AK73)+AL73) -> 0 | AN73: =(AI73+AJ73+AK73)/4 -> 0 | AO73: =IF(A73="",0,COUNTIF(D73:AH74,"FÇ")) -> 0 | AP73: =IF(A73="",0,COUNTIF(D73:AH74,"T")) -> 0 | AQ73: =IF(A73="",0,COUNTIF(D73:AH74,"Mİ")) -> 0 | AR73: =IF(A73="",0,COUNTIF(D73:AH74,"Üİ")) -> 0 | AS73: =IF(A73="",0,COUNTIF(D73:AH74,"RT")) -> 0 | AT73: =IF(A73="",0,COUNTIF(D73:AH73,"1")+COUNTIF(D73:AH73,"2")+COUNTIF(D73:AH73,"3")+COUNTIF(D73:AH73,"4")+COUNTIF(D73:AH73,"5")+COUNTIF(D73:AH73,"6")+COUNTIF(D73:AH73,"7")+COUNTIF(D73:AH73,"8")+COUNTIF(D73:AH73,"9")+COUNTIF(D73:AH73,"HS4")+COUNTIF(D73:AH73,"HS8")+COUNTIF(D73:AH73,"GC1")+COUNTIF(D73:AH73,"GC2")+COUNTIF(D73:AH73,"GC3")+COUNTIF(D73:AH73,"GC4")+COUNTIF(D73:AH73,"GC5")+COUNTIF(D73:AH73,"GC6")+COUNTIF(D73:AH73,"GC7")+COUNTIF(D73:AH73,"GC8")+AO73+AQ73+AS73+AP73) -> 0 | AU73: =IF(AN73<30,ROUNDUP((AM73/7.5),0),IF(AV73+AR73=0,30,AT73)) -> 0 | AV73: =IF(A73="",0,IF(AN73<30,(COUNTA(D73:AH73)-AU73),COUNTIF(D73:AH73,"R"))) -> 0 | AW73: =IF(((COUNTIF(D73:AH73,"R")))>=1,"E","") ->  | BE73: 34 | BF73: =COUNTIF(D73:AH73,"Üİ") -> 0
A75: ='PERSONEL BİLGİ GİRİŞİ'!A39 ->  | B75: =CONCATENATE('PERSONEL BİLGİ GİRİŞİ'!B39," ",'PERSONEL BİLGİ GİRİŞİ'!C39) ->  | C75: ='PERSONEL BİLGİ GİRİŞİ'!H39 -> 0 | AI75: =IF(A75="",0,COUNTIF(D75:AH76,"1")*1+COUNTIF(D75:AH76,"2")*2+COUNTIF(D75:AH76,"3")*3+COUNTIF(D75:AH76,"4")*4+COUNTIF(D75:AH76,"5")*5+COUNTIF(D75:AH76,"6")*6+COUNTIF(D75:AH76,"7")*7+COUNTIF(D75:AH76,"8")*8+COUNTIF(D75:AH76,"9")*9+COUNTIF(D75:AH76,"10")*10+COUNTIF(D75:AH76,"Mİ")*8) -> 0 | AJ75: =IF(A75="",0,COUNTIF(D75:AH76,"GC1")*1+COUNTIF(D75:AH76,"GC2")*2+COUNTIF(D75:AH76,"GC3")*3+COUNTIF(D75:AH76,"GC4")*4+COUNTIF(D75:AH76,"GC5")*5+COUNTIF(D75:AH76,"GC6")*6+COUNTIF(D75:AH76,"GC7")*7+COUNTIF(D75:AH76,"GC8")*8) -> 0 | AK75: =IF(A75="",0,COUNTIF(D75:AH76,"HS4")*4+COUNTIF(D75:AH76,"HS8")*8) -> 0 | AL75: =(AI75+AJ75+AK75)/4 -> 0 | AM75: =IF(A75="",0,(AI75+AJ75+AK75)+AL75) -> 0 | AN75: =(AI75+AJ75+AK75)/4 -> 0 | AO75: =IF(A75="",0,COUNTIF(D75:AH76,"FÇ")) -> 0 | AP75: =IF(A75="",0,COUNTIF(D75:AH76,"T")) -> 0 | AQ75: =IF(A75="",0,COUNTIF(D75:AH76,"Mİ")) -> 0 | AR75: =IF(A75="",0,COUNTIF(D75:AH76,"Üİ")) -> 0 | AS75: =IF(A75="",0,COUNTIF(D75:AH76,"RT")) -> 0 | AT75: =IF(A75="",0,COUNTIF(D75:AH75,"1")+COUNTIF(D75:AH75,"2")+COUNTIF(D75:AH75,"3")+COUNTIF(D75:AH75,"4")+COUNTIF(D75:AH75,"5")+COUNTIF(D75:AH75,"6")+COUNTIF(D75:AH75,"7")+COUNTIF(D75:AH75,"8")+COUNTIF(D75:AH75,"9")+COUNTIF(D75:AH75,"HS4")+COUNTIF(D75:AH75,"HS8")+COUNTIF(D75:AH75,"GC1")+COUNTIF(D75:AH75,"GC2")+COUNTIF(D75:AH75,"GC3")+COUNTIF(D75:AH75,"GC4")+COUNTIF(D75:AH75,"GC5")+COUNTIF(D75:AH75,"GC6")+COUNTIF(D75:AH75,"GC7")+COUNTIF(D75:AH75,"GC8")+AO75+AQ75+AS75+AP75) -> 0 | AU75: =IF(AN75<30,ROUNDUP((AM75/7.5),0),IF(AV75+AR75=0,30,AT75)) -> 0 | AV75: =IF(A75="",0,IF(AN75<30,(COUNTA(D75:AH75)-AU75),COUNTIF(D75:AH75,"R"))) -> 0 | AW75: =IF(((COUNTIF(D75:AH75,"R")))>=1,"E","") ->  | BE75: 35 | BF75: =COUNTIF(D75:AH75,"Üİ") -> 0
A77: AÇIKLAMA
A79: ='PERSONEL BİLGİ GİRİŞİ'!A81:B81 -> MAAŞ MUTEMEDİ | O79: ='PERSONEL BİLGİ GİRİŞİ'!J81 -> GERÇEKLEŞTİRME GÖREVLİSİ | AU79: ='PERSONEL BİLGİ GİRİŞİ'!K81 -> HARCAMA YETKİLİSİ
A80: ='PERSONEL BİLGİ GİRİŞİ'!A82:B82 -> 0 | O80: ='PERSONEL BİLGİ GİRİŞİ'!J82 -> 0 | AU80: ='PERSONEL BİLGİ GİRİŞİ'!K82 -> 0
A81: ='PERSONEL BİLGİ GİRİŞİ'!A83:B83 ->  | O81: ='PERSONEL BİLGİ GİRİŞİ'!J83 ->  | AU81: ='PERSONEL BİLGİ GİRİŞİ'!K83 -> 
A82: =TODAY() -> 2024-02-05 | O82: ='PERSONEL BİLGİ GİRİŞİ'!J84 -> 2024-02-05 | AU82: ='PERSONEL BİLGİ GİRİŞİ'!K84 -> 2024-02-05
B90: HAFTA TATİLİ | D90: T
B91: ÇALIŞAN | D91: 2
B92: ÇALIŞAN | D92: 3
B93: ÇALIŞAN | D93: 4
B94: ÇALIŞAN | D94: 5
B95: ÇALIŞAN | D95: 6
B96: ÇALIŞAN | D96: 7
B97: ÇALIŞAN | D97: 8
B98: ÇALIŞAN | D98: 9
B99: ÇALIŞAN | D99: 10
B100: HAFTA SONU ÇALIŞAN | D100: HS4
B101: HAFTA SONU ÇALIŞAN | D101: HS8
C102: FAZLA ÇALIŞMA | D102: FÇ
C103: MAZERET İZNİ | D103: Mİ
C104: DOĞUM İZNİ | D104: Dİ
C105: RAPOR | D105: R
C106: ÜCRETSİZ İZİN | D106: Üİ
C107: RESMİ TATİL | D107: RT
C108: GELMEDİ | D108: G
C109: GECE ÇALIŞAN | D109: GC1
C110: GECE ÇALIŞAN | D110: GC2
C111: GECE ÇALIŞAN | D111: GC3
C112: GECE ÇALIŞAN | D112: GC4
C113: GECE ÇALIŞAN | D113: GC5
C114: GECE ÇALIŞAN | D114: GC6
C115: GECE ÇALIŞAN | D115: GC7
C116: GECE ÇALIŞAN | D116: GC8

Sheet ek bordro
A1: ANASAYFA | B1: AİLE VE SOSYAL HİZMETLER İL MÜDÜRLÜĞÜ | J1: ANASAYFA
A2: E K B O R D R O
A3: SIRA NO | B3: AD-SOYAD | C3: TC. KİMLİK NO | D3: BRÜT TOPLAM ÜCRET | E3: VERGİ MATRAHI (KÜMÜLATİF) | F3: VERGİ DİLİMİ | G3: GELİR VERGİSİ | H3: DAMGA VERGİSİ | I3: SGK MATRAHI | J3: NET ÖDECEK (ELE GEÇEN) ÜCRET | K3: İSTİSNA GELİR | L3: İSTİSNA DAMGA
A4: =PUANTAJ!A7 -> 1 | B4: =PUANTAJ!B7 -> ALİ BZC | C4: =PUANTAJ!C7 -> 0
A5: =PUANTAJ!A8 -> 0 | B5: =PUANTAJ!B8 -> 0 | C5: =PUANTAJ!C8 -> 0
A6: =PUANTAJ!A9 ->  | B6: =PUANTAJ!B9 ->  | C6: =PUANTAJ!C9 -> 0
A7: =PUANTAJ!A10 -> 0 | B7: =PUANTAJ!B10 -> 0 | C7: =PUANTAJ!C10 -> 0
A8: =PUANTAJ!A11 ->  | B8: =PUANTAJ!B11 ->  | C8: =PUANTAJ!C11 -> 0
A9: =PUANTAJ!A12 -> 0 | B9: =PUANTAJ!B12 -> 0 | C9: =PUANTAJ!C12 -> 0
A10: =PUANTAJ!A13 ->  | B10: =PUANTAJ!B13 ->  | C10: =PUANTAJ!C13 -> 0
A11: =PUANTAJ!A14 -> 0 | B11: =PUANTAJ!B14 -> 0 | C11: =PUANTAJ!C14 -> 0
A12: =PUANTAJ!A15 ->  | B12: =PUANTAJ!B15 ->  | C12: =PUANTAJ!C15 -> 0
A13: =PUANTAJ!A16 -> 0 | B13: =PUANTAJ!B16 -> 0 | C13: =PUANTAJ!C16 -> 0
A14: =PUANTAJ!A17 ->  | B14: =PUANTAJ!B17 ->  | C14: =PUANTAJ!C17 -> 0
A15: =PUANTAJ!A18 -> 0 | B15: =PUANTAJ!B18 -> 0 | C15: =PUANTAJ!C18 -> 0
A16: =PUANTAJ!A19 ->  | B16: =PUANTAJ!B19 ->  | C16: =PUANTAJ!C19 -> 0
A17: =PUANTAJ!A20 -> 0 | B17: =PUANTAJ!B20 -> 0 | C17: =PUANTAJ!C20 -> 0
A18: =PUANTAJ!A21 ->  | B18: =PUANTAJ!B21 ->  | C18: =PUANTAJ!C21 -> 0
A19: =PUANTAJ!A22 -> 0 | B19: =PUANTAJ!B22 -> 0 | C19: =PUANTAJ!C22 -> 0
A20: =PUANTAJ!A23 ->  | B20: =PUANTAJ!B23 ->  | C20: =PUANTAJ!C23 -> 0
A21: =PUANTAJ!A24 -> 0 | B21: =PUANTAJ!B24 -> 0 | C21: =PUANTAJ!C24 -> 0
A22: =PUANTAJ!A25 ->  | B22: =PUANTAJ!B25 ->  | C22: =PUANTAJ!C25 -> 0
A23: =PUANTAJ!A26 -> 0 | B23: =PUANTAJ!B26 -> 0 | C23: =PUANTAJ!C26 -> 0
A24: =PUANTAJ!A27 ->  | B24: =PUANTAJ!B27 ->  | C24: =PUANTAJ!C27 -> 0
A25: =PUANTAJ!A28 -> 0 | B25: =PUANTAJ!B28 -> 0 | C25: =PUANTAJ!C28 -> 0
A26: =PUANTAJ!A29 ->  | B26: =PUANTAJ!B29 ->  | C26: =PUANTAJ!C29 -> 0
A27: =PUANTAJ!A30 -> 0 | B27: =PUANTAJ!B30 -> 0 | C27: =PUANTAJ!C30 -> 0
A28: =PUANTAJ!A31 ->  | B28: =PUANTAJ!B31 ->  | C28: =PUANTAJ!C31 -> 0
A29: =PUANTAJ!A32 -> 0 | B29: =PUANTAJ!B32 -> 0 | C29: =PUANTAJ!C32 -> 0
A30: =PUANTAJ!A33 ->  | B30: =PUANTAJ!B33 ->  | C30: =PUANTAJ!C33 -> 0
A31: =PUANTAJ!A34 -> 0 | B31: =PUANTAJ!B34 -> 0 | C31: =PUANTAJ!C34 -> 0
A32: =PUANTAJ!A35 ->  | B32: =PUANTAJ!B35 ->  | C32: =PUANTAJ!C35 -> 0
A33: =PUANTAJ!A36 -> 0 | B33: =PUANTAJ!B36 -> 0 | C33: =PUANTAJ!C36 -> 0
A34: =PUANTAJ!A37 ->  | B34: =PUANTAJ!B37 ->  | C34: =PUANTAJ!C37 -> 0
A35: =PUANTAJ!A38 -> 0 | B35: =PUANTAJ!B38 -> 0 | C35: =PUANTAJ!C38 -> 0
A36: =PUANTAJ!A39 ->  | B36: =PUANTAJ!B39 ->  | C36: =PUANTAJ!C39 -> 0
A37: =PUANTAJ!A40 -> 0 | B37: =PUANTAJ!B40 -> 0 | C37: =PUANTAJ!C40 -> 0
A38: =PUANTAJ!A41 ->  | B38: =PUANTAJ!B41 ->  | C38: =PUANTAJ!C41 -> 0
A39: =PUANTAJ!A42 -> 0 | B39: =PUANTAJ!B42 -> 0 | C39: =PUANTAJ!C42 -> 0
A40: =PUANTAJ!A43 ->  | B40: =PUANTAJ!B43 ->  | C40: =PUANTAJ!C43 -> 0
A41: =PUANTAJ!A44 -> 0 | B41: =PUANTAJ!B44 -> 0 | C41: =PUANTAJ!C44 -> 0
A42: =PUANTAJ!A45 ->  | B42: =PUANTAJ!B45 ->  | C42: =PUANTAJ!C45 -> 0
A43: =PUANTAJ!A46 -> 0 | B43: =PUANTAJ!B46 -> 0 | C43: =PUANTAJ!C46 -> 0
A44: =PUANTAJ!A47 ->  | B44: =PUANTAJ!B47 ->  | C44: =PUANTAJ!C47 -> 0
A45: =PUANTAJ!A48 -> 0 | B45: =PUANTAJ!B48 -> 0 | C45: =PUANTAJ!C48 -> 0
A46: =PUANTAJ!A49 ->  | B46: =PUANTAJ!B49 ->  | C46: =PUANTAJ!C49 -> 0
A47: =PUANTAJ!A50 -> 0 | B47: =PUANTAJ!B50 -> 0 | C47: =PUANTAJ!C50 -> 0
A48: =PUANTAJ!A51 ->  | B48: =PUANTAJ!B51 ->  | C48: =PUANTAJ!C51 -> 0
A49: =PUANTAJ!A52 -> 0 | B49: =PUANTAJ!B52 -> 0 | C49: =PUANTAJ!C52 -> 0
A50: =PUANTAJ!A53 ->  | B50: =PUANTAJ!B53 ->  | C50: =PUANTAJ!C53 -> 0
A51: =PUANTAJ!A54 -> 0 | B51: =PUANTAJ!B54 -> 0 | C51: =PUANTAJ!C54 -> 0
A52: =PUANTAJ!A55 ->  | B52: =PUANTAJ!B55 ->  | C52: =PUANTAJ!C55 -> 0
A53: =PUANTAJ!A56 -> 0 | B53: =PUANTAJ!B56 -> 0 | C53: =PUANTAJ!C56 -> 0
A54: =PUANTAJ!A57 ->  | B54: =PUANTAJ!B57 ->  | C54: =PUANTAJ!C57 -> 0
A55: =PUANTAJ!A58 -> 0 | B55: =PUANTAJ!B58 -> 0 | C55: =PUANTAJ!C58 -> 0
A56: =PUANTAJ!A59 ->  | B56: =PUANTAJ!B59 ->  | C56: =PUANTAJ!C59 -> 0
A57: =PUANTAJ!A60 -> 0 | B57: =PUANTAJ!B60 -> 0 | C57: =PUANTAJ!C60 -> 0
A58: =PUANTAJ!A61 ->  | B58: =PUANTAJ!B61 ->  | C58: =PUANTAJ!C61 -> 0
A59: =PUANTAJ!A62 -> 0 | B59: =PUANTAJ!B62 -> 0 | C59: =PUANTAJ!C62 -> 0
A60: =PUANTAJ!A63 ->  | B60: =PUANTAJ!B63 ->  | C60: =PUANTAJ!C63 -> 0
A61: =PUANTAJ!A64 -> 0 | B61: =PUANTAJ!B64 -> 0 | C61: =PUANTAJ!C64 -> 0
A62: =PUANTAJ!A65 ->  | B62: =PUANTAJ!B65 ->  | C62: =PUANTAJ!C65 -> 0
A63: =PUANTAJ!A66 -> 0 | B63: =PUANTAJ!B66 -> 0 | C63: =PUANTAJ!C66 -> 0
A64: =PUANTAJ!A67 ->  | B64: =PUANTAJ!B67 ->  | C64: =PUANTAJ!C67 -> 0
A65: =PUANTAJ!A68 -> 0 | B65: =PUANTAJ!B68 -> 0 | C65: =PUANTAJ!C68 -> 0
A66: =PUANTAJ!A69 ->  | B66: =PUANTAJ!B69 ->  | C66: =PUANTAJ!C69 -> 0
A67: =PUANTAJ!A70 -> 0 | B67: =PUANTAJ!B70 -> 0 | C67: =PUANTAJ!C70 -> 0
A68: =PUANTAJ!A71 ->  | B68: =PUANTAJ!B71 ->  | C68: =PUANTAJ!C71 -> 0
A69: =PUANTAJ!A72 -> 0 | B69: =PUANTAJ!B72 -> 0 | C69: =PUANTAJ!C72 -> 0
A70: =PUANTAJ!A73 ->  | B70: =PUANTAJ!B73 ->  | C70: =PUANTAJ!C73 -> 0
A71: =PUANTAJ!A74 -> 0 | B71: =PUANTAJ!B74 -> 0 | C71: =PUANTAJ!C74 -> 0
A72: =PUANTAJ!A75 ->  | B72: =PUANTAJ!B75 ->  | C72: =PUANTAJ!C75 -> 0
A73: =PUANTAJ!A76 -> 0 | B73: =PUANTAJ!B76 -> 0 | C73: =PUANTAJ!C76 -> 0
A74: =PUANTAJ!#REF! ->  | B74: =PUANTAJ!#REF! ->  | C74: =PUANTAJ!#REF! -> 
A75: =PUANTAJ!#REF! ->  | B75: =PUANTAJ!#REF! ->  | C75: =PUANTAJ!#REF! -> 
A76: =PUANTAJ!#REF! ->  | B76: =PUANTAJ!#REF! ->  | C76: =PUANTAJ!#REF! -> 
A77: =PUANTAJ!#REF! ->  | B77: =PUANTAJ!#REF! ->  | C77: =PUANTAJ!#REF! -> 
A78: =PUANTAJ!A77 -> AÇIKLAMA | B78: =PUANTAJ!B77 -> 0 | C78: =PUANTAJ!C77 -> 0

Sheet TAKVİM
A5: =B5 -> 2022-01-01 | B5: 2022-01-01 | C5: =EOMONTH(B5,0) -> 2022-01-31
A6: =B6 -> 2022-02-01 | B6: =EDATE(B5,1) -> 2022-02-01 | C6: =EOMONTH(B6,0) -> 2022-02-28
A7: 2022-03-01 | B7: =EDATE(B6,1) -> 2022-03-01 | C7: 2022-03-31
A8: 2022-04-01 | B8: 2022-04-01 | C8: 2022-04-30
A9: 2022-05-01 | B9: 2022-05-01 | C9: 2022-05-31
A10: 2022-06-01 | B10: 2022-06-01 | C10: 2022-06-30
A11: 2022-07-01 | B11: 2022-07-01 | C11: 2022-07-31
A12: 2022-08-01 | B12: 2022-08-01 | C12: 2022-08-31
A13: 2022-09-01 | B13: 2022-09-01 | C13: 2022-09-30
A14: 2022-10-01 | B14: 2022-10-01 | C14: 2022-10-31
A15: 2022-11-01 | B15: 2022-11-01 | C15: 2022-11-30
A16: 2022-12-01 | B16: 2022-12-01 | C16: 2022-12-31
A17: 2023-01-01 | B17: 2023-01-01 | C17: 2023-01-31
A18: 2023-02-01 | B18: 2023-02-01 | C18: 2023-02-28
A19: 2023-03-01 | B19: 2023-03-01 | C19: 2023-03-31
A20: 2023-04-01 | B20: 2023-04-01 | C20: 2023-04-30
A21: 2023-05-01 | B21: 2023-05-01 | C21: 2023-05-31
A22: 2023-06-01 | B22: 2023-06-01 | C22: 2023-06-30
A23: 2023-07-01 | B23: 2023-07-01 | C23: 2023-07-31
A24: 2023-08-01 | B24: 2023-08-01 | C24: 2023-08-31
A25: 2023-09-01 | B25: 2023-09-01 | C25: 2023-09-30
A26: 2023-10-01 | B26: 2023-10-01 | C26: 2023-10-31
A27: 2023-11-01 | B27: 2023-11-01 | C27: 2023-11-30
A28: 2023-12-01 | B28: 2023-12-01 | C28: 2023-12-31
A29: 2024-01-01 | B29: 2024-01-01 | C29: 2024-01-31
A30: 2024-02-01 | B30: 2024-02-01 | C30: 2024-02-29
A31: 2024-03-01 | B31: 2024-03-01 | C31: 2024-03-31
A32: 2024-04-01 | B32: 2024-04-01 | C32: 2024-04-30
A33: 2024-05-01 | B33: 2024-05-01 | C33: 2024-05-31
A34: 2024-06-01 | B34: 2024-06-01 | C34: 2024-06-30
A35: 2024-07-01 | B35: 2024-07-01 | C35: 2024-07-31
A36: 2024-08-01 | B36: 2024-08-01 | C36: 2024-08-31
A37: 2024-09-01 | B37: 2024-09-01 | C37: 2024-09-30
A38: 2024-10-01 | B38: 2024-10-01 | C38: 2024-10-31
A39: 2024-11-01 | B39: 2024-11-01 | C39: 2024-11-30
A40: 2024-12-01 | B40: 2024-12-01 | C40: 2024-12-31
A41: 2025-01-01 | B41: =EDATE(B40,1) -> 2025-01-01 | C41: 2025-01-31
A42: 2025-02-01 | B42: 2025-02-01 | C42: 2025-02-28
A43: 2025-03-01 | B43: 2025-03-01 | C43: 2025-03-31
A44: 2025-04-01 | B44: 2025-04-01 | C44: 2025-04-30
A45: 2025-05-01 | B45: 2025-05-01 | C45: 2025-05-31
A46: 2025-06-01 | B46: 2025-06-01 | C46: 2025-06-30
A47: 2025-07-01 | B47: 2025-07-01 | C47: 2025-07-31
A48: 2025-08-01 | B48: 2025-08-01 | C48: 2025-08-31
A49: 2025-09-01 | B49: 2025-09-01 | C49: 2025-09-30
A50: 2025-10-01 | B50: 2025-10-01 | C50: 2025-10-31
A51: 2025-11-01 | B51: 2025-11-01 | C51: 2025-11-30
A52: 2025-12-01 | B52: 2025-12-01 | C52: 2025-12-31
A53: =B53 -> 2021-12-15 | B53: 2021-12-15 | C53: 2022-01-14
A54: =B54 -> 2022-01-15 | B54: 2022-01-15 | C54: 2022-02-14
A55: 2022-02-15 | B55: 2022-02-15 | C55: 2022-03-14
A56: 2022-03-15 | B56: 2022-03-15 | C56: 2022-04-14
A57: 2022-04-15 | B57: 2022-04-15 | C57: 2022-05-14
A58: 2022-05-15 | B58: 2022-05-15 | C58: 2022-06-14
A59: 2022-06-15 | B59: 2022-06-15 | C59: 2022-07-14
A60: 2022-07-15 | B60: 2022-07-15 | C60: 2022-08-14
A61: 2022-08-15 | B61: 2022-08-15 | C61: 2022-09-14
A62: 2022-09-15 | B62: 2022-09-15 | C62: 2022-10-14
A63: 2022-10-15 | B63: 2022-10-15 | C63: 2022-11-14
A64: 2022-11-15 | B64: 2022-11-15 | C64: 2022-12-14
A65: 2022-12-15 | B65: 2022-12-15 | C65: 2023-01-14
A66: 2023-01-15 | B66: 2023-01-15 | C66: 2023-02-14
A67: 2023-02-15 | B67: 2023-02-15 | C67: 2023-03-14
A68: 2023-03-15 | B68: 2023-03-15 | C68: 2023-04-14
A69: 2023-04-15 | B69: 2023-04-15 | C69: 2023-05-14
A70: 2023-05-15 | B70: 2023-05-15 | C70: 2023-06-14
A71: 2023-06-15 | B71: 2023-06-15 | C71: 2023-07-14
A72: 2023-07-15 | B72: 2023-07-15 | C72: 2023-08-14
A73: 2023-08-15 | B73: 2023-08-15 | C73: 2023-09-14
A74: 2023-09-15 | B74: 2023-09-15 | C74: 2023-10-14
A75: 2023-10-15 | B75: 2023-10-15 | C75: 2023-11-14
A76: 2023-11-15 | B76: 2023-11-15 | C76: 2023-12-14
A77: 2023-12-15 | B77: 2023-12-15 | C77: 2024-01-14
A78: 2024-01-15 | B78: 2024-01-15 | C78: 2024-02-14
A79: 2024-02-15 | B79: 2024-02-15 | C79: 2024-03-14
A80: 2024-03-15 | B80: 2024-03-15 | C80: 2024-04-14
A81: 2024-04-15 | B81: 2024-04-15 | C81: 2024-05-14
A82: 2024-05-15 | B82: 2024-05-15 | C82: 2024-06-14
A83: 2024-06-15 | B83: 2024-06-15 | C83: 2024-07-14
A84: 2024-07-15 | B84: 2024-07-15 | C84: 2024-08-14
A85: 2024-08-15 | B85: 2024-08-15 | C85: 2024-09-14
A86: 2024-09-15 | B86: 2024-09-15 | C86: 2024-10-14
A87: 2024-10-15 | B87: 2024-10-15 | C87: 2024-11-14
A88: 2024-11-15 | B88: 2024-11-15 | C88: 2024-12-14
A89: 2024-12-15 | B89: 2024-12-15 | C89: 2025-01-14
A90: 2025-01-15 | B90: 2025-01-15 | C90: 2025-02-14
A91: 2025-02-15 | B91: 2025-02-15 | C91: 2025-03-14
A92: 2025-03-15 | B92: 2025-03-15 | C92: 2025-04-14
A93: 2025-04-15 | B93: 2025-04-15 | C93: 2025-05-14
A94: 2025-05-15 | B94: 2025-05-15 | C94: 2025-06-14
A95: 2025-06-15 | B95: 2025-06-15 | C95: 2025-07-14
A96: 2025-07-15 | B96: 2025-07-15 | C96: 2025-08-14
A97: 2025-08-15 | B97: 2025-08-15 | C97: 2025-09-14
A98: 2025-09-15 | B98: 2025-09-15 | C98: 2025-10-14
A99: 2025-10-15 | B99: 2025-10-15 | C99: 2025-11-14
A100: 2025-11-15 | B100: 2025-11-15 | C100: 2025-12-14
A101: 2025-12-15 | B101: 2025-12-15 | C101: 2026-01-14

Sheet BORDRO HAZIRLIK
A1: ='PERSONEL BİLGİ GİRİŞİ'!A1 -> AİLE VE SOSYAL HİZMETLER İL MÜDÜRLÜĞÜ
A2: =PUANTAJ!AI2 -> 2024-01-01 | D2: ANA SAYFA | H2: B O R D R O H A Z I R L I K | AQ2: EK BORDRO | AR2: ANA SAYFA | BD2: ANA SAYFA | BE2: =PUANTAJ!AI2 -> 2024-01-01
D3: GÜNLÜK BRÜT ÜCRET | E3: GÜNLÜK NET ÜCRET | F3: HAM ÜCRET | G3: ÇALIŞMA SAATİ GÜNDÜZ | H3: SİGORTA GÜN SAYISI | I3: ÇALIŞMA GÜNÜ | J3: GÜNDÜZ ÇALIŞMASI SAAT / BRÜT ÜCRET | L3: GECE ÇALIŞMASI SAAT / BRÜT ÜCRET | N3: HAFTA SONU ÇALIŞMASI SAAT / BRÜT ÜCRET | P3: HİZMET DESTEK GÖREVİ EKDERS ÖDEMESİ SAAT / BRÜT ÜCRET | R3: DOĞUM YARDIMI | S3: ÇOCUK | T3: YOL ÜCRETİ (GÜNLÜK) | U3: YEMEK ÜCRETİ (GÜNLÜK) | AA3: FAZLA MESAİ | AB3: ASKERLİK | AC3: BAYRAM | AD3: EVLENME | AE3: İSTİSNA ASGARİ ÜCRET KÜMÜLATİF VERGİ MATRAHI | AF3: SÜREGELEN ASGARİ ÜCRET KÜMÜLATİF VERGİ MATRAHI | AG3: İSTİSNA ASGARİ ÜCRET GELİR VERGİSİ | AH3: İSTİSNA ASGARİ ÜCRET DAMGA VERGİSİ | AI3: TOPLAM SAAT | AJ3: BRÜT TOPLAM ÜCRET | AK3: VERGİ MATRAHI | AL3: ÖDEMEYE ESAS GELİR VERGİSİ | AM3: ÖDEMEYE ESAS DAMGA VERGİSİ | AN3: SÜREGELEN VERGİ MATRAHI | AO3: K E S İ N T İ L E R | BF3: AGİ | BG3: ÖDENECEK ÜCRET | BH3: NET ÖDECEK (ELE GEÇEN) ÜCRET
A4: SIRA NO | B4: AD-SOYAD | C4: TC. KİMLİK NO | AO4: GELİR VERGİSİ | AP4: DAMGA VERGİSİ | AQ4: SGK MATRAHI | AR4: SGK ASGARİ ÜCRET İŞVEREN FARKI MALÜULUK | AS4: SGK ASGARİ ÜCRET İŞVEREN FARKI | AT4: SGK ASGARİ ÜCRET İŞVEREN FARKI | AU4: SGK ASGARİ ÜCRET İŞVEREN FARKI | AV4: SGK ASGARİ ÜCRET İŞVEREN FARKI | AW4: SGK ASGARİ ÜCRET İŞVEREN FARKI | AX4: SGK ASGARİ ÜCRET İŞVEREN FARKI GSS | AY4: MALULUK YAŞLILIK (İŞVEREN-İŞÇİ) %11 | AZ4: MALULUK YAŞLILIK (İŞTİRAKÇİ-İŞÇİ) %9 | BA4: G.S.S. (İŞTİRAKÇİ İŞÇİ) %5 | BB4: G.S.S. (İŞVEREN İŞÇİ) %7.5 | BC4: KISA VAADELİ SİGORTA KOLLARI PİRİMİ %2 | BD4: İŞSİZLİK SİGORTASI PİRİMİ- İŞVEREN %2 | BE4: İŞSİZLİK SİGORTASI PİRİMİ- İŞÇİ %1
A5: =PUANTAJ!A7 -> 1 | B5: =PUANTAJ!B7 -> ALİ BZC | C5: ='PERSONEL BİLGİ GİRİŞİ'!H5 -> 0 | D5: ='PERSONEL BİLGİ GİRİŞİ'!P5 -> 582.32 | E5: =((D5-(D5*15/100))-((D5-(D5*15/100))*15/100))-(D5*0.00759) -> 416.31 | F5: ='PERSONEL BİLGİ GİRİŞİ'!Q5 -> 17469.6 | G5: =PUANTAJ!AI7 -> 164 | H5: =PUANTAJ!AU7 -> 30 | I5: =PUANTAJ!AT7-PUANTAJ!AP7 -> 23 | J5: =PUANTAJ!AI7 -> 164 | K5: =('PERSONEL BİLGİ GİRİŞİ'!R5*(PUANTAJ!AI7)) -> 17469.28 | L5: =PUANTAJ!AJ7 -> 0 | M5: =('PERSONEL BİLGİ GİRİŞİ'!U5*PUANTAJ!AJ7) -> 0 | N5: =PUANTAJ!AK7 -> 0 | O5: =('PERSONEL BİLGİ GİRİŞİ'!U5*(PUANTAJ!AK7)) -> 0 | P5: =PUANTAJ!AL7 -> 41 | Q5: =('PERSONEL BİLGİ GİRİŞİ'!R5*(P5)) -> 4367.32 | R5: =IF('PERSONEL BİLGİ GİRİŞİ'!AV5="YOK",0,IF('PERSONEL BİLGİ GİRİŞİ'!AS5="VAR",('ANA SAYFA'!$T$11),(0))) -> 0 | S5: =('PERSONEL BİLGİ GİRİŞİ'!U5+'PERSONEL BİLGİ GİRİŞİ'!V5)*'ANA SAYFA'!$Q$9 -> 0 | T5: =IF('PERSONEL BİLGİ GİRİŞİ'!AV5="YOK",0,'PERSONEL BİLGİ GİRİŞİ'!AE5*G5) -> 13859355 | U5: =IF('PERSONEL BİLGİ GİRİŞİ'!AV5="YOK",0,'PERSONEL BİLGİ GİRİŞİ'!AF5*G5) -> 13980632.64 | AA5: =IF(PUANTAJ!AX7>0,D5*1.6/7.5*PUANTAJ!AX7,0) -> 0 | AB5: =IF('PERSONEL BİLGİ GİRİŞİ'!AU5="YOK",0,IF('PERSONEL BİLGİ GİRİŞİ'!AK5="VAR",('ANA SAYFA'!$Q$17),(0))) -> 0 | AC5: =IF('PERSONEL BİLGİ GİRİŞİ'!AV5="YOK",0,IF('PERSONEL BİLGİ GİRİŞİ'!AN5="VAR",('ANA SAYFA'!$T$10),(0))) -> 0 | AD5: =IF('PERSONEL BİLGİ GİRİŞİ'!AV5="YOK",0,IF('PERSONEL BİLGİ GİRİŞİ'!AR5="VAR",('ANA SAYFA'!$T$13),(0))) -> 0 | AE5: =IF(I5=0,0,'ANA SAYFA'!$J$16) -> 17002.12 | AF5: ='Vergi Matrahları'!E4 -> 17002.12 | AG5: =IF(AF5<='ANA SAYFA'!$P$19,AE5*15%,IF(AF5<='ANA SAYFA'!$Q$19,((AE5-(AF5-'ANA SAYFA'!$P$19))*15%)+(AF5-'ANA SAYFA'!$P$19)*20%,IF(AF5<='ANA SAYFA'!$P$20,AE5*20%,IF(AF5<=('ANA SAYFA'!$R$20),((AE5-(AF5-'ANA SAYFA'!$P$20))*20%)+(AF5-'ANA SAYFA'!$P$20)*27%,IF(AF5<='ANA SAYFA'!$P$21,AE5*27%)))))-'ek bordro'!K4 -> 2550.32 | AH5: =IF(I5=0,0,('ANA SAYFA'!$J$15)*0.00759)-'ek bordro'!L4 -> 151.82 | AI5: =PUANTAJ!AM7 -> 205 | AJ5: =K5+M5+O5+Q5+'PERSONEL BİLGİ GİRİŞİ'!V5-'PERSONEL BİLGİ GİRİŞİ'!X5+'ek bordro'!D4 -> 21836.6 | AK5: =AJ5-AZ5-BA5+'ek bordro'!E4-'PERSONEL BİLGİ GİRİŞİ'!AY5 -> 18779.48 | AL5: =IF(AN5<='ANA SAYFA'!$P$19,AK5*15%,IF(AN5<='ANA SAYFA'!$Q$19,((AK5-(AN5-'ANA SAYFA'!$P$19))*15%)+(AN5-'ANA SAYFA'!$P$19)*20%,IF(AN5<='ANA SAYFA'!$P$20,AK5*20%,IF(AN5<=('ANA SAYFA'!$Q$20),((AK5-(AN5-'ANA SAYFA'!$P$20))*20%)+(AN5-'ANA SAYFA'!$P$20)*27%,IF(AN5<='ANA SAYFA'!$P$21,AK5*27%))))) -> 2816.92 | AM5: =AJ5*0.00759 -> 165.74 | AN5: ='Vergi Matrahları'!D4 -> 18779.48 | AO5: =IF((AL5-AG5)<=0,0,AL5-AG5+'ek bordro'!G4) -> 266.6 | AP5: =IF(AJ5<='ANA SAYFA'!$J$15,0,AM5-AH5+'ek bordro'!H4) -> 13.92 | AQ5: =IF(A5="",0,IF((PUANTAJ!AV7+PUANTAJ!AR7)>1,' BORDRO HAZIRLIK'!AJ5,IF(AND(PUANTAJ!AV7=0,PUANTAJ!AM7<=140),'ANA SAYFA'!$J$15,IF(AND(COUNTA(PUANTAJ!D7:AH7)>=28,(AJ5<'ANA SAYFA'!$J$15)),'ANA SAYFA'!$J$15,AJ5))))+'ek bordro'!I4 -> 21836.6 | AR5: =IF(AQ5='ANA SAYFA'!$J$15,('ANA SAYFA'!$J$15*9/100)-(AJ5*9/100),(0)) -> 0 | AS5: =ROUND(IF('PERSONEL BİLGİ GİRİŞİ'!AM5="VAR",(AJ5*3/100),(0)),0) -> 0 | AT5: =ROUND(IF('PERSONEL BİLGİ GİRİŞİ'!AO5="VAR",(BG5/4),(0)),2) -> 0 | AU5: =IF(NAFAKA!F5>1,NAFAKA!F5,IF('PERSONEL BİLGİ GİRİŞİ'!AT5="VAR",(BG5/4),(0))) -> 0 | AV5: =ROUND(IF('PERSONEL BİLGİ GİRİŞİ'!BE5="VAR",(((100*'ANA SAYFA'!$H$15))),(0)),2) -> 0 | AW5: =ROUND(IF('PERSONEL BİLGİ GİRİŞİ'!BD5="VAR",((1500*'ANA SAYFA'!$H$15/4)),(0)),2) -> 0 | AX5: =IF(AQ5='ANA SAYFA'!$J$15,('ANA SAYFA'!$J$15*5/100)-(AJ5*5/100),(0)) -> 0 | AY5: =IF(AQ5='ANA SAYFA'!$J$15,'ANA SAYFA'!$J$15*11/100+(AR5),(AQ5*11/100)+IF(AJ5>1,'Ödeme Emri'!$E$34,(0)))+'Ödeme Emri'!$L$37 -> 2402.036 | AZ5: =AJ5*9/100 -> 1965.29 | BA5: =AJ5*5/100 -> 1091.83 | BB5: =IF(AQ5='ANA SAYFA'!$J$15,AQ5*7.5/100+(AX5),AJ5*7.5/100) -> 1637.75 | BC5: =AQ5*2/100 -> 436.73 | BF5: =IF(AO5>='PERSONEL BİLGİ GİRİŞİ'!AA5,'PERSONEL BİLGİ GİRİŞİ'!AA5,IF('PERSONEL BİLGİ GİRİŞİ'!AA5,AO5)) -> 0 | BG5: =AJ5-AO5-AP5-AV5-AW5-AZ5-BA5-BE5 -> 18498.96 | BH5: =ROUND(BG5-AS5-AT5-AU5+BF5,2) -> 18498.96
A6: =PUANTAJ!A9 ->  | B6: =PUANTAJ!B9 ->  | C6: ='PERSONEL BİLGİ GİRİŞİ'!H6 -> 0 | D6: ='PERSONEL BİLGİ GİRİŞİ'!P7 -> 0 | E6: =((D6-(D6*15/100))-((D6-(D6*15/100))*15/100))-(D6*0.00759) -> 0 | F6: ='PERSONEL BİLGİ GİRİŞİ'!Q6 -> 0 | G6: =PUANTAJ!AI9 -> 0 | H6: =PUANTAJ!AU9 -> 0 | I6: =PUANTAJ!AT9-PUANTAJ!AP9 -> 0 | J6: =PUANTAJ!AI9 -> 0 | K6: =('PERSONEL BİLGİ GİRİŞİ'!R6*(PUANTAJ!AI9)) -> 0 | L6: =PUANTAJ!AJ9 -> 0 | M6: =('PERSONEL BİLGİ GİRİŞİ'!U6*PUANTAJ!AJ9) -> 0 | N6: =PUANTAJ!AK9 -> 0 | O6: =('PERSONEL BİLGİ GİRİŞİ'!U6*(PUANTAJ!AK9)) -> 0 | P6: =PUANTAJ!AL9 -> 0 | Q6: =('PERSONEL BİLGİ GİRİŞİ'!R6*(P6)) -> 0 | R6: =IF('PERSONEL BİLGİ GİRİŞİ'!AV7="YOK",0,IF('PERSONEL BİLGİ GİRİŞİ'!AS7="VAR",('ANA SAYFA'!$T$11),(0))) -> 0 | S6: =('PERSONEL BİLGİ GİRİŞİ'!U7+'PERSONEL BİLGİ GİRİŞİ'!V7)*'ANA SAYFA'!$Q$9 -> 0 | T6: =IF('PERSONEL BİLGİ GİRİŞİ'!AV7="YOK",0,'PERSONEL BİLGİ GİRİŞİ'!AE7*G6) -> 0 | U6: =IF('PERSONEL BİLGİ GİRİŞİ'!AV7="YOK",0,'PERSONEL BİLGİ GİRİŞİ'!AF7*G6) -> 0 | AA6: =IF(PUANTAJ!AX9>0,D6*1.6/7.5*PUANTAJ!AX9,0) -> 0 | AB6: =IF('PERSONEL BİLGİ GİRİŞİ'!AU7="YOK",0,IF('PERSONEL BİLGİ GİRİŞİ'!AK7="VAR",('ANA SAYFA'!$Q$17),(0))) -> 0 | AC6: =IF('PERSONEL BİLGİ GİRİŞİ'!AV7="YOK",0,IF('PERSONEL BİLGİ GİRİŞİ'!AN7="VAR",('ANA SAYFA'!$T$10),(0))) -> 0 | AD6: =IF('PERSONEL BİLGİ GİRİŞİ'!AV7="YOK",0,IF('PERSONEL BİLGİ GİRİŞİ'!AR7="VAR",('ANA SAYFA'!$T$13),(0))) -> 0 | AE6: =IF(I6=0,0,'ANA SAYFA'!$J$16) -> 0 | AF6: ='Vergi Matrahları'!E5 -> 0 | AG6: =IF(AF6<='ANA SAYFA'!$P$19,AE6*15%,IF(AF6<='ANA SAYFA'!$Q$19,((AE6-(AF6-'ANA SAYFA'!$P$19))*15%)+(AF6-'ANA SAYFA'!$P$19)*20%,IF(AF6<='ANA SAYFA'!$P$20,AE6*20%,IF(AF6<=('ANA SAYFA'!$R$20),((AE6-(AF6-'ANA SAYFA'!$P$20))*20%)+(AF6-'ANA SAYFA'!$P$20)*27%,IF(AF6<='ANA SAYFA'!$P$21,AE6*27%)))))-'ek bordro'!K5 -> 0 | AH6: =IF(I6=0,0,('ANA SAYFA'!$J$15)*0.00759)-'ek bordro'!L5 -> 0 | AI6: =PUANTAJ!AM9 -> 0 | AJ6: =K6+M6+O6+Q6+'PERSONEL BİLGİ GİRİŞİ'!V6-'PERSONEL BİLGİ GİRİŞİ'!X6+'ek bordro'!D5 -> 0 | AK6: =AJ6-AZ6-BA6+'ek bordro'!E5-'PERSONEL BİLGİ GİRİŞİ'!AY6 -> 0 | AL6: =IF(AN6<='ANA SAYFA'!$P$19,AK6*15%,IF(AN6<='ANA SAYFA'!$Q$19,((AK6-(AN6-'ANA SAYFA'!$P$19))*15%)+(AN6-'ANA SAYFA'!$P$19)*20%,IF(AN6<='ANA SAYFA'!$P$20,AK6*20%,IF(AN6<=('ANA SAYFA'!$Q$20),((AK6-(AN6-'ANA SAYFA'!$P$20))*20%)+(AN6-'ANA SAYFA'!$P$20)*27%,IF(AN6<='ANA SAYFA'!$P$21,AK6*27%))))) -> 0 | AM6: =AJ6*0.00759 -> 0 | AN6: ='Vergi Matrahları'!D5 -> 0 | AO6: =IF((AL6-AG6)<=0,0,AL6-AG6+'ek bordro'!G5) -> 0 | AP6: =IF(AJ6<='ANA SAYFA'!$J$15,0,AM6-AH6+'ek bordro'!H5) -> 0 | AQ6: =IF(A6="",0,IF((PUANTAJ!AV9+PUANTAJ!AR9)>1,' BORDRO HAZIRLIK'!AJ6,IF(AND(PUANTAJ!AV9=0,PUANTAJ!AM9<=140),'ANA SAYFA'!$J$15,IF(AND(COUNTA(PUANTAJ!D9:AH9)>=28,(AJ6<'ANA SAYFA'!$J$15)),'ANA SAYFA'!$J$15,AJ6))))+'ek bordro'!I6 -> 0 | AR6: =IF(AQ6='ANA SAYFA'!$J$15,('ANA SAYFA'!$J$15*9/100)-(AJ6*9/100),(0)) -> 0 | AS6: =ROUND(IF('PERSONEL BİLGİ GİRİŞİ'!AM6="VAR",(AJ6*3/100),(0)),0) -> 0 | AT6: =ROUND(IF('PERSONEL BİLGİ GİRİŞİ'!AO6="VAR",(BG6/4),(0)),2) -> 0 | AU6: =IF(NAFAKA!F6>1,NAFAKA!F6,IF('PERSONEL BİLGİ GİRİŞİ'!AT6="VAR",(BG6/4),(0))) -> 0 | AV6: =ROUND(IF('PERSONEL BİLGİ GİRİŞİ'!BE6="VAR",(((100*'ANA SAYFA'!$H$15))),(0)),2) -> 0 | AW6: =ROUND(IF('PERSONEL BİLGİ GİRİŞİ'!BD6="VAR",((1500*'ANA SAYFA'!$H$15/4)),(0)),2) -> 0 | AX6: =IF(AQ6='ANA SAYFA'!$J$15,('ANA SAYFA'!$J$15*5/100)-(AJ6*5/100),(0)) -> 0 | AY6: =IF(AQ6='ANA SAYFA'!$J$15,'ANA SAYFA'!$J$15*11/100+(AR6),(AQ6*11/100)+IF(AJ6>1,'Ödeme Emri'!$E$34,(0)))+'Ödeme Emri'!$L$37 -> 0 | AZ6: =AJ6*9/100 -> 0 | BA6: =AJ6*5/100 -> 0 | BB6: =IF(AQ6='ANA SAYFA'!$J$15,AQ6*7.5/100+(AX6),AJ6*7.5/100) -> 0 | BC6: =AQ6*2/100 -> 0 | BF6: =IF(AO6>='PERSONEL BİLGİ GİRİŞİ'!AA7,'PERSONEL BİLGİ GİRİŞİ'!AA7,IF('PERSONEL BİLGİ GİRİŞİ'!AA7,AO6)) -> 0 | BG6: =AJ6-AO6-AP6-AV6-AW6-AZ6-BA6-BE6 -> 0 | BH6: =ROUND(BG6-AS6-AT6-AU6+BF6,2) -> 0
A7: =PUANTAJ!A11 ->  | B7: =PUANTAJ!B11 ->  | C7: ='PERSONEL BİLGİ GİRİŞİ'!H7 -> 0 | D7: ='PERSONEL BİLGİ GİRİŞİ'!P9 -> 0 | E7: 0 | F7: ='PERSONEL BİLGİ GİRİŞİ'!Q7 -> 0 | G7: =PUANTAJ!AI11 -> 0 | H7: =PUANTAJ!AU11 -> 0 | I7: =PUANTAJ!AT11-PUANTAJ!AP11 -> 0 | J7: =PUANTAJ!AI11 -> 0 | K7: =('PERSONEL BİLGİ GİRİŞİ'!R7*(PUANTAJ!AI11)) -> 0 | L7: =PUANTAJ!AJ11 -> 0 | M7: =('PERSONEL BİLGİ GİRİŞİ'!U7*PUANTAJ!AJ11) -> 0 | N7: =PUANTAJ!AK11 -> 0 | O7: =('PERSONEL BİLGİ GİRİŞİ'!U7*(PUANTAJ!AK11)) -> 0 | P7: =PUANTAJ!AL11 -> 0 | Q7: =('PERSONEL BİLGİ GİRİŞİ'!R7*(P7)) -> 0 | R7: =IF('PERSONEL BİLGİ GİRİŞİ'!AV9="YOK",0,IF('PERSONEL BİLGİ GİRİŞİ'!AS9="VAR",('ANA SAYFA'!$T$11),(0))) -> 0 | S7: =('PERSONEL BİLGİ GİRİŞİ'!U9+'PERSONEL BİLGİ GİRİŞİ'!V9)*'ANA SAYFA'!$Q$9 -> 0 | T7: =IF('PERSONEL BİLGİ GİRİŞİ'!AV9="YOK",0,'PERSONEL BİLGİ GİRİŞİ'!AE9*G7) -> 0 | U7: =IF('PERSONEL BİLGİ GİRİŞİ'!AV9="YOK",0,'PERSONEL BİLGİ GİRİŞİ'!AF9*G7) -> 0 | AA7: =IF(PUANTAJ!AX11>0,D7*1.6/7.5*PUANTAJ!AX11,0) -> 0 | AB7: =IF('PERSONEL BİLGİ GİRİŞİ'!AU9="YOK",0,IF('PERSONEL BİLGİ GİRİŞİ'!AK9="VAR",('ANA SAYFA'!$Q$17),(0))) -> 0 | AC7: =IF('PERSONEL BİLGİ GİRİŞİ'!AV9="YOK",0,IF('PERSONEL BİLGİ GİRİŞİ'!AN9="VAR",('ANA SAYFA'!$T$10),(0))) -> 0 | AD7: =IF('PERSONEL BİLGİ GİRİŞİ'!AV9="YOK",0,IF('PERSONEL BİLGİ GİRİŞİ'!AR9="VAR",('ANA SAYFA'!$T$13),(0))) -> 0 | AE7: =IF(I7=0,0,'ANA SAYFA'!$J$16) -> 0 | AF7: ='Vergi Matrahları'!E6 -> 0 | AG7: =IF(AF7<='ANA SAYFA'!$P$19,AE7*15%,IF(AF7<='ANA SAYFA'!$Q$19,((AE7-(AF7-'ANA SAYFA'!$P$19))*15%)+(AF7-'ANA SAYFA'!$P$19)*20%,IF(AF7<='ANA SAYFA'!$P$20,AE7*20%,IF(AF7<=('ANA SAYFA'!$R$20),((AE7-(AF7-'ANA SAYFA'!$P$20))*20%)+(AF7-'ANA SAYFA'!$P$20)*27%,IF(AF7<='ANA SAYFA'!$P$21,AE7*27%)))))-'ek bordro'!K6 -> 0 | AH7: =IF(I7=0,0,('ANA SAYFA'!$J$15)*0.00759)-'ek bordro'!L6 -> 0 | AI7: =PUANTAJ!AM11 -> 0 | AJ7: =K7+M7+O7+Q7+'PERSONEL BİLGİ GİRİŞİ'!V7-'PERSONEL BİLGİ GİRİŞİ'!X7+'ek bordro'!D6 -> 0 | AK7: =AJ7-AZ7-BA7+'ek bordro'!E6-'PERSONEL BİLGİ GİRİŞİ'!AY7 -> 0 | AL7: =IF(AN7<='ANA SAYFA'!$P$19,AK7*15%,IF(AN7<='ANA SAYFA'!$Q$19,((AK7-(AN7-'ANA SAYFA'!$P$19))*15%)+(AN7-'ANA SAYFA'!$P$19)*20%,IF(AN7<='ANA SAYFA'!$P$20,AK7*20%,IF(AN7<=('ANA SAYFA'!$Q$20),((AK7-(AN7-'ANA SAYFA'!$P$20))*20%)+(AN7-'ANA SAYFA'!$P$20)*27%,IF(AN7<='ANA SAYFA'!$P$21,AK7*27%))))) -> 0 | AM7: 0 | AN7: ='Vergi Matrahları'!D6 -> 0 | AO7: =IF((AL7-AG7)<=0,0,AL7-AG7+'ek bordro'!G6) -> 0 | AP7: =IF(AJ7<='ANA SAYFA'!$J$15,0,AM7-AH7+'ek bordro'!H6) -> 0 | AQ7: =IF(A7="",0,IF((PUANTAJ!AV11+PUANTAJ!AR11)>1,' BORDRO HAZIRLIK'!AJ7,IF(AND(PUANTAJ!AV11=0,PUANTAJ!AM11<=140),'ANA SAYFA'!$J$15,IF(AND(COUNTA(PUANTAJ!D11:AH11)>=28,(AJ7<'ANA SAYFA'!$J$15)),'ANA SAYFA'!$J$15,AJ7))))+'ek bordro'!I8 -> 0 | AR7: =IF(AQ7='ANA SAYFA'!$J$15,('ANA SAYFA'!$J$15*9/100)-(AJ7*9/100),(0)) -> 0 | AS7: =ROUND(IF('PERSONEL BİLGİ GİRİŞİ'!AM7="VAR",(AJ7*3/100),(0)),0) -> 0 | AT7: =ROUND(IF('PERSONEL BİLGİ GİRİŞİ'!AO7="VAR",(BG7/4),(0)),2) -> 0 | AU7: =IF(NAFAKA!F7>1,NAFAKA!F7,IF('PERSONEL BİLGİ GİRİŞİ'!AT7="VAR",(BG7/4),(0))) -> 0 | AV7: =ROUND(IF('PERSONEL BİLGİ GİRİŞİ'!BE7="VAR",(((100*'ANA SAYFA'!$H$15))),(0)),2) -> 0 | AW7: =ROUND(IF('PERSONEL BİLGİ GİRİŞİ'!BD7="VAR",((1500*'ANA SAYFA'!$H$15/4)),(0)),2) -> 0 | AX7: =IF(AQ7='ANA SAYFA'!$J$15,('ANA SAYFA'!$J$15*5/100)-(AJ7*5/100),(0)) -> 0 | AY7: =IF(AQ7='ANA SAYFA'!$J$15,'ANA SAYFA'!$J$15*11/100+(AR7),(AQ7*11/100)+IF(AJ7>1,'Ödeme Emri'!$E$34,(0)))+'Ödeme Emri'!$L$37 -> 0 | AZ7: 0 | BA7: 0 | BB7: =IF(AQ7='ANA SAYFA'!$J$15,AQ7*7.5/100+(AX7),AJ7*7.5/100) -> 0 | BC7: 0 | BF7: =IF(AO7>='PERSONEL BİLGİ GİRİŞİ'!AA9,'PERSONEL BİLGİ GİRİŞİ'!AA9,IF('PERSONEL BİLGİ GİRİŞİ'!AA9,AO7)) -> 0 | BG7: 0 | BH7: 0
A8: =PUANTAJ!A13 ->  | B8: =PUANTAJ!B13 ->  | C8: ='PERSONEL BİLGİ GİRİŞİ'!H8 -> 0 | D8: ='PERSONEL BİLGİ GİRİŞİ'!P11 -> 0 | E8: 0 | F8: ='PERSONEL BİLGİ GİRİŞİ'!Q8 -> 0 | G8: =PUANTAJ!AI13 -> 0 | H8: =PUANTAJ!AU13 -> 0 | I8: =PUANTAJ!AT13-PUANTAJ!AP13 -> 0 | J8: =PUANTAJ!AI13 -> 0 | K8: =('PERSONEL BİLGİ GİRİŞİ'!R8*(PUANTAJ!AI13)) -> 0 | L8: =PUANTAJ!AJ13 -> 0 | M8: =('PERSONEL BİLGİ GİRİŞİ'!U8*PUANTAJ!AJ13) -> 0 | N8: =PUANTAJ!AK13 -> 0 | O8: =('PERSONEL BİLGİ GİRİŞİ'!U8*(PUANTAJ!AK13)) -> 0 | P8: =PUANTAJ!AL13 -> 0 | Q8: =('PERSONEL BİLGİ GİRİŞİ'!R8*(P8)) -> 0 | R8: =IF('PERSONEL BİLGİ GİRİŞİ'!AV11="YOK",0,IF('PERSONEL BİLGİ GİRİŞİ'!AS11="VAR",('ANA SAYFA'!$T$11),(0))) -> 0 | S8: =('PERSONEL BİLGİ GİRİŞİ'!U11+'PERSONEL BİLGİ GİRİŞİ'!V11)*'ANA SAYFA'!$Q$9 -> 0 | T8: =IF('PERSONEL BİLGİ GİRİŞİ'!AV11="YOK",0,'PERSONEL BİLGİ GİRİŞİ'!AE11*G8) -> 0 | U8: =IF('PERSONEL BİLGİ GİRİŞİ'!AV11="YOK",0,'PERSONEL BİLGİ GİRİŞİ'!AF11*G8) -> 0 | AA8: =IF(PUANTAJ!AX13>0,D8*1.6/7.5*PUANTAJ!AX13,0) -> 0 | AB8: =IF('PERSONEL BİLGİ GİRİŞİ'!AU11="YOK",0,IF('PERSONEL BİLGİ GİRİŞİ'!AK11="VAR",('ANA SAYFA'!$Q$17),(0))) -> 0 | AC8: =IF('PERSONEL BİLGİ GİRİŞİ'!AV11="YOK",0,IF('PERSONEL BİLGİ GİRİŞİ'!AN11="VAR",('ANA SAYFA'!$T$10),(0))) -> 0 | AD8: =IF('PERSONEL BİLGİ GİRİŞİ'!AV11="YOK",0,IF('PERSONEL BİLGİ GİRİŞİ'!AR11="VAR",('ANA SAYFA'!$T$13),(0))) -> 0 | AE8: =IF(I8=0,0,'ANA SAYFA'!$J$16) -> 0 | AF8: ='Vergi Matrahları'!E7 -> 0 | AG8: =IF(AF8<='ANA SAYFA'!$P$19,AE8*15%,IF(AF8<='ANA SAYFA'!$Q$19,((AE8-(AF8-'ANA SAYFA'!$P$19))*15%)+(AF8-'ANA SAYFA'!$P$19)*20%,IF(AF8<='ANA SAYFA'!$P$20,AE8*20%,IF(AF8<=('ANA SAYFA'!$R$20),((AE8-(AF8-'ANA SAYFA'!$P$20))*20%)+(AF8-'ANA SAYFA'!$P$20)*27%,IF(AF8<='ANA SAYFA'!$P$21,AE8*27%)))))-'ek bordro'!K7 -> 0 | AH8: =IF(I8=0,0,('ANA SAYFA'!$J$15)*0.00759)-'ek bordro'!L7 -> 0 | AI8: =PUANTAJ!AM13 -> 0 | AJ8: =K8+M8+O8+Q8+'PERSONEL BİLGİ GİRİŞİ'!V8-'PERSONEL BİLGİ GİRİŞİ'!X8+'ek bordro'!D7 -> 0 | AK8: =AJ8-AZ8-BA8+'ek bordro'!E7-'PERSONEL BİLGİ GİRİŞİ'!AY8 -> 0 | AL8: =IF(AN8<='ANA SAYFA'!$P$19,AK8*15%,IF(AN8<='ANA SAYFA'!$Q$19,((AK8-(AN8-'ANA SAYFA'!$P$19))*15%)+(AN8-'ANA SAYFA'!$P$19)*20%,IF(AN8<='ANA SAYFA'!$P$20,AK8*20%,IF(AN8<=('ANA SAYFA'!$Q$20),((AK8-(AN8-'ANA SAYFA'!$P$20))*20%)+(AN8-'ANA SAYFA'!$P$20)*27%,IF(AN8<='ANA SAYFA'!$P$21,AK8*27%))))) -> 0 | AM8: 0 | AN8: ='Vergi Matrahları'!D7 -> 0 | AO8: =IF((AL8-AG8)<=0,0,AL8-AG8+'ek bordro'!G7) -> 0 | AP8: =IF(AJ8<='ANA SAYFA'!$J$15,0,AM8-AH8+'ek bordro'!H7) -> 0 | AQ8: =IF(A8="",0,IF((PUANTAJ!AV13+PUANTAJ!AR13)>1,' BORDRO HAZIRLIK'!AJ8,IF(AND(PUANTAJ!AV13=0,PUANTAJ!AM13<=140),'ANA SAYFA'!$J$15,IF(AND(COUNTA(PUANTAJ!D13:AH13)>=28,(AJ8<'ANA SAYFA'!$J$15)),'ANA SAYFA'!$J$15,AJ8))))+'ek bordro'!I10 -> 0 | AR8: =IF(AQ8='ANA SAYFA'!$J$15,('ANA SAYFA'!$J$15*9/100)-(AJ8*9/100),(0)) -> 0 | AS8: =ROUND(IF('PERSONEL BİLGİ GİRİŞİ'!AM8="VAR",(AJ8*3/100),(0)),0) -> 0 | AT8: =ROUND(IF('PERSONEL BİLGİ GİRİŞİ'!AO8="VAR",(BG8/4),(0)),2) -> 0 | AU8: =IF(NAFAKA!F8>1,NAFAKA!F8,IF('PERSONEL BİLGİ GİRİŞİ'!AT8="VAR",(BG8/4),(0))) -> 0 | AV8: =ROUND(IF('PERSONEL BİLGİ GİRİŞİ'!BE8="VAR",(((100*'ANA SAYFA'!$H$15))),(0)),2) -> 0 | AW8: =ROUND(IF('PERSONEL BİLGİ GİRİŞİ'!BD8="VAR",((1500*'ANA SAYFA'!$H$15/4)),(0)),2) -> 0 | AX8: =IF(AQ8='ANA SAYFA'!$J$15,('ANA SAYFA'!$J$15*5/100)-(AJ8*5/100),(0)) -> 0 | AY8: =IF(AQ8='ANA SAYFA'!$J$15,'ANA SAYFA'!$J$15*11/100+(AR8),(AQ8*11/100)+IF(AJ8>1,'Ödeme Emri'!$E$34,(0)))+'Ödeme Emri'!$L$37 -> 0 | AZ8: 0 | BA8: 0 | BB8: =IF(AQ8='ANA SAYFA'!$J$15,AQ8*7.5/100+(AX8),AJ8*7.5/100) -> 0 | BC8: 0 | BF8: =IF(AO8>='PERSONEL BİLGİ GİRİŞİ'!AA11,'PERSONEL BİLGİ GİRİŞİ'!AA11,IF('PERSONEL BİLGİ GİRİŞİ'!AA11,AO8)) -> 0 | BG8: 0 | BH8: 0
A9: =PUANTAJ!A15 ->  | B9: =PUANTAJ!B15 ->  | C9: ='PERSONEL BİLGİ GİRİŞİ'!H9 -> 0 | D9: ='PERSONEL BİLGİ GİRİŞİ'!P13 -> 0 | E9: 0 | F9: ='PERSONEL BİLGİ GİRİŞİ'!Q9 -> 0 | G9: =PUANTAJ!AI15 -> 0 | H9: =PUANTAJ!AU15 -> 0 | I9: =PUANTAJ!AT15-PUANTAJ!AP15 -> 0 | J9: =PUANTAJ!AI15 -> 0 | K9: =('PERSONEL BİLGİ GİRİŞİ'!R9*(PUANTAJ!AI15)) -> 0 | L9: =PUANTAJ!AJ15 -> 0 | M9: =('PERSONEL BİLGİ GİRİŞİ'!U9*PUANTAJ!AJ15) -> 0 | N9: =PUANTAJ!AK15 -> 0 | O9: =('PERSONEL BİLGİ GİRİŞİ'!U9*(PUANTAJ!AK15)) -> 0 | P9: =PUANTAJ!AL15 -> 0 | Q9: =('PERSONEL BİLGİ GİRİŞİ'!R9*(P9)) -> 0 | R9: =IF('PERSONEL BİLGİ GİRİŞİ'!AV13="YOK",0,IF('PERSONEL BİLGİ GİRİŞİ'!AS13="VAR",('ANA SAYFA'!$T$11),(0))) -> 0 | S9: =('PERSONEL BİLGİ GİRİŞİ'!U13+'PERSONEL BİLGİ GİRİŞİ'!V13)*'ANA SAYFA'!$Q$9 -> 0 | T9: =IF('PERSONEL BİLGİ GİRİŞİ'!AV13="YOK",0,'PERSONEL BİLGİ GİRİŞİ'!AE13*G9) -> 0 | U9: =IF('PERSONEL BİLGİ GİRİŞİ'!AV13="YOK",0,'PERSONEL BİLGİ GİRİŞİ'!AF13*G9) -> 0 | AA9: =IF(PUANTAJ!AX15>0,D9*1.6/7.5*PUANTAJ!AX15,0) -> 0 | AB9: =IF('PERSONEL BİLGİ GİRİŞİ'!AU13="YOK",0,IF('PERSONEL BİLGİ GİRİŞİ'!AK13="VAR",('ANA SAYFA'!$Q$17),(0))) -> 0 | AC9: =IF('PERSONEL BİLGİ GİRİŞİ'!AV13="YOK",0,IF('PERSONEL BİLGİ GİRİŞİ'!AN13="VAR",('ANA SAYFA'!$T$10),(0))) -> 0 | AD9: =IF('PERSONEL BİLGİ GİRİŞİ'!AV13="YOK",0,IF('PERSONEL BİLGİ GİRİŞİ'!AR13="VAR",('ANA SAYFA'!$T$13),(0))) -> 0 | AE9: =IF(I9=0,0,'ANA SAYFA'!$J$16) -> 0 | AF9: ='Vergi Matrahları'!E8 -> 0 | AG9: =IF(AF9<='ANA SAYFA'!$P$19,AE9*15%,IF(AF9<='ANA SAYFA'!$Q$19,((AE9-(AF9-'ANA SAYFA'!$P$19))*15%)+(AF9-'ANA SAYFA'!$P$19)*20%,IF(AF9<='ANA SAYFA'!$P$20,AE9*20%,IF(AF9<=('ANA SAYFA'!$R$20),((AE9-(AF9-'ANA SAYFA'!$P$20))*20%)+(AF9-'ANA SAYFA'!$P$20)*27%,IF(AF9<='ANA SAYFA'!$P$21,AE9*27%)))))-'ek bordro'!K8 -> 0 | AH9: =IF(I9=0,0,('ANA SAYFA'!$J$15)*0.00759)-'ek bordro'!L8 -> 0 | AI9: =PUANTAJ!AM15 -> 0 | AJ9: =K9+M9+O9+Q9+'PERSONEL BİLGİ GİRİŞİ'!V9-'PERSONEL BİLGİ GİRİŞİ'!X9+'ek bordro'!D8 -> 0 | AK9: =AJ9-AZ9-BA9+'ek bordro'!E8-'PERSONEL BİLGİ GİRİŞİ'!AY9 -> 0 | AL9: =IF(AN9<='ANA SAYFA'!$P$19,AK9*15%,IF(AN9<='ANA SAYFA'!$Q$19,((AK9-(AN9-'ANA SAYFA'!$P$19))*15%)+(AN9-'ANA SAYFA'!$P$19)*20%,IF(AN9<='ANA SAYFA'!$P$20,AK9*20%,IF(AN9<=('ANA SAYFA'!$Q$20),((AK9-(AN9-'ANA SAYFA'!$P$20))*20%)+(AN9-'ANA SAYFA'!$P$20)*27%,IF(AN9<='ANA SAYFA'!$P$21,AK9*27%))))) -> 0 | AM9: 0 | AN9: ='Vergi Matrahları'!D8 -> 0 | AO9: =IF((AL9-AG9)<=0,0,AL9-AG9+'ek bordro'!G8) -> 0 | AP9: =IF(AJ9<='ANA SAYFA'!$J$15,0,AM9-AH9+'ek bordro'!H8) -> 0 | AQ9: =IF(A9="",0,IF((PUANTAJ!AV15+PUANTAJ!AR15)>1,' BORDRO HAZIRLIK'!AJ9,IF(AND(PUANTAJ!AV15=0,PUANTAJ!AM15<=140),'ANA SAYFA'!$J$15,IF(AND(COUNTA(PUANTAJ!D15:AH15)>=28,(AJ9<'ANA SAYFA'!$J$15)),'ANA SAYFA'!$J$15,AJ9))))+'ek bordro'!I12 -> 0 | AR9: =IF(AQ9='ANA SAYFA'!$J$15,('ANA SAYFA'!$J$15*9/100)-(AJ9*9/100),(0)) -> 0 | AS9: =ROUND(IF('PERSONEL BİLGİ GİRİŞİ'!AM9="VAR",(AJ9*3/100),(0)),0) -> 0 | AT9: =ROUND(IF('PERSONEL BİLGİ GİRİŞİ'!AO9="VAR",(BG9/4),(0)),2) -> 0 | AU9: =IF(NAFAKA!F9>1,NAFAKA!F9,IF('PERSONEL BİLGİ GİRİŞİ'!AT9="VAR",(BG9/4),(0))) -> 0 | AV9: =ROUND(IF('PERSONEL BİLGİ GİRİŞİ'!BE9="VAR",(((100*'ANA SAYFA'!$H$15))),(0)),2) -> 0 | AW9: =ROUND(IF('PERSONEL BİLGİ GİRİŞİ'!BD9="VAR",((1500*'ANA SAYFA'!$H$15/4)),(0)),2) -> 0 | AX9: =IF(AQ9='ANA SAYFA'!$J$15,('ANA SAYFA'!$J$15*5/100)-(AJ9*5/100),(0)) -> 0 | AY9: =IF(AQ9='ANA SAYFA'!$J$15,'ANA SAYFA'!$J$15*11/100+(AR9),(AQ9*11/100)+IF(AJ9>1,'Ödeme Emri'!$E$34,(0)))+'Ödeme Emri'!$L$37 -> 0 | AZ9: 0 | BA9: 0 | BB9: =IF(AQ9='ANA SAYFA'!$J$15,AQ9*7.5/100+(AX9),AJ9*7.5/100) -> 0 | BC9: 0 | BF9: =IF(AO9>='PERSONEL BİLGİ GİRİŞİ'!AA13,'PERSONEL BİLGİ GİRİŞİ'!AA13,IF('PERSONEL BİLGİ GİRİŞİ'!AA13,AO9)) -> 0 | BG9: 0 | BH9: 0
A10: =PUANTAJ!A17 ->  | B10: =PUANTAJ!B17 ->  | C10: ='PERSONEL BİLGİ GİRİŞİ'!H10 -> 0 | D10: ='PERSONEL BİLGİ GİRİŞİ'!P15 -> 0 | E10: 0 | F10: ='PERSONEL BİLGİ GİRİŞİ'!Q10 -> 0 | G10: =PUANTAJ!AI17 -> 0 | H10: =PUANTAJ!AU17 -> 0 | I10: =PUANTAJ!AT17-PUANTAJ!AP17 -> 0 | J10: =PUANTAJ!AI17 -> 0 | K10: =('PERSONEL BİLGİ GİRİŞİ'!R10*(PUANTAJ!AI17)) -> 0 | L10: =PUANTAJ!AJ17 -> 0 | M10: =('PERSONEL BİLGİ GİRİŞİ'!U10*PUANTAJ!AJ17) -> 0 | N10: =PUANTAJ!AK17 -> 0 | O10: =('PERSONEL BİLGİ GİRİŞİ'!U10*(PUANTAJ!AK17)) -> 0 | P10: =PUANTAJ!AL17 -> 0 | Q10: =('PERSONEL BİLGİ GİRİŞİ'!R10*(P10)) -> 0 | R10: =IF('PERSONEL BİLGİ GİRİŞİ'!AV15="YOK",0,IF('PERSONEL BİLGİ GİRİŞİ'!AS15="VAR",('ANA SAYFA'!$T$11),(0))) -> 0 | S10: =('PERSONEL BİLGİ GİRİŞİ'!U15+'PERSONEL BİLGİ GİRİŞİ'!V15)*'ANA SAYFA'!$Q$9 -> 0 | T10: =IF('PERSONEL BİLGİ GİRİŞİ'!AV15="YOK",0,'PERSONEL BİLGİ GİRİŞİ'!AE15*G10) -> 0 | U10: =IF('PERSONEL BİLGİ GİRİŞİ'!AV15="YOK",0,'PERSONEL BİLGİ GİRİŞİ'!AF15*G10) -> 0 | AA10: =IF(PUANTAJ!AX17>0,D10*1.6/7.5*PUANTAJ!AX17,0) -> 0 | AB10: =IF('PERSONEL BİLGİ GİRİŞİ'!AU15="YOK",0,IF('PERSONEL BİLGİ GİRİŞİ'!AK15="VAR",('ANA SAYFA'!$Q$17),(0))) -> 0 | AC10: =IF('PERSONEL BİLGİ GİRİŞİ'!AV15="YOK",0,IF('PERSONEL BİLGİ GİRİŞİ'!AN15="VAR",('ANA SAYFA'!$T$10),(0))) -> 0 | AD10: =IF('PERSONEL BİLGİ GİRİŞİ'!AV15="YOK",0,IF('PERSONEL BİLGİ GİRİŞİ'!AR15="VAR",('ANA SAYFA'!$T$13),(0))) -> 0 | AE10: =IF(I10=0,0,'ANA SAYFA'!$J$16) -> 0 | AF10: ='Vergi Matrahları'!E9 -> 0 | AG10: =IF(AF10<='ANA SAYFA'!$P$19,AE10*15%,IF(AF10<='ANA SAYFA'!$Q$19,((AE10-(AF10-'ANA SAYFA'!$P$19))*15%)+(AF10-'ANA SAYFA'!$P$19)*20%,IF(AF10<='ANA SAYFA'!$P$20,AE10*20%,IF(AF10<=('ANA SAYFA'!$R$20),((AE10-(AF10-'ANA SAYFA'!$P$20))*20%)+(AF10-'ANA SAYFA'!$P$20)*27%,IF(AF10<='ANA SAYFA'!$P$21,AE10*27%)))))-'ek bordro'!K9 -> 0 | AH10: =IF(I10=0,0,('ANA SAYFA'!$J$15)*0.00759)-'ek bordro'!L9 -> 0 | AI10: =PUANTAJ!AM17 -> 0 | AJ10: =K10+M10+O10+Q10+'PERSONEL BİLGİ GİRİŞİ'!V10-'PERSONEL BİLGİ GİRİŞİ'!X10+'ek bordro'!D9 -> 0 | AK10: =AJ10-AZ10-BA10+'ek bordro'!E9-'PERSONEL BİLGİ GİRİŞİ'!AY10 -> 0 | AL10: =IF(AN10<='ANA SAYFA'!$P$19,AK10*15%,IF(AN10<='ANA SAYFA'!$Q$19,((AK10-(AN10-'ANA SAYFA'!$P$19))*15%)+(AN10-'ANA SAYFA'!$P$19)*20%,IF(AN10<='ANA SAYFA'!$P$20,AK10*20%,IF(AN10<=('ANA SAYFA'!$Q$20),((AK10-(AN10-'ANA SAYFA'!$P$20))*20%)+(AN10-'ANA SAYFA'!$P$20)*27%,IF(AN10<='ANA SAYFA'!$P$21,AK10*27%))))) -> 0 | AM10: 0 | AN10: ='Vergi Matrahları'!D9 -> 0 | AO10: =IF((AL10-AG10)<=0,0,AL10-AG10+'ek bordro'!G9) -> 0 | AP10: =IF(AJ10<='ANA SAYFA'!$J$15,0,AM10-AH10+'ek bordro'!H9) -> 0 | AQ10: =IF(A10="",0,IF((PUANTAJ!AV17+PUANTAJ!AR17)>1,' BORDRO HAZIRLIK'!AJ10,IF(AND(PUANTAJ!AV17=0,PUANTAJ!AM17<=140),'ANA SAYFA'!$J$15,IF(AND(COUNTA(PUANTAJ!D17:AH17)>=28,(AJ10<'ANA SAYFA'!$J$15)),'ANA SAYFA'!$J$15,AJ10))))+'ek bordro'!I14 -> 0 | AR10: =IF(AQ10='ANA SAYFA'!$J$15,('ANA SAYFA'!$J$15*9/100)-(AJ10*9/100),(0)) -> 0 | AS10: =ROUND(IF('PERSONEL BİLGİ GİRİŞİ'!AM10="VAR",(AJ10*3/100),(0)),0) -> 0 | AT10: =ROUND(IF('PERSONEL BİLGİ GİRİŞİ'!AO10="VAR",(BG10/4),(0)),2) -> 0 | AU10: =IF(NAFAKA!F10>1,NAFAKA!F10,IF('PERSONEL BİLGİ GİRİŞİ'!AT10="VAR",(BG10/4),(0))) -> 0 | AV10: =ROUND(IF('PERSONEL BİLGİ GİRİŞİ'!BE10="VAR",(((100*'ANA SAYFA'!$H$15))),(0)),2) -> 0 | AW10: =ROUND(IF('PERSONEL BİLGİ GİRİŞİ'!BD10="VAR",((1500*'ANA SAYFA'!$H$15/4)),(0)),2) -> 0 | AX10: =IF(AQ10='ANA SAYFA'!$J$15,('ANA SAYFA'!$J$15*5/100)-(AJ10*5/100),(0)) -> 0 | AY10: =IF(AQ10='ANA SAYFA'!$J$15,'ANA SAYFA'!$J$15*11/100+(AR10),(AQ10*11/100)+IF(AJ10>1,'Ödeme Emri'!$E$34,(0)))+'Ödeme Emri'!$L$37 -> 0 | AZ10: 0 | BA10: 0 | BB10: =IF(AQ10='ANA SAYFA'!$J$15,AQ10*7.5/100+(AX10),AJ10*7.5/100) -> 0 | BC10: 0 | BF10: =IF(AO10>='PERSONEL BİLGİ GİRİŞİ'!AA15,'PERSONEL BİLGİ GİRİŞİ'!AA15,IF('PERSONEL BİLGİ GİRİŞİ'!AA15,AO10)) -> 0 | BG10: 0 | BH10: 0
A11: =PUANTAJ!A19 ->  | B11: =PUANTAJ!B19 ->  | C11: ='PERSONEL BİLGİ GİRİŞİ'!H11 -> 0 | D11: ='PERSONEL BİLGİ GİRİŞİ'!P17 -> 0 | E11: 0 | F11: ='PERSONEL BİLGİ GİRİŞİ'!Q11 -> 0 | G11: =PUANTAJ!AI19 -> 0 | H11: =PUANTAJ!AU19 -> 0 | I11: =PUANTAJ!AT19-PUANTAJ!AP19 -> 0 | J11: =PUANTAJ!AI19 -> 0 | K11: =('PERSONEL BİLGİ GİRİŞİ'!R11*(PUANTAJ!AI19)) -> 0 | L11: =PUANTAJ!AJ19 -> 0 | M11: =('PERSONEL BİLGİ GİRİŞİ'!U11*PUANTAJ!AJ19) -> 0 | N11: =PUANTAJ!AK19 -> 0 | O11: =('PERSONEL BİLGİ GİRİŞİ'!U11*(PUANTAJ!AK19)) -> 0 | P11: =PUANTAJ!AL19 -> 0 | Q11: =('PERSONEL BİLGİ GİRİŞİ'!R11*(P11)) -> 0 | R11: =IF('PERSONEL BİLGİ GİRİŞİ'!AV17="YOK",0,IF('PERSONEL BİLGİ GİRİŞİ'!AS17="VAR",('ANA SAYFA'!$T$11),(0))) -> 0 | S11: =('PERSONEL BİLGİ GİRİŞİ'!U17+'PERSONEL BİLGİ GİRİŞİ'!V17)*'ANA SAYFA'!$Q$9 -> 0 | T11: =IF('PERSONEL BİLGİ GİRİŞİ'!AV17="YOK",0,'PERSONEL BİLGİ GİRİŞİ'!AE17*G11) -> 0 | U11: =IF('PERSONEL BİLGİ GİRİŞİ'!AV17="YOK",0,'PERSONEL BİLGİ GİRİŞİ'!AF17*G11) -> 0 | AA11: =IF(PUANTAJ!AX19>0,D11*1.6/7.5*PUANTAJ!AX19,0) -> 0 | AB11: =IF('PERSONEL BİLGİ GİRİŞİ'!AU17="YOK",0,IF('PERSONEL BİLGİ GİRİŞİ'!AK17="VAR",('ANA SAYFA'!$Q$17),(0))) -> 0 | AC11: =IF('PERSONEL BİLGİ GİRİŞİ'!AV17="YOK",0,IF('PERSONEL BİLGİ GİRİŞİ'!AN17="VAR",('ANA SAYFA'!$T$10),(0))) -> 0 | AD11: =IF('PERSONEL BİLGİ GİRİŞİ'!AV17="YOK",0,IF('PERSONEL BİLGİ GİRİŞİ'!AR17="VAR",('ANA SAYFA'!$T$13),(0))) -> 0 | AE11: =IF(I11=0,0,'ANA SAYFA'!$J$16) -> 0 | AF11: ='Vergi Matrahları'!E10 -> 0 | AG11: =IF(AF11<='ANA SAYFA'!$P$19,AE11*15%,IF(AF11<='ANA SAYFA'!$Q$19,((AE11-(AF11-'ANA SAYFA'!$P$19))*15%)+(AF11-'ANA SAYFA'!$P$19)*20%,IF(AF11<='ANA SAYFA'!$P$20,AE11*20%,IF(AF11<=('ANA SAYFA'!$R$20),((AE11-(AF11-'ANA SAYFA'!$P$20))*20%)+(AF11-'ANA SAYFA'!$P$20)*27%,IF(AF11<='ANA SAYFA'!$P$21,AE11*27%)))))-'ek bordro'!K10 -> 0 | AH11: =IF(I11=0,0,('ANA SAYFA'!$J$15)*0.00759)-'ek bordro'!L10 -> 0 | AI11: =PUANTAJ!AM19 -> 0 | AJ11: =K11+M11+O11+Q11+'PERSONEL BİLGİ GİRİŞİ'!V11-'PERSONEL BİLGİ GİRİŞİ'!X11+'ek bordro'!D10 -> 0 | AK11: =AJ11-AZ11-BA11+'ek bordro'!E10-'PERSONEL BİLGİ GİRİŞİ'!AY11 -> 0 | AL11: =IF(AN11<='ANA SAYFA'!$P$19,AK11*15%,IF(AN11<='ANA SAYFA'!$Q$19,((AK11-(AN11-'ANA SAYFA'!$P$19))*15%)+(AN11-'ANA SAYFA'!$P$19)*20%,IF(AN11<='ANA SAYFA'!$P$20,AK11*20%,IF(AN11<=('ANA SAYFA'!$Q$20),((AK11-(AN11-'ANA SAYFA'!$P$20))*20%)+(AN11-'ANA SAYFA'!$P$20)*27%,IF(AN11<='ANA SAYFA'!$P$21,AK11*27%))))) -> 0 | AM11: 0 | AN11: ='Vergi Matrahları'!D10 -> 0 | AO11: =IF((AL11-AG11)<=0,0,AL11-AG11+'ek bordro'!G10) -> 0 | AP11: =IF(AJ11<='ANA SAYFA'!$J$15,0,AM11-AH11+'ek bordro'!H10) -> 0 | AQ11: =IF(A11="",0,IF((PUANTAJ!AV19+PUANTAJ!AR19)>1,' BORDRO HAZIRLIK'!AJ11,IF(AND(PUANTAJ!AV19=0,PUANTAJ!AM19<=140),'ANA SAYFA'!$J$15,IF(AND(COUNTA(PUANTAJ!D19:AH19)>=28,(AJ11<'ANA SAYFA'!$J$15)),'ANA SAYFA'!$J$15,AJ11))))+'ek bordro'!I16 -> 0 | AR11: =IF(AQ11='ANA SAYFA'!$J$15,('ANA SAYFA'!$J$15*9/100)-(AJ11*9/100),(0)) -> 0 | AS11: =ROUND(IF('PERSONEL BİLGİ GİRİŞİ'!AM11="VAR",(AJ11*3/100),(0)),0) -> 0 | AT11: =ROUND(IF('PERSONEL BİLGİ GİRİŞİ'!AO11="VAR",(BG11/4),(0)),2) -> 0 | AU11: =IF(NAFAKA!F11>1,NAFAKA!F11,IF('PERSONEL BİLGİ GİRİŞİ'!AT11="VAR",(BG11/4),(0))) -> 0 | AV11: =ROUND(IF('PERSONEL BİLGİ GİRİŞİ'!BE11="VAR",(((100*'ANA SAYFA'!$H$15))),(0)),2) -> 0 | AW11: =ROUND(IF('PERSONEL BİLGİ GİRİŞİ'!BD11="VAR",((1500*'ANA SAYFA'!$H$15/4)),(0)),2) -> 0 | AX11: =IF(AQ11='ANA SAYFA'!$J$15,('ANA SAYFA'!$J$15*5/100)-(AJ11*5/100),(0)) -> 0 | AY11: =IF(AQ11='ANA SAYFA'!$J$15,'ANA SAYFA'!$J$15*11/100+(AR11),(AQ11*11/100)+IF(AJ11>1,'Ödeme Emri'!$E$34,(0)))+'Ödeme Emri'!$L$37 -> 0 | AZ11: 0 | BA11: 0 | BB11: =IF(AQ11='ANA SAYFA'!$J$15,AQ11*7.5/100+(AX11),AJ11*7.5/100) -> 0 | BC11: 0 | BF11: =IF(AO11>='PERSONEL BİLGİ GİRİŞİ'!AA17,'PERSONEL BİLGİ GİRİŞİ'!AA17,IF('PERSONEL BİLGİ GİRİŞİ'!AA17,AO11)) -> 0 | BG11: 0 | BH11: 0
A12: =PUANTAJ!A21 ->  | B12: =PUANTAJ!B21 ->  | C12: ='PERSONEL BİLGİ GİRİŞİ'!H12 -> 0 | D12: ='PERSONEL BİLGİ GİRİŞİ'!P19 -> 0 | E12: 0 | F12: ='PERSONEL BİLGİ GİRİŞİ'!Q12 -> 0 | G12: =PUANTAJ!AI21 -> 0 | H12: =PUANTAJ!AU21 -> 0 | I12: =PUANTAJ!AT21-PUANTAJ!AP21 -> 0 | J12: =PUANTAJ!AI21 -> 0 | K12: =('PERSONEL BİLGİ GİRİŞİ'!R12*(PUANTAJ!AI21)) -> 0 | L12: =PUANTAJ!AJ21 -> 0 | M12: =('PERSONEL BİLGİ GİRİŞİ'!U12*PUANTAJ!AJ21) -> 0 | N12: =PUANTAJ!AK21 -> 0 | O12: =('PERSONEL BİLGİ GİRİŞİ'!U12*(PUANTAJ!AK21)) -> 0 | P12: =PUANTAJ!AL21 -> 0 | Q12: =('PERSONEL BİLGİ GİRİŞİ'!R12*(P12)) -> 0 | R12: =IF('PERSONEL BİLGİ GİRİŞİ'!AV19="YOK",0,IF('PERSONEL BİLGİ GİRİŞİ'!AS19="VAR",('ANA SAYFA'!$T$11),(0))) -> 0 | S12: =('PERSONEL BİLGİ GİRİŞİ'!U19+'PERSONEL BİLGİ GİRİŞİ'!V19)*'ANA SAYFA'!$Q$9 -> 0 | T12: =IF('PERSONEL BİLGİ GİRİŞİ'!AV19="YOK",0,'PERSONEL BİLGİ GİRİŞİ'!AE19*G12) -> 0 | U12: =IF('PERSONEL BİLGİ GİRİŞİ'!AV19="YOK",0,'PERSONEL BİLGİ GİRİŞİ'!AF19*G12) -> 0 | AA12: =IF(PUANTAJ!AX21>0,D12*1.6/7.5*PUANTAJ!AX21,0) -> 0 | AB12: =IF('PERSONEL BİLGİ GİRİŞİ'!AU19="YOK",0,IF('PERSONEL BİLGİ GİRİŞİ'!AK19="VAR",('ANA SAYFA'!$Q$17),(0))) -> 0 | AC12: =IF('PERSONEL BİLGİ GİRİŞİ'!AV19="YOK",0,IF('PERSONEL BİLGİ GİRİŞİ'!AN19="VAR",('ANA SAYFA'!$T$10),(0))) -> 0 | AD12: =IF('PERSONEL BİLGİ GİRİŞİ'!AV19="YOK",0,IF('PERSONEL BİLGİ GİRİŞİ'!AR19="VAR",('ANA SAYFA'!$T$13),(0))) -> 0 | AE12: =IF(I12=0,0,'ANA SAYFA'!$J$16) -> 0 | AF12: ='Vergi Matrahları'!E11 -> 0 | AG12: =IF(AF12<='ANA SAYFA'!$P$19,AE12*15%,IF(AF12<='ANA SAYFA'!$Q$19,((AE12-(AF12-'ANA SAYFA'!$P$19))*15%)+(AF12-'ANA SAYFA'!$P$19)*20%,IF(AF12<='ANA SAYFA'!$P$20,AE12*20%,IF(AF12<=('ANA SAYFA'!$R$20),((AE12-(AF12-'ANA SAYFA'!$P$20))*20%)+(AF12-'ANA SAYFA'!$P$20)*27%,IF(AF12<='ANA SAYFA'!$P$21,AE12*27%)))))-'ek bordro'!K11 -> 0 | AH12: =IF(I12=0,0,('ANA SAYFA'!$J$15)*0.00759)-'ek bordro'!L11 -> 0 | AI12: =PUANTAJ!AM21 -> 0 | AJ12: =K12+M12+O12+Q12+'PERSONEL BİLGİ GİRİŞİ'!V12-'PERSONEL BİLGİ GİRİŞİ'!X12+'ek bordro'!D11 -> 0 | AK12: =AJ12-AZ12-BA12+'ek bordro'!E11-'PERSONEL BİLGİ GİRİŞİ'!AY12 -> 0 | AL12: =IF(AN12<='ANA SAYFA'!$P$19,AK12*15%,IF(AN12<='ANA SAYFA'!$Q$19,((AK12-(AN12-'ANA SAYFA'!$P$19))*15%)+(AN12-'ANA SAYFA'!$P$19)*20%,IF(AN12<='ANA SAYFA'!$P$20,AK12*20%,IF(AN12<=('ANA SAYFA'!$Q$20),((AK12-(AN12-'ANA SAYFA'!$P$20))*20%)+(AN12-'ANA SAYFA'!$P$20)*27%,IF(AN12<='ANA SAYFA'!$P$21,AK12*27%))))) -> 0 | AM12: 0 | AN12: ='Vergi Matrahları'!D11 -> 0 | AO12: =IF((AL12-AG12)<=0,0,AL12-AG12+'ek bordro'!G11) -> 0 | AP12: =IF(AJ12<='ANA SAYFA'!$J$15,0,AM12-AH12+'ek bordro'!H11) -> 0 | AQ12: =IF(A12="",0,IF((PUANTAJ!AV21+PUANTAJ!AR21)>1,' BORDRO HAZIRLIK'!AJ12,IF(AND(PUANTAJ!AV21=0,PUANTAJ!AM21<=140),'ANA SAYFA'!$J$15,IF(AND(COUNTA(PUANTAJ!D21:AH21)>=28,(AJ12<'ANA SAYFA'!$J$15)),'ANA SAYFA'!$J$15,AJ12))))+'ek bordro'!I18 -> 0 | AR12: =IF(AQ12='ANA SAYFA'!$J$15,('ANA SAYFA'!$J$15*9/100)-(AJ12*9/100),(0)) -> 0 | AS12: =ROUND(IF('PERSONEL BİLGİ GİRİŞİ'!AM12="VAR",(AJ12*3/100),(0)),0) -> 0 | AT12: =ROUND(IF('PERSONEL BİLGİ GİRİŞİ'!AO12="VAR",(BG12/4),(0)),2) -> 0 | AU12: =IF(NAFAKA!F12>1,NAFAKA!F12,IF('PERSONEL BİLGİ GİRİŞİ'!AT12="VAR",(BG12/4),(0))) -> 0 | AV12: =ROUND(IF('PERSONEL BİLGİ GİRİŞİ'!BE12="VAR",(((100*'ANA SAYFA'!$H$15))),(0)),2) -> 0 | AW12: =ROUND(IF('PERSONEL BİLGİ GİRİŞİ'!BD12="VAR",((1500*'ANA SAYFA'!$H$15/4)),(0)),2) -> 0 | AX12: =IF(AQ12='ANA SAYFA'!$J$15,('ANA SAYFA'!$J$15*5/100)-(AJ12*5/100),(0)) -> 0 | AY12: =IF(AQ12='ANA SAYFA'!$J$15,'ANA SAYFA'!$J$15*11/100+(AR12),(AQ12*11/100)+IF(AJ12>1,'Ödeme Emri'!$E$34,(0)))+'Ödeme Emri'!$L$37 -> 0 | AZ12: 0 | BA12: 0 | BB12: =IF(AQ12='ANA SAYFA'!$J$15,AQ12*7.5/100+(AX12),AJ12*7.5/100) -> 0 | BC12: 0 | BF12: =IF(AO12>='PERSONEL BİLGİ GİRİŞİ'!AA19,'PERSONEL BİLGİ GİRİŞİ'!AA19,IF('PERSONEL BİLGİ GİRİŞİ'!AA19,AO12)) -> 0 | BG12: 0 | BH12: 0
A13: =PUANTAJ!A23 ->  | B13: =PUANTAJ!B23 ->  | C13: ='PERSONEL BİLGİ GİRİŞİ'!H13 -> 0 | D13: ='PERSONEL BİLGİ GİRİŞİ'!P21 -> 0 | E13: 0 | F13: ='PERSONEL BİLGİ GİRİŞİ'!Q13 -> 0 | G13: =PUANTAJ!AI23 -> 0 | H13: =PUANTAJ!AU23 -> 0 | I13: =PUANTAJ!AT23-PUANTAJ!AP23 -> 0 | J13: =PUANTAJ!AI23 -> 0 | K13: =('PERSONEL BİLGİ GİRİŞİ'!R13*(PUANTAJ!AI23)) -> 0 | L13: =PUANTAJ!AJ23 -> 0 | M13: =('PERSONEL BİLGİ GİRİŞİ'!U13*PUANTAJ!AJ23) -> 0 | N13: =PUANTAJ!AK23 -> 0 | O13: =('PERSONEL BİLGİ GİRİŞİ'!U13*(PUANTAJ!AK23)) -> 0 | P13: =PUANTAJ!AL23 -> 0 | Q13: =('PERSONEL BİLGİ GİRİŞİ'!R13*(P13)) -> 0 | R13: =IF('PERSONEL BİLGİ GİRİŞİ'!AV21="YOK",0,IF('PERSONEL BİLGİ GİRİŞİ'!AS21="VAR",('ANA SAYFA'!$T$11),(0))) -> 0 | S13: =('PERSONEL BİLGİ GİRİŞİ'!U21+'PERSONEL BİLGİ GİRİŞİ'!V21)*'ANA SAYFA'!$Q$9 -> 0 | T13: =IF('PERSONEL BİLGİ GİRİŞİ'!AV21="YOK",0,'PERSONEL BİLGİ GİRİŞİ'!AE21*G13) -> 0 | U13: =IF('PERSONEL BİLGİ GİRİŞİ'!AV21="YOK",0,'PERSONEL BİLGİ GİRİŞİ'!AF21*G13) -> 0 | AA13: =IF(PUANTAJ!AX23>0,D13*1.6/7.5*PUANTAJ!AX23,0) -> 0 | AB13: =IF('PERSONEL BİLGİ GİRİŞİ'!AU21="YOK",0,IF('PERSONEL BİLGİ GİRİŞİ'!AK21="VAR",('ANA SAYFA'!$Q$17),(0))) -> 0 | AC13: =IF('PERSONEL BİLGİ GİRİŞİ'!AV21="YOK",0,IF('PERSONEL BİLGİ GİRİŞİ'!AN21="VAR",('ANA SAYFA'!$T$10),(0))) -> 0 | AD13: =IF('PERSONEL BİLGİ GİRİŞİ'!AV21="YOK",0,IF('PERSONEL BİLGİ GİRİŞİ'!AR21="VAR",('ANA SAYFA'!$T$13),(0))) -> 0 | AE13: =IF(I13=0,0,'ANA SAYFA'!$J$16) -> 0 | AF13: ='Vergi Matrahları'!E12 -> 0 | AG13: =IF(AF13<='ANA SAYFA'!$P$19,AE13*15%,IF(AF13<='ANA SAYFA'!$Q$19,((AE13-(AF13-'ANA SAYFA'!$P$19))*15%)+(AF13-'ANA SAYFA'!$P$19)*20%,IF(AF13<='ANA SAYFA'!$P$20,AE13*20%,IF(AF13<=('ANA SAYFA'!$R$20),((AE13-(AF13-'ANA SAYFA'!$P$20))*20%)+(AF13-'ANA SAYFA'!$P$20)*27%,IF(AF13<='ANA SAYFA'!$P$21,AE13*27%)))))-'ek bordro'!K12 -> 0 | AH13: =IF(I13=0,0,('ANA SAYFA'!$J$15)*0.00759)-'ek bordro'!L12 -> 0 | AI13: =PUANTAJ!AM23 -> 0 | AJ13: =K13+M13+O13+Q13+'PERSONEL BİLGİ GİRİŞİ'!V13-'PERSONEL BİLGİ GİRİŞİ'!X13+'ek bordro'!D12 -> 0 | AK13: =AJ13-AZ13-BA13+'ek bordro'!E12-'PERSONEL BİLGİ GİRİŞİ'!AY13 -> 0 | AL13: =IF(AN13<='ANA SAYFA'!$P$19,AK13*15%,IF(AN13<='ANA SAYFA'!$Q$19,((AK13-(AN13-'ANA SAYFA'!$P$19))*15%)+(AN13-'ANA SAYFA'!$P$19)*20%,IF(AN13<='ANA SAYFA'!$P$20,AK13*20%,IF(AN13<=('ANA SAYFA'!$Q$20),((AK13-(AN13-'ANA SAYFA'!$P$20))*20%)+(AN13-'ANA SAYFA'!$P$20)*27%,IF(AN13<='ANA SAYFA'!$P$21,AK13*27%))))) -> 0 | AM13: 0 | AN13: ='Vergi Matrahları'!D12 -> 0 | AO13: =IF((AL13-AG13)<=0,0,AL13-AG13+'ek bordro'!G12) -> 0 | AP13: =IF(AJ13<='ANA SAYFA'!$J$15,0,AM13-AH13+'ek bordro'!H12) -> 0 | AQ13: =IF(A13="",0,IF((PUANTAJ!AV23+PUANTAJ!AR23)>1,' BORDRO HAZIRLIK'!AJ13,IF(AND(PUANTAJ!AV23=0,PUANTAJ!AM23<=140),'ANA SAYFA'!$J$15,IF(AND(COUNTA(PUANTAJ!D23:AH23)>=28,(AJ13<'ANA SAYFA'!$J$15)),'ANA SAYFA'!$J$15,AJ13))))+'ek bordro'!I20 -> 0 | AR13: =IF(AQ13='ANA SAYFA'!$J$15,('ANA SAYFA'!$J$15*9/100)-(AJ13*9/100),(0)) -> 0 | AS13: =ROUND(IF('PERSONEL BİLGİ GİRİŞİ'!AM13="VAR",(AJ13*3/100),(0)),0) -> 0 | AT13: =ROUND(IF('PERSONEL BİLGİ GİRİŞİ'!AO13="VAR",(BG13/4),(0)),2) -> 0 | AU13: =IF(NAFAKA!F13>1,NAFAKA!F13,IF('PERSONEL BİLGİ GİRİŞİ'!AT13="VAR",(BG13/4),(0))) -> 0 | AV13: =ROUND(IF('PERSONEL BİLGİ GİRİŞİ'!BE13="VAR",(((100*'ANA SAYFA'!$H$15))),(0)),2) -> 0 | AW13: =ROUND(IF('PERSONEL BİLGİ GİRİŞİ'!BD13="VAR",((1500*'ANA SAYFA'!$H$15/4)),(0)),2) -> 0 | AX13: =IF(AQ13='ANA SAYFA'!$J$15,('ANA SAYFA'!$J$15*5/100)-(AJ13*5/100),(0)) -> 0 | AY13: =IF(AQ13='ANA SAYFA'!$J$15,'ANA SAYFA'!$J$15*11/100+(AR13),(AQ13*11/100)+IF(AJ13>1,'Ödeme Emri'!$E$34,(0)))+'Ödeme Emri'!$L$37 -> 0 | AZ13: 0 | BA13: 0 | BB13: =IF(AQ13='ANA SAYFA'!$J$15,AQ13*7.5/100+(AX13),AJ13*7.5/100) -> 0 | BC13: 0 | BF13: =IF(AO13>='PERSONEL BİLGİ GİRİŞİ'!AA21,'PERSONEL BİLGİ GİRİŞİ'!AA21,IF('PERSONEL BİLGİ GİRİŞİ'!AA21,AO13)) -> 0 | BG13: 0 | BH13: 0
